Workbook

Sheet Voorblad

Sheet Gegevens
A1: 1. Gegevens oppervlakten waarvan water wordt opgevangen in de wateropslag
A2: Serre | D2: m²
A3: Teeltoppervlakte | D3: m²
A4: Bedrijfsgebouwen | D4: m²
A7: 2. Gegevens waterbassin
A8: 2.1 Afmetingen waterbassin
A9: Lengte (buitenmaat): | D9: m | E9: (gemeten vanaf de voet van de talud) | J9: Binnenlengte | L9: =C9-(2*C11+2*C12) -> 0 | M9: m | N9: (lengte binnenkant talluds)
A10: Breedte (buitenmaat): | D10: m | E10: (gemeten vanaf de voet van de talud) | J10: Binnenbreedte | L10: =C10-(2*C11+2*C12) -> 0 | M10: m | N10: (breedte binnenkant talluds)
A11: Hoogte talud: | D11: m | E11: (gemeten van maaiveld tot bovenkant talud)
A12: Breedte bovenkant talud: | D12: m
A13: Totale diepte | D13: m | E13: (bovenkant tallud tot bodem bassin)
A14: Diepte Overloop | C14: 0.75 | D14: m | E14: (bovenkant tallud tot onderkant buis overloop)
A15: Hoogte dode zone | C15: 0.5 | D15: m | E15: (onderkant bassin tot minimaal aanzuigniveau in bassin)
M16: =SUM(C2/10000) -> 0 | N16: zit in berekeningen (mag niet weg)
A17: 3. Teeltgegevens
A18: Voor welke teelt wenst u de benodigde opslagcapaciteit te berekenen? | G18: Tomaat
A20: Welke gegevens wenst u te gebruiken voor de vers waterbehoefte van de teelt? | G20: Standaard waarden
A22: =IF(G20="Eigen waarden","4. Overzicht wekelijks vers waterverbruik (dit is gietwater min drainwater)","") -> 
A23: =IF(G20="Eigen waarden","Verbruik","") ->  | B23: =IF(G20="Eigen waarden", "Teelt","") -> 
A24: =IF(G20="Eigen waarden","Week","") ->  | B24: =IF(G20="Eigen waarden", "l/m² en week", "") -> 
A25: =IF(G20="Eigen waarden",1,"") ->  | B25: =IF($G$20="Eigen waarden",0,"") ->  | C25: =IF(B25="","",B25*10/7) -> 
A26: =IF(A25=1,A25+1,"") ->  | C26: =IF(B26="","",B26*10/7) -> 
A27: =IF(A26="","",A26+1) -> 
A28: =IF(A27="","",A27+1) -> 

Sheet Gegevens vergelijking (hidden)
A1: 1. Gegevens oppervlakten waarvan water wordt opgevangen in de wateropslag | I1: 3. Gegevens hemelwaterverbruik
B2: Situatie 1 | C2: Situatie 2 | I2: 3.1 Hemelwaterbehoefte teelt | N2: Situatie 1 | O2: Situatie 2
A3: Serre | B3: ='Gegevens '!C2 -> 0 | C3: 22000 | D3: m² | I3: Voor welke teelt wenst u de benodigde opslagcapaciteit te berekenen? | N3: ='Gegevens '!G18 -> Tomaat | O3: Paprika (jaarrond)
A4: Teeltoppervlakte | B4: ='Gegevens '!C3 -> 0 | C4: 21500 | D4: m² | I4: Wenst u de berekening uit te voeren met eigen wekelijkse waterverbuiken? | N4: ='Gegevens '!G20 -> Standaard waarden | O4: Standaard waarden
A5: Bedrijfsgebouwen | B5: ='Gegevens '!C4 -> 0 | C5: 1250 | D5: m²
A7: 2. Afmetingen waterbassin
B8: Situatie 1 | C8: Situatie 2
A9: Lengte | B9: ='Gegevens '!L9 -> 0 | C9: 70 | D9: m | E9: (lengte binnenkant talluds) | I9: 3.2 Spoelwater filters | N9: Situatie 1 | O9: Situatie 2
A10: Breedte | B10: ='Gegevens '!L10 -> 0 | C10: 40 | D10: m | E10: (breedte binnenkant talluds)
A11: Totale diepte | B11: ='Gegevens '!C13 -> 0 | C11: 6 | D11: m | E11: (bovenkant tallud tot bodem bassin) | I11: Wenst u in de berekening spoelwater voor filterinstallaties op te nemen? | N11: nee | O11: nee
A12: Diepte Overloop | B12: ='Gegevens '!C14 -> 0.75 | C12: 0.3 | D12: m | E12: (bovenkant tallud tot onderkant buis overloop)
A13: Hoogte dode zone | B13: ='Gegevens '!C15 -> 0.5 | C13: 1 | D13: m | E13: (onderkant bassin tot minimaal aanzuigniveau in bassin) | I13: Situatie 1 | N13: Situatie 2
A14: Diepte Waterniveau | B14: ='Gegevens '!#REF! ->  | C14: 3 | D14: m | I14: Verbruik | J14: Teelt | K14: Spoelwater | L14: Andere | M14: Totaal verbruik | N14: Teelt | O14: Spoelwater | P14: Andere | Q14: Totaal verbruik
I15: Week | J15: l/m² en week | K15: m³/week en ha | L15: m³/week en ha | M15: m³/dag en ha | N15: l/m² en week en ha | O15: m³/week en ha | P15: m³/week en ha | Q15: m³/dag en ha
I16: 1 | J16: ='Gegevens '!B25 ->  | K16: ='Gegevens '!#REF! ->  | L16: ='Gegevens '!#REF! ->  | M16: ='Gegevens '!C25 ->  | N16: =IF($O$4="Eigen waarden","",Lijsten!C19) -> 2.162632739 | Q16: =(N16*10/7)+O16/7+P16/7 -> 3.089475342
I17: 2 | J17: ='Gegevens '!B26 ->  | K17: ='Gegevens '!#REF! ->  | L17: ='Gegevens '!#REF! ->  | M17: ='Gegevens '!C26 ->  | N17: =IF($O$4="Eigen waarden","",Lijsten!C20) -> 3.0108423 | Q17: =(N17*10/7)+O17/7+P17/7 -> 4.301203286
B18: =SUM(B3/10000) -> 0 | C18: zit in berekeningen (mag niet weg) | I18: 3 | J18: ='Gegevens '!B27 ->  | K18: ='Gegevens '!#REF! ->  | L18: ='Gegevens '!#REF! ->  | M18: ='Gegevens '!C27 ->  | N18: =IF($O$4="Eigen waarden","",Lijsten!C21) -> 3.772063704 | Q18: 5.388662435
B19: =SUM(B4/10000) -> 0 | C19: zit in berekeningen (mag niet weg) | I19: 4 | J19: ='Gegevens '!B28 ->  | K19: ='Gegevens '!#REF! ->  | L19: ='Gegevens '!#REF! ->  | M19: ='Gegevens '!C28 ->  | N19: =IF($O$4="Eigen waarden","",Lijsten!C22) -> 4.371063886 | Q19: 6.244376979
I20: 5 | J20: ='Gegevens '!B29 ->  | K20: ='Gegevens '!#REF! ->  | L20: ='Gegevens '!#REF! ->  | M20: ='Gegevens '!C29 ->  | N20: =IF($O$4="Eigen waarden","",Lijsten!C23) -> 5.777042551 | Q20: 8.25291793
I21: 6 | J21: ='Gegevens '!B30 ->  | K21: ='Gegevens '!#REF! ->  | L21: ='Gegevens '!#REF! ->  | M21: ='Gegevens '!C30 ->  | N21: =IF($O$4="Eigen waarden","",Lijsten!C24) -> 6.400130084 | Q21: 9.143042977
I22: 7 | J22: ='Gegevens '!B31 ->  | K22: ='Gegevens '!#REF! ->  | L22: ='Gegevens '!#REF! ->  | M22: ='Gegevens '!C31 ->  | N22: =IF($O$4="Eigen waarden","",Lijsten!C25) -> 7.684341478 | Q22: 10.97763068
I23: 8 | J23: ='Gegevens '!B32 ->  | K23: ='Gegevens '!#REF! ->  | L23: ='Gegevens '!#REF! ->  | M23: ='Gegevens '!C32 ->  | N23: =IF($O$4="Eigen waarden","",Lijsten!C26) -> 9.261716103 | Q23: 13.231023
I24: 9 | J24: ='Gegevens '!B33 ->  | K24: ='Gegevens '!#REF! ->  | L24: ='Gegevens '!#REF! ->  | M24: ='Gegevens '!C33 ->  | N24: =IF($O$4="Eigen waarden","",Lijsten!C27) -> 10.40618687 | Q24: 14.86598124
I25: 10 | J25: ='Gegevens '!B34 ->  | K25: ='Gegevens '!#REF! ->  | L25: ='Gegevens '!#REF! ->  | M25: ='Gegevens '!C34 ->  | N25: =IF($O$4="Eigen waarden","",Lijsten!C28) -> 11.86570159 | Q25: 16.95100227
I26: 11 | J26: ='Gegevens '!B35 ->  | K26: ='Gegevens '!#REF! ->  | L26: ='Gegevens '!#REF! ->  | M26: ='Gegevens '!C35 ->  | N26: =IF($O$4="Eigen waarden","",Lijsten!C29) -> 13.65634877 | Q26: 19.50906967
I27: 12 | J27: ='Gegevens '!B36 ->  | K27: ='Gegevens '!#REF! ->  | L27: ='Gegevens '!#REF! ->  | M27: ='Gegevens '!C36 ->  | N27: =IF($O$4="Eigen waarden","",Lijsten!C30) -> 15.78854952 | Q27: 22.55507074
I28: 13 | J28: ='Gegevens '!B37 ->  | K28: ='Gegevens '!#REF! ->  | L28: ='Gegevens '!#REF! ->  | M28: ='Gegevens '!C37 ->  | N28: =IF($O$4="Eigen waarden","",Lijsten!C31) -> 16.42223954 | Q28: 23.4603422
I29: 14 | J29: ='Gegevens '!B38 ->  | K29: ='Gegevens '!#REF! ->  | L29: ='Gegevens '!#REF! ->  | M29: ='Gegevens '!C38 ->  | N29: =IF($O$4="Eigen waarden","",Lijsten!C32) -> 18.91395644 | Q29: 27.01993778
I30: 15 | J30: ='Gegevens '!B39 ->  | K30: ='Gegevens '!#REF! ->  | L30: ='Gegevens '!#REF! ->  | M30: ='Gegevens '!C39 ->  | N30: =IF($O$4="Eigen waarden","",Lijsten!C33) -> 20.24775429 | Q30: 28.92536326
I31: 16 | J31: ='Gegevens '!B40 ->  | K31: ='Gegevens '!#REF! ->  | L31: ='Gegevens '!#REF! ->  | M31: ='Gegevens '!C40 ->  | N31: =IF($O$4="Eigen waarden","",Lijsten!C34) -> 22.90382337 | Q31: 32.71974768
I32: 17 | J32: ='Gegevens '!B41 ->  | K32: ='Gegevens '!#REF! ->  | L32: ='Gegevens '!#REF! ->  | M32: ='Gegevens '!C41 ->  | N32: =IF($O$4="Eigen waarden","",Lijsten!C35) -> 23.80689086 | Q32: 34.00984409
I33: 18 | J33: ='Gegevens '!B42 ->  | K33: ='Gegevens '!#REF! ->  | L33: ='Gegevens '!#REF! ->  | M33: ='Gegevens '!C42 ->  | N33: =IF($O$4="Eigen waarden","",Lijsten!C36) -> 23.33813652 | Q33: 33.34019503
I34: 19 | J34: ='Gegevens '!B43 ->  | K34: ='Gegevens '!#REF! ->  | L34: ='Gegevens '!#REF! ->  | M34: ='Gegevens '!C43 ->  | N34: =IF($O$4="Eigen waarden","",Lijsten!C37) -> 25.30468851 | Q34: 36.14955501
I35: 20 | J35: ='Gegevens '!B44 ->  | K35: ='Gegevens '!#REF! ->  | L35: ='Gegevens '!#REF! ->  | M35: ='Gegevens '!C44 ->  | N35: =IF($O$4="Eigen waarden","",Lijsten!C38) -> 25.83577323 | Q35: 36.90824748
I36: 21 | J36: ='Gegevens '!B45 ->  | K36: ='Gegevens '!#REF! ->  | L36: ='Gegevens '!#REF! ->  | M36: ='Gegevens '!C45 ->  | N36: =IF($O$4="Eigen waarden","",Lijsten!C39) -> 26.99845848 | Q36: 38.5692264
I37: 22 | J37: ='Gegevens '!B46 ->  | K37: ='Gegevens '!#REF! ->  | L37: ='Gegevens '!#REF! ->  | M37: ='Gegevens '!C46 ->  | N37: =IF($O$4="Eigen waarden","",Lijsten!C40) -> 27.84570769 | Q37: 39.77958241
I38: 23 | J38: ='Gegevens '!B47 ->  | K38: ='Gegevens '!#REF! ->  | L38: ='Gegevens '!#REF! ->  | M38: ='Gegevens '!C47 ->  | N38: =IF($O$4="Eigen waarden","",Lijsten!C41) -> 28.20426748 | Q38: 40.29181069
I39: 24 | J39: ='Gegevens '!B48 ->  | K39: ='Gegevens '!#REF! ->  | L39: ='Gegevens '!#REF! ->  | M39: ='Gegevens '!C48 ->  | N39: =IF($O$4="Eigen waarden","",Lijsten!C42) -> 30.76581366 | Q39: 43.95116237
I40: 25 | J40: ='Gegevens '!B49 ->  | K40: ='Gegevens '!#REF! ->  | L40: ='Gegevens '!#REF! ->  | M40: ='Gegevens '!C49 ->  | N40: =IF($O$4="Eigen waarden","",Lijsten!C43) -> 29.26133483 | Q40: 41.8019069
I41: 26 | J41: ='Gegevens '!B50 ->  | K41: ='Gegevens '!#REF! ->  | L41: ='Gegevens '!#REF! ->  | M41: ='Gegevens '!C50 ->  | N41: =IF($O$4="Eigen waarden","",Lijsten!C44) -> 30.51063735 | Q41: 43.58662478
I42: 27 | J42: ='Gegevens '!B51 ->  | K42: ='Gegevens '!#REF! ->  | L42: ='Gegevens '!#REF! ->  | M42: ='Gegevens '!C51 ->  | N42: =IF($O$4="Eigen waarden","",Lijsten!C45) -> 30.94142285 | Q42: 44.20203264
I43: 28 | J43: ='Gegevens '!B52 ->  | K43: ='Gegevens '!#REF! ->  | L43: ='Gegevens '!#REF! ->  | M43: ='Gegevens '!C52 ->  | N43: =IF($O$4="Eigen waarden","",Lijsten!C46) -> 26.55251059 | Q43: 37.93215799
I44: 29 | J44: ='Gegevens '!B53 ->  | K44: ='Gegevens '!#REF! ->  | L44: ='Gegevens '!#REF! ->  | M44: ='Gegevens '!C53 ->  | N44: =IF($O$4="Eigen waarden","",Lijsten!C47) -> 28.98170612 | Q44: 41.40243732
I45: 30 | J45: ='Gegevens '!B54 ->  | K45: ='Gegevens '!#REF! ->  | L45: ='Gegevens '!#REF! ->  | M45: ='Gegevens '!C54 ->  | N45: =IF($O$4="Eigen waarden","",Lijsten!C48) -> 26.92267653 | Q45: 38.46096648
I46: 31 | J46: ='Gegevens '!B55 ->  | K46: ='Gegevens '!#REF! ->  | L46: ='Gegevens '!#REF! ->  | M46: ='Gegevens '!C55 ->  | N46: =IF($O$4="Eigen waarden","",Lijsten!C49) -> 25.5801877 | Q46: 36.54312528
I47: 32 | J47: ='Gegevens '!B56 ->  | K47: ='Gegevens '!#REF! ->  | L47: ='Gegevens '!#REF! ->  | M47: ='Gegevens '!C56 ->  | N47: =IF($O$4="Eigen waarden","",Lijsten!C50) -> 24.6648949 | Q47: 35.23556414
I48: 33 | J48: ='Gegevens '!B57 ->  | K48: ='Gegevens '!#REF! ->  | L48: ='Gegevens '!#REF! ->  | M48: ='Gegevens '!C57 ->  | N48: =IF($O$4="Eigen waarden","",Lijsten!C51) -> 25.46534477 | Q48: 36.37906396
I49: 34 | J49: ='Gegevens '!B58 ->  | K49: ='Gegevens '!#REF! ->  | L49: ='Gegevens '!#REF! ->  | M49: ='Gegevens '!C58 ->  | N49: =IF($O$4="Eigen waarden","",Lijsten!C52) -> 22.60505782 | Q49: 32.29293975
I50: 35 | J50: ='Gegevens '!B59 ->  | K50: ='Gegevens '!#REF! ->  | L50: ='Gegevens '!#REF! ->  | M50: ='Gegevens '!C59 ->  | N50: =IF($O$4="Eigen waarden","",Lijsten!C53) -> 22.27612573 | Q50: 31.82303675
I51: 36 | J51: ='Gegevens '!B60 ->  | K51: ='Gegevens '!#REF! ->  | L51: ='Gegevens '!#REF! ->  | M51: ='Gegevens '!C60 ->  | N51: =IF($O$4="Eigen waarden","",Lijsten!C54) -> 21.01864933 | Q51: 30.0266419
I52: 37 | J52: ='Gegevens '!B61 ->  | K52: ='Gegevens '!#REF! ->  | L52: ='Gegevens '!#REF! ->  | M52: ='Gegevens '!C61 ->  | N52: =IF($O$4="Eigen waarden","",Lijsten!C55) -> 20.52144473 | Q52: 29.31634961
I53: 38 | J53: ='Gegevens '!B62 ->  | K53: ='Gegevens '!#REF! ->  | L53: ='Gegevens '!#REF! ->  | M53: ='Gegevens '!C62 ->  | N53: =IF($O$4="Eigen waarden","",Lijsten!C56) -> 18.25403346 | Q53: 26.07719066
I54: 39 | J54: ='Gegevens '!B63 ->  | K54: ='Gegevens '!#REF! ->  | L54: ='Gegevens '!#REF! ->  | M54: ='Gegevens '!C63 ->  | N54: =IF($O$4="Eigen waarden","",Lijsten!C57) -> 16.1900874 | Q54: 23.12869628
I55: 40 | J55: ='Gegevens '!B64 ->  | K55: ='Gegevens '!#REF! ->  | L55: ='Gegevens '!#REF! ->  | M55: ='Gegevens '!C64 ->  | N55: =IF($O$4="Eigen waarden","",Lijsten!C58) -> 13.41302317 | Q55: 19.16146168
I56: 41 | J56: ='Gegevens '!B65 ->  | K56: ='Gegevens '!#REF! ->  | L56: ='Gegevens '!#REF! ->  | M56: ='Gegevens '!C65 ->  | N56: =IF($O$4="Eigen waarden","",Lijsten!C59) -> 12.06623379 | Q56: 17.23747684
I57: 42 | J57: ='Gegevens '!B66 ->  | K57: ='Gegevens '!#REF! ->  | L57: ='Gegevens '!#REF! ->  | M57: ='Gegevens '!C66 ->  | N57: =IF($O$4="Eigen waarden","",Lijsten!C60) -> 10.49791531 | Q57: 14.99702188
I58: 43 | J58: ='Gegevens '!B67 ->  | K58: ='Gegevens '!#REF! ->  | L58: ='Gegevens '!#REF! ->  | M58: ='Gegevens '!C67 ->  | N58: =IF($O$4="Eigen waarden","",Lijsten!C61) -> 10.53927011 | Q58: 15.05610016
I59: 44 | J59: ='Gegevens '!B68 ->  | K59: ='Gegevens '!#REF! ->  | L59: ='Gegevens '!#REF! ->  | M59: ='Gegevens '!C68 ->  | N59: =IF($O$4="Eigen waarden","",Lijsten!C62) -> 7.724225864 | Q59: 11.03460838
I60: 45 | J60: ='Gegevens '!B69 ->  | K60: ='Gegevens '!#REF! ->  | L60: ='Gegevens '!#REF! ->  | M60: ='Gegevens '!C69 ->  | N60: =IF($O$4="Eigen waarden","",Lijsten!C63) -> 7.735250789 | Q60: 11.05035827
I61: 46 | J61: ='Gegevens '!B70 ->  | K61: ='Gegevens '!#REF! ->  | L61: ='Gegevens '!#REF! ->  | M61: ='Gegevens '!C70 ->  | N61: =IF($O$4="Eigen waarden","",Lijsten!C64) -> 6.916372167 | Q61: 9.880531667
I62: 47 | J62: ='Gegevens '!B71 ->  | K62: ='Gegevens '!#REF! ->  | L62: ='Gegevens '!#REF! ->  | M62: ='Gegevens '!C71 ->  | N62: =IF($O$4="Eigen waarden","",Lijsten!C65) -> 5.028945967 | Q62: 7.184208524
I63: 48 | J63: ='Gegevens '!B72 ->  | K63: ='Gegevens '!#REF! ->  | L63: ='Gegevens '!#REF! ->  | M63: ='Gegevens '!C72 ->  | N63: =IF($O$4="Eigen waarden","",Lijsten!C66) -> 6.07455 | Q63: 8.677928571
I64: 49 | J64: ='Gegevens '!B73 ->  | K64: ='Gegevens '!#REF! ->  | L64: ='Gegevens '!#REF! ->  | M64: ='Gegevens '!C73 ->  | N64: =IF($O$4="Eigen waarden","",Lijsten!C67) -> 2.291571429 | Q64: 3.273673469
I65: 50 | J65: ='Gegevens '!B74 ->  | K65: ='Gegevens '!#REF! ->  | L65: ='Gegevens '!#REF! ->  | M65: ='Gegevens '!C74 ->  | N65: =IF($O$4="Eigen waarden","",Lijsten!C68) -> 4.330357143 | Q65: 6.18622449
I66: 51 | J66: ='Gegevens '!B75 ->  | K66: ='Gegevens '!#REF! ->  | L66: ='Gegevens '!#REF! ->  | M66: ='Gegevens '!C75 ->  | N66: =IF($O$4="Eigen waarden","",Lijsten!C69) -> 4.611607143 | Q66: 6.588010204
I67: 52 | J67: ='Gegevens '!B76 ->  | K67: ='Gegevens '!#REF! ->  | L67: ='Gegevens '!#REF! ->  | M67: ='Gegevens '!C76 ->  | N67: =IF($O$4="Eigen waarden","",Lijsten!C70) -> 0 | Q67: 0
I68: 53 | J68: ='Gegevens '!B77 ->  | K68: ='Gegevens '!#REF! ->  | L68: ='Gegevens '!#REF! ->  | M68: ='Gegevens '!C77 ->  | N68: =IF($O$4="Eigen waarden","",Lijsten!C71) -> 0 | Q68: 0
I70: Jaartotaal | J70: =SUM(J16:J68) -> 0 | K70: =SUM(K16:K68) ->  | M70: 0 | N70: 845.7195667 | O70: 0 | P70: 0 | Q70: 1208.17081

Sheet Standaard simulatie (hidden)
A1: 1. Gegevens simulatie
A2: Teeltgegevens
A3: Teelt: | C3: ='Gegevens '!G18 -> Tomaat | E3: Jaarlijks vers waterverbruik: | G3: =Lijsten!C73 -> 845.7195667 | H3: l/m²
A4: Waterverbruik teelt: | C4: ='Gegevens '!G20 -> Standaard waarden | E4: (dit is waterverbruik zonder drainwater)
A6: Waterafvoerende oppervlaktes:
A7: ='Gegevens '!A2 -> Serre | C7: ='Gegevens '!C2 -> 0 | D7: ='Gegevens '!D2 -> m²
A8: ='Gegevens '!A3 -> Teeltoppervlakte | C8: ='Gegevens '!C3 -> 0 | D8: ='Gegevens '!D3 -> m²
A9: ='Gegevens '!A4 -> Bedrijfsgebouwen | C9: ='Gegevens '!C4 -> 0 | D9: ='Gegevens '!D4 -> m²
A11: Waterbassin
A12: Buitenafmetingen: | D12: Binnenafmetingen:
B13: lengte: | C13: ='Gegevens '!C9 -> 0 | D13: m | E13: lengte: | F13: ='Gegevens '!L9 -> 0 | G13: ='Gegevens '!M9 -> m
B14: breedte: | C14: ='Gegevens '!C10 -> 0 | D14: m | E14: breedte: | F14: ='Gegevens '!L10 -> 0 | G14: ='Gegevens '!M10 -> m
A16: Hoogte tallud: | C16: ='Gegevens '!C11 -> 0 | D16: m
A17: Breedte tallud: | C17: ='Gegevens '!C12 -> 0 | D17: m
A18: ='Gegevens '!A13 -> Totale diepte | C18: ='Gegevens '!C13 -> 0 | D18: ='Gegevens '!D13 -> m
A19: ='Gegevens '!A14 -> Diepte Overloop | C19: ='Gegevens '!C14 -> 0.75 | D19: ='Gegevens '!D14 -> m
A20: ='Gegevens '!A15 -> Hoogte dode zone | C20: ='Gegevens '!C15 -> 0.5 | D20: ='Gegevens '!D15 -> m
A22: 2. Resultaat
A24: Tabel 1. Resultaten van de simulatie bekomen op basis van bovenvermelde parameters.
A25: Bruto volume bassin (m³) | B25: Nuttig volume bassin (m³) | D25: Bruto oppervlakte bassin (m²) | E25: Aandeel hemelwater in verbruik % | F25: Benuttings-percentage hemelwater % | G25: Frequentie watertekort (elke … jaar)
B26: m³ | C26: m³ per ha teeltoppervlak | H26: Bruto volume m³/ha T
A27: =H27*C8/10000 ->  | B27: =C27*$C$8/10000 ->  | C27: =Simulatie!L5 ->  | D27: =C13*C14 -> 0 | E27: =Simulatie!O5 ->  | F27: =Simulatie!P5 ->  | G27: =Simulatie!AG5 -> > 46jaar | H27: =Simulatie!M5 -> 
A29: Kolom 1: | B29: Bruto volume (m³): deze kolom geeft het bruto-volume weer van de waterbassin. Dit is de som van het nuttige volume,
C30: het volume van de "dode-zone" en het buffervolume (d.i. volume boven de overloop).
A31: Kolom 2: | B31: Nuttig volume (m³): deze kolom geeft het totale nuttige volume dat aangewend kan worden voor de teelt. Het gaat hier om het bruto volume
C32: zonder het volume van de "dode zone" en het buffervolume boven de overloop.
A33: Kolom 3: | B33: Nuttig volume (m³ per ha teeltoppervlak): deze kolom geeft het beschikbare volume weer per hectare teeltoppervlak.
C34: Deze waarde maakt het mogelijk de bedrijfssituatie te vergelijken met onderstaande standaardtabel.
A35: Kolom 4: | B35: Bruto oppervlakte bassin (m²): Hier wordt de oppervlakte gegeven die het bassin in beslag zal nemen, genomen
C36: vanaf de basis van de taluds uitgaande van een talud aangelegd onder een hoek van 45°.
A37: Kolom 5: | B37: Aandeel hemelwater in verbruik (%): Dit percentage geeft aan hoeveel percent van de waterbehoefte van de teelt ingevuld kan worden
C38: met het opgevangen hemelwater. 100% duidt op een volledige invulling met hemelwater.
A39: Kolom 6: | B39: Benuttingspercentage hemelwater (%): Dit percentage geeft aan hoeveel van het hemelwater dat op de opvangbare oppervlaktes terechtkomt,
C40: daadwerkelijk in het bassin terechtkomt en aanwezig blijft (dit is het hemelwater min de opvang- en opslagverliezen, de verdampingsverliezen
C41: vanuit het bassin) .
A42: Kolom 7: | B42: Frequentie watertekort: deze kolom geeft weer hoe frequent een watertekort zal optreden uitgaande van de klimaatsgegevens van de
C43: laatste 45 jaar. 1 duidt op een jaarlijks watertekort, >46 duidt erop dat er in de 46 jaar geen watertekort zou optreden
A45: De waarde voor het nuttige volume per ha teeltoppervlak (kolom 3) kan gebruikt worden om de bedrijfssituatie te vergelijken.
A46: met de standaardtabel (Tabel 2). Deze tabel biedt nagenoeg dezelfde informatie als Tabel 1 maar gaat uit van een standaard bassin
A48: Tabel 2. Aandeel hemelwater in teeltbehoefte en de frequentie van watertekort voor de overeentsemmende nuttige volumes per ha teeltoppervlak
A49: De gegevens zijn gebasseerd op een standaard bassin met vierkante afmetingen, een overloop op 0,75 m en een dode zone van 0,5m, het bassin is standaard 4,5m diep.
A50: De waarden voor het aandeel hemelwater en de frequentie van watertekort kunnen verschillen met de waarden voor de simulatie naargelang de specifieke
A51: eigenschappen van de waterbassins.
C53: Nuttig volume m³ per ha teeltoppervlakte | D53: Netto Oppervlakte m²/ha teeltoppervlakte | E53: Aandeel hemelwater in verbruik % | F53: Benuttings-percentage hemelwater % | G53: Frequentie watertekort (elke … jaar)
C54: 500 | D54: =VLOOKUP($P54,Lijsten!$P$2:$Y$55,4) -> 253.6629123 | E54: =VLOOKUP($P54,Lijsten!$P$2:$Y$55,5) -> 0.6803392652 | F54: =VLOOKUP($P54,Lijsten!$P$2:$Y$55,6) -> 0.6448318259 | G54: =VLOOKUP($P54,Lijsten!$P$2:$Y$55,10) -> 1 | N54: =$C$3 -> Tomaat | O54: 500 | P54: =N54&O54 -> Tomaat500
C55: 1000 | D55: =VLOOKUP($P55,Lijsten!$P$2:$Y$55,4) -> 463.1678454 | E55: =VLOOKUP($P55,Lijsten!$P$2:$Y$55,5) -> 0.7512888517 | F55: =VLOOKUP($P55,Lijsten!$P$2:$Y$55,6) -> 0.6984812668 | G55: =VLOOKUP($P55,Lijsten!$P$2:$Y$55,10) -> 1 | N55: =$C$3 -> Tomaat | O55: 1000 | P55: =N55&O55 -> Tomaat1000
C56: 2000 | D56: =VLOOKUP($P56,Lijsten!$P$2:$Y$55,4) -> 865.9266661 | E56: =VLOOKUP($P56,Lijsten!$P$2:$Y$55,5) -> 0.8684411495 | F56: =VLOOKUP($P56,Lijsten!$P$2:$Y$55,6) -> 0.7788096295 | G56: =VLOOKUP($P56,Lijsten!$P$2:$Y$55,10) -> 1.069767442 | N56: Tomaat | O56: 2000 | P56: Tomaat2000
C57: 3000 | D57: =VLOOKUP($P57,Lijsten!$P$2:$Y$55,4) -> 1259.572219 | E57: =VLOOKUP($P57,Lijsten!$P$2:$Y$55,5) -> 0.9445209289 | F57: =VLOOKUP($P57,Lijsten!$P$2:$Y$55,6) -> 0.8187035288 | G57: =VLOOKUP($P57,Lijsten!$P$2:$Y$55,10) -> 1.769230769 | N57: Tomaat | O57: 3000 | P57: Tomaat3000
C58: 4000 | D58: =VLOOKUP($P58,Lijsten!$P$2:$Y$55,4) -> 1648.503951 | E58: =VLOOKUP($P58,Lijsten!$P$2:$Y$55,5) -> 0.9721918741 | F58: =VLOOKUP($P58,Lijsten!$P$2:$Y$55,6) -> 0.8157288092 | G58: =VLOOKUP($P58,Lijsten!$P$2:$Y$55,10) -> 5.111111111 | N58: Tomaat | O58: 4000 | P58: Tomaat4000
C59: 5000 | D59: =VLOOKUP($P59,Lijsten!$P$2:$Y$55,4) -> 2034.424281 | E59: =VLOOKUP($P59,Lijsten!$P$2:$Y$55,5) -> 0.9860896132 | F59: =VLOOKUP($P59,Lijsten!$P$2:$Y$55,6) -> 0.8019327086 | G59: =VLOOKUP($P59,Lijsten!$P$2:$Y$55,10) -> 5.75 | N59: Tomaat | O59: 5000 | P59: Tomaat5000
C60: 6000 | D60: =VLOOKUP($P60,Lijsten!$P$2:$Y$55,4) -> 2418.205921 | E60: =VLOOKUP($P60,Lijsten!$P$2:$Y$55,5) -> 0.9959064174 | F60: =VLOOKUP($P60,Lijsten!$P$2:$Y$55,6) -> 0.7858704875 | G60: =VLOOKUP($P60,Lijsten!$P$2:$Y$55,10) -> 23 | N60: Tomaat | O60: 6000 | P60: Tomaat6000
C61: 7000 | D61: =VLOOKUP($P61,Lijsten!$P$2:$Y$55,4) -> 2800.367164 | E61: =VLOOKUP($P61,Lijsten!$P$2:$Y$55,5) -> 1 | F61: =VLOOKUP($P61,Lijsten!$P$2:$Y$55,6) -> 0.7664418362 | G61: =VLOOKUP($P61,Lijsten!$P$2:$Y$55,10) -> > 46jaar | N61: Tomaat | O61: 7000 | P61: Tomaat7000
C62: 8000 | D62: =VLOOKUP($P62,Lijsten!$P$2:$Y$55,4) -> 3181.245647 | E62: =VLOOKUP($P62,Lijsten!$P$2:$Y$55,5) -> 1 | F62: =VLOOKUP($P62,Lijsten!$P$2:$Y$55,6) -> 0.7451177186 | G62: =VLOOKUP($P62,Lijsten!$P$2:$Y$55,10) -> > 46jaar | N62: Tomaat | O62: 8000 | P62: Tomaat8000
A66: Deze berekeningen werden bekomen via het rekenmodel: "Dimensioneren van hemelwateropslag voor teelten onder glas" (versie1.0).
A67: Dit model werd ontwikkeld in het kader van het ADLO-project "Telen zonder spui" dat gefinancieerd werd vanuit de Vlaamse Overheid.

Sheet Simulatie vergelijking (hidden)
A1: Situatie 1 | Z1: Situatie 1
A3: Teelt: | C3: ='Gegevens '!G18 -> Tomaat | F3: Waterbassin | Z3: Teelt: | AB3: ='Gegevens vergelijking'!O3 -> Paprika (jaarrond) | AE3: Waterbassin
F4: ='Gegevens '!J9 -> Binnenlengte | H4: ='Gegevens '!L9 -> 0 | I4: ='Gegevens '!M9 -> m | AE4: =F4 -> Binnenlengte | AG4: ='Gegevens vergelijking'!C9 -> 70 | AH4: =I4 -> m
A5: Waterafvoerende oppervlaktes: | F5: ='Gegevens '!J10 -> Binnenbreedte | H5: ='Gegevens '!L10 -> 0 | I5: ='Gegevens '!M10 -> m | Z5: Waterafvoerende oppervlaktes: | AE5: =F5 -> Binnenbreedte | AG5: ='Gegevens vergelijking'!C10 -> 40 | AH5: =I5 -> m
A6: ='Gegevens '!A2 -> Serre | C6: ='Gegevens '!C2 -> 0 | D6: ='Gegevens '!D2 -> m² | F6: ='Gegevens '!A13 -> Totale diepte | H6: ='Gegevens '!C13 -> 0 | I6: ='Gegevens '!D13 -> m | Z6: =A6 -> Serre | AB6: ='Gegevens vergelijking'!C3 -> 22000 | AC6: =D6 -> m² | AE6: =F6 -> Totale diepte | AG6: ='Gegevens vergelijking'!C11 -> 6 | AH6: =I6 -> m
A7: ='Gegevens '!A3 -> Teeltoppervlakte | C7: ='Gegevens '!C3 -> 0 | D7: ='Gegevens '!D3 -> m² | F7: ='Gegevens '!A14 -> Diepte Overloop | H7: ='Gegevens '!C14 -> 0.75 | I7: ='Gegevens '!D14 -> m | Z7: =A7 -> Teeltoppervlakte | AB7: ='Gegevens vergelijking'!C4 -> 21500 | AC7: =D7 -> m² | AE7: =F7 -> Diepte Overloop | AG7: ='Gegevens vergelijking'!C12 -> 0.3 | AH7: =I7 -> m
A8: ='Gegevens '!A4 -> Bedrijfsgebouwen | C8: ='Gegevens '!C4 -> 0 | D8: ='Gegevens '!D4 -> m² | F8: ='Gegevens '!A15 -> Hoogte dode zone | H8: ='Gegevens '!C15 -> 0.5 | I8: ='Gegevens '!D15 -> m | Z8: =A8 -> Bedrijfsgebouwen | AB8: ='Gegevens vergelijking'!C5 -> 1250 | AC8: =D8 -> m² | AE8: =F8 -> Hoogte dode zone | AG8: ='Gegevens vergelijking'!C13 -> 1 | AH8: =I8 -> m
A10: Waterstromen: | Z10: Waterstromen:
A11: Waterverbruik teelt: | C11: =IF('Gegevens '!G20="nee", "standaard waterverbruik", "eigen gegevens") -> eigen gegevens | Z11: Waterverbruik teelt: | AB11: =IF('Gegevens vergelijking'!O4="nee", "standaard waterverbruik", "eigen gegevens") -> eigen gegevens
A12: Spoelwater filters: | C12: ='Gegevens '!#REF! ->  | Z12: Spoelwater filters: | AB12: ='Gegevens vergelijking'!O11 -> nee
A14: Bruto volume bedrijf (m³) | B14: Nuttig volume m³/ha T | C14: Bruto volume m³/ha T | D14: Netto Oppervlakte m²/ha T | E14: Aandeel hemelwater in verbruik % | F14: Benuttings-percentage % | G14: Gemiddelde Overloop m³/jaar/ha T | H14: Maximaal watertekort m³/jaar per ha T | I14: Gemiddeld Watertekort m³/jaar/ ha T | J14: Terugkeer-periode: #jaar | K14: Aantal watertekorten | L14: Bruto neerslag mm | M14: Opvang-verlies mm | N14: Opgevangen neerslag mm | O14: Overloop-verlies mm | P14: Evaporatie-verlies mm | Q14: Nuttige neerslag mm | R14: Water-verbruik (mm) | S14: Buffer-opbouw mm | T14: Aandeel hemelwater in het verbruik | U14: Bufferopbouw | V14: Opvang-verlies | W14: Overloop-verlies | X14: Evaporatie-verlies | Z14: Bruto volume bedrijf (m³) | AA14: Nuttig volume m³/ha T | AB14: Bruto volume m³/ha T | AC14: Netto Oppervlakte m²/ha T | AD14: Aandeel hemelwater in verbruik % | AE14: Benuttings-percentage % | AF14: Gemiddelde Overloop m³/jaar/ha T | AG14: Maximaal watertekort m³/jaar per ha T | AH14: Gemiddeld Watertekort m³/jaar/ ha T | AI14: Terugkeer-periode: #jaar | AJ14: Aantal watertekorten | AK14: Bruto neerslag mm | AL14: Opvang-verlies mm | AM14: Opgevangen neerslag mm | AN14: Overloop-verlies mm | AO14: Evaporatie-verlies mm | AP14: Nuttige neerslag mm | AQ14: Water-verbruik (mm) | AR14: Buffer-opbouw mm | AS14: Aandeel hemelwater in het verbruik | AT14: Bufferopbouw | AU14: Opvang-verlies | AV14: Overloop-verlies | AW14: Evaporatie-verlies
A15: =B15*$C$7/10000 ->  | B15: =Simulatie!L5 ->  | C15: =Simulatie!M5 ->  | D15: =Simulatie!N5 ->  | E15: =Simulatie!O5 ->  | F15: =Simulatie!P5 ->  | G15: =Simulatie!AH5 ->  | H15: =Simulatie!AF5 ->  | I15: =Simulatie!AI5 -> 0 | J15: =Simulatie!AG5 -> > 46jaar | K15: =IF(ISNUMBER(J15),1/J15*46,0) -> 0 | L15: =Simulatie!S5 ->  | M15: =Simulatie!T5 ->  | N15: =Simulatie!U5 ->  | O15: =Simulatie!V5 ->  | P15: =Simulatie!W5 ->  | Q15: =Simulatie!X5 ->  | R15: =Simulatie!Y5 ->  | S15: =Simulatie!Z5 ->  | T15: =Simulatie!AD5 ->  | U15: =Simulatie!AE5 ->  | V15: =Simulatie!AA5 ->  | W15: =Simulatie!AB5 ->  | X15: =Simulatie!AC5 ->  | Z15: =AA15*$AB$7/10000 -> 10586.53067 | AA15: =simvgl!L5 -> 4923.967752 | AB15: =simvgl!M5 -> 6106.046512 | AC15: =simvgl!N5 -> 1302.325581 | AD15: =simvgl!O5 -> 1 | AE15: =simvgl!P5 -> 0.6041593276 | AF15: =simvgl!AH5 -> 2678.181784 | AG15: =simvgl!AF5 -> 0 | AH15: =simvgl!AI5 -> 0 | AI15: =simvgl!AG5 -> > 46jaar | AJ15: =IF(ISNUMBER(AI15),1/AI15*46,0) -> 0 | AK15: =simvgl!S5 -> 1004.560698 | AL15: =simvgl!T5 -> 85.38603387 | AM15: =simvgl!U5 -> 919.1746638 | AN15: =simvgl!V5 -> 267.8181784 | AO15: =simvgl!W3 -> 34.62751499 | AP15: =simvgl!X5 -> 606.9147157 | AQ15: =simvgl!Y5 -> 606.9147157 | AR15: =simvgl!Z5 -> 5.584446089 | AS15: =simvgl!AD5 -> 0.6041593276 | AT15: =simvgl!AE5 -> 0.005559092747 | AU15: =simvgl!AA5 -> 0.08499838195 | AV15: =simvgl!AB5 -> 0.2666022859 | AW15: =simvgl!AC5 -> 0.03868091175
A16: =B16*$C$7/10000 -> 0 | B16: =Simulatie!L6 -> 500.0058748 | C16: =Simulatie!M6 -> 746.8441029 | D16: =Simulatie!N6 -> 253.6629123 | E16: =Simulatie!O6 -> 0.8339553543 | F16: =Simulatie!P6 -> 0.7392883011 | G16: =Simulatie!AH6 -> 1486.600743 | H16: =Simulatie!AF6 -> 3079.166513 | I16: =Simulatie!AI6 -> 1313.413148 | J16: =Simulatie!AG6 -> 1 | K16: =IF(ISNUMBER(J16),1/J16*46,0) -> 46 | L16: =Simulatie!S6 -> 892.2888192 | M16: =Simulatie!T6 -> 79.33834193 | N16: =Simulatie!U6 -> 812.9504772 | O16: =Simulatie!V6 -> 148.6600743 | P16: =Simulatie!W6 -> 4.094268805 | Q16: =Simulatie!X6 -> 659.6586852 | R16: =Simulatie!Y6 -> 659.6586852 | S16: =Simulatie!Z6 -> 0.5374489486 | T16: =Simulatie!AD6 -> 0.7392883011 | U16: =Simulatie!AE6 -> 0.0006023262166 | V16: =Simulatie!AA6 -> 0.08891553971 | W16: =Simulatie!AB6 -> 0.1666053312 | X16: =Simulatie!AC6 -> 0.004588501746 | Z16: =AA16*$AB$7/10000 -> 1075.086519 | AA16: =simvgl!L6 -> 500.0402415 | AB16: =simvgl!M6 -> 594.5251232 | AC16: =simvgl!N6 -> 189.3877602 | AD16: =simvgl!O6 -> 0.7657469047 | AE16: =simvgl!P6 -> 0.5094263683 | AF16: =simvgl!AH6 -> 3583.941658 | AG16: =simvgl!AF6 -> 2937.296849 | AH16: =simvgl!AI6 -> 1421.716507 | AI16: =simvgl!AG6 -> 1 | AJ16: =IF(ISNUMBER(AI16),1/AI16*46,0) -> 46 | AK16: =simvgl!S6 -> 912.2870229 | AL16: =simvgl!T6 -> 85.38603387 | AM16: =simvgl!U6 -> 826.900989 | AN16: =simvgl!V6 -> 358.3941658 | AO16: =simvgl!W4 -> 0 | AP16: =simvgl!X6 -> 464.743065 | AQ16: =simvgl!Y6 -> 464.743065 | AR16: =simvgl!Z6 -> 0.4772547561 | AS16: =simvgl!AD6 -> 0.5094263683 | AT16: =simvgl!AE6 -> 0.0005231410117 | AU16: =simvgl!AA6 -> 0.09359558092 | AV16: =simvgl!AB6 -> 0.3928524212 | AW16: =simvgl!AC6 -> 0.00360248855
A17: 0 | B17: =Simulatie!L7 -> 1000.005875 | C17: =Simulatie!M7 -> 1480.63136 | D17: =Simulatie!N7 -> 463.1678454 | E17: =Simulatie!O7 -> 0.9074478055 | F17: =Simulatie!P7 -> 0.7890773512 | G17: =Simulatie!AH7 -> 1030.012067 | H17: =Simulatie!AF7 -> 2473.720533 | I17: =Simulatie!AI7 -> 863.4882434 | J17: =Simulatie!AG7 -> 1.179487179 | K17: 39 | L17: =Simulatie!S7 -> 909.6588732 | M17: =Simulatie!T7 -> 79.33834193 | N17: =Simulatie!U7 -> 830.3205312 | O17: =Simulatie!V7 -> 103.0012067 | P17: =Simulatie!W7 -> 8.42412375 | Q17: =Simulatie!X7 -> 717.7912141 | R17: =Simulatie!Y7 -> 717.7912141 | S17: =Simulatie!Z7 -> 1.103986625 | T17: =Simulatie!AD7 -> 0.7890773512 | U17: =Simulatie!AE7 -> 0.001213627061 | V17: =Simulatie!AA7 -> 0.08721768596 | W17: =Simulatie!AB7 -> 0.1132305854 | X17: =Simulatie!AC7 -> 0.009260750374 | Z17: 2150.086519 | AA17: =simvgl!L7 -> 1000.040241 | AB17: =simvgl!M7 -> 1208.065219 | AC17: =simvgl!N7 -> 327.0126947 | AD17: =simvgl!O7 -> 0.8564016134 | AE17: =simvgl!P7 -> 0.5626980025 | AF17: =simvgl!AH7 -> 3106.757289 | AG17: =simvgl!AF7 -> 2401.369439 | AH17: =simvgl!AI7 -> 911.1342736 | AI17: =simvgl!AG7 -> 1.045454545 | AJ17: 44 | AK17: =simvgl!S7 -> 923.6975062 | AL17: =simvgl!T7 -> 85.38603387 | AM17: =simvgl!U7 -> 838.3114724 | AN17: =simvgl!V7 -> 310.6757289 | AO17: =simvgl!W5 -> 38.85732369 | AP17: =simvgl!X7 -> 519.7627417 | AQ17: =simvgl!Y7 -> 519.7627417 | AR17: =simvgl!Z7 -> 1.027056246 | AS17: =simvgl!AD7 -> 0.5626980025 | AT17: =simvgl!AE7 -> 0.00111189674 | AU17: =simvgl!AA7 -> 0.09243938984 | AV17: =simvgl!AB7 -> 0.3363392527 | AW17: =simvgl!AC7 -> 0.007411458276
A18: 0 | B18: =Simulatie!L8 -> 1500.012112 | C18: =Simulatie!M8 -> 2090.332965 | D18: =Simulatie!N8 -> 542.3585922 | E18: =Simulatie!O8 -> 0.971434252 | F18: =Simulatie!P8 -> 0.5975591872 | G18: =Simulatie!AH8 -> 2803.125514 | H18: =Simulatie!AF8 -> 1274.733329 | I18: =Simulatie!AI8 -> 401.7362109 | J18: =Simulatie!AG8 -> 2.421052632 | K18: 19 | L18: =Simulatie!S8 -> 944.3296627 | M18: =Simulatie!T8 -> 87.17521002 | N18: =Simulatie!U8 -> 857.1544527 | O18: =Simulatie!V8 -> 280.3125514 | P18: =Simulatie!W8 -> 10.6670259 | Q18: =Simulatie!X8 -> 564.2928657 | R18: =Simulatie!Y8 -> 564.2928657 | S18: =Simulatie!Z8 -> 1.882009721 | T18: =Simulatie!AD8 -> 0.5975591872 | U18: =Simulatie!AE8 -> 0.001992958386 | V18: =Simulatie!AA8 -> 0.09231438285 | W18: =Simulatie!AB8 -> 0.2968376008 | X18: =Simulatie!AC8 -> 0.01129587084 | Z18: 3225.086519 | AA18: =simvgl!L8 -> 1500.040241 | AB18: =simvgl!M8 -> 1827.458516 | AC18: =simvgl!N8 -> 457.2514471 | AD18: =simvgl!O8 -> 0.9267566633 | AE18: =simvgl!P8 -> 0.6018886082 | AF18: =simvgl!AH8 -> 2742.588963 | AG18: =simvgl!AF8 -> 1901.666987 | AH18: =simvgl!AI8 -> 659.6171314 | AI18: =simvgl!AG8 -> 1.483870968 | AJ18: 31 | AK18: =simvgl!S8 -> 934.4956012 | AL18: =simvgl!T8 -> 85.38603387 | AM18: =simvgl!U8 -> 849.1095673 | AN18: =simvgl!V8 -> 274.2588963 | AO18: =simvgl!W6 -> 3.286503555 | AP18: =simvgl!X8 -> 562.4622568 | AQ18: =simvgl!Y8 -> 562.4622568 | AR18: =simvgl!Z8 -> 1.5942647 | AS18: =simvgl!AD8 -> 0.6018886082 | AT18: =simvgl!AE8 -> 0.00170601627 | AU18: =simvgl!AA8 -> 0.09137125286 | AV18: =simvgl!AB8 -> 0.2934833465 | AW18: =simvgl!AC8 -> 0.01155077614
A19: 0 | B19: =Simulatie!L9 -> 2000.005875 | C19: =Simulatie!M9 -> 2944.382098 | D19: =Simulatie!N9 -> 865.9266661 | E19: =Simulatie!O9 -> 0.9692119763 | F19: =Simulatie!P9 -> 0.8129424387 | G19: =Simulatie!AH9 -> 774.120155 | H19: =Simulatie!AF9 -> 2200.174661 | I19: =Simulatie!AI9 -> 700.1581444 | J19: =Simulatie!AG9 -> 2.875 | K19: 16 | L19: =Simulatie!S9 -> 943.051607 | M19: =Simulatie!T9 -> 79.33834193 | N19: =Simulatie!U9 -> 863.7132651 | O19: =Simulatie!V9 -> 77.4120155 | P19: =Simulatie!W9 -> 17.40655892 | Q19: =Simulatie!X9 -> 766.6466732 | R19: =Simulatie!Y9 -> 766.6466732 | S19: =Simulatie!Z9 -> 2.248017418 | T19: =Simulatie!AD9 -> 0.8129424387 | U19: =Simulatie!AE9 -> 0.002383769246 | V19: =Simulatie!AA9 -> 0.08412937462 | W19: =Simulatie!AB9 -> 0.08208672243 | X19: =Simulatie!AC9 -> 0.01845769499 | Z19: 4300.086519 | AA19: =simvgl!L9 -> 2000.040241 | AB19: =simvgl!M9 -> 2449.85002 | AC19: =simvgl!N9 -> 583.7067486 | AD19: =simvgl!O9 -> 0.972273211 | AE19: =simvgl!P9 -> 0.6244438115 | AF19: =simvgl!AH9 -> 2524.033313 | AG19: =simvgl!AF9 -> 1405.397882 | AH19: =simvgl!AI9 -> 387.0393142 | AI19: =simvgl!AG9 -> 2.3 | AJ19: 20 | AK19: =simvgl!S9 -> 944.9800103 | AL19: =simvgl!T9 -> 85.38603387 | AM19: =simvgl!U9 -> 859.5939764 | AN19: =simvgl!V9 -> 252.4033313 | AO19: =simvgl!W7 -> 6.845945527 | AP19: =simvgl!X9 -> 590.0869194 | AQ19: =simvgl!Y9 -> 590.0869194 | AR19: =simvgl!Z9 -> 2.169673275 | AS19: =simvgl!AD9 -> 0.6244438115 | AT19: =simvgl!AE9 -> 0.002295999123 | AU19: =simvgl!AA9 -> 0.09035750275 | AV19: =simvgl!AB9 -> 0.2670991223 | AW19: =simvgl!AC9 -> 0.01580356433
A20: 0 | B20: =Simulatie!L10 -> 2500.012112 | C20: =Simulatie!M10 -> 3501.34547 | D20: =Simulatie!N10 -> 859.6789411 | E20: =Simulatie!O10 -> 0.9989637367 | F20: =Simulatie!P10 -> 0.5978376619 | G20: =Simulatie!AH10 -> 2816.899162 | H20: =Simulatie!AF10 -> 276.897534 | I20: =Simulatie!AI10 -> 276.897534 | J20: =Simulatie!AG10 -> 46 | K20: 1 | L20: =Simulatie!S10 -> 970.6386929 | M20: =Simulatie!T10 -> 87.17521002 | N20: =Simulatie!U10 -> 883.4634829 | O20: =Simulatie!V10 -> 281.6899162 | P20: =Simulatie!W10 -> 18.27223587 | Q20: =Simulatie!X10 -> 580.2843667 | R20: =Simulatie!Y10 -> 580.2843667 | S20: =Simulatie!Z10 -> 3.216964014 | T20: =Simulatie!AD10 -> 0.5978376619 | U20: =Simulatie!AE10 -> 0.003314275475 | V20: =Simulatie!AA10 -> 0.08981221402 | W20: =Simulatie!AB10 -> 0.2902108872 | X20: =Simulatie!AC10 -> 0.01882496135 | Z20: 5375.086519 | AA20: =simvgl!L10 -> 2500.040241 | AB20: =simvgl!M10 -> 3074.148856 | AC20: =simvgl!N10 -> 707.7551771 | AD20: =simvgl!O10 -> 0.9917047883 | AE20: =simvgl!P10 -> 0.6300663317 | AF20: =simvgl!AH10 -> 2461.35311 | AG20: =simvgl!AF10 -> 911.287118 | AH20: =simvgl!AI10 -> 463.1727173 | AI20: =simvgl!AG10 -> 9.2 | AJ20: 5 | AK20: =simvgl!S10 -> 955.2648655 | AL20: =simvgl!T10 -> 85.38603387 | AM20: =simvgl!U10 -> 869.8788316 | AN20: =simvgl!V10 -> 246.135311 | AO20: =simvgl!W8 -> 10.79414949 | AP20: =simvgl!X10 -> 601.8802296 | AQ20: =simvgl!Y10 -> 601.8802296 | AR20: =simvgl!Z10 -> 2.750228758 | AS20: =simvgl!AD10 -> 0.6300663317 | AT20: =simvgl!AE10 -> 0.002879022204 | AU20: =simvgl!AA10 -> 0.08938466907 | AV20: =simvgl!AB10 -> 0.2576618484 | AW20: =simvgl!AC10 -> 0.02000812857
A21: 0 | B21: =Simulatie!L11 -> 3000.005875 | C21: =Simulatie!M11 -> 4405.988539 | D21: =Simulatie!N11 -> 1259.572219 | E21: =Simulatie!O11 -> 0.9865680009 | F21: =Simulatie!P11 -> 0.7998199025 | G21: =Simulatie!AH11 -> 860.9555043 | H21: =Simulatie!AF11 -> 1841.240856 | I21: =Simulatie!AI11 -> 814.5611992 | J21: =Simulatie!AG11 -> 7.666666667 | K21: 6 | L21: =Simulatie!S11 -> 975.6887598 | M21: =Simulatie!T11 -> 79.33834193 | N21: =Simulatie!U11 -> 896.3504179 | O21: =Simulatie!V11 -> 86.09555043 | P21: =Simulatie!W11 -> 26.4793438 | Q21: =Simulatie!X11 -> 780.3752887 | R21: =Simulatie!Y11 -> 780.3752887 | S21: =Simulatie!Z11 -> 3.400234914 | T21: =Simulatie!AD11 -> 0.7998199025 | U21: =Simulatie!AE11 -> 0.003484958579 | V21: =Simulatie!AA11 -> 0.08131521567 | W21: =Simulatie!AB11 -> 0.08824079356 | X21: =Simulatie!AC11 -> 0.0271391297 | Z21: 6450.086519 | AA21: =simvgl!L11 -> 3000.040241 | AB21: =simvgl!M11 -> 3699.799024 | AC21: =simvgl!N11 -> 830.0983549 | AD21: =simvgl!O11 -> 0.9980549536 | AE21: =simvgl!P11 -> 0.6274383743 | AF21: =simvgl!AH11 -> 2477.015527 | AG21: =simvgl!AF11 -> 419.3229288 | AH21: =simvgl!AI11 -> 181.0065179 | AI21: =simvgl!AG11 -> 15.33333333 | AJ21: 3 | AK21: =simvgl!S11 -> 965.4083383 | AL21: =simvgl!T11 -> 85.38603387 | AM21: =simvgl!U11 -> 880.0223044 | AN21: =simvgl!V11 -> 247.7015527 | AO21: =simvgl!W9 -> 14.93405238 | AP21: =simvgl!X11 -> 605.7342384 | AQ21: =simvgl!Y11 -> 605.7342384 | AR21: =simvgl!Z11 -> 3.335339569 | AS21: =simvgl!AD11 -> 0.6274383743 | AT21: =simvgl!AE11 -> 0.00345484852 | AU21: =simvgl!AA11 -> 0.08844551107 | AV21: =simvgl!AB11 -> 0.2565769767 | AW21: =simvgl!AC11 -> 0.02408428941
A22: 0 | B22: =Simulatie!L12 -> 3500.012112 | C22: =Simulatie!M12 -> 4915.650534 | D22: =Simulatie!N12 -> 1171.072683 | E22: =Simulatie!O12 -> 1 | F22: =Simulatie!P12 -> 0.5829520972 | G22: =Simulatie!AH12 -> 2981.266399 | H22: =Simulatie!AF12 -> 0 | I22: =Simulatie!AI12 -> 0 | J22: =Simulatie!AG12 -> > 46jaar | K22: 0 | L22: =Simulatie!S12 -> 996.456348 | M22: =Simulatie!T12 -> 87.17521002 | N22: =Simulatie!U12 -> 909.281138 | O22: =Simulatie!V12 -> 298.1266399 | P22: =Simulatie!W12 -> 25.70337826 | Q22: =Simulatie!X12 -> 580.8863179 | R22: =Simulatie!Y12 -> 580.8863179 | S22: =Simulatie!Z12 -> 4.564801952 | T22: =Simulatie!AD12 -> 0.5829520972 | U22: =Simulatie!AE12 -> 0.004581035548 | V22: =Simulatie!AA12 -> 0.08748522722 | W22: =Simulatie!AB12 -> 0.299186854 | X22: =Simulatie!AC12 -> 0.02579478601 | Z22: 7525.086519 | AA22: =simvgl!L12 -> 3500.040241 | AB22: =simvgl!M12 -> 4326.471438 | AC22: =simvgl!N12 -> 951.1515541 | AD22: =simvgl!O12 -> 1 | AE22: =simvgl!P12 -> 0.6221927462 | AF22: =simvgl!AH12 -> 2518.908075 | AG22: =simvgl!AF12 -> 0 | AH22: =simvgl!AI12 -> 0 | AI22: =simvgl!AG12 -> > 46jaar | AJ22: 0 | AK22: =simvgl!S12 -> 975.4448591 | AL22: =simvgl!T12 -> 85.38603387 | AM22: =simvgl!U12 -> 890.0588252 | AN22: =simvgl!V12 -> 251.8908075 | AO22: =simvgl!W10 -> 19.11306225 | AP22: =simvgl!X12 -> 606.9147157 | AQ22: =simvgl!Y12 -> 606.9147157 | AR22: =simvgl!Z12 -> 3.923579808 | AS22: =simvgl!AD12 -> 0.6221927462 | AT22: =simvgl!AE12 -> 0.004022349159 | AU22: =simvgl!AA12 -> 0.08753547992 | AV22: =simvgl!AB12 -> 0.2582317238 | AW22: =simvgl!AC12 -> 0.02801770087
A23: 0 | B23: =Simulatie!L13 -> 4000.005875 | C23: =Simulatie!M13 -> 5866.485845 | D23: =Simulatie!N13 -> 1648.503951 | E23: =Simulatie!O13 -> 0.9980453466 | F23: =Simulatie!P13 -> 0.783238799 | G23: =Simulatie!AH13 -> 990.1377484 | H23: =Simulatie!AF13 -> 567.0618447 | I23: =Simulatie!AI13 -> 237.0733934 | J23: =Simulatie!AG13 -> 15.33333333 | K23: 3 | L23: =Simulatie!S13 -> 1007.93509 | M23: =Simulatie!T13 -> 79.33834193 | N23: =Simulatie!U13 -> 928.5967478 | O23: =Simulatie!V13 -> 99.01377484 | P23: =Simulatie!W13 -> 35.57211146 | Q23: =Simulatie!X13 -> 789.4538692 | R23: =Simulatie!Y13 -> 789.4538692 | S23: =Simulatie!Z13 -> 4.556992296 | T23: =Simulatie!AD13 -> 0.783238799 | U23: =Simulatie!AE13 -> 0.004521116828 | V23: =Simulatie!AA13 -> 0.07871374133 | W23: =Simulatie!AB13 -> 0.09823427704 | X23: =Simulatie!AC13 -> 0.03529206575 | Z23: 8600.086519 | AA23: =simvgl!L13 -> 4000.040241 | AB23: =simvgl!M13 -> 4953.952206 | AC23: =simvgl!N13 -> 1071.184688 | AD23: =simvgl!O13 -> 1 | AE23: =simvgl!P13 -> 0.6159089534 | AF23: =simvgl!AH13 -> 2572.340323 | AG23: =simvgl!AF13 -> 0 | AH23: =simvgl!AI13 -> 0 | AI23: =simvgl!AG13 -> > 46jaar | AJ23: 0 | AK23: =simvgl!S13 -> 985.3968062 | AL23: =simvgl!T13 -> 85.38603387 | AM23: =simvgl!U13 -> 900.0107724 | AN23: =simvgl!V13 -> 257.2340323 | AO23: =simvgl!W11 -> 23.25117382 | AP23: =simvgl!X13 -> 606.9147157 | AQ23: =simvgl!Y13 -> 606.9147157 | AR23: =simvgl!Z13 -> 4.514204908 | AS23: =simvgl!AD13 -> 0.6159089534 | AT23: =simvgl!AE13 -> 0.004581103652 | AU23: =simvgl!AA13 -> 0.08665142137 | AV23: =simvgl!AB13 -> 0.2610461397 | AW23: =simvgl!AC13 -> 0.03181238184
A24: 0 | B24: =Simulatie!L14 -> 5000.005875 | C24: =Simulatie!M14 -> 7326.274585 | D24: =Simulatie!N14 -> 2034.424281 | E24: =Simulatie!O14 -> 1 | F24: =Simulatie!P14 -> 0.7606268434 | G24: =Simulatie!AH14 -> 1190.264 | H24: =Simulatie!AF14 -> 0 | I24: =Simulatie!AI14 -> 0 | J24: =Simulatie!AG14 -> > 46jaar | K24: 0 | L24: =Simulatie!S14 -> 1039.931744 | M24: =Simulatie!T14 -> 79.33834193 | N24: =Simulatie!U14 -> 960.5934023 | O24: =Simulatie!V14 -> 119.0264 | P24: =Simulatie!W14 -> 44.85074961 | Q24: =Simulatie!X14 -> 791 | R24: =Simulatie!Y14 -> 791 | S24: =Simulatie!Z14 -> 5.716252737 | T24: =Simulatie!AD14 -> 0.7606268434 | U24: =Simulatie!AE14 -> 0.005496757617 | V24: =Simulatie!AA14 -> 0.07629187432 | W24: =Simulatie!AB14 -> 0.1144559733 | X24: =Simulatie!AC14 -> 0.04312855133 | Z24: 9675.086519 | AA24: =simvgl!L14 -> 4500.040241 | AB24: =simvgl!M14 -> 5582.093016 | AC24: =simvgl!N14 -> 1190.384912 | AD24: =simvgl!O14 -> 1 | AE24: =simvgl!P14 -> 0.6097931241 | AF24: =simvgl!AH14 -> 2625.603596 | AG24: =simvgl!AF14 -> 0 | AH24: =simvgl!AI14 -> 0 | AI24: =simvgl!AG14 -> > 46jaar | AJ24: 0 | AK24: =simvgl!S14 -> 995.2796968 | AL24: =simvgl!T14 -> 85.38603387 | AM24: =simvgl!U14 -> 909.8936629 | AN24: =simvgl!V14 -> 262.5603596 | AO24: =simvgl!W12 -> 27.32972228 | AP24: =simvgl!X14 -> 606.9147157 | AQ24: =simvgl!Y14 -> 606.9147157 | AR24: =simvgl!Z14 -> 5.106777309 | AS24: =simvgl!AD14 -> 0.6097931241 | AT24: =simvgl!AE14 -> 0.005130997171 | AU24: =simvgl!AA14 -> 0.08579099337 | AV24: =simvgl!AB14 -> 0.263805602 | AW24: =simvgl!AC14 -> 0.03547928338
A25: 0 | B25: =Simulatie!L15 -> 5000.012112 | C25: =Simulatie!M15 -> 7040.525037 | D25: =Simulatie!N15 -> 1632.012864 | E25: =Simulatie!O15 -> 1 | F25: =Simulatie!P15 -> 0.5614202506 | G25: =Simulatie!AH15 -> 3233.943718 | H25: =Simulatie!AF15 -> 0 | I25: =Simulatie!AI15 -> 0 | J25: =Simulatie!AG15 -> > 46jaar | K25: 0 | L25: =Simulatie!S15 -> 1034.672898 | M25: =Simulatie!T15 -> 87.17521002 | N25: =Simulatie!U15 -> 947.4976884 | O25: =Simulatie!V15 -> 323.3943718 | P25: =Simulatie!W15 -> 36.61706961 | Q25: =Simulatie!X15 -> 580.8863179 | R25: =Simulatie!Y15 -> 580.8863179 | S25: =Simulatie!Z15 -> 6.599929061 | T25: =Simulatie!AD15 -> 0.5614202506 | U25: =Simulatie!AE15 -> 0.006378758999 | V25: =Simulatie!AA15 -> 0.08425388367 | W25: =Simulatie!AB15 -> 0.3125571109 | X25: =Simulatie!AC15 -> 0.03538999588 | Z25: 10750.08652 | AA25: =simvgl!L15 -> 5000.040241 | AB25: =simvgl!M15 -> 6210.786026 | AC25: =simvgl!N15 -> 1308.888313 | AD25: =simvgl!O15 -> 1 | AE25: =simvgl!P15 -> 0.6038322644 | AF25: =simvgl!AH15 -> 2678.69256 | AG25: =simvgl!AF15 -> 0 | AH25: =simvgl!AI15 -> 0 | AI25: =simvgl!AG15 -> > 46jaar | AJ25: 0 | AK25: =simvgl!S15 -> 1005.104814 | AL25: =simvgl!T15 -> 85.38603387 | AM25: =simvgl!U15 -> 919.7187799 | AN25: =simvgl!V15 -> 267.869256 | AO25: =simvgl!W13 -> 31.34781947 | AP25: =simvgl!X15 -> 606.9147157 | AQ25: =simvgl!Y15 -> 606.9147157 | AR25: =simvgl!Z15 -> 5.700978847 | AS25: =simvgl!AD15 -> 0.6038322644 | AT25: =simvgl!AE15 -> 0.00567202422 | AU25: =simvgl!AA15 -> 0.08495236786 | AV25: =simvgl!AB15 -> 0.2665087783 | AW25: =simvgl!AC15 -> 0.0390345652
A26: 0 | B26: =Simulatie!L16 -> 5500.012112 | C26: =Simulatie!M16 -> 7749.437851 | D26: =Simulatie!N16 -> 1784.541226 | E26: =Simulatie!O16 -> 1 | F26: =Simulatie!P16 -> 0.5546412354 | G26: =Simulatie!AH16 -> 3317.598625 | H26: =Simulatie!AF16 -> 0 | I26: =Simulatie!AI16 -> 0 | J26: =Simulatie!AG16 -> > 46jaar | K26: 0 | L26: =Simulatie!S16 -> 1047.319025 | M26: =Simulatie!T16 -> 87.17521002 | N26: =Simulatie!U16 -> 960.1438149 | O26: =Simulatie!V16 -> 331.7598625 | P26: =Simulatie!W16 -> 40.21689857 | Q26: =Simulatie!X16 -> 580.8863179 | R26: =Simulatie!Y16 -> 580.8863179 | S26: =Simulatie!Z16 -> 7.280735936 | T26: =Simulatie!AD16 -> 0.5546412354 | U26: =Simulatie!AE16 -> 0.006951784282 | V26: =Simulatie!AA16 -> 0.0832365382 | W26: =Simulatie!AB16 -> 0.3167705872 | X26: =Simulatie!AC16 -> 0.03839985488 | Z26: 11825.08652 | AA26: =simvgl!L16 -> 5500.040241 | AB26: =simvgl!M16 -> 6839.949907 | AC26: =simvgl!N16 -> 1426.797518 | AD26: =simvgl!O16 -> 1 | AE26: =simvgl!P16 -> 0.5980158417 | AF26: =simvgl!AH16 -> 2731.615829 | AG26: =simvgl!AF16 -> 0 | AH26: =simvgl!AI16 -> 0 | AI26: =simvgl!AG16 -> > 46jaar | AJ26: 0 | AK26: =simvgl!S16 -> 1014.880666 | AL26: =simvgl!T16 -> 85.38603387 | AM26: =simvgl!U16 -> 929.4946321 | AN26: =simvgl!V16 -> 273.1615829 | AO26: =simvgl!W14 -> 35.31181041 | AP26: =simvgl!X16 -> 606.9147157 | AQ26: =simvgl!Y16 -> 606.9147157 | AR26: =simvgl!Z16 -> 6.296569582 | AS26: =simvgl!AD16 -> 0.5980158417 | AT26: =simvgl!AE16 -> 0.006204246266 | AU26: =simvgl!AA16 -> 0.08413406299 | AV26: =simvgl!AB16 -> 0.269156357 | AW26: =simvgl!AC16 -> 0.04248949202
A27: 0 | B27: =Simulatie!L17 -> 6000.005875 | C27: =Simulatie!M17 -> 8785.560105 | D27: =Simulatie!N17 -> 2418.205921 | E27: =Simulatie!O17 -> 1 | F27: =Simulatie!P17 -> 0.7380445093 | G27: =Simulatie!AH17 -> 1405.212125 | H27: =Simulatie!AF17 -> 0 | I27: =Simulatie!AI17 -> 0 | J27: =Simulatie!AG17 -> > 46jaar | K27: 0 | L27: =Simulatie!S17 -> 1071.75108 | M27: =Simulatie!T17 -> 79.33834193 | N27: =Simulatie!U17 -> 992.4127381 | O27: =Simulatie!V17 -> 140.5212125 | P27: =Simulatie!W17 -> 54.01423473 | Q27: =Simulatie!X17 -> 791 | R27: =Simulatie!Y17 -> 791 | S27: =Simulatie!Z17 -> 6.877290842 | T27: =Simulatie!AD17 -> 0.7380445093 | U27: =Simulatie!AE17 -> 0.006416873255 | V27: =Simulatie!AA17 -> 0.07402683646 | W27: =Simulatie!AB17 -> 0.1311136654 | X27: =Simulatie!AC17 -> 0.05039811551 | Z27: 12900.08652 | AA27: =simvgl!L17 -> 6000.040241 | AB27: =simvgl!M17 -> 7469.521529 | AC27: =simvgl!N17 -> 1544.192195 | AD27: =simvgl!O17 -> 1 | AE27: =simvgl!P17 -> 0.5923350642 | AF27: =simvgl!AH17 -> 2784.382821 | AG27: =simvgl!AF17 -> 0 | AH27: =simvgl!AI17 -> 0 | AI27: =simvgl!AG17 -> > 46jaar | AJ27: 0 | AK27: =simvgl!S17 -> 1024.613859 | AL27: =simvgl!T17 -> 85.38603387 | AM27: =simvgl!U17 -> 939.2278247 | AN27: =simvgl!V17 -> 278.4382821 | AO27: =simvgl!W15 -> 39.23382939 | AP27: =simvgl!X17 -> 606.9147157 | AQ27: =simvgl!Y17 -> 606.9147157 | AR27: =simvgl!Z17 -> 6.893363259 | AS27: =simvgl!AD17 -> 0.5923350642 | AT27: =simvgl!AE17 -> 0.006727766955 | AU27: =simvgl!AA17 -> 0.08333484186 | AV27: =simvgl!AB17 -> 0.2717494789 | AW27: =simvgl!AC17 -> 0.04585284813
A28: 0 | B28: =Simulatie!L18 -> 6500.012112 | C28: =Simulatie!M18 -> 9167.952177 | D28: =Simulatie!N18 -> 2088.358298 | E28: =Simulatie!O18 -> 1 | F28: =Simulatie!P18 -> 0.5416146527 | G28: =Simulatie!AH18 -> 3484.240093 | H28: =Simulatie!AF18 -> 0 | I28: =Simulatie!AI18 -> 0 | J28: =Simulatie!AG18 -> > 46jaar | K28: 0 | L28: =Simulatie!S18 -> 1072.508498 | M28: =Simulatie!T18 -> 87.17521002 | N28: =Simulatie!U18 -> 985.3332883 | O28: =Simulatie!V18 -> 348.4240093 | P28: =Simulatie!W18 -> 47.37791655 | Q28: =Simulatie!X18 -> 580.8863179 | R28: =Simulatie!Y18 -> 580.8863179 | S28: =Simulatie!Z18 -> 8.645044521 | T28: =Simulatie!AD18 -> 0.5416146527 | U28: =Simulatie!AE18 -> 0.008060583701 | V28: =Simulatie!AA18 -> 0.08128160304 | W28: =Simulatie!AB18 -> 0.324868297 | X28: =Simulatie!AC18 -> 0.04417486353 | Z28: 13975.08652 | AA28: =simvgl!L18 -> 6500.040241 | AB28: =simvgl!M18 -> 8099.450719 | AC28: =simvgl!N18 -> 1661.135653 | AD28: =simvgl!O18 -> 1 | AE28: =simvgl!P18 -> 0.5867824216 | AF28: =simvgl!AH18 -> 2837.045342 | AG28: =simvgl!AF18 -> 0 | AH28: =simvgl!AI18 -> 0 | AI28: =simvgl!AG18 -> > 46jaar | AJ28: 0 | AK28: =simvgl!S18 -> 1034.309641 | AL28: =simvgl!T18 -> 85.38603387 | AM28: =simvgl!U18 -> 948.9236068 | AN28: =simvgl!V18 -> 283.7045342 | AO28: =simvgl!W16 -> 43.12176396 | AP28: =simvgl!X18 -> 606.9147157 | AQ28: =simvgl!Y18 -> 606.9147157 | AR28: =simvgl!Z18 -> 7.491211859 | AS28: =simvgl!AD18 -> 0.5867824216 | AT28: =simvgl!AE18 -> 0.007242716847 | AU28: =simvgl!AA18 -> 0.08255364788 | AV28: =simvgl!AB18 -> 0.2742936187 | AW28: =simvgl!AC18 -> 0.04912759497
A29: 0 | B29: =Simulatie!L19 -> 7000.005875 | C29: =Simulatie!M19 -> 10244.46435 | D29: =Simulatie!N19 -> 2800.367164 | E29: =Simulatie!O19 -> 1 | F29: =Simulatie!P19 -> 0.7168516803 | G29: =Simulatie!AH19 -> 1619.671469 | H29: =Simulatie!AF19 -> 0 | I29: =Simulatie!AI19 -> 0 | J29: =Simulatie!AG19 -> > 46jaar | K29: 0 | L29: =Simulatie!S19 -> 1103.436069 | M29: =Simulatie!T19 -> 79.33834193 | N29: =Simulatie!U19 -> 1024.097727 | O29: =Simulatie!V19 -> 161.9671469 | P29: =Simulatie!W19 -> 63.09090409 | Q29: =Simulatie!X19 -> 791 | R29: =Simulatie!Y19 -> 791 | S29: =Simulatie!Z19 -> 8.039675808 | T29: =Simulatie!AD19 -> 0.7168516803 | U29: =Simulatie!AE19 -> 0.007286036805 | V29: =Simulatie!AA19 -> 0.0719011678 | W29: =Simulatie!AB19 -> 0.1467843507 | X29: =Simulatie!AC19 -> 0.05717676436 | Z29: 15050.08652 | AA29: =simvgl!L19 -> 7000.040241 | AB29: =simvgl!M19 -> 8729.696824 | AC29: =simvgl!N19 -> 1777.679196 | AD29: =simvgl!O19 -> 1 | AE29: =simvgl!P19 -> 0.5813513783 | AF29: =simvgl!AH19 -> 2889.611754 | AG29: =simvgl!AF19 -> 0 | AH29: =simvgl!AI19 -> 0 | AI29: =simvgl!AG19 -> > 46jaar | AJ29: 0 | AK29: =simvgl!S19 -> 1043.972266 | AL29: =simvgl!T19 -> 85.38603387 | AM29: =simvgl!U19 -> 958.586232 | AN29: =simvgl!V19 -> 288.9611754 | AO29: =simvgl!W17 -> 46.98146365 | AP29: =simvgl!X19 -> 606.9147157 | AQ29: =simvgl!Y19 -> 606.9147157 | AR29: =simvgl!Z19 -> 8.089995439 | AS29: =simvgl!AD19 -> 0.5813513783 | AT29: =simvgl!AE19 -> 0.007749243638 | AU29: =simvgl!AA19 -> 0.08178956153 | AV29: =simvgl!AB19 -> 0.276790088 | AW29: =simvgl!AC19 -> 0.05231972849
A30: 0 | B30: =Simulatie!L20 -> 7500.012112 | C30: =Simulatie!M20 -> 10587.21523 | D30: =Simulatie!N20 -> 2390.827656 | E30: =Simulatie!O20 -> 1 | F30: =Simulatie!P20 -> 0.5292397996 | G30: =Simulatie!AH20 -> 3650.202593 | H30: =Simulatie!AF20 -> 0 | I30: =Simulatie!AI20 -> 0 | J30: =Simulatie!AG20 -> > 46jaar | K30: 0 | L30: =Simulatie!S20 -> 1097.586233 | M30: =Simulatie!T20 -> 87.17521002 | N30: =Simulatie!U20 -> 1010.411023 | O30: =Simulatie!V20 -> 365.0202593 | P30: =Simulatie!W20 -> 54.49216281 | Q30: =Simulatie!X20 -> 580.8863179 | R30: =Simulatie!Y20 -> 580.8863179 | S30: =Simulatie!Z20 -> 10.01228285 | T30: =Simulatie!AD20 -> 0.5292397996 | U30: =Simulatie!AE20 -> 0.009122092233 | V30: =Simulatie!AA20 -> 0.07942447474 | W30: =Simulatie!AB20 -> 0.3325663609 | X30: =Simulatie!AC20 -> 0.04964727252 | Z30: 16125.08652 | AA30: =simvgl!L20 -> 7500.040241 | AB30: =simvgl!M20 -> 9360.226352 | AC30: =simvgl!N20 -> 1893.865085 | AD30: =simvgl!O20 -> 1 | AE30: =simvgl!P20 -> 0.5760361602 | AF30: =simvgl!AH20 -> 2942.044344 | AG30: =simvgl!AF20 -> 0 | AH30: =simvgl!AI20 -> 0 | AI30: =simvgl!AG20 -> > 46jaar | AJ30: 0 | AK30: =simvgl!S20 -> 1053.605238 | AL30: =simvgl!T20 -> 85.38603387 | AM30: =simvgl!U20 -> 968.219204 | AN30: =simvgl!V20 -> 294.2044344 | AO30: =simvgl!W18 -> 50.81314511 | AP30: =simvgl!X20 -> 606.9147157 | AQ30: =simvgl!Y20 -> 606.9147157 | AR30: =simvgl!Z20 -> 8.689615195 | AS30: =simvgl!AD20 -> 0.5760361602 | AT30: =simvgl!AE20 -> 0.008247505691 | AU30: =simvgl!AA20 -> 0.08104177049 | AV30: =simvgl!AB20 -> 0.2792359262 | AW30: =simvgl!AC20 -> 0.05543863741
A31: 0 | B31: =Simulatie!L21 -> 8000.005875 | C31: =Simulatie!M21 -> 11703.06678 | D31: =Simulatie!N21 -> 3181.245647 | E31: =Simulatie!O21 -> 1 | F31: =Simulatie!P21 -> 0.6969072712 | G31: =Simulatie!AH21 -> 1834.002423 | H31: =Simulatie!AF21 -> 0 | I31: =Simulatie!AI21 -> 0 | J31: =Simulatie!AG21 -> > 46jaar | K31: 0 | L31: =Simulatie!S21 -> 1135.014704 | M31: =Simulatie!T21 -> 79.33834193 | N31: =Simulatie!U21 -> 1055.676362 | O31: =Simulatie!V21 -> 183.4002423 | P31: =Simulatie!W21 -> 72.07299255 | Q31: =Simulatie!X21 -> 791 | R31: =Simulatie!Y21 -> 791 | S31: =Simulatie!Z21 -> 9.203126995 | T31: =Simulatie!AD21 -> 0.6969072712 | U31: =Simulatie!AE21 -> 0.008108376891 | V31: =Simulatie!AA21 -> 0.06990071729 | W31: =Simulatie!AB21 -> 0.1615840232 | X31: =Simulatie!AC21 -> 0.06349961134 | Z31: 17200.08652 | AA31: =simvgl!L21 -> 8000.040241 | AB31: =simvgl!M21 -> 9991.011328 | AC31: =simvgl!N21 -> 2009.728623 | AD31: =simvgl!O21 -> 1 | AE31: =simvgl!P21 -> 0.570831603 | AF31: =simvgl!AH21 -> 2994.35136 | AG31: =simvgl!AF21 -> 0 | AH31: =simvgl!AI21 -> 0 | AI31: =simvgl!AG21 -> > 46jaar | AJ31: 0 | AK31: =simvgl!S21 -> 1063.211484 | AL31: =simvgl!T21 -> 85.38603387 | AM31: =simvgl!U21 -> 977.82545 | AN31: =simvgl!V21 -> 299.435136 | AO31: =simvgl!W19 -> 54.6203455 | AP31: =simvgl!X21 -> 606.9147157 | AQ31: =simvgl!Y21 -> 606.9147157 | AR31: =simvgl!Z21 -> 9.28998859 | AS31: =simvgl!AD21 -> 0.570831603 | AT31: =simvgl!AE21 -> 0.008737667652 | AU31: =simvgl!AA21 -> 0.08030954817 | AV31: =simvgl!AB21 -> 0.2816327143 | AW31: =simvgl!AC21 -> 0.05848846692
A32: 0 | B32: =Simulatie!L22 -> 8500.012112 | C32: =Simulatie!M22 -> 12007.08116 | D32: =Simulatie!N22 -> 2692.211845 | E32: =Simulatie!O22 -> 1 | F32: =Simulatie!P22 -> 0.5174592677 | G32: =Simulatie!AH22 -> 3815.546954 | H32: =Simulatie!AF22 -> 0 | I32: =Simulatie!AI22 -> 0 | J32: =Simulatie!AG22 -> > 46jaar | K32: 0 | L32: =Simulatie!S22 -> 1122.573996 | M32: =Simulatie!T22 -> 87.17521002 | N32: =Simulatie!U22 -> 1035.398786 | O32: =Simulatie!V22 -> 381.5546954 | P32: =Simulatie!W22 -> 61.5758925 | Q32: =Simulatie!X22 -> 580.8863179 | R32: =Simulatie!Y22 -> 580.8863179 | S32: =Simulatie!Z22 -> 11.38188019 | T32: =Simulatie!AD22 -> 0.5174592677 | U32: =Simulatie!AE22 -> 0.01013909126 | V32: =Simulatie!AA22 -> 0.07765653786 | W32: =Simulatie!AB22 -> 0.3398926901 | X32: =Simulatie!AC22 -> 0.05485241304 | Z32: 18275.08652 | AA32: =simvgl!L22 -> 8500.040241 | AB32: =simvgl!M22 -> 10622.0281 | AC32: =simvgl!N22 -> 2125.299662 | AD32: =simvgl!O22 -> 1 | AE32: =simvgl!P22 -> 0.5657330397 | AF32: =simvgl!AH22 -> 3046.541435 | AG32: =simvgl!AF22 -> 0 | AH32: =simvgl!AI22 -> 0 | AI32: =simvgl!AG22 -> > 46jaar | AJ32: 0 | AK32: =simvgl!S22 -> 1072.793479 | AL32: =simvgl!T22 -> 85.38603387 | AM32: =simvgl!U22 -> 987.4074448 | AN32: =simvgl!V22 -> 304.6541435 | AO32: =simvgl!W20 -> 58.41043876 | AP32: =simvgl!X22 -> 606.9147157 | AQ32: =simvgl!Y22 -> 606.9147157 | AR32: =simvgl!Z22 -> 9.891045832 | AS32: =simvgl!AD22 -> 0.5657330397 | AT32: =simvgl!AE22 -> 0.009219897425 | AU32: =simvgl!AA22 -> 0.07959223799 | AV32: =simvgl!AB22 -> 0.2839820987 | AW32: =simvgl!AC22 -> 0.06147272619
A33: 0 | B33: =Simulatie!L23 -> 9000.012112 | C33: =Simulatie!M23 -> 12717.20657 | D33: =Simulatie!N23 -> 2842.557539 | E33: =Simulatie!O23 -> 1 | F33: =Simulatie!P23 -> 0.5117764564 | G33: =Simulatie!AH23 -> 3898.014544 | H33: =Simulatie!AF23 -> 0 | I33: =Simulatie!AI23 -> 0 | J33: =Simulatie!AG23 -> > 46jaar | K33: 0 | L33: =Simulatie!S23 -> 1135.039157 | M33: =Simulatie!T23 -> 87.17521002 | N33: =Simulatie!U23 -> 1047.863947 | O33: =Simulatie!V23 -> 389.8014544 | P33: =Simulatie!W23 -> 65.10874328 | Q33: =Simulatie!X23 -> 580.8863179 | R33: =Simulatie!Y23 -> 580.8863179 | S33: =Simulatie!Z23 -> 12.06743188 | T33: =Simulatie!AD23 -> 0.5117764564 | U33: =Simulatie!AE23 -> 0.01063173178 | V33: =Simulatie!AA23 -> 0.07680370272 | W33: =Simulatie!AB23 -> 0.3434255566 | X33: =Simulatie!AC23 -> 0.05736255252 | Z33: 19350.08652 | AA33: =simvgl!L23 -> 9000.040241 | AB33: =simvgl!M23 -> 11253.25644 | AC33: =simvgl!N23 -> 2240.603712 | AD33: =simvgl!O23 -> 1 | AE33: =simvgl!P23 -> 0.5607362168 | AF33: =simvgl!AH23 -> 3098.62124 | AG33: =simvgl!AF23 -> 0 | AH33: =simvgl!AI23 -> 0 | AI33: =simvgl!AG23 -> > 46jaar | AJ33: 0 | AK33: =simvgl!S23 -> 1082.353337 | AL33: =simvgl!T23 -> 85.38603387 | AM33: =simvgl!U23 -> 996.9673036 | AN33: =simvgl!V23 -> 309.862124 | AO33: =simvgl!W21 -> 62.1856097 | AP33: =simvgl!X23 -> 606.9147157 | AQ33: =simvgl!Y23 -> 606.9147157 | AR33: =simvgl!Z23 -> 10.49272728 | AS33: =simvgl!AD23 -> 0.5607362168 | AT33: =simvgl!AE23 -> 0.009694364045 | AU33: =simvgl!AA23 -> 0.07888924154 | AV33: =simvgl!AB23 -> 0.2862855533 | AW33: =simvgl!AC23 -> 0.06439462439
A35: Waar gaat het opgevangen hemelwater naartoe bij … m³ nuttig volume? | Z35: Waar gaat het opgevangen hemelwater naartoe bij … m³ nuttig volume?
A37: Gewenste nuttig volume: | D37: 10586.53067 | F37: Selecteer hier het gewenste nuttige volume | Z37: Gewenste nuttig volume: | AC37: 10586.53067 | AE37: Selecteer hier het gewenste nuttige volume
B50: Invulling waterbehoefte | C50: bufferopbouw | D50: opvangverlies | E50: overloopverlies | F50: evaporatieverlies | AA50: Invulling waterbehoefte | AB50: bufferopbouw | AC50: opvangverlies | AD50: overloopverlies | AE50: evaporatieverlies
B51: =VLOOKUP($D$37,$A$15:$X$33,18,) ->  | C51: =VLOOKUP($D$37,$A$15:$X$33,19,) ->  | D51: =VLOOKUP($D$37,$A$15:$X$33,13,) ->  | E51: =VLOOKUP($D$37,$A$15:$X$33,15,) ->  | F51: =VLOOKUP($D$37,$A$15:$X$33,16,) ->  | AA51: =VLOOKUP($AC$37,$Z$14:$AW$33,18,) -> 606.9147157 | AB51: =VLOOKUP($AC$37,$Z$14:$AW$33,19,) -> 5.584446089 | AC51: =VLOOKUP($AC$37,$Z$14:$AW$33,13,) -> 85.38603387 | AD51: =VLOOKUP($AC$37,$Z$14:$AW$33,15,) -> 267.8181784 | AE51: =VLOOKUP($AC$37,$Z$14:$AW$33,16,) -> 34.62751499
B52: =B51/SUM($B$51:$F$51) ->  | C52: =C51/SUM($B$51:$F$51) ->  | D52: =D51/SUM($B$51:$F$51) ->  | E52: =E51/SUM($B$51:$F$51) ->  | F52: =F51/SUM($B$51:$F$51) ->  | AA52: =AA51/SUM($B$51:$F$51) ->  | AB52: =AB51/SUM($B$51:$F$51) ->  | AC52: =AC51/SUM($B$51:$F$51) ->  | AD52: =AD51/SUM($B$51:$F$51) ->  | AE52: =AE51/SUM($B$51:$F$51) -> 

Sheet Simulatie (hidden)
B1: In de gele cellen kunnen afmetingen geplakt worden voor simulatie | L1: Uitkomst Simulatie Ronde Volumes | O1: Efficiëntie | Q1: Opvangverhouding | S1: Opvangverliezen | V1: Waar blijft de opgevangen neerslag? | Y1: Wat gebeurt er met nuttige neerslag? | AA1: Bruto neerslag - Verlies/gebruikspercentages | AF1: Terugkeerperiode watertekort | AK1: Volumeberekeningen
B2: Serre | C2: Bedrijfsgebouwen | D2: Bassin | E2: Teeltoppervlakte | F2: Lengte | G2: Breedte | H2: Totale diepte | I2: Diepte Overloop | J2: Hoogte dode zone | L2: Nuttig volume per ha teeltopp. | M2: Bruto volume Water per ha teeltopp. | N2: Netto Oppervlakte per ha teeltopp. | O2: Hemelwater-percentage | P2: Benuttings-percentage | Q2: Neerslag mm | R2: Opvang-verhouding | S2: Bruto neerslag mm | T2: Opvang-verlies mm | U2: Opgevangen neerslag mm | V2: Overloop-verlies mm | W2: Evaporatie-verlies mm | X2: Nuttige neerslag mm | Y2: Hemelwater-benutting mm | Z2: Buffer-opbouw mm | AA2: Opvang-verlies-percentage | AB2: Overloop-percentage | AC2: Evaporatie-percentage | AD2: Hemelwater-benuttings percentage | AE2: Bufferopbouw | AF2: Maximaal watertekort m³/jaar per ha teeltopp. | AG2: Terugkeer-periode #jaar | AH2: Gemiddelde Overloop m³/jaar per ha teeltopp. | AI2: Gemiddeld Watertekort m³/jaar per ha teeltopp. | AK2: Nuttig volume | AL2: Bruto volume Water | AM2: %Nuttig? | AN2: Volume Dode Zone | AO2: Volume Overloop | AP2: Totaal Volume-verlies (Dode zone+Overloop) | AQ2: Volume Waterniveau | AR2: Netto Oppervlakte | AS2: Bruto Oppervlakte | AT2: Oppervlakte Wal | AU2: %Nuttig? | AV2: Netto hoogte | AW2: Nuttige Lengte boven | AX2: Nuttige Lengte onder | AY2: Lengte onder | AZ2: Lengte Startniveau | BA2: Nuttige Breedte boven | BB2: Nuttige Breedte onder | BC2: Breedte onder | BD2: Breedte Startniveau | BE2: Bruto volume (-aarden wallen) | BF2: %Nuttig? | BG2: Totaal Volume-verlies (aarden Wallen) | BH2: Oppervlakte bij maximale berging | BI2: Oppervlakte bij waterniveau Dode Zone | BJ2: Diepte startniveau | BL2: Berekening naar ronde nuttige volumes
B3: =B5 -> 0 | C3: =C5 -> 0 | D3: =AR3*D12 ->  | E3: =E5 -> 0 | F3: 0 | G3: 0 | H3: 0 | I3: 0.75 | J3: 0.5 | L3: =AK3 ->  | M3: =AL3 ->  | N3: =AR3 ->  | O3: =Y29 ->  | P3: =Z29 ->  | Q3: =B29 -> 829.1 | R3: =K29 ->  | S3: =AB29 ->  | T3: =AE29 ->  | U3: =AC29 ->  | V3: =AF29 ->  | W3: =AG29 ->  | X3: =AD29 ->  | Y3: =AH29 ->  | AF3: =$C$21 ->  | AG3: =C20 -> > 46jaar | AH3: =V29 ->  | AI3: =$C$22 -> 0 | AK3: =((AX3*BB3*AV3)+(AV3^2*((AX3+BB3)))+(AV3^3/3)*4)/$D$12 ->  | AL3: =SUM(AK3+AO3+AN3) ->  | AM3: =AK3/BE3 ->  | AN3: =((AY3*BC3*J3)+(J3^2*((AY3+BC3)))+(J3^3/3)*4)/$D$12 ->  | AO3: =((AW3*BA3*I3)+(I3^2*(AW3+BA3))+(I3^3/3)*4)/$D$12 ->  | AP3: =AN3+AO3 ->  | AQ3: =((AY3*BC3*(H3-BJ3))+((H3-BJ3)^2*((AY3+BC3)))+((H3-BJ3)^3/3)*4)/$D$12 ->  | AR3: =G3*F3/$D$12 ->  | AS3: =SUM((F3+(2*(Parameters!$D$5)))*(G3+2*(Parameters!$D$5)))/$D$12 ->  | AT3: =2*(((2*Parameters!$D$5+G3)*Parameters!$D$5+(Parameters!$D$5*F3)))/$D$12 ->  | AU3: =SUM(AR3/AS3) ->  | AV3: =H3-J3-I3 -> -1.25 | AW3: =F3-2*I3 -> -1.5 | AX3: =AW3-2*AV3 -> 1 | AY3: =F3-2*H3 -> 0 | AZ3: =F3-2*BJ3 -> 0 | BA3: =G3-(2*I3) -> -1.5 | BB3: =BA3-2*AV3 -> 1 | BC3: =G3-2*H3 -> 0 | BD3: =G3-2*BJ3 -> 0 | BE3: =((AY3*BC3*H3)+(H3^2*((AY3+BC3)))+(H3^3/3)*4)/$D$12 ->  | BF3: =AK3/BE3 ->  | BG3: =(BE3-AK3) ->  | BH3: =AW3*BA3/$D$12 ->  | BI3: =SUM(AX3*BB3)/$D$12 ->  | BJ3: 0 | BL3: Lengte | BN3: Breedte | BP3: Totale diepte | BR3: Diepte Overloop | BT3: Hoogte dode zone | BV3: Diepte Waterniveau | BX3: Netto volume | BZ3: Bruto volume Water | CB3: %Nuttig? | CC3: Volume Dode Zone | CE3: Volume Overloop | CG3: Totaal Volume-verlies (Dode zone+Overloop) | CI3: Volume Waterniveau | CK3: Netto Oppervlakte | CM3: Bruto Oppervlakte | CO3: Oppervlakte Wal | CQ3: %Nuttig? | CR3: Netto hoogte | CT3: Nuttige Lengte boven | CV3: Nuttige Lengte onder | CX3: Lengte onder | CZ3: Lengte Startniveau | DB3: Nuttige Breedte boven | DD3: Nuttige Breedte onder | DF3: Breedte onder | DH3: Breedte Startniveau | DJ3: Bruto volume (-aarden wallen) | DL3: %Nuttig? | DM3: Totaal Volume-verlies (aarden Wallen) | DO3: Oppervlakte bij maximale berging | DQ3: Oppervlakte bij waterniveau Dode Zone
B4: Afmetingen bedrijfsgebouwen en teelt | F4: Afmetingen voor ronde nuttige volumes per ha | AK4: Totale volumes en oppervlakken (niet per ha teeltopp.)
A5: Invulblad: AFBLIJVEN! | B5: ='Gegevens '!C2 -> 0 | C5: ='Gegevens '!C4 -> 0 | D5: =AR5 -> 0 | E5: ='Gegevens '!C3 -> 0 | F5: ='Gegevens '!L9 -> 0 | G5: ='Gegevens '!L10 -> 0 | H5: ='Gegevens '!$C$13 -> 0 | I5: ='Gegevens '!$C$14 -> 0.75 | J5: ='Gegevens '!$C$15 -> 0.5 | Q5: 829.1 | AG5: > 46jaar | AI5: 0 | AK5: =((AX5*BB5*AV5)+(AV5^2*((AX5+BB5)))+(AV5^3/3)*4) -> -0.7291666667 | AL5: =SUM(AK5+AO5+AN5) -> 1.387778781e-16 | AM5: =AK5/BE5 ->  | AN5: =((AY5*BC5*J5)+(J5^2*((AY5+BC5)))+(J5^3/3)*4) -> 0.1666666667 | AO5: =((AW5*BA5*I5)+(I5^2*(AW5+BA5))+(I5^3/3)*4) -> 0.5625 | AP5: =AN5+AO5 -> 0.7291666667 | AQ5: =((AY5*BC5*(H5-BJ5))+((H5-BJ5)^2*((AY5+BC5)))+((H5-BJ5)^3/3)*4) -> 0 | AR5: =G5*F5 -> 0 | AS5: =SUM((F5+(2*(Parameters!$D$5)))*(G5+2*(Parameters!$D$5))) -> 49 | AT5: =2*(((2*Parameters!$D$5+G5)*Parameters!$D$5+(Parameters!$D$5*F5)))/$D$12 ->  | AU5: =SUM(AR5/AS5) -> 0 | AV5: =H5-J5-I5 -> -1.25 | AW5: =F5-2*I5 -> -1.5 | AX5: =AW5-2*AV5 -> 1 | AY5: =F5-2*H5 -> 0 | AZ5: =F5-2*BJ5 -> 0 | BA5: =G5-(2*I5) -> -1.5 | BB5: =BA5-2*AV5 -> 1 | BC5: =G5-2*H5 -> 0 | BD5: =G5-2*BJ5 -> 0 | BE5: =((AY5*BC5*H5)+(H5^2*((AY5+BC5)))+(H5^3/3)*4) -> 0 | BF5: =AK5/BE5 ->  | BG5: =(BE5-AK5) -> 0.7291666667 | BH5: =AW5*BA5 -> 2.25 | BI5: =SUM(AX5*BB5) -> 1 | BJ5: 0 | BL5: Lb | BN5: Bb | BP5: H | BR5: Ho | BT5: Hs | BV5: Hd | BX5: Vn | BZ5: Vb | CC5: Vd | CE5: Vo | CG5: Vv | CI5: Vs | CK5: An | CM5: Ab | CO5: Av | CQ5: A% | CR5: Hn | CT5: Lnb | CV5: Lno | CX5: Lo | CZ5: Ls | DB5: Bnb | DD5: Bno | DF5: Bo | DH5: Bs | DO5: Am | DQ5: Ad
B6: Bedrijfstypes | F6: =BL6 ->  | G6: =F6 ->  | H6: ='Gegevens '!$C$13 -> 0 | I6: ='Gegevens '!$C$14 -> 0.75 | J6: ='Gegevens '!$C$15 -> 0.5 | L6: 500.0058748 | M6: 746.8441029 | N6: 253.6629123 | O6: 0.8339553543 | P6: 0.7392883011 | Q6: 829.1 | R6: 1.076213749 | S6: 892.2888192 | T6: 79.33834193 | U6: 812.9504772 | V6: 148.6600743 | W6: 4.094268805 | X6: 659.6586852 | Y6: 659.6586852 | Z6: 0.5374489486 | AA6: 0.08891553971 | AB6: 0.1666053312 | AC6: 0.004588501746 | AD6: 0.7392883011 | AE6: 0.0006023262166 | AF6: 3079.166513 | AG6: 1 | AH6: 1486.600743 | AI6: 1313.413148 | AK6: =L6*$E$3/10000 -> 0 | AL6: =SUM(AK6+AO6+AN6) ->  | AM6: =AK6/BE6 ->  | AN6: =((AY6*BC6*J6)+(J6^2*((AY6+BC6)))+(J6^3/3)*4) ->  | AO6: =((AW6*BA6*I6)+(I6^2*(AW6+BA6))+(I6^3/3)*4) ->  | AP6: =AN6+AO6 ->  | AQ6: =((AY6*BC6*(H6-BJ6))+((H6-BJ6)^2*((AY6+BC6)))+((H6-BJ6)^3/3)*4) ->  | AR6: =G6*F6 ->  | AS6: =SUM((F6+(2*(Parameters!$D$5)))*(G6+2*(Parameters!$D$5))) ->  | AT6: =2*(((2*Parameters!$D$5+G6)*Parameters!$D$5+(Parameters!$D$5*F6))) ->  | AU6: =SUM(AR6/AS6) ->  | AV6: =H6-J6-I6 -> -1.25 | AW6: =F6-2*I6 ->  | AX6: =AW6-2*AV6 ->  | AY6: =F6-2*H6 ->  | BA6: =G6-(2*I6) ->  | BB6: =BA6-2*AV6 ->  | BC6: =G6-2*H6 ->  | BE6: =((AY6*BC6*H6)+(H6^2*((AY6+BC6)))+(H6^3/3)*4) ->  | BF6: =AK6/BE6 ->  | BJ6: =E6 -> 0 | BK6: 500 | BL6: =CT6+2*BR6 ->  | BM6: m | BN6: =DD6+2*BR6+2*CR6 ->  | BO6: m | BP6: =$H$5 -> 0 | BQ6: m | BR6: =$I$5 -> 0.75 | BS6: m | BT6: =$J$5 -> 0.5 | BU6: m | BV6: =$D$13*$H$5 -> 0 | BW6: m | BX6: =BK6*$E$3/10000 -> 0 | BY6: m³ | BZ6: =SUM(BX6+CE6+CC6) ->  | CA6: m³ | CB6: =BX6/BZ6 ->  | CC6: =(CX6*DF6*BT6)+(BT6^2*((CX6+DF6)))+(BT6^3/3)*4 ->  | CD6: m³ | CE6: =(CT6*DB6*BR6)+(BR6^2*(CT6+DB6))+(BR6^3/3)*4 ->  | CF6: m³ | CG6: =CC6+CE6 ->  | CH6: m³ | CI6: =(CX6*DF6*(BP6-BT6))+((BP6-BT6)^2*((CX6+DF6)))+((BP6-BT6)^3/3)*4 ->  | CJ6: m³ | CK6: =BN6*BL6 ->  | CL6: m² | CM6: =SUM((BL6+(2*(Parameters!$D$5)))*(BN6+2*(Parameters!$D$5))) ->  | CN6: m² | CO6: =2*(((2*Parameters!$D$5+BN6)*Parameters!$D$5+(Parameters!$D$5*BL6))) ->  | CP6: m² | CQ6: =SUM(CK6/CM6) ->  | CR6: =BP6-BT6-BR6 -> -1.25 | CS6: m | CT6: =CV6+2*CR6 ->  | CU6: m | CV6: =-CR6+((-1.33*(CR6^4)+4*CR6*BX6)^(1/2))/(2*CR6) ->  | CW6: m | CX6: =CV6-2*BT6 ->  | CY6: m | CZ6: =BL6-2*BV6 ->  | DA6: m | DB6: =DD6+2*CR6 ->  | DC6: m | DD6: =CV6 ->  | DE6: m | DF6: =DD6-2*BT6 ->  | DG6: m | DH6: =BN6-2*BV6 ->  | DI6: m | DJ6: =(CX6*DF6*BP6)+(BP6^2*((CX6+DF6)))+(BP6^3/3)*4 ->  | DK6: m³ | DL6: =BX6/DJ6 ->  | DM6: =DJ6-BX6 ->  | DN6: m³ | DO6: =CT6*DB6 ->  | DP6: m² | DQ6: =SUM(CV6*DD6) ->  | DR6: m²
A7: Bedrijf/Situatie 1 | B7: 31000 | C7: 1000 | D7: =D5 -> 0 | E7: 30000 | F7: =BL7 ->  | H7: ='Gegevens '!$C$13 -> 0 | I7: ='Gegevens '!$C$14 -> 0.75 | J7: ='Gegevens '!$C$15 -> 0.5 | L7: 1000.005875 | M7: 1480.63136 | N7: 463.1678454 | O7: 0.9074478055 | P7: 0.7890773512 | Q7: 829.1 | R7: 1.097164242 | S7: 909.6588732 | T7: 79.33834193 | U7: 830.3205312 | V7: 103.0012067 | W7: 8.42412375 | X7: 717.7912141 | Y7: 717.7912141 | Z7: 1.103986625 | AA7: 0.08721768596 | AB7: 0.1132305854 | AC7: 0.009260750374 | AD7: 0.7890773512 | AE7: 0.001213627061 | AF7: 2473.720533 | AG7: 1.179487179 | AH7: 1030.012067 | AI7: 863.4882434 | AK7: =L7*$E$3/10000 -> 0 | AN7: =((AY7*BC7*J7)+(J7^2*((AY7+BC7)))+(J7^3/3)*4) ->  | AO7: =((AW7*BA7*I7)+(I7^2*(AW7+BA7))+(I7^3/3)*4) ->  | AP7: =AN7+AO7 ->  | AQ7: =((AY7*BC7*(H7-BJ7))+((H7-BJ7)^2*((AY7+BC7)))+((H7-BJ7)^3/3)*4) ->  | AR7: =G7*F7 ->  | AS7: =SUM((F7+(2*(Parameters!$D$5)))*(G7+2*(Parameters!$D$5))) ->  | AT7: =2*(((2*Parameters!$D$5+G7)*Parameters!$D$5+(Parameters!$D$5*F7))) ->  | AV7: -1.25 | BE7: =((AY7*BC7*H7)+(H7^2*((AY7+BC7)))+(H7^3/3)*4) ->  | BJ7: 0 | BK7: 1000 | BL7: =CT7+2*BR7 ->  | BM7: m | BN7: =DD7+2*BR7+2*CR7 ->  | BO7: m | BP7: =$H$5 -> 0 | BQ7: m | BR7: =$I$5 -> 0.75 | BS7: m | BT7: =$J$5 -> 0.5 | BU7: m | BV7: =$D$13*$H$5 -> 0 | BW7: m | BX7: =BK7*$E$3/10000 -> 0 | BY7: m³ | BZ7: =SUM(BX7+CE7+CC7) ->  | CA7: m³ | CB7: =BX7/BZ7 ->  | CC7: =(CX7*DF7*BT7)+(BT7^2*((CX7+DF7)))+(BT7^3/3)*4 ->  | CD7: m³ | CE7: =(CT7*DB7*BR7)+(BR7^2*(CT7+DB7))+(BR7^3/3)*4 ->  | CF7: m³ | CG7: =CC7+CE7 ->  | CH7: m³ | CI7: =(CX7*DF7*(BP7-BT7))+((BP7-BT7)^2*((CX7+DF7)))+((BP7-BT7)^3/3)*4 ->  | CJ7: m³ | CK7: =BN7*BL7 ->  | CL7: m131 | CM7: =SUM((BL7+(2*(Parameters!$D$5)))*(BN7+2*(Parameters!$D$5))) ->  | CN7: m131 | CO7: =2*(((2*Parameters!$D$5+BN7)*Parameters!$D$5+(Parameters!$D$5*BL7))) ->  | CP7: m131 | CQ7: =SUM(CK7/CM7) ->  | CR7: =BP7-BT7-BR7 -> -1.25 | CS7: m | CT7: =CV7+2*CR7 ->  | CU7: m | CV7: =-CR7+((-1.33*(CR7^4)+4*CR7*BX7)^(1/2))/(2*CR7) ->  | CW7: m | CX7: =CV7-2*BT7 ->  | CY7: m | CZ7: =BL7-2*BV7 ->  | DA7: m | DB7: =DD7+2*CR7 ->  | DC7: m | DD7: =CV7 ->  | DE7: m | DF7: =DD7-2*BT7 ->  | DG7: m | DH7: =BN7-2*BV7 ->  | DI7: m | DJ7: =(CX7*DF7*BP7)+(BP7^2*((CX7+DF7)))+(BP7^3/3)*4 ->  | DK7: m132 | DL7: =BX7/DJ7 ->  | DM7: =DJ7-BX7 ->  | DN7: m132 | DO7: =CT7*DB7 ->  | DP7: m131 | DQ7: =SUM(CV7*DD7) ->  | DR7: m131
A8: Bedrijf/Situatie 2 | B8: 31000 | C8: 1500 | D8: =D5 -> 0 | E8: 30000 | H8: ='Gegevens '!$C$13 -> 0 | I8: ='Gegevens '!$C$14 -> 0.75 | J8: ='Gegevens '!$C$15 -> 0.5 | L8: 1500.012112 | M8: 2090.332965 | N8: 542.3585922 | O8: 0.971434252 | P8: 0.5975591872 | Q8: 829.1 | R8: 1.138981622 | S8: 944.3296627 | T8: 87.17521002 | U8: 857.1544527 | V8: 280.3125514 | W8: 10.6670259 | X8: 564.2928657 | Y8: 564.2928657 | Z8: 1.882009721 | AA8: 0.09231438285 | AB8: 0.2968376008 | AC8: 0.01129587084 | AD8: 0.5975591872 | AE8: 0.001992958386 | AF8: 1274.733329 | AG8: 2.421052632 | AH8: 2803.125514 | AI8: 401.7362109 | AK8: 0 | AS8: =SUM((F8+(2*(Parameters!$D$5)))*(G8+2*(Parameters!$D$5))) ->  | AT8: =2*(((2*Parameters!$D$5+G8)*Parameters!$D$5+(Parameters!$D$5*F8))) ->  | AV8: -1.25 | BJ8: 0 | BK8: 1500 | BM8: m | BO8: m | BP8: 0 | BQ8: m | BR8: 0.75 | BS8: m | BT8: 0.5 | BU8: m | BV8: 0 | BW8: m | BX8: 0 | BY8: m³ | CA8: m³ | CD8: m³ | CF8: m³ | CH8: m³ | CJ8: m³ | CL8: m132 | CM8: =SUM((BL8+(2*(Parameters!$D$5)))*(BN8+2*(Parameters!$D$5))) ->  | CN8: m132 | CO8: =2*(((2*Parameters!$D$5+BN8)*Parameters!$D$5+(Parameters!$D$5*BL8))) ->  | CP8: m132 | CR8: -1.25 | CS8: m | CU8: m | CW8: m | CY8: m | DA8: m | DC8: m | DE8: m | DG8: m | DI8: m | DK8: m133 | DN8: m133 | DP8: m132 | DR8: m132
A9: Bedrijf/Situatie 3 | B9: 31000 | C9: 2000 | D9: =D5 -> 0 | E9: 30000 | H9: ='Gegevens '!$C$13 -> 0 | I9: ='Gegevens '!$C$14 -> 0.75 | J9: ='Gegevens '!$C$15 -> 0.5 | L9: 2000.005875 | M9: 2944.382098 | N9: 865.9266661 | O9: 0.9692119763 | P9: 0.8129424387 | Q9: 829.1 | R9: 1.137440124 | S9: 943.051607 | T9: 79.33834193 | U9: 863.7132651 | V9: 77.4120155 | W9: 17.40655892 | X9: 766.6466732 | Y9: 766.6466732 | Z9: 2.248017418 | AA9: 0.08412937462 | AB9: 0.08208672243 | AC9: 0.01845769499 | AD9: 0.8129424387 | AE9: 0.002383769246 | AF9: 2200.174661 | AG9: 2.875 | AH9: 774.120155 | AI9: 700.1581444 | AK9: 0 | AS9: =SUM((F9+(2*(Parameters!$D$5)))*(G9+2*(Parameters!$D$5))) ->  | AT9: =2*(((2*Parameters!$D$5+G9)*Parameters!$D$5+(Parameters!$D$5*F9))) ->  | AV9: -1.25 | BJ9: 0 | BK9: 2000 | BM9: m | BO9: m | BP9: 0 | BQ9: m | BR9: 0.75 | BS9: m | BT9: 0.5 | BU9: m | BV9: 0 | BW9: m | BX9: 0 | BY9: m³ | CA9: m³ | CD9: m³ | CF9: m³ | CH9: m³ | CJ9: m³ | CL9: m133 | CM9: =SUM((BL9+(2*(Parameters!$D$5)))*(BN9+2*(Parameters!$D$5))) ->  | CN9: m133 | CO9: =2*(((2*Parameters!$D$5+BN9)*Parameters!$D$5+(Parameters!$D$5*BL9))) ->  | CP9: m133 | CR9: -1.25 | CS9: m | CU9: m | CW9: m | CY9: m | DA9: m | DC9: m | DE9: m | DG9: m | DI9: m | DK9: m134 | DN9: m134 | DP9: m133 | DR9: m133
H10: ='Gegevens '!$C$13 -> 0 | I10: ='Gegevens '!$C$14 -> 0.75 | J10: ='Gegevens '!$C$15 -> 0.5 | L10: 2500.012112 | M10: 3501.34547 | N10: 859.6789411 | O10: 0.9989637367 | P10: 0.5978376619 | Q10: 829.1 | R10: 1.170713657 | S10: 970.6386929 | T10: 87.17521002 | U10: 883.4634829 | V10: 281.6899162 | W10: 18.27223587 | X10: 580.2843667 | Y10: 580.2843667 | Z10: 3.216964014 | AA10: 0.08981221402 | AB10: 0.2902108872 | AC10: 0.01882496135 | AD10: 0.5978376619 | AE10: 0.003314275475 | AF10: 276.897534 | AG10: 46 | AH10: 2816.899162 | AI10: 276.897534 | AK10: 0 | AS10: =SUM((F10+(2*(Parameters!$D$5)))*(G10+2*(Parameters!$D$5))) ->  | AT10: =2*(((2*Parameters!$D$5+G10)*Parameters!$D$5+(Parameters!$D$5*F10))) ->  | AV10: -1.25 | BJ10: =E10 -> 0 | BK10: 2500 | BM10: m | BO10: m | BP10: 0 | BQ10: m | BR10: 0.75 | BS10: m | BT10: 0.5 | BU10: m | BV10: 0 | BW10: m | BX10: 0 | BY10: m³ | CA10: m³ | CD10: m³ | CF10: m³ | CH10: m³ | CJ10: m³ | CL10: m134 | CM10: =SUM((BL10+(2*(Parameters!$D$5)))*(BN10+2*(Parameters!$D$5))) ->  | CN10: m134 | CO10: =2*(((2*Parameters!$D$5+BN10)*Parameters!$D$5+(Parameters!$D$5*BL10))) ->  | CP10: m134 | CR10: -1.25 | CS10: m | CU10: m | CW10: m | CY10: m | DA10: m | DC10: m | DE10: m | DG10: m | DI10: m | DK10: m135 | DN10: m135 | DP10: m134 | DR10: m134
A11: Parameters voor de simulatie (afblijven) | H11: ='Gegevens '!$C$13 -> 0 | I11: ='Gegevens '!$C$14 -> 0.75 | J11: ='Gegevens '!$C$15 -> 0.5 | L11: 3000.005875 | M11: 4405.988539 | N11: 1259.572219 | O11: 0.9865680009 | P11: 0.7998199025 | Q11: 829.1 | R11: 1.17680468 | S11: 975.6887598 | T11: 79.33834193 | U11: 896.3504179 | V11: 86.09555043 | W11: 26.4793438 | X11: 780.3752887 | Y11: 780.3752887 | Z11: 3.400234914 | AA11: 0.08131521567 | AB11: 0.08824079356 | AC11: 0.0271391297 | AD11: 0.7998199025 | AE11: 0.003484958579 | AF11: 1841.240856 | AG11: 7.666666667 | AH11: 860.9555043 | AI11: 814.5611992 | AK11: 0 | AS11: =SUM((F11+(2*(Parameters!$D$5)))*(G11+2*(Parameters!$D$5))) ->  | AT11: =2*(((2*Parameters!$D$5+G11)*Parameters!$D$5+(Parameters!$D$5*F11))) ->  | AV11: -1.25 | BJ11: 0 | BK11: 3000 | BM11: m | BO11: m | BP11: 0 | BQ11: m | BR11: 0.75 | BS11: m | BT11: 0.5 | BU11: m | BV11: 0 | BW11: m | BX11: 0 | BY11: m³ | CA11: m³ | CD11: m³ | CF11: m³ | CH11: m³ | CJ11: m³ | CL11: m135 | CM11: =SUM((BL11+(2*(Parameters!$D$5)))*(BN11+2*(Parameters!$D$5))) ->  | CN11: m135 | CO11: =2*(((2*Parameters!$D$5+BN11)*Parameters!$D$5+(Parameters!$D$5*BL11))) ->  | CP11: m135 | CR11: -1.25 | CS11: m | CU11: m | CW11: m | CY11: m | DA11: m | DC11: m | DE11: m | DG11: m | DI11: m | DK11: m136 | DN11: m136 | DP11: m135 | DR11: m135
A12: #ha teeltoppervlak | D12: =E3/10000 -> 0 | H12: ='Gegevens '!$C$13 -> 0 | I12: ='Gegevens '!$C$14 -> 0.75 | J12: ='Gegevens '!$C$15 -> 0.5 | L12: 3500.012112 | M12: 4915.650534 | N12: 1171.072683 | O12: 1 | P12: 0.5829520972 | Q12: 829.1 | R12: 1.201853031 | S12: 996.456348 | T12: 87.17521002 | U12: 909.281138 | V12: 298.1266399 | W12: 25.70337826 | X12: 580.8863179 | Y12: 580.8863179 | Z12: 4.564801952 | AA12: 0.08748522722 | AB12: 0.299186854 | AC12: 0.02579478601 | AD12: 0.5829520972 | AE12: 0.004581035548 | AF12: 0 | AG12: > 46jaar | AH12: 2981.266399 | AI12: 0 | AK12: 0 | AS12: =SUM((F12+(2*(Parameters!$D$5)))*(G12+2*(Parameters!$D$5))) ->  | AT12: =2*(((2*Parameters!$D$5+G12)*Parameters!$D$5+(Parameters!$D$5*F12))) ->  | AV12: -1.25 | BJ12: 0 | BK12: 3500 | BM12: m | BO12: m | BP12: 0 | BQ12: m | BR12: 0.75 | BS12: m | BT12: 0.5 | BU12: m | BV12: 0 | BW12: m | BX12: 0 | BY12: m³ | CA12: m³ | CD12: m³ | CF12: m³ | CH12: m³ | CJ12: m³ | CL12: m136 | CM12: =SUM((BL12+(2*(Parameters!$D$5)))*(BN12+2*(Parameters!$D$5))) ->  | CN12: m136 | CO12: =2*(((2*Parameters!$D$5+BN12)*Parameters!$D$5+(Parameters!$D$5*BL12))) ->  | CP12: m136 | CR12: -1.25 | CS12: m | CU12: m | CW12: m | CY12: m | DA12: m | DC12: m | DE12: m | DG12: m | DI12: m | DK12: m137 | DN12: m137 | DP12: m136 | DR12: m136
A13: Gemiddelde waterstand W1 | D13: 0.64 | H13: ='Gegevens '!$C$13 -> 0 | I13: ='Gegevens '!$C$14 -> 0.75 | J13: ='Gegevens '!$C$15 -> 0.5 | L13: 4000.005875 | M13: 5866.485845 | N13: 1648.503951 | O13: 0.9980453466 | P13: 0.783238799 | Q13: 829.1 | R13: 1.215697853 | S13: 1007.93509 | T13: 79.33834193 | U13: 928.5967478 | V13: 99.01377484 | W13: 35.57211146 | X13: 789.4538692 | Y13: 789.4538692 | Z13: 4.556992296 | AA13: 0.07871374133 | AB13: 0.09823427704 | AC13: 0.03529206575 | AD13: 0.783238799 | AE13: 0.004521116828 | AF13: 567.0618447 | AG13: 15.33333333 | AH13: 990.1377484 | AI13: 237.0733934 | AK13: 0 | AS13: =SUM((F13+(2*(Parameters!$D$5)))*(G13+2*(Parameters!$D$5))) ->  | AT13: =2*(((2*Parameters!$D$5+G13)*Parameters!$D$5+(Parameters!$D$5*F13))) ->  | AV13: -1.25 | BJ13: 0 | BK13: 4000 | BM13: m | BO13: m | BP13: 0 | BQ13: m | BR13: 0.75 | BS13: m | BT13: 0.5 | BU13: m | BV13: 0 | BW13: m | BX13: 0 | BY13: m³ | CA13: m³ | CD13: m³ | CF13: m³ | CH13: m³ | CJ13: m³ | CL13: m137 | CM13: =SUM((BL13+(2*(Parameters!$D$5)))*(BN13+2*(Parameters!$D$5))) ->  | CN13: m137 | CO13: =2*(((2*Parameters!$D$5+BN13)*Parameters!$D$5+(Parameters!$D$5*BL13))) ->  | CP13: m137 | CR13: -1.25 | CS13: m | CU13: m | CW13: m | CY13: m | DA13: m | DC13: m | DE13: m | DG13: m | DI13: m | DK13: m138 | DN13: m138 | DP13: m137 | DR13: m137
A14: Aantal jaren simulatie | D14: 46 | H14: ='Gegevens '!$C$13 -> 0 | I14: ='Gegevens '!$C$14 -> 0.75 | J14: ='Gegevens '!$C$15 -> 0.5 | L14: 5000.005875 | M14: 7326.274585 | N14: 2034.424281 | O14: 1 | P14: 0.7606268434 | Q14: 829.1 | R14: 1.254289886 | S14: 1039.931744 | T14: 79.33834193 | U14: 960.5934023 | V14: 119.0264 | W14: 44.85074961 | X14: 791 | Y14: 791 | Z14: 5.716252737 | AA14: 0.07629187432 | AB14: 0.1144559733 | AC14: 0.04312855133 | AD14: 0.7606268434 | AE14: 0.005496757617 | AF14: 0 | AG14: > 46jaar | AH14: 1190.264 | AI14: 0 | AK14: 0 | AS14: =SUM((F14+(2*(Parameters!$D$5)))*(G14+2*(Parameters!$D$5))) ->  | AT14: =2*(((2*Parameters!$D$5+G14)*Parameters!$D$5+(Parameters!$D$5*F14))) ->  | AV14: -1.25 | BJ14: 0 | BK14: 4500 | BM14: m | BO14: m | BP14: 0 | BQ14: m | BR14: 0.75 | BS14: m | BT14: 0.5 | BU14: m | BV14: 0 | BW14: m | BX14: 0 | BY14: m³ | CA14: m³ | CD14: m³ | CF14: m³ | CH14: m³ | CJ14: m³ | CL14: m138 | CM14: =SUM((BL14+(2*(Parameters!$D$5)))*(BN14+2*(Parameters!$D$5))) ->  | CN14: m138 | CO14: =2*(((2*Parameters!$D$5+BN14)*Parameters!$D$5+(Parameters!$D$5*BL14))) ->  | CP14: m138 | CR14: -1.25 | CS14: m | CU14: m | CW14: m | CY14: m | DA14: m | DC14: m | DE14: m | DG14: m | DI14: m | DK14: m139 | DN14: m139 | DP14: m138 | DR14: m138
A15: Aantal weken simulatie | D15: =D14*52 -> 2392 | H15: ='Gegevens '!$C$13 -> 0 | I15: ='Gegevens '!$C$14 -> 0.75 | J15: ='Gegevens '!$C$15 -> 0.5 | L15: 5000.012112 | M15: 7040.525037 | N15: 1632.012864 | O15: 1 | P15: 0.5614202506 | Q15: 829.1 | R15: 1.247947049 | S15: 1034.672898 | T15: 87.17521002 | U15: 947.4976884 | V15: 323.3943718 | W15: 36.61706961 | X15: 580.8863179 | Y15: 580.8863179 | Z15: 6.599929061 | AA15: 0.08425388367 | AB15: 0.3125571109 | AC15: 0.03538999588 | AD15: 0.5614202506 | AE15: 0.006378758999 | AF15: 0 | AG15: > 46jaar | AH15: 3233.943718 | AI15: 0 | AK15: 0 | AS15: =SUM((F15+(2*(Parameters!$D$5)))*(G15+2*(Parameters!$D$5))) ->  | AT15: =2*(((2*Parameters!$D$5+G15)*Parameters!$D$5+(Parameters!$D$5*F15))) ->  | AV15: -1.25 | BJ15: 0 | BK15: 5000 | BM15: m | BO15: m | BP15: 0 | BQ15: m | BR15: 0.75 | BS15: m | BT15: 0.5 | BU15: m | BV15: 0 | BW15: m | BX15: 0 | BY15: m³ | CA15: m³ | CD15: m³ | CF15: m³ | CH15: m³ | CJ15: m³ | CL15: m139 | CM15: =SUM((BL15+(2*(Parameters!$D$5)))*(BN15+2*(Parameters!$D$5))) ->  | CN15: m139 | CO15: =2*(((2*Parameters!$D$5+BN15)*Parameters!$D$5+(Parameters!$D$5*BL15))) ->  | CP15: m139 | CR15: -1.25 | CS15: m | CU15: m | CW15: m | CY15: m | DA15: m | DC15: m | DE15: m | DG15: m | DI15: m | DK15: m140 | DN15: m140 | DP15: m139 | DR15: m139
A16: Aantal dagen simulatie | D16: =COUNT(A35:A16834) -> 16800 | H16: ='Gegevens '!$C$13 -> 0 | I16: ='Gegevens '!$C$14 -> 0.75 | J16: ='Gegevens '!$C$15 -> 0.5 | L16: 5500.012112 | M16: 7749.437851 | N16: 1784.541226 | O16: 1 | P16: 0.5546412354 | Q16: 829.1 | R16: 1.263199885 | S16: 1047.319025 | T16: 87.17521002 | U16: 960.1438149 | V16: 331.7598625 | W16: 40.21689857 | X16: 580.8863179 | Y16: 580.8863179 | Z16: 7.280735936 | AA16: 0.0832365382 | AB16: 0.3167705872 | AC16: 0.03839985488 | AD16: 0.5546412354 | AE16: 0.006951784282 | AF16: 0 | AG16: > 46jaar | AH16: 3317.598625 | AI16: 0 | AK16: 0 | AS16: =SUM((F16+(2*(Parameters!$D$5)))*(G16+2*(Parameters!$D$5))) ->  | AT16: =2*(((2*Parameters!$D$5+G16)*Parameters!$D$5+(Parameters!$D$5*F16))) ->  | AV16: -1.25 | BJ16: 0 | BK16: 5500 | BM16: m | BO16: m | BP16: 0 | BQ16: m | BR16: 0.75 | BS16: m | BT16: 0.5 | BU16: m | BV16: 0 | BW16: m | BX16: 0 | BY16: m³ | CA16: m³ | CD16: m³ | CF16: m³ | CH16: m³ | CJ16: m³ | CL16: m140 | CM16: =SUM((BL16+(2*(Parameters!$D$5)))*(BN16+2*(Parameters!$D$5))) ->  | CN16: m140 | CO16: =2*(((2*Parameters!$D$5+BN16)*Parameters!$D$5+(Parameters!$D$5*BL16))) ->  | CP16: m140 | CR16: -1.25 | CS16: m | CU16: m | CW16: m | CY16: m | DA16: m | DC16: m | DE16: m | DG16: m | DI16: m | DK16: m141 | DN16: m141 | DP16: m140 | DR16: m140
A17: Parameters voor watertekorten | H17: ='Gegevens '!$C$13 -> 0 | I17: ='Gegevens '!$C$14 -> 0.75 | J17: ='Gegevens '!$C$15 -> 0.5 | L17: 6000.005875 | M17: 8785.560105 | N17: 2418.205921 | O17: 1 | P17: 0.7380445093 | Q17: 829.1 | R17: 1.29266805 | S17: 1071.75108 | T17: 79.33834193 | U17: 992.4127381 | V17: 140.5212125 | W17: 54.01423473 | X17: 791 | Y17: 791 | Z17: 6.877290842 | AA17: 0.07402683646 | AB17: 0.1311136654 | AC17: 0.05039811551 | AD17: 0.7380445093 | AE17: 0.006416873255 | AF17: 0 | AG17: > 46jaar | AH17: 1405.212125 | AI17: 0 | AK17: 0 | AL17: =SUM(AK17+AO17+AN17) ->  | AM17: =AK17/BE17 ->  | AP17: =AN17+AO17 ->  | AS17: =SUM((F17+(2*(Parameters!$D$5)))*(G17+2*(Parameters!$D$5))) ->  | AT17: =2*(((2*Parameters!$D$5+G17)*Parameters!$D$5+(Parameters!$D$5*F17))) ->  | AU17: =SUM(AR17/AS17) ->  | AV17: =H17-J17-I17 -> -1.25 | AW17: =F17-2*I17 ->  | AX17: =AW17-2*AV17 ->  | AY17: =F17-2*H17 ->  | AZ17: =F17-2*BJ17 ->  | BA17: =G17-(2*I17) ->  | BB17: =BA17-2*AV17 ->  | BC17: =G17-2*H17 ->  | BD17: =G17-2*BJ17 ->  | BF17: =AK17/BE17 ->  | BJ17: =E17 -> 0 | BK17: 6000 | BM17: m | BO17: m | BP17: 0 | BQ17: m | BR17: 0.75 | BS17: m | BT17: 0.5 | BU17: m | BV17: 0 | BW17: m | BX17: 0 | BY17: m³ | CA17: m³ | CD17: m³ | CF17: m³ | CH17: m³ | CJ17: m³ | CL17: m141 | CM17: =SUM((BL17+(2*(Parameters!$D$5)))*(BN17+2*(Parameters!$D$5))) ->  | CN17: m141 | CO17: =2*(((2*Parameters!$D$5+BN17)*Parameters!$D$5+(Parameters!$D$5*BL17))) ->  | CP17: m141 | CR17: -1.25 | CS17: m | CU17: m | CW17: m | CY17: m | DA17: m | DC17: m | DE17: m | DG17: m | DI17: m | DK17: m142 | DN17: m142 | DP17: m141 | DR17: m141
A18: Poisson coëfficiënten | H18: ='Gegevens '!$C$13 -> 0 | I18: ='Gegevens '!$C$14 -> 0.75 | J18: ='Gegevens '!$C$15 -> 0.5 | L18: 6500.012112 | M18: 9167.952177 | N18: 2088.358298 | O18: 1 | P18: 0.5416146527 | Q18: 829.1 | R18: 1.293581592 | S18: 1072.508498 | T18: 87.17521002 | U18: 985.3332883 | V18: 348.4240093 | W18: 47.37791655 | X18: 580.8863179 | Y18: 580.8863179 | Z18: 8.645044521 | AA18: 0.08128160304 | AB18: 0.324868297 | AC18: 0.04417486353 | AD18: 0.5416146527 | AE18: 0.008060583701 | AF18: 0 | AG18: > 46jaar | AH18: 3484.240093 | AI18: 0 | AK18: 0 | AS18: =SUM((F18+(2*(Parameters!$D$5)))*(G18+2*(Parameters!$D$5))) ->  | AT18: =2*(((2*Parameters!$D$5+G18)*Parameters!$D$5+(Parameters!$D$5*F18))) ->  | AV18: -1.25 | BJ18: 0 | BK18: 6500 | BM18: m | BO18: m | BP18: 0 | BQ18: m | BR18: 0.75 | BS18: m | BT18: 0.5 | BU18: m | BV18: 0 | BW18: m | BX18: 0 | BY18: m³ | CA18: m³ | CD18: m³ | CF18: m³ | CH18: m³ | CJ18: m³ | CL18: m142 | CM18: =SUM((BL18+(2*(Parameters!$D$5)))*(BN18+2*(Parameters!$D$5))) ->  | CN18: m142 | CO18: =2*(((2*Parameters!$D$5+BN18)*Parameters!$D$5+(Parameters!$D$5*BL18))) ->  | CP18: m142 | CR18: -1.25 | CS18: m | CU18: m | CW18: m | CY18: m | DA18: m | DC18: m | DE18: m | DG18: m | DI18: m | DK18: m143 | DN18: m143 | DP18: m142 | DR18: m142
A19: Gemiddelde | C19: Gemiddelde | D19: Gemiddelde | H19: ='Gegevens '!$C$13 -> 0 | I19: ='Gegevens '!$C$14 -> 0.75 | J19: ='Gegevens '!$C$15 -> 0.5 | L19: 7000.005875 | M19: 10244.46435 | N19: 2800.367164 | O19: 1 | P19: 0.7168516803 | Q19: 829.1 | R19: 1.330884174 | S19: 1103.436069 | T19: 79.33834193 | U19: 1024.097727 | V19: 161.9671469 | W19: 63.09090409 | X19: 791 | Y19: 791 | Z19: 8.039675808 | AA19: 0.0719011678 | AB19: 0.1467843507 | AC19: 0.05717676436 | AD19: 0.7168516803 | AE19: 0.007286036805 | AF19: 0 | AG19: > 46jaar | AH19: 1619.671469 | AI19: 0 | AK19: 0 | AS19: =SUM((F19+(2*(Parameters!$D$5)))*(G19+2*(Parameters!$D$5))) ->  | AT19: =2*(((2*Parameters!$D$5+G19)*Parameters!$D$5+(Parameters!$D$5*F19))) ->  | AV19: -1.25 | BJ19: 0 | BK19: 7000 | BM19: m | BO19: m | BP19: 0 | BQ19: m | BR19: 0.75 | BS19: m | BT19: 0.5 | BU19: m | BV19: 0 | BW19: m | BX19: 0 | BY19: m³ | CA19: m³ | CD19: m³ | CF19: m³ | CH19: m³ | CJ19: m³ | CL19: m143 | CM19: =SUM((BL19+(2*(Parameters!$D$5)))*(BN19+2*(Parameters!$D$5))) ->  | CN19: m143 | CO19: =2*(((2*Parameters!$D$5+BN19)*Parameters!$D$5+(Parameters!$D$5*BL19))) ->  | CP19: m143 | CR19: -1.25 | CS19: m | CU19: m | CW19: m | CY19: m | DA19: m | DC19: m | DE19: m | DG19: m | DI19: m | DK19: m144 | DN19: m144 | DP19: m143 | DR19: m143
A20: Maximaal jaarlijks watertekort: | B20: 0 | C20: =IF(D20="> 46jaar","> 46jaar",1/D20) -> > 46jaar | D20: =IF(COUNTIF($CV$115:$CV$160,">"&$B$20)=0,"> 46jaar",(COUNTIF($CV$115:$CV$160,">"&$B$20)/COUNT($CV$115:$CV$160))) -> > 46jaar | H20: ='Gegevens '!$C$13 -> 0 | I20: ='Gegevens '!$C$14 -> 0.75 | J20: ='Gegevens '!$C$15 -> 0.5 | L20: 7500.012112 | M20: 10587.21523 | N20: 2390.827656 | O20: 1 | P20: 0.5292397996 | Q20: 829.1 | R20: 1.323828528 | S20: 1097.586233 | T20: 87.17521002 | U20: 1010.411023 | V20: 365.0202593 | W20: 54.49216281 | X20: 580.8863179 | Y20: 580.8863179 | Z20: 10.01228285 | AA20: 0.07942447474 | AB20: 0.3325663609 | AC20: 0.04964727252 | AD20: 0.5292397996 | AE20: 0.009122092233 | AF20: 0 | AG20: > 46jaar | AH20: 3650.202593 | AI20: 0 | AK20: 0 | AS20: =SUM((F20+(2*(Parameters!$D$5)))*(G20+2*(Parameters!$D$5))) ->  | AT20: =2*(((2*Parameters!$D$5+G20)*Parameters!$D$5+(Parameters!$D$5*F20))) ->  | AV20: -1.25 | BJ20: 0 | BK20: 7500 | BM20: m | BO20: m | BP20: 0 | BQ20: m | BR20: 0.75 | BS20: m | BT20: 0.5 | BU20: m | BV20: 0 | BW20: m | BX20: 0 | BY20: m³ | CA20: m³ | CD20: m³ | CF20: m³ | CH20: m³ | CJ20: m³ | CL20: m144 | CM20: =SUM((BL20+(2*(Parameters!$D$5)))*(BN20+2*(Parameters!$D$5))) ->  | CN20: m144 | CO20: =2*(((2*Parameters!$D$5+BN20)*Parameters!$D$5+(Parameters!$D$5*BL20))) ->  | CP20: m144 | CR20: -1.25 | CS20: m | CU20: m | CW20: m | CY20: m | DA20: m | DC20: m | DE20: m | DG20: m | DI20: m | DK20: m145 | DN20: m145 | DP20: m144 | DR20: m144
A21: Maximaal jaarlijks watertekort: | C21: =MAX(CV115:CV160) ->  | H21: ='Gegevens '!$C$13 -> 0 | I21: ='Gegevens '!$C$14 -> 0.75 | J21: ='Gegevens '!$C$15 -> 0.5 | L21: 8000.005875 | M21: 11703.06678 | N21: 3181.245647 | O21: 1 | P21: 0.6969072712 | Q21: 829.1 | R21: 1.368972022 | S21: 1135.014704 | T21: 79.33834193 | U21: 1055.676362 | V21: 183.4002423 | W21: 72.07299255 | X21: 791 | Y21: 791 | Z21: 9.203126995 | AA21: 0.06990071729 | AB21: 0.1615840232 | AC21: 0.06349961134 | AD21: 0.6969072712 | AE21: 0.008108376891 | AF21: 0 | AG21: > 46jaar | AH21: 1834.002423 | AI21: 0 | AK21: 0 | AS21: =SUM((F21+(2*(Parameters!$D$5)))*(G21+2*(Parameters!$D$5))) ->  | AT21: =2*(((2*Parameters!$D$5+G21)*Parameters!$D$5+(Parameters!$D$5*F21))) ->  | AV21: -1.25 | BJ21: 0 | BK21: 8000 | BM21: m | BO21: m | BP21: 0 | BQ21: m | BR21: 0.75 | BS21: m | BT21: 0.5 | BU21: m | BV21: 0 | BW21: m | BX21: 0 | BY21: m³ | CA21: m³ | CD21: m³ | CF21: m³ | CH21: m³ | CJ21: m³ | CL21: m145 | CM21: =SUM((BL21+(2*(Parameters!$D$5)))*(BN21+2*(Parameters!$D$5))) ->  | CN21: m145 | CO21: =2*(((2*Parameters!$D$5+BN21)*Parameters!$D$5+(Parameters!$D$5*BL21))) ->  | CP21: m145 | CR21: -1.25 | CS21: m | CU21: m | CW21: m | CY21: m | DA21: m | DC21: m | DE21: m | DG21: m | DI21: m | DK21: m146 | DN21: m146 | DP21: m145 | DR21: m145
A22: Gemiddeld jaarlijks watertekort | C22: =IF(COUNTIF(CV115:CV160,">"&0)=0,0,SUMIF(CV115:CV160,">"&0,CV115:CV160)/(COUNTIF(CV115:CV160,">"&0))) -> 0 | H22: ='Gegevens '!$C$13 -> 0 | I22: ='Gegevens '!$C$14 -> 0.75 | J22: ='Gegevens '!$C$15 -> 0.5 | L22: 8500.012112 | M22: 12007.08116 | N22: 2692.211845 | O22: 1 | P22: 0.5174592677 | Q22: 829.1 | R22: 1.353966947 | S22: 1122.573996 | T22: 87.17521002 | U22: 1035.398786 | V22: 381.5546954 | W22: 61.5758925 | X22: 580.8863179 | Y22: 580.8863179 | Z22: 11.38188019 | AA22: 0.07765653786 | AB22: 0.3398926901 | AC22: 0.05485241304 | AD22: 0.5174592677 | AE22: 0.01013909126 | AF22: 0 | AG22: > 46jaar | AH22: 3815.546954 | AI22: 0 | AK22: 0 | AS22: =SUM((F22+(2*(Parameters!$D$5)))*(G22+2*(Parameters!$D$5))) ->  | AT22: =2*(((2*Parameters!$D$5+G22)*Parameters!$D$5+(Parameters!$D$5*F22))) ->  | AV22: -1.25 | BJ22: 0 | BK22: 8500 | BM22: m | BO22: m | BP22: 0 | BQ22: m | BR22: 0.75 | BS22: m | BT22: 0.5 | BU22: m | BV22: 0 | BW22: m | BX22: 0 | BY22: m³ | CA22: m³ | CD22: m³ | CF22: m³ | CH22: m³ | CJ22: m³ | CL22: m146 | CM22: =SUM((BL22+(2*(Parameters!$D$5)))*(BN22+2*(Parameters!$D$5))) ->  | CN22: m146 | CO22: =2*(((2*Parameters!$D$5+BN22)*Parameters!$D$5+(Parameters!$D$5*BL22))) ->  | CP22: m146 | CR22: -1.25 | CS22: m | CU22: m | CW22: m | CY22: m | DA22: m | DC22: m | DE22: m | DG22: m | DI22: m | DK22: m147 | DN22: m147 | DP22: m146 | DR22: m146
H23: ='Gegevens '!$C$13 -> 0 | I23: ='Gegevens '!$C$14 -> 0.75 | J23: ='Gegevens '!$C$15 -> 0.5 | L23: 9000.012112 | M23: 12717.20657 | N23: 2842.557539 | O23: 1 | P23: 0.5117764564 | Q23: 829.1 | R23: 1.369001517 | S23: 1135.039157 | T23: 87.17521002 | U23: 1047.863947 | V23: 389.8014544 | W23: 65.10874328 | X23: 580.8863179 | Y23: 580.8863179 | Z23: 12.06743188 | AA23: 0.07680370272 | AB23: 0.3434255566 | AC23: 0.05736255252 | AD23: 0.5117764564 | AE23: 0.01063173178 | AF23: 0 | AG23: > 46jaar | AH23: 3898.014544 | AI23: 0 | AK23: 0 | AS23: =SUM((F23+(2*(Parameters!$D$5)))*(G23+2*(Parameters!$D$5))) ->  | AT23: =2*(((2*Parameters!$D$5+G23)*Parameters!$D$5+(Parameters!$D$5*F23))) ->  | AV23: -1.25 | BG23: =(BE23-AK23) ->  | BH23: =AW23*BA23 ->  | BI23: =SUM(AX23*BB23) ->  | BJ23: 0 | BK23: 9000 | BM23: m | BO23: m | BP23: 0 | BQ23: m | BR23: 0.75 | BS23: m | BT23: 0.5 | BU23: m | BV23: 0 | BW23: m | BX23: 0 | BY23: m³ | CA23: m³ | CD23: m³ | CF23: m³ | CH23: m³ | CJ23: m³ | CL23: m147 | CM23: =SUM((BL23+(2*(Parameters!$D$5)))*(BN23+2*(Parameters!$D$5))) ->  | CN23: m147 | CO23: =2*(((2*Parameters!$D$5+BN23)*Parameters!$D$5+(Parameters!$D$5*BL23))) ->  | CP23: m147 | CR23: -1.25 | CS23: m | CU23: m | CW23: m | CY23: m | DA23: m | DC23: m | DE23: m | DG23: m | DI23: m | DK23: m148 | DN23: m148 | DP23: m147 | DR23: m147
M25: =BH3-((AK3+AN3-U38)*(BH3-BI3)/(AK3)) -> 
AB26: Schepers-stroomdiagram
A27: Klimaatdata | D27: Berekeningen data en neerslag | J27: Opvang | O27: Berekening Evaporatie | Q27: Evaporatie | R27: Waterbehoefte | S27: Berekeningen Simulatie | U27: Simulatie | X27: Invulling en benutting | AA27: Opvangverhouding | AE27: Waar blijft de opgevangen neerslag? | AH27: Wat gebeurt er met nuttige neerslag? | AJ27: Bruto neerslag - Verlies/gebruikspercentages | AO27: Terugkeerperiode watertekort
A28: Datum | B28: KMI: Neerslag mm | C28: KMI: Penman ETo mm | D28: Maand | E28: Jaar | F28: Week | G28: RR | H28: RR (corr. serre) mm | I28: RR (corr. Loods) mm | J28: Bruto neerslag m³/ha teeltopp. | K28: Opvang-verhouding | L28: Opvang m³/ha teeltopp. | M28: Opvang-percentage (%) | N28: Opvang-verliezen (m³/ha) | O28: E (mm/dag) Warmteopslag | P28: Evaporatie-oppervlak | Q28: Evaporatie-verliezen m³/ha teeltopp. | R28: Waterbehoefte m³/ha teeltopp. | S28: Niveau-verschil nuttige zone m³ | T28: Niveau-verschil dode zone m³ | U28: Water-voorraad m³/ha | V28: Overloop Totaal aantal m³/ha teeltopp. | W28: Watertekort Totaal aantal m³/ha teeltopp. | X28: Hemelwater-verbruik m³/ha teeltopp. | Y28: Hemelwater-percentage | Z28: Benuttings-percentage | AA28: Opvangverhouding | AB28: Bruto neerslag mm | AC28: Opgevangen neerslag mm | AD28: Nuttige neerslag mm | AE28: Opvang-verlies mm | AF28: Overloop-verlies mm | AG28: Evaporatie-verlies mm | AH28: Hemelwater-benutting mm | AI28: Bufferopbouw mm | AJ28: Opvang-verlies-percentage | AK28: Overloop-percentage | AL28: Evaporatie-percentage | AM28: Hemelwater-benuttings percentage | AN28: Bufferopbouw | AO28: Aantal overschreden maximale watertekorten | AP28: Terugkeer-periode
A29: Som | B29: =SUM(B35:B16834)/$D$14 -> 829.1 | C29: =SUM(C35:C16834)/$D$14 -> 698.4231087 | D29: 45-jaarlijkse jaargemiddelde som | G29: =SUM(G35:G16834)/$D$14 -> 829.1 | H29: =SUM(H35:H16834)/$D$14 -> 758.7902174 | I29: =SUM(I35:I16834)/$D$14 -> 597.9123913 | J29: =SUM(J35:J16834)/$D$14 ->  | K29: =SUM((B3+C3+D3)/E3) ->  | L29: =SUM(L35:L16834)/$D$14 ->  | M29: =SUM(L29/J29) ->  | N29: =SUM(N35:N16834)/$D$14 ->  | O29: 698.4109869 | R29: 8457.195667 | V29: =SUM(V35:V16834)/$D$14 ->  | W29: =SUM(W35:W16834)/$D$14 ->  | X29: =SUM(X35:X16834)/$D$14 ->  | Y29: =IF(R29=0,"",((R29-W29)/R29)) ->  | Z29: =IF(J29=0,"",X29/J29) ->  | AA29: =K29 ->  | AB29: =SUM($AB$35:$AB$16834)/$D$14 ->  | AC29: =SUM($AC$35:$AC$16834)/$D$14 ->  | AD29: =SUM($AD$35:$AD$16834)/$D$14 ->  | AE29: =SUM($AE$35:$AE$16834)/$D$14 ->  | AF29: =SUM($AF$35:$AF$16834)/$D$14 ->  | AG29: =SUM($AG$35:$AG$16834)/$D$14 ->  | AH29: =SUM($AH$35:$AH$16834)/$D$14 ->  | AI29: =SUM(AB29-AE29-AF29-AG29-AD29) ->  | AJ29: =AE29/AB29 ->  | AK29: =AF29/AB29 ->  | AL29: =AG29/AB29 ->  | AM29: =AH29/AB29 ->  | AN29: =AI29/AB29 ->  | AO29: =COUNTIF($W$35:$W$16834,">"&$B$20)/COUNT($W$35:$W$16834) ->  | AP29: =IF(AO29=0,"onwaarschijnlijk",SUM(1/AO29)) -> 
A30: Min | B30: =MIN(B34:B16834) -> 0 | C30: =MIN(C34:C16834) -> 0 | D30: 45-jaarlijks minimum | G30: =MIN(G34:G16834) -> 0 | H30: =MIN(H34:H16834) -> 0 | I30: 0 | O30: -0.1486666667 | Q30: =MIN(Q35:Q16835) ->  | R30: =MIN(R34:R16834) -> 0 | AD30: =MIN(AD34:AD16834) ->  | AE30: =SUM(AB29+AE29) ->  | AF30: =SUM(AC29+AF29) ->  | AI30: =MIN(AI34:AI16834) ->  | AM30: =SUM(AJ29:AN29) -> 
A31: Max | B31: =MAX(B34:B16834) -> 81 | C31: =MAX(C34:C16834) -> 7.771 | D31: 45-jaarlijks maximum | F31: Max | G31: =MAX(G34:G16834) -> 81 | H31: =MAX(H34:H16834) -> 76.95 | I31: 60.75 | O31: 7.637666667 | R31: =MAX(R34:R16834) -> 44.20203264 | Z31: =MAX(Z34:Z16834) ->  | AD31: =MAX(AD34:AD16834) ->  | AE31: =MAX(AE34:AE16834) ->  | AI31: =MAX(AI34:AI16834) -> 
A32: Gemiddeld | B32: =AVERAGE(B34:B16834) -> 2.270154762 | C32: =AVERAGE(C34:C16834) -> 1.912348988 | D32: 45-jaarlijks daggemiddelde | G32: =AVERAGE(G34:G16834) -> 2.270154762 | H32: =AVERAGE(H34:H16834) -> 2.077639881 | I32: 1.637141071 | O32: 1.912315797 | R32: 23.15660718 | AD32: =AVERAGE(AD34:AD16834) ->  | AE32: =AVERAGE(AE34:AE16834) ->  | AI32: =AVERAGE(AI34:AI16834) -> 
A33: Invoer klimaatdata | O33: Berekening Evaporatie | Q33: Evaporatie | R33: Waterbehoefte | S33: Berekeningen Simulatie | U33: Simulatie | AI33: =1-AJ44 ->  | BM33: DATA KMI 1967-2012 | BQ33: DATA KMI 1975-2012 | BU33: DATA2020 | CC33: DATA2030 | CK33: DATA 2080
A34: Datum | B34: RR (mm) | C34: KMI: ETP_0 (mm) Penman | D34: Maand | E34: Jaar | F34: Week | G34: RR mm | H34: RR (corr. serre) mm | I34: RR (corr. Loods) mm | J34: Bruto neerslag m³/ha teeltopp. | K34: Opvang-verhouding % | L34: Opvangbare neerslag m³/ha teeltopp. | M34: Opvang-percentage (%) | N34: Opvang-verliezen m³/ha teeltopp. | O34: E incl. Warmteopslag mm/m² bassinopp. | P34: Evaporatie-oppervlak m² | Q34: Evaporatie-verliezen m³ / ha teeltopp. | R34: Water-behoefte m³/ha teeltopp. | S34: Niveau-verschil nuttige zone m³ | T34: Niveau-verschil dode zone m³ | U34: Water-voorraad m³/ha teeltopp. | V34: Overloop m³/ha teeltopp. | W34: Watertekort m³/ha teeltopp. | X34: Hemelwater-verbruik (m³/ha) | Y34: Hemelwater-percentage | Z34: Benuttings-percentage | AA34: Opvang-verhouding | AB34: Bruto neerslag mm | AC34: Opgevangen neerslag mm | AD34: Nuttige neerslag mm | AE34: Opvang-verlies | AF34: Overloop-verlies | AG34: Evaporatie-verlies (mm) | AH34: Hemelwater-benutting mm | AI34: Bufferopbouw mm | AJ34: Opvang-verlies-percentage | AK34: Overloop-percentage | AL34: Evaporatie-percentage | AM34: Hemelwater-benuttings percentage | AN34: Bufferopbouw | AO34: Bufferopbouw m³ | AP34: Bufferopbouw Hydrologische winter | AQ34: Bufferopbouw Hydrologische zomer | BM34: Datum | BN34: RR (mm) | BO34: KMI: ETP_0 (mm) Penman | BQ34: Datum | BR34: RR | BS34: Eto | BV34: Rainfall | BW34: ETo | BX34: Rainfall | BY34: ETo | BZ34: Rainfall | CA34: ETo | CD34: Rainfall | CE34: ETo | CF34: Rainfall | CG34: ETo | CH34: Rainfall | CI34: ETo | CL34: Rainfall | CM34: ETo | CN34: Rainfall | CO34: ETo | CP34: Rainfall | CQ34: ETo
A35: 1967-01-02 | B35: 0 | C35: 0.245 | D35: =MONTH(A35) -> 1 | E35: 1967 | F35: =INT((A35-DATE(YEAR(A35-WEEKDAY(A35-1)+4),1,3)+WEEKDAY(DATE(YEAR(A35-WEEKDAY(A35-1)+4),1,3))+5)/7) -> 1 | G35: =B35 -> 0 | H35: =IF(B35<Parameters!$A$16,B35*Parameters!$B$16,IF(AND(B35>Parameters!$A$16,B35<Parameters!$A$17),B35*Parameters!$B$17,B35*Parameters!$B$18)) -> 0 | I35: =IF(B35<Parameters!$A$20,B35*Parameters!$B$20,IF(AND(B35>Parameters!$A$20,B35<Parameters!$A$21),B35*Parameters!$B$21,B35*Parameters!$B$22)) -> 0 | J35: =B35*SUM($B$3,$C$3,$D$3)/$E$3*10 ->  | K35: =IF(B35=0,"",SUM(J35/(B35*10))) ->  | L35: =IF(B35=0,0,SUM(B35*$D$3+H35*$B$3+I35*$C$3)/$E$3*10) -> 0 | M35: =IF(B35=0,"",L35/J35) ->  | N35: =IF(B35=0,0,SUM(J35-L35)) -> 0 | O35: =IF(OR($D35=1,$D35=12,$D35=8),C35+(2/31),IF($D35=2,C35-(1/28),IF($D35=3,C35-(3/31),IF($D35=4,C35-(5/30),IF($D35=5,C35-(6/31),IF($D35=6,C35-(4/30),IF($D35=7,C35-(1/31),IF($D35=9,C35+(4/30),IF($D35=10,C35+(5/31),IF($D35=11,C35+(5/30))))))))))) -> 0.309516129 | P35: =-(($BH$3-$BI$3)*($AN$3+$AK$3-U35)/($AK$3)-$BH$3) ->  | Q35: =SUM(O35*P35)/1000/$D$12 ->  | R35: =IF('Gegevens '!$G$20="Eigen waarden",VLOOKUP($F35,'Gegevens '!$A$25:$C$77,3,FALSE),VLOOKUP($F35,Lijsten!$A$19:$B$71,2,FALSE)) -> 3.089475342 | S35: =SUM(L35-R35-O35) -> -3.398991471 | T35: =L35-O35 -> -0.309516129 | U35: =ROUND($AK$3*$D$13+S35,0) ->  | V35: 0 | W35: =IF(U35<$AN$3,0,0) ->  | X35: =R35-W35 ->  | Y35: =IF(R35=0,"",((R35-W35)/R35)) ->  | Z35: =IF(B35=0,"",X35/(B35*10)) ->  | AA35: =K35 ->  | AB35: =J35/10 ->  | AC35: =L35/10 -> 0 | AD35: =X35/10 ->  | AE35: =N35/10 -> 0 | AF35: =V35/10 -> 0 | AG35: =Q35/10 ->  | AH35: =(R35-W35)/10 ->  | AI35: =SUM(AC35-AF35-AG35-AD35) ->  | AJ35: =IF(AB35=0,"",AE35/AB35) ->  | AK35: =IF(AB35=0,"",AF35/AB35) ->  | AL35: =IF(AC35=0,"",AG35/AC35) ->  | AM35: =IF(AC35=0,"",AD35/AC35) ->  | AN35: =IF(AC35=0,"",AI35/AC35) ->  | AO35: =AI35*$E$5/1000 ->  | AP35: =IF(OR(F35<=13,F35>=40),VALUE(AO35),0) ->  | AQ35: =IF(OR(F35<=13,F35>=40),0,VALUE(AO35)) -> 0 | BM35: 1967-01-02 | BN35: 0 | BO35: 0.245 | BQ35: 1975-01-01 | BR35: 0 | BS35: 0.306 | BU35: 2006-01-01 | BV35: 0 | BW35: 0.3115 | BX35: 0 | BY35: 0.29253 | BZ35: 0 | CA35: 0.27356 | CB35: =SUM(YEAR(BU41)-YEAR(BU13909)) -> -37 | CC35: 2016-01-01 | CD35: 0 | CE35: 0.32307 | CF35: 0 | CG35: 0.29868 | CH35: 0 | CI35: 0.27429 | CJ35: =SUM(YEAR(CC35)-YEAR(CC13912)) -> -37 | CK35: 2066-01-01 | CL35: 2.28 | CM35: 0.38093 | CN35: 0 | CO35: 0.32944 | CP35: 0 | CQ35: 0.27795
A36: 1967-01-03 | B36: 0.6 | C36: 0.145 | D36: 1 | E36: =IF(AND((F35>1),(F36=1)),E35+1,E35) -> 1967 | F36: 1 | G36: =B36 -> 0.6 | H36: =IF(B36<Parameters!$A$16,B36*Parameters!$B$16,IF(AND(B36>Parameters!$A$16,B36<Parameters!$A$17),B36*Parameters!$B$17,B36*Parameters!$B$18)) -> 0 | I36: =IF(B36<Parameters!$A$20,B36*Parameters!$B$20,IF(AND(B36>Parameters!$A$20,B36<Parameters!$A$21),B36*Parameters!$B$21,B36*Parameters!$B$22)) -> 0 | J36: =B36*SUM($B$3,$C$3,$D$3)/$E$3*10 ->  | K36: =IF(B36=0,"",SUM(J36/(B36*10))) ->  | L36: =IF(B36=0,0,SUM(B36*$D$3+H36*$B$3+I36*$C$3)/$E$3*10) ->  | M36: =IF(B36=0,"",L36/J36) ->  | O36: =IF(OR($D36=1,$D36=12,$D36=8),C36+(2/31),IF($D36=2,C36-(1/28),IF($D36=3,C36-(3/31),IF($D36=4,C36-(5/30),IF($D36=5,C36-(6/31),IF($D36=6,C36-(4/30),IF($D36=7,C36-(1/31),IF($D36=9,C36+(4/30),IF($D36=10,C36+(5/31),IF($D36=11,C36+(5/30))))))))))) -> 0.209516129 | P36: =-(($BH$3-$BI$3)*($AN$3+$AK$3-U36)/($AK$3)-$BH$3) ->  | Q36: =SUM(O36*P35)/$E$3*10 ->  | R36: =IF('Gegevens '!$G$20="Eigen waarden",VLOOKUP($F36,'Gegevens '!$A$25:$C$77,3,FALSE),VLOOKUP($F36,Lijsten!$A$19:$B$71,2,FALSE)) -> 3.089475342 | S36: =SUM(L36-R36-Q36) ->  | T36: =L36-Q36 ->  | U36: =IF(U35<$AN$3,U35+T36,IF(AND((U35>$AN$3),(SUM(U35+S36)<$AN$3)),SUM($AN$3+T36),IF((SUM(U35+S36)>($AN$3+$AK$3)),$AN$3+$AK$3,U35+S36))) ->  | V36: =IF(SUM(U35+S36)>SUM($AK$3+$AN$3),SUM(U35+S36-($AK$3+$AN$3)),0) ->  | W36: =IF(U35<$AN$3,R36,IF(SUM(U35-R36)>$AN$3,0,IF(SUM(U35+S36)<$AN$3,SUM(R36-(U35-$AN$3)),0))) ->  | X36: =R36-W36 ->  | AA36: =K36 ->  | AD36: =X36/10 ->  | AE36: =N36/10 ->  | AG36: =Q36/10 ->  | AK36: =IF(AB36=0,"",AF36/AB36) ->  | AO36: =AI36*$E$5/1000 ->  | AP36: =IF(OR(F36<=13,F36>=40),VALUE(AO36),0) ->  | AQ36: =IF(OR(F36<=13,F36>=40),0,VALUE(AO36)) -> 0 | BM36: 1967-01-03 | BN36: 0.6 | BO36: 0.145 | BQ36: 1975-01-02 | BR36: 0.1 | BS36: 0.253 | BU36: 2006-01-02 | BV36: 0 | BW36: 0.28162 | BX36: 0 | BY36: 0.26447 | BZ36: 0 | CA36: 0.24732 | CC36: 2016-01-02 | CD36: 0 | CE36: 0.29208 | CF36: 0 | CG36: 0.27003 | CH36: 0 | CI36: 0.24798 | CK36: 2066-01-02 | CL36: 0 | CM36: 0.34438 | CN36: 0 | CO36: 0.29783 | CP36: 0 | CQ36: 0.25128
A37: 1967-01-04 | B37: 0.4 | C37: 0.109 | D37: 1 | E37: 1967 | F37: 1 | G37: 0.4 | H37: =IF(B37<Parameters!$A$16,B37*Parameters!$B$16,IF(AND(B37>Parameters!$A$16,B37<Parameters!$A$17),B37*Parameters!$B$17,B37*Parameters!$B$18)) -> 0 | I37: =IF(B37<Parameters!$A$20,B37*Parameters!$B$20,IF(AND(B37>Parameters!$A$20,B37<Parameters!$A$21),B37*Parameters!$B$21,B37*Parameters!$B$22)) -> 0 | J37: =B37*SUM($B$3,$C$3,$D$3)/$E$3*10 ->  | K37: =IF(B37=0,"",SUM(J37/(B37*10))) ->  | O37: 0.173516129 | P37: =-(($BH$3-$BI$3)*($AN$3+$AK$3-U37)/($AK$3)-$BH$3) ->  | Q37: =SUM(O37*P36)/$E$3*10 ->  | R37: =IF('Gegevens '!$G$20="Eigen waarden",VLOOKUP($F37,'Gegevens '!$A$25:$C$77,3,FALSE),VLOOKUP($F37,Lijsten!$A$19:$B$71,2,FALSE)) -> 3.089475342 | S37: =SUM(L37-R37-Q37) ->  | U37: =IF(U36<$AN$3,U36+T37,IF(AND((U36>$AN$3),(SUM(U36+S37)<$AN$3)),SUM($AN$3+T37),IF((SUM(U36+S37)>($AN$3+$AK$3)),$AN$3+$AK$3,U36+S37))) ->  | V37: =IF(SUM(U36+S37)>SUM($AK$3+$AN$3),SUM(U36+S37-($AK$3+$AN$3)),0) ->  | W37: =IF(U36<$AN$3,R37,IF(SUM(U36-R37)>$AN$3,0,IF(SUM(U36+S37)<$AN$3,SUM(R37-(U36-$AN$3)),0))) ->  | AE37: =N37/10 ->  | AG37: =Q37/10 ->  | AQ37: 0 | BM37: 1967-01-04 | BN37: 0.4 | BO37: 0.109 | BQ37: 1975-01-03 | BR37: 0 | BS37: 0.217 | BU37: 2006-01-03 | BV37: 0.75 | BW37: 0.16667 | BX37: 0.63 | BY37: 0.15652 | BZ37: 0.55 | CA37: 0.14637 | CC37: 2016-01-03 | CD37: 0.77 | CE37: 0.17286 | CF37: 0.64 | CG37: 0.15981 | CH37: 0.54 | CI37: 0.14676 | CK37: 2066-01-03 | CL37: 0.92 | CM37: 0.20382 | CN37: 0.68 | CO37: 0.17627 | CP37: 0.5 | CQ37: 0.14872
A38: 1967-01-05 | B38: 15.1 | C38: 0.208 | D38: 1 | E38: 1967 | F38: 1 | G38: 15.1 | H38: =IF(B38<Parameters!$A$16,B38*Parameters!$B$16,IF(AND(B38>Parameters!$A$16,B38<Parameters!$A$17),B38*Parameters!$B$17,B38*Parameters!$B$18)) -> 14.345 | I38: =IF(B38<Parameters!$A$20,B38*Parameters!$B$20,IF(AND(B38>Parameters!$A$20,B38<Parameters!$A$21),B38*Parameters!$B$21,B38*Parameters!$B$22)) -> 11.325 | O38: 0.272516129 | R38: =IF('Gegevens '!$G$20="Eigen waarden",VLOOKUP($F38,'Gegevens '!$A$25:$C$77,3,FALSE),VLOOKUP($F38,Lijsten!$A$19:$B$71,2,FALSE)) -> 3.089475342 | U38: =IF(U37<$AN$3,U37+T38,IF(AND((U37>$AN$3),(SUM(U37+S38)<$AN$3)),SUM($AN$3+T38),IF((SUM(U37+S38)>($AN$3+$AK$3)),$AN$3+$AK$3,U37+S38))) ->  | AQ38: 0 | BM38: 1967-01-05 | BN38: 15.1 | BO38: 0.208 | BQ38: 1975-01-04 | BR38: 0.2 | BS38: 0.382 | BU38: 2006-01-04 | BV38: 0.5 | BW38: 0.12529 | BX38: 0.42 | BY38: 0.11766 | BZ38: 0.36 | CA38: 0.11003 | CC38: 2016-01-04 | CD38: 0.52 | CE38: 0.12994 | CF38: 0.42 | CG38: 0.12013 | CH38: 0.35 | CI38: 0.11032 | CK38: 2066-01-04 | CL38: 0.62 | CM38: 0.15322 | CN38: 0.45 | CO38: 0.13251 | CP38: 0.31 | CQ38: 0.1118
A39: 1967-01-06 | B39: 0.2 | C39: 0 | D39: 1 | E39: 1967 | F39: 1 | G39: 0.2 | H39: =IF(B39<Parameters!$A$16,B39*Parameters!$B$16,IF(AND(B39>Parameters!$A$16,B39<Parameters!$A$17),B39*Parameters!$B$17,B39*Parameters!$B$18)) -> 0 | I39: =IF(B39<Parameters!$A$20,B39*Parameters!$B$20,IF(AND(B39>Parameters!$A$20,B39<Parameters!$A$21),B39*Parameters!$B$21,B39*Parameters!$B$22)) -> 0 | O39: 0.06451612903 | R39: =IF('Gegevens '!$G$20="Eigen waarden",VLOOKUP($F39,'Gegevens '!$A$25:$C$77,3,FALSE),VLOOKUP($F39,Lijsten!$A$19:$B$71,2,FALSE)) -> 3.089475342 | AQ39: 0 | BM39: 1967-01-06 | BN39: 0.2 | BO39: 0 | BQ39: 1975-01-05 | BR39: 0.7 | BS39: 0.189 | BU39: 2006-01-05 | BV39: 18.45 | BW39: 0.23909 | BX39: 15.65 | BY39: 0.22453 | BZ39: 13.8 | CA39: 0.20997 | CC39: 2016-01-05 | CD39: 19.02 | CE39: 0.24797 | CF39: 15.8 | CG39: 0.22925 | CH39: 13.6 | CI39: 0.21053 | CK39: 2066-01-05 | CL39: 21.92 | CM39: 0.29238 | CN39: 16.59 | CO39: 0.25286 | CP39: 12.51 | CQ39: 0.21334
A40: 1967-01-07 | B40: 0 | C40: 0 | D40: 1 | E40: 1967 | F40: 1 | G40: 0 | H40: =IF(B40<Parameters!$A$16,B40*Parameters!$B$16,IF(AND(B40>Parameters!$A$16,B40<Parameters!$A$17),B40*Parameters!$B$17,B40*Parameters!$B$18)) -> 0 | I40: =IF(B40<Parameters!$A$20,B40*Parameters!$B$20,IF(AND(B40>Parameters!$A$20,B40<Parameters!$A$21),B40*Parameters!$B$21,B40*Parameters!$B$22)) -> 0 | L40: 0 | N40: 0 | O40: 0.06451612903 | R40: =IF('Gegevens '!$G$20="Eigen waarden",VLOOKUP($F40,'Gegevens '!$A$25:$C$77,3,FALSE),VLOOKUP($F40,Lijsten!$A$19:$B$71,2,FALSE)) -> 3.089475342 | V40: =IF(SUM(U39+S40)>SUM($AK$3+$AN$3),SUM(U39+S40-($AK$3+$AN$3)),0) ->  | AC40: 0 | AE40: 0 | AQ40: 0 | BM40: 1967-01-07 | BN40: 0 | BO40: 0 | BQ40: 1975-01-06 | BR40: 1.2 | BS40: 0.34 | BU40: 2006-01-06 | BV40: 0.26 | BW40: 0 | BX40: 0.21 | BY40: 0 | BZ40: 0.17 | CA40: 0 | CC40: 2016-01-06 | CD40: 0.27 | CE40: 0 | CF40: 0.21 | CG40: 0 | CH40: 0.16 | CI40: 0 | CK40: 2066-01-06 | CL40: 0.32 | CM40: 0 | CN40: 0.22 | CO40: 0 | CP40: 0.13 | CQ40: 0 | CV40: Waarden | DA40: Waarden
A41: 1967-01-08 | B41: 0.1 | C41: 0 | D41: 1 | E41: 1967 | F41: 1 | G41: 0.1 | H41: =IF(B41<Parameters!$A$16,B41*Parameters!$B$16,IF(AND(B41>Parameters!$A$16,B41<Parameters!$A$17),B41*Parameters!$B$17,B41*Parameters!$B$18)) -> 0 | I41: =IF(B41<Parameters!$A$20,B41*Parameters!$B$20,IF(AND(B41>Parameters!$A$20,B41<Parameters!$A$21),B41*Parameters!$B$21,B41*Parameters!$B$22)) -> 0 | O41: 0.06451612903 | R41: =IF('Gegevens '!$G$20="Eigen waarden",VLOOKUP($F41,'Gegevens '!$A$25:$C$77,3,FALSE),VLOOKUP($F41,Lijsten!$A$19:$B$71,2,FALSE)) -> 3.089475342 | AQ41: 0 | BM41: 1967-01-08 | BN41: 0.1 | BO41: 0 | BQ41: 1975-01-07 | BR41: 8.9 | BS41: 0.351 | BU41: 2006-01-07 | BV41: 0 | BW41: 0 | BX41: 0 | BY41: 0 | BZ41: 0 | CA41: 0 | CC41: 2016-01-07 | CD41: 0 | CE41: 0 | CF41: 0 | CG41: 0 | CH41: 0 | CI41: 0 | CK41: 2066-01-07 | CL41: 0 | CM41: 0 | CN41: 0 | CO41: 0 | CP41: 0 | CQ41: 0 | CU41: Rijlabels | CV41: Som van Bruto neerslag mm | CW41: Som van Opgevangen neerslag mm | CX41: Som van Opvangpercentages | CY41: Som van RR (mm) | CZ41: Rijlabels | DA41: Som van Bruto neerslag mm | DB41: Som van Opvangpercentages | DC41: Som van Wekelijkse neerslag | DD41: Som van Opvangverliezen per week
A42: 1967-01-09 | B42: 0.8 | C42: 0 | D42: 1 | E42: 1967 | F42: 2 | G42: 0.8 | H42: =IF(B42<Parameters!$A$16,B42*Parameters!$B$16,IF(AND(B42>Parameters!$A$16,B42<Parameters!$A$17),B42*Parameters!$B$17,B42*Parameters!$B$18)) -> 0 | I42: =IF(B42<Parameters!$A$20,B42*Parameters!$B$20,IF(AND(B42>Parameters!$A$20,B42<Parameters!$A$21),B42*Parameters!$B$21,B42*Parameters!$B$22)) -> 0 | O42: 0.06451612903 | R42: =IF('Gegevens '!$G$20="Eigen waarden",VLOOKUP($F42,'Gegevens '!$A$25:$C$77,3,FALSE),VLOOKUP($F42,Lijsten!$A$19:$B$71,2,FALSE)) -> 4.301203286 | AQ42: 0 | BM42: 1967-01-09 | BN42: 0.8 | BO42: 0 | BQ42: 1975-01-08 | BR42: 0 | BS42: 0.283 | BU42: 2006-01-08 | BV42: 0.12 | BW42: 0 | BX42: 0.1 | BY42: 0 | BZ42: 0.09 | CA42: 0 | CC42: 2016-01-08 | CD42: 0.13 | CE42: 0 | CF42: 0.1 | CG42: 0 | CH42: 0.09 | CI42: 0 | CK42: 2066-01-08 | CL42: 0.14 | CM42: 0 | CN42: 0.11 | CO42: 0 | CP42: 0.08 | CQ42: 0 | CU42: 1967 | CY42: 707.1 | CZ42: 1 | DC42: 17.79565217
A43: 1967-01-10 | B43: 0.7 | C43: 0 | D43: 1 | E43: 1967 | F43: 2 | G43: 0.7 | H43: =IF(B43<Parameters!$A$16,B43*Parameters!$B$16,IF(AND(B43>Parameters!$A$16,B43<Parameters!$A$17),B43*Parameters!$B$17,B43*Parameters!$B$18)) -> 0 | I43: =IF(B43<Parameters!$A$20,B43*Parameters!$B$20,IF(AND(B43>Parameters!$A$20,B43<Parameters!$A$21),B43*Parameters!$B$21,B43*Parameters!$B$22)) -> 0 | O43: 0.06451612903 | R43: =IF('Gegevens '!$G$20="Eigen waarden",VLOOKUP($F43,'Gegevens '!$A$25:$C$77,3,FALSE),VLOOKUP($F43,Lijsten!$A$19:$B$71,2,FALSE)) -> 4.301203286 | AQ43: 0 | BM43: 1967-01-10 | BN43: 0.7 | BO43: 0 | BQ43: 1975-01-09 | BR43: 0.9 | BS43: 0.364 | BU43: 2006-01-09 | BV43: 0.99 | BW43: 0 | BX43: 0.84 | BY43: 0 | BZ43: 0.74 | CA43: 0 | CC43: 2016-01-09 | CD43: 1.02 | CE43: 0 | CF43: 0.85 | CG43: 0 | CH43: 0.73 | CI43: 0 | CK43: 2066-01-09 | CL43: 1.19 | CM43: 0 | CN43: 0.91 | CO43: 0 | CP43: 0.68 | CQ43: 0 | CU43: 1968 | CY43: 773.6 | CZ43: 2 | DC43: 14.03043478
A44: 1967-01-11 | B44: 1.2 | C44: 0 | D44: 1 | E44: 1967 | F44: 2 | G44: 1.2 | H44: =IF(B44<Parameters!$A$16,B44*Parameters!$B$16,IF(AND(B44>Parameters!$A$16,B44<Parameters!$A$17),B44*Parameters!$B$17,B44*Parameters!$B$18)) -> 0.96 | I44: =IF(B44<Parameters!$A$20,B44*Parameters!$B$20,IF(AND(B44>Parameters!$A$20,B44<Parameters!$A$21),B44*Parameters!$B$21,B44*Parameters!$B$22)) -> 0.72 | O44: 0.06451612903 | R44: =IF('Gegevens '!$G$20="Eigen waarden",VLOOKUP($F44,'Gegevens '!$A$25:$C$77,3,FALSE),VLOOKUP($F44,Lijsten!$A$19:$B$71,2,FALSE)) -> 4.301203286 | AQ44: 0 | BM44: 1967-01-11 | BN44: 1.2 | BO44: 0 | BQ44: 1975-01-10 | BR44: 0 | BS44: 0.613 | BU44: 2006-01-10 | BV44: 0.87 | BW44: 0 | BX44: 0.73 | BY44: 0 | BZ44: 0.64 | CA44: 0 | CC44: 2016-01-10 | CD44: 0.89 | CE44: 0 | CF44: 0.74 | CG44: 0 | CH44: 0.63 | CI44: 0 | CK44: 2066-01-10 | CL44: 1.05 | CM44: 0 | CN44: 0.78 | CO44: 0 | CP44: 0 | CQ44: 0 | CU44: 1969 | CY44: 779.2 | CZ44: 3 | DC44: 15.36086957
A45: 1967-01-12 | B45: 0.5 | C45: 0.189 | D45: 1 | E45: 1967 | F45: 2 | G45: 0.5 | H45: =IF(B45<Parameters!$A$16,B45*Parameters!$B$16,IF(AND(B45>Parameters!$A$16,B45<Parameters!$A$17),B45*Parameters!$B$17,B45*Parameters!$B$18)) -> 0 | I45: =IF(B45<Parameters!$A$20,B45*Parameters!$B$20,IF(AND(B45>Parameters!$A$20,B45<Parameters!$A$21),B45*Parameters!$B$21,B45*Parameters!$B$22)) -> 0 | O45: 0.253516129 | R45: =IF('Gegevens '!$G$20="Eigen waarden",VLOOKUP($F45,'Gegevens '!$A$25:$C$77,3,FALSE),VLOOKUP($F45,Lijsten!$A$19:$B$71,2,FALSE)) -> 4.301203286 | AQ45: 0 | BM45: 1967-01-12 | BN45: 0.5 | BO45: 0.189 | BQ45: 1975-01-11 | BR45: 0 | BS45: 0.432 | BU45: 2006-01-11 | BV45: 1.48 | BW45: 0 | BX45: 1.26 | BY45: 0 | BZ45: 1.1 | CA45: 0 | CC45: 2016-01-11 | CD45: 1.54 | CE45: 0 | CF45: 1.27 | CG45: 0 | CH45: 1.09 | CI45: 0 | CK45: 2066-01-11 | CL45: 1.78 | CM45: 0 | CN45: 1.35 | CO45: 0 | CP45: 1.04 | CQ45: 0 | CU45: 1970 | CY45: 730.9 | CZ45: 4 | DC45: 18.74565217
A46: 1967-01-13 | B46: 0 | C46: 0.11 | D46: 1 | E46: 1967 | F46: 2 | G46: 0 | H46: =IF(B46<Parameters!$A$16,B46*Parameters!$B$16,IF(AND(B46>Parameters!$A$16,B46<Parameters!$A$17),B46*Parameters!$B$17,B46*Parameters!$B$18)) -> 0 | I46: =IF(B46<Parameters!$A$20,B46*Parameters!$B$20,IF(AND(B46>Parameters!$A$20,B46<Parameters!$A$21),B46*Parameters!$B$21,B46*Parameters!$B$22)) -> 0 | L46: 0 | N46: 0 | O46: 0.174516129 | R46: =IF('Gegevens '!$G$20="Eigen waarden",VLOOKUP($F46,'Gegevens '!$A$25:$C$77,3,FALSE),VLOOKUP($F46,Lijsten!$A$19:$B$71,2,FALSE)) -> 4.301203286 | AC46: 0 | AE46: 0 | AQ46: 0 | BM46: 1967-01-13 | BN46: 0 | BO46: 0.11 | BQ46: 1975-01-12 | BR46: 0 | BS46: 0.784 | BU46: 2006-01-12 | BV46: 0.63 | BW46: 0.21725 | BX46: 0.52 | BY46: 0.20402 | BZ46: 0.45 | CA46: 0.19079 | CC46: 2016-01-12 | CD46: 0.66 | CE46: 0.22532 | CF46: 0.53 | CG46: 0.20831 | CH46: 0.44 | CI46: 0.1913 | CK46: 2066-01-12 | CL46: 0.8 | CM46: 0.26567 | CN46: 0.57 | CO46: 0.22976 | CP46: 0.39 | CQ46: 0.19385 | CU46: 1971 | CY46: 696.1 | CZ46: 5 | DC46: 12.12173913
A47: 1967-01-14 | B47: 0.2 | C47: 0.245 | D47: 1 | E47: 1967 | F47: 2 | G47: 0.2 | H47: =IF(B47<Parameters!$A$16,B47*Parameters!$B$16,IF(AND(B47>Parameters!$A$16,B47<Parameters!$A$17),B47*Parameters!$B$17,B47*Parameters!$B$18)) -> 0 | I47: =IF(B47<Parameters!$A$20,B47*Parameters!$B$20,IF(AND(B47>Parameters!$A$20,B47<Parameters!$A$21),B47*Parameters!$B$21,B47*Parameters!$B$22)) -> 0 | O47: 0.309516129 | R47: =IF('Gegevens '!$G$20="Eigen waarden",VLOOKUP($F47,'Gegevens '!$A$25:$C$77,3,FALSE),VLOOKUP($F47,Lijsten!$A$19:$B$71,2,FALSE)) -> 4.301203286 | AQ47: 0 | BM47: 1967-01-14 | BN47: 0.2 | BO47: 0.245 | BQ47: 1975-01-13 | BR47: 0 | BS47: 0.721 | BU47: 2006-01-13 | BV47: 0.38 | BW47: 0.12644 | BX47: 0 | BY47: 0.11874 | BZ47: 0 | CA47: 0.11104 | CC47: 2016-01-13 | CD47: 0 | CE47: 0.13114 | CF47: 0 | CG47: 0.12124 | CH47: 0 | CI47: 0.11134 | CK47: 2066-01-13 | CL47: 0 | CM47: 0.15462 | CN47: 0 | CO47: 0.13372 | CP47: 0 | CQ47: 0.11282 | CU47: 1972 | CY47: 712.4 | CZ47: 6 | DC47: 15.43913043
A48: 1967-01-15 | B48: 0 | C48: 0.101 | D48: 1 | E48: 1967 | F48: 2 | G48: 0 | H48: =IF(B48<Parameters!$A$16,B48*Parameters!$B$16,IF(AND(B48>Parameters!$A$16,B48<Parameters!$A$17),B48*Parameters!$B$17,B48*Parameters!$B$18)) -> 0 | I48: =IF(B48<Parameters!$A$20,B48*Parameters!$B$20,IF(AND(B48>Parameters!$A$20,B48<Parameters!$A$21),B48*Parameters!$B$21,B48*Parameters!$B$22)) -> 0 | L48: 0 | N48: 0 | O48: 0.165516129 | R48: =IF('Gegevens '!$G$20="Eigen waarden",VLOOKUP($F48,'Gegevens '!$A$25:$C$77,3,FALSE),VLOOKUP($F48,Lijsten!$A$19:$B$71,2,FALSE)) -> 4.301203286 | AC48: 0 | AE48: 0 | AQ48: 0 | BM48: 1967-01-15 | BN48: 0 | BO48: 0.101 | BQ48: 1975-01-14 | BR48: 0.1 | BS48: 1.54 | BU48: 2006-01-14 | BV48: 0.26 | BW48: 0.28162 | BX48: 0.21 | BY48: 0.26447 | BZ48: 0.17 | CA48: 0.24732 | CC48: 2016-01-14 | CD48: 0.27 | CE48: 0.29208 | CF48: 0.21 | CG48: 0.27003 | CH48: 0.16 | CI48: 0.24798 | CK48: 2066-01-14 | CL48: 0.32 | CM48: 0.34438 | CN48: 0.22 | CO48: 0.29783 | CP48: 0.13 | CQ48: 0.25128 | CU48: 1973 | CY48: 693.2 | CZ48: 7 | DC48: 16.16956522
A49: 1967-01-16 | B49: 0 | C49: 0.256 | D49: 1 | E49: 1967 | F49: 3 | G49: 0 | H49: =IF(B49<Parameters!$A$16,B49*Parameters!$B$16,IF(AND(B49>Parameters!$A$16,B49<Parameters!$A$17),B49*Parameters!$B$17,B49*Parameters!$B$18)) -> 0 | I49: =IF(B49<Parameters!$A$20,B49*Parameters!$B$20,IF(AND(B49>Parameters!$A$20,B49<Parameters!$A$21),B49*Parameters!$B$21,B49*Parameters!$B$22)) -> 0 | L49: 0 | N49: 0 | O49: 0.320516129 | R49: =IF('Gegevens '!$G$20="Eigen waarden",VLOOKUP($F49,'Gegevens '!$A$25:$C$77,3,FALSE),VLOOKUP($F49,Lijsten!$A$19:$B$71,2,FALSE)) -> 5.388662435 | AC49: 0 | AE49: 0 | AQ49: 0 | BM49: 1967-01-16 | BN49: 0 | BO49: 0.256 | BQ49: 1975-01-15 | BR49: 0.8 | BS49: 1.781 | BU49: 2006-01-15 | BV49: 0 | BW49: 0.11609 | BX49: 0 | BY49: 0.10902 | BZ49: 0 | CA49: 0.10195 | CC49: 2016-01-15 | CD49: 0 | CE49: 0.12041 | CF49: 0 | CG49: 0.11132 | CH49: 0 | CI49: 0.10223 | CK49: 2066-01-15 | CL49: 0 | CM49: 0.14197 | CN49: 0 | CO49: 0.12278 | CP49: 0 | CQ49: 0.10359 | CU49: 1974 | CY49: 1039.2 | CZ49: 8 | DC49: 12.98913043
A50: 1967-01-17 | B50: 0 | C50: 0.343 | D50: 1 | E50: 1967 | F50: 3 | G50: 0 | H50: =IF(B50<Parameters!$A$16,B50*Parameters!$B$16,IF(AND(B50>Parameters!$A$16,B50<Parameters!$A$17),B50*Parameters!$B$17,B50*Parameters!$B$18)) -> 0 | I50: =IF(B50<Parameters!$A$20,B50*Parameters!$B$20,IF(AND(B50>Parameters!$A$20,B50<Parameters!$A$21),B50*Parameters!$B$21,B50*Parameters!$B$22)) -> 0 | L50: 0 | N50: 0 | O50: 0.407516129 | R50: =IF('Gegevens '!$G$20="Eigen waarden",VLOOKUP($F50,'Gegevens '!$A$25:$C$77,3,FALSE),VLOOKUP($F50,Lijsten!$A$19:$B$71,2,FALSE)) -> 5.388662435 | AC50: 0 | AE50: 0 | AQ50: 0 | BM50: 1967-01-17 | BN50: 0 | BO50: 0.343 | BQ50: 1975-01-16 | BR50: 5.1 | BS50: 0.847 | BU50: 2006-01-16 | BV50: 0 | BW50: 0.29426 | BX50: 0 | BY50: 0.27634 | BZ50: 0 | CA50: 0.25842 | CC50: 2016-01-16 | CD50: 0 | CE50: 0.30519 | CF50: 0 | CG50: 0.28215 | CH50: 0 | CI50: 0.25911 | CK50: 2066-01-16 | CL50: 4.82 | CM50: 0.35985 | CN50: 0 | CO50: 0.31121 | CP50: 0 | CQ50: 0.26257 | CU50: 1975 | CY50: 730.7 | CZ50: 9 | DC50: 14.2326087
A51: 1967-01-18 | B51: 0 | C51: 0.147 | D51: 1 | E51: 1967 | F51: 3 | G51: 0 | H51: =IF(B51<Parameters!$A$16,B51*Parameters!$B$16,IF(AND(B51>Parameters!$A$16,B51<Parameters!$A$17),B51*Parameters!$B$17,B51*Parameters!$B$18)) -> 0 | I51: =IF(B51<Parameters!$A$20,B51*Parameters!$B$20,IF(AND(B51>Parameters!$A$20,B51<Parameters!$A$21),B51*Parameters!$B$21,B51*Parameters!$B$22)) -> 0 | L51: 0 | N51: 0 | O51: 0.211516129 | R51: =IF('Gegevens '!$G$20="Eigen waarden",VLOOKUP($F51,'Gegevens '!$A$25:$C$77,3,FALSE),VLOOKUP($F51,Lijsten!$A$19:$B$71,2,FALSE)) -> 5.388662435 | AC51: 0 | AE51: 0 | AQ51: 0 | BM51: 1967-01-18 | BN51: 0 | BO51: 0.147 | BQ51: 1975-01-17 | BR51: 4.8 | BS51: 0.596 | BU51: 2006-01-17 | BV51: 0 | BW51: 0.39426 | BX51: 0 | BY51: 0.37025 | BZ51: 0 | CA51: 0.34624 | CC51: 2016-01-17 | CD51: 0.13 | CE51: 0.40891 | CF51: 0 | CG51: 0.37804 | CH51: 0 | CI51: 0.34717 | CK51: 2066-01-17 | CL51: 0 | CM51: 0.48214 | CN51: 0 | CO51: 0.41697 | CP51: 0 | CQ51: 0.3518 | CU51: 1976 | CY51: 547 | CZ51: 10 | DC51: 12.79565217
A52: 1967-01-19 | B52: 0 | C52: 0.521 | D52: 1 | E52: 1967 | F52: 3 | G52: 0 | H52: =IF(B52<Parameters!$A$16,B52*Parameters!$B$16,IF(AND(B52>Parameters!$A$16,B52<Parameters!$A$17),B52*Parameters!$B$17,B52*Parameters!$B$18)) -> 0 | I52: =IF(B52<Parameters!$A$20,B52*Parameters!$B$20,IF(AND(B52>Parameters!$A$20,B52<Parameters!$A$21),B52*Parameters!$B$21,B52*Parameters!$B$22)) -> 0 | L52: 0 | N52: 0 | O52: 0.585516129 | R52: =IF('Gegevens '!$G$20="Eigen waarden",VLOOKUP($F52,'Gegevens '!$A$25:$C$77,3,FALSE),VLOOKUP($F52,Lijsten!$A$19:$B$71,2,FALSE)) -> 5.388662435 | AC52: 0 | AE52: 0 | AQ52: 0 | BM52: 1967-01-19 | BN52: 0 | BO52: 0.521 | BQ52: 1975-01-18 | BR52: 5.4 | BS52: 0.326 | BU52: 2006-01-18 | BV52: 0 | BW52: 0.16897 | BX52: 0 | BY52: 0.15868 | BZ52: 0 | CA52: 0.14839 | CC52: 2016-01-18 | CD52: 2.69 | CE52: 0.17525 | CF52: 0 | CG52: 0.16202 | CH52: 0 | CI52: 0.14879 | CK52: 2066-01-18 | CL52: 0 | CM52: 0.20663 | CN52: 0 | CO52: 0.1787 | CP52: 0 | CQ52: 0.15077 | CU52: 1977 | CY52: 855.4 | CZ52: 11 | DC52: 17.32608696
A53: 1967-01-20 | B53: 0 | C53: 0.726 | D53: 1 | E53: 1967 | F53: 3 | G53: 0 | H53: =IF(B53<Parameters!$A$16,B53*Parameters!$B$16,IF(AND(B53>Parameters!$A$16,B53<Parameters!$A$17),B53*Parameters!$B$17,B53*Parameters!$B$18)) -> 0 | I53: =IF(B53<Parameters!$A$20,B53*Parameters!$B$20,IF(AND(B53>Parameters!$A$20,B53<Parameters!$A$21),B53*Parameters!$B$21,B53*Parameters!$B$22)) -> 0 | L53: 0 | N53: 0 | O53: 0.790516129 | R53: =IF('Gegevens '!$G$20="Eigen waarden",VLOOKUP($F53,'Gegevens '!$A$25:$C$77,3,FALSE),VLOOKUP($F53,Lijsten!$A$19:$B$71,2,FALSE)) -> 5.388662435 | AC53: 0 | AE53: 0 | AQ53: 0 | BM53: 1967-01-20 | BN53: 0 | BO53: 0.726 | BQ53: 1975-01-19 | BR53: 0 | BS53: 0.363 | BU53: 2006-01-19 | BV53: 0 | BW53: 0.59886 | BX53: 0 | BY53: 0.56239 | BZ53: 0 | CA53: 0.52592 | CC53: 2016-01-19 | CD53: 0 | CE53: 0.62111 | CF53: 0 | CG53: 0.57422 | CH53: 0 | CI53: 0.52733 | CK53: 2066-01-19 | CL53: 0 | CM53: 0.73234 | CN53: 0 | CO53: 0.63335 | CP53: 0 | CQ53: 0.53436 | CU53: 1978 | CY53: 767.9 | CZ53: 12 | DC53: 14.67173913
A54: 1967-01-21 | B54: 2 | C54: 0.485 | D54: 1 | E54: 1967 | F54: 3 | G54: 2 | H54: =IF(B54<Parameters!$A$16,B54*Parameters!$B$16,IF(AND(B54>Parameters!$A$16,B54<Parameters!$A$17),B54*Parameters!$B$17,B54*Parameters!$B$18)) -> 1.9 | I54: =IF(B54<Parameters!$A$20,B54*Parameters!$B$20,IF(AND(B54>Parameters!$A$20,B54<Parameters!$A$21),B54*Parameters!$B$21,B54*Parameters!$B$22)) -> 1.5 | O54: 0.549516129 | R54: =IF('Gegevens '!$G$20="Eigen waarden",VLOOKUP($F54,'Gegevens '!$A$25:$C$77,3,FALSE),VLOOKUP($F54,Lijsten!$A$19:$B$71,2,FALSE)) -> 5.388662435 | AQ54: 0 | BM54: 1967-01-21 | BN54: 2 | BO54: 0.485 | BQ54: 1975-01-20 | BR54: 2.4 | BS54: 0.644 | BU54: 2006-01-20 | BV54: 0 | BW54: 0.8345 | BX54: 0 | BY54: 0.78368 | BZ54: 0 | CA54: 0.73286 | CC54: 2016-01-20 | CD54: 0 | CE54: 0.8655 | CF54: 0 | CG54: 0.80016 | CH54: 0 | CI54: 0.73482 | CK54: 2066-01-20 | CL54: 0 | CM54: 1.0205 | CN54: 0 | CO54: 0.88256 | CP54: 0 | CQ54: 0.74462 | CU54: 1979 | CY54: 831 | CZ54: 13 | DC54: 17.48695652
A55: 1967-01-22 | B55: 0.2 | C55: 0.442 | D55: 1 | E55: 1967 | F55: 3 | G55: 0.2 | H55: =IF(B55<Parameters!$A$16,B55*Parameters!$B$16,IF(AND(B55>Parameters!$A$16,B55<Parameters!$A$17),B55*Parameters!$B$17,B55*Parameters!$B$18)) -> 0 | I55: =IF(B55<Parameters!$A$20,B55*Parameters!$B$20,IF(AND(B55>Parameters!$A$20,B55<Parameters!$A$21),B55*Parameters!$B$21,B55*Parameters!$B$22)) -> 0 | O55: 0.506516129 | R55: =IF('Gegevens '!$G$20="Eigen waarden",VLOOKUP($F55,'Gegevens '!$A$25:$C$77,3,FALSE),VLOOKUP($F55,Lijsten!$A$19:$B$71,2,FALSE)) -> 5.388662435 | AQ55: 0 | BM55: 1967-01-22 | BN55: 0.2 | BO55: 0.442 | BQ55: 1975-01-21 | BR55: 0.9 | BS55: 0.282 | BU55: 2006-01-21 | BV55: 2.49 | BW55: 0.55748 | BX55: 2.11 | BY55: 0.52353 | BZ55: 1.85 | CA55: 0.48958 | CC55: 2016-01-21 | CD55: 2.57 | CE55: 0.57819 | CF55: 2.13 | CG55: 0.53454 | CH55: 1.83 | CI55: 0.49089 | CK55: 2066-01-21 | CL55: 3.03 | CM55: 0.68174 | CN55: 2.28 | CO55: 0.58959 | CP55: 1.75 | CQ55: 0.49744 | CU55: 1980 | CY55: 920.3 | CZ55: 14 | DC55: 12.36304348 | DE55: =GETPIVOTDATA("Som van Wekelijkse neerslag",$CZ$40,"Week",14)-GETPIVOTDATA("Som van Opvangverliezen per week",$CZ$40,"Week",14) ->  | DF55: =DE55/GETPIVOTDATA("Som van Wekelijkse neerslag",$CZ$40,"Week",14) -> 
A56: 1967-01-23 | B56: 6.7 | C56: 0.286 | D56: 1 | E56: 1967 | F56: 4 | G56: 6.7 | H56: =IF(B56<Parameters!$A$16,B56*Parameters!$B$16,IF(AND(B56>Parameters!$A$16,B56<Parameters!$A$17),B56*Parameters!$B$17,B56*Parameters!$B$18)) -> 6.365 | I56: =IF(B56<Parameters!$A$20,B56*Parameters!$B$20,IF(AND(B56>Parameters!$A$20,B56<Parameters!$A$21),B56*Parameters!$B$21,B56*Parameters!$B$22)) -> 5.025 | O56: 0.350516129 | R56: =IF('Gegevens '!$G$20="Eigen waarden",VLOOKUP($F56,'Gegevens '!$A$25:$C$77,3,FALSE),VLOOKUP($F56,Lijsten!$A$19:$B$71,2,FALSE)) -> 6.244376979 | AQ56: 0 | BM56: 1967-01-23 | BN56: 6.7 | BO56: 0.286 | BQ56: 1975-01-22 | BR56: 9.4 | BS56: 0.447 | BU56: 2006-01-22 | BV56: 0.26 | BW56: 0.50806 | BX56: 0.21 | BY56: 0.47712 | BZ56: 0.17 | CA56: 0.44618 | CC56: 2016-01-22 | CD56: 0.27 | CE56: 0.52693 | CF56: 0.21 | CG56: 0.48715 | CH56: 0.16 | CI56: 0.44737 | CK56: 2066-01-22 | CL56: 0.32 | CM56: 0.6213 | CN56: 0.22 | CO56: 0.53732 | CP56: 0.13 | CQ56: 0.45334 | CU56: 1981 | CY56: 1024.2 | CZ56: 15 | DC56: 12.05434783
A57: 1967-01-24 | B57: 0 | C57: 0.381 | D57: 1 | E57: 1967 | F57: 4 | G57: 0 | H57: =IF(B57<Parameters!$A$16,B57*Parameters!$B$16,IF(AND(B57>Parameters!$A$16,B57<Parameters!$A$17),B57*Parameters!$B$17,B57*Parameters!$B$18)) -> 0 | I57: =IF(B57<Parameters!$A$20,B57*Parameters!$B$20,IF(AND(B57>Parameters!$A$20,B57<Parameters!$A$21),B57*Parameters!$B$21,B57*Parameters!$B$22)) -> 0 | L57: 0 | N57: 0 | O57: 0.445516129 | R57: =IF('Gegevens '!$G$20="Eigen waarden",VLOOKUP($F57,'Gegevens '!$A$25:$C$77,3,FALSE),VLOOKUP($F57,Lijsten!$A$19:$B$71,2,FALSE)) -> 6.244376979 | AC57: 0 | AE57: 0 | AQ57: 0 | BM57: 1967-01-24 | BN57: 0 | BO57: 0.381 | BQ57: 1975-01-23 | BR57: 1.2 | BS57: 0.766 | BU57: 2006-01-23 | BV57: 8.13 | BW57: 0.32874 | BX57: 6.96 | BY57: 0.30872 | BZ57: 6.2 | CA57: 0.2887 | CC57: 2016-01-23 | CD57: 8.37 | CE57: 0.34095 | CF57: 7.04 | CG57: 0.31521 | CH57: 6.13 | CI57: 0.28947 | CK57: 2066-01-23 | CL57: 9.55 | CM57: 0.40202 | CN57: 7.4 | CO57: 0.34768 | CP57: 5.8 | CQ57: 0.29334 | CU57: 1982 | CY57: 796.2 | CZ57: 16 | DC57: 11.69565217
A58: 1967-01-25 | B58: 1.7 | C58: 0.464 | D58: 1 | E58: 1967 | F58: 4 | G58: 1.7 | H58: =IF(B58<Parameters!$A$16,B58*Parameters!$B$16,IF(AND(B58>Parameters!$A$16,B58<Parameters!$A$17),B58*Parameters!$B$17,B58*Parameters!$B$18)) -> 1.36 | I58: =IF(B58<Parameters!$A$20,B58*Parameters!$B$20,IF(AND(B58>Parameters!$A$20,B58<Parameters!$A$21),B58*Parameters!$B$21,B58*Parameters!$B$22)) -> 1.02 | O58: 0.528516129 | R58: =IF('Gegevens '!$G$20="Eigen waarden",VLOOKUP($F58,'Gegevens '!$A$25:$C$77,3,FALSE),VLOOKUP($F58,Lijsten!$A$19:$B$71,2,FALSE)) -> 6.244376979 | AQ58: 0 | BM58: 1967-01-25 | BN58: 1.7 | BO58: 0.464 | BQ58: 1975-01-24 | BR58: 1.3 | BS58: 0.558 | BU58: 2006-01-24 | BV58: 0 | BW58: 0.43794 | BX58: 0 | BY58: 0.41127 | BZ58: 0 | CA58: 0.3846 | CC58: 2016-01-24 | CD58: 0 | CE58: 0.45421 | CF58: 0 | CG58: 0.41992 | CH58: 0 | CI58: 0.38563 | CK58: 2066-01-24 | CL58: 0 | CM58: 0.53555 | CN58: 0 | CO58: 0.46316 | CP58: 0 | CQ58: 0.39077 | CU58: 1983 | CY58: 696.9 | CZ58: 17 | DC58: 12.38695652
A59: 1967-01-26 | B59: 7.7 | C59: 0.502 | D59: 1 | E59: 1967 | F59: 4 | G59: 7.7 | H59: =IF(B59<Parameters!$A$16,B59*Parameters!$B$16,IF(AND(B59>Parameters!$A$16,B59<Parameters!$A$17),B59*Parameters!$B$17,B59*Parameters!$B$18)) -> 7.315 | I59: =IF(B59<Parameters!$A$20,B59*Parameters!$B$20,IF(AND(B59>Parameters!$A$20,B59<Parameters!$A$21),B59*Parameters!$B$21,B59*Parameters!$B$22)) -> 5.775 | O59: 0.566516129 | R59: =IF('Gegevens '!$G$20="Eigen waarden",VLOOKUP($F59,'Gegevens '!$A$25:$C$77,3,FALSE),VLOOKUP($F59,Lijsten!$A$19:$B$71,2,FALSE)) -> 6.244376979 | AQ59: 0 | BM59: 1967-01-26 | BN59: 7.7 | BO59: 0.502 | BQ59: 1975-01-25 | BR59: 5.7 | BS59: 0.565 | BU59: 2006-01-25 | BV59: 2.11 | BW59: 0.53334 | BX59: 1.79 | BY59: 0.50086 | BZ59: 1.57 | CA59: 0.46838 | CC59: 2016-01-25 | CD59: 2.19 | CE59: 0.55316 | CF59: 1.81 | CG59: 0.5114 | CH59: 1.56 | CI59: 0.46964 | CK59: 2066-01-25 | CL59: 2.53 | CM59: 0.65222 | CN59: 1.94 | CO59: 0.56406 | CP59: 1.47 | CQ59: 0.4759 | CU59: 1984 | CY59: 928.4 | CZ59: 18 | DC59: 15.02391304
A60: 1967-01-27 | B60: 4.4 | C60: 0.38 | D60: 1 | E60: 1967 | F60: 4 | G60: 4.4 | H60: =IF(B60<Parameters!$A$16,B60*Parameters!$B$16,IF(AND(B60>Parameters!$A$16,B60<Parameters!$A$17),B60*Parameters!$B$17,B60*Parameters!$B$18)) -> 4.18 | I60: =IF(B60<Parameters!$A$20,B60*Parameters!$B$20,IF(AND(B60>Parameters!$A$20,B60<Parameters!$A$21),B60*Parameters!$B$21,B60*Parameters!$B$22)) -> 3.3 | O60: 0.444516129 | R60: =IF('Gegevens '!$G$20="Eigen waarden",VLOOKUP($F60,'Gegevens '!$A$25:$C$77,3,FALSE),VLOOKUP($F60,Lijsten!$A$19:$B$71,2,FALSE)) -> 6.244376979 | AQ60: 0 | BM60: 1967-01-27 | BN60: 4.4 | BO60: 0.38 | BQ60: 1975-01-26 | BR60: 0.1 | BS60: 0.69 | BU60: 2006-01-26 | BV60: 9.36 | BW60: 0.57702 | BX60: 8.02 | BY60: 0.54188 | BZ60: 7.16 | CA60: 0.50674 | CC60: 2016-01-26 | CD60: 9.64 | CE60: 0.59846 | CF60: 8.11 | CG60: 0.55328 | CH60: 7.08 | CI60: 0.5081 | CK60: 2066-01-26 | CL60: 11.05 | CM60: 0.70564 | CN60: 8.57 | CO60: 0.61026 | CP60: 6.76 | CQ60: 0.51488 | CU60: 1985 | CY60: 760.3 | CZ60: 19 | DC60: 14.6
A61: 1967-01-28 | B61: 0.3 | C61: 0.927 | D61: 1 | E61: 1967 | F61: 4 | G61: 0.3 | H61: =IF(B61<Parameters!$A$16,B61*Parameters!$B$16,IF(AND(B61>Parameters!$A$16,B61<Parameters!$A$17),B61*Parameters!$B$17,B61*Parameters!$B$18)) -> 0 | I61: =IF(B61<Parameters!$A$20,B61*Parameters!$B$20,IF(AND(B61>Parameters!$A$20,B61<Parameters!$A$21),B61*Parameters!$B$21,B61*Parameters!$B$22)) -> 0 | O61: 0.991516129 | R61: =IF('Gegevens '!$G$20="Eigen waarden",VLOOKUP($F61,'Gegevens '!$A$25:$C$77,3,FALSE),VLOOKUP($F61,Lijsten!$A$19:$B$71,2,FALSE)) -> 6.244376979 | AQ61: 0 | BM61: 1967-01-28 | BN61: 0.3 | BO61: 0.927 | BQ61: 1975-01-27 | BR61: 5.7 | BS61: 0.746 | BU61: 2006-01-27 | BV61: 5.38 | BW61: 0.43679 | BX61: 4.6 | BY61: 0.41019 | BZ61: 4.09 | CA61: 0.38359 | CC61: 2016-01-27 | CD61: 5.56 | CE61: 0.45302 | CF61: 4.66 | CG61: 0.41882 | CH61: 4.06 | CI61: 0.38462 | CK61: 2066-01-27 | CL61: 6.4 | CM61: 0.53415 | CN61: 4.93 | CO61: 0.46195 | CP61: 3.87 | CQ61: 0.38975 | CU61: 1986 | CY61: 923.3 | CZ61: 20 | DC61: 16.82826087
A62: 1967-01-29 | B62: 0 | C62: 1.116 | D62: 1 | E62: 1967 | F62: 4 | G62: 0 | H62: =IF(B62<Parameters!$A$16,B62*Parameters!$B$16,IF(AND(B62>Parameters!$A$16,B62<Parameters!$A$17),B62*Parameters!$B$17,B62*Parameters!$B$18)) -> 0 | I62: =IF(B62<Parameters!$A$20,B62*Parameters!$B$20,IF(AND(B62>Parameters!$A$20,B62<Parameters!$A$21),B62*Parameters!$B$21,B62*Parameters!$B$22)) -> 0 | L62: 0 | N62: 0 | O62: 1.180516129 | R62: =IF('Gegevens '!$G$20="Eigen waarden",VLOOKUP($F62,'Gegevens '!$A$25:$C$77,3,FALSE),VLOOKUP($F62,Lijsten!$A$19:$B$71,2,FALSE)) -> 6.244376979 | AC62: 0 | AE62: 0 | AQ62: 0 | BM62: 1967-01-29 | BN62: 0 | BO62: 1.116 | BQ62: 1975-01-28 | BR62: 13.4 | BS62: 0.246 | BU62: 2006-01-28 | BV62: 0.38 | BW62: 1.06554 | BX62: 0.31 | BY62: 1.00065 | BZ62: 0.26 | CA62: 0.93576 | CC62: 2016-01-28 | CD62: 0.4 | CE62: 1.10512 | CF62: 0.31 | CG62: 1.02169 | CH62: 0.25 | CI62: 0.93826 | CK62: 2066-01-28 | CL62: 0.48 | CM62: 1.30304 | CN62: 0.33 | CO62: 1.12691 | CP62: 0.21 | CQ62: 0.95078 | CU62: 1987 | CY62: 944.1 | CZ62: 21 | DC62: 15.61086957
A63: 1967-01-30 | B63: 0 | C63: 1.27 | D63: 1 | E63: 1967 | F63: 5 | G63: 0 | H63: =IF(B63<Parameters!$A$16,B63*Parameters!$B$16,IF(AND(B63>Parameters!$A$16,B63<Parameters!$A$17),B63*Parameters!$B$17,B63*Parameters!$B$18)) -> 0 | I63: =IF(B63<Parameters!$A$20,B63*Parameters!$B$20,IF(AND(B63>Parameters!$A$20,B63<Parameters!$A$21),B63*Parameters!$B$21,B63*Parameters!$B$22)) -> 0 | L63: 0 | N63: 0 | O63: 1.334516129 | R63: =IF('Gegevens '!$G$20="Eigen waarden",VLOOKUP($F63,'Gegevens '!$A$25:$C$77,3,FALSE),VLOOKUP($F63,Lijsten!$A$19:$B$71,2,FALSE)) -> 8.25291793 | AC63: 0 | AE63: 0 | AQ63: 0 | BM63: 1967-01-30 | BN63: 0 | BO63: 1.27 | BQ63: 1975-01-29 | BR63: 4.8 | BS63: 0.367 | BU63: 2006-01-29 | BV63: 0 | BW63: 1.28279 | BX63: 0 | BY63: 1.20467 | BZ63: 0 | CA63: 1.12655 | CC63: 2016-01-29 | CD63: 0 | CE63: 1.33044 | CF63: 0 | CG63: 1.23 | CH63: 0 | CI63: 1.12956 | CK63: 2066-01-29 | CL63: 0 | CM63: 1.56871 | CN63: 0 | CO63: 1.35667 | CP63: 0 | CQ63: 1.14463 | CU63: 1988 | CY63: 992.1 | CZ63: 22 | DC63: 16.59347826
A64: 1967-01-31 | B64: 0 | C64: 0.87 | D64: 1 | E64: 1967 | F64: 5 | G64: 0 | H64: =IF(B64<Parameters!$A$16,B64*Parameters!$B$16,IF(AND(B64>Parameters!$A$16,B64<Parameters!$A$17),B64*Parameters!$B$17,B64*Parameters!$B$18)) -> 0 | I64: =IF(B64<Parameters!$A$20,B64*Parameters!$B$20,IF(AND(B64>Parameters!$A$20,B64<Parameters!$A$21),B64*Parameters!$B$21,B64*Parameters!$B$22)) -> 0 | L64: 0 | N64: 0 | O64: 0.934516129 | R64: =IF('Gegevens '!$G$20="Eigen waarden",VLOOKUP($F64,'Gegevens '!$A$25:$C$77,3,FALSE),VLOOKUP($F64,Lijsten!$A$19:$B$71,2,FALSE)) -> 8.25291793 | AC64: 0 | AE64: 0 | AQ64: 0 | BM64: 1967-01-31 | BN64: 0 | BO64: 0.87 | BQ64: 1975-01-30 | BR64: 2.9 | BS64: 0.664 | BU64: 2006-01-30 | BV64: 0 | BW64: 1.4598 | BX64: 0 | BY64: 1.3709 | BZ64: 0 | CA64: 1.282 | CC64: 2016-01-30 | CD64: 0 | CE64: 1.51403 | CF64: 0 | CG64: 1.39973 | CH64: 0 | CI64: 1.28543 | CK64: 2066-01-30 | CL64: 1.78 | CM64: 1.78518 | CN64: 0 | CO64: 1.54388 | CP64: 0 | CQ64: 1.30258 | CU64: 1989 | CY64: 639.2 | CZ64: 23 | DC64: 18.06956522
A65: 1967-02-01 | B65: 6.2 | C65: 0.488 | D65: 2 | E65: 1967 | F65: 5 | G65: 6.2 | H65: =IF(B65<Parameters!$A$16,B65*Parameters!$B$16,IF(AND(B65>Parameters!$A$16,B65<Parameters!$A$17),B65*Parameters!$B$17,B65*Parameters!$B$18)) -> 5.89 | I65: =IF(B65<Parameters!$A$20,B65*Parameters!$B$20,IF(AND(B65>Parameters!$A$20,B65<Parameters!$A$21),B65*Parameters!$B$21,B65*Parameters!$B$22)) -> 4.65 | O65: 0.4522857143 | R65: =IF('Gegevens '!$G$20="Eigen waarden",VLOOKUP($F65,'Gegevens '!$A$25:$C$77,3,FALSE),VLOOKUP($F65,Lijsten!$A$19:$B$71,2,FALSE)) -> 8.25291793 | AQ65: 0 | BM65: 1967-02-01 | BN65: 6.2 | BO65: 0.488 | BQ65: 1975-01-31 | BR65: 5.4 | BS65: 0.852 | BU65: 2006-01-31 | BV65: 0 | BW65: 1.00002 | BX65: 0 | BY65: 0.93912 | BZ65: 0 | CA65: 0.87822 | CC65: 2016-01-31 | CD65: 8.37 | CE65: 1.03717 | CF65: 0 | CG65: 0.95887 | CH65: 0 | CI65: 0.88057 | CK65: 2066-01-31 | CL65: 0 | CM65: 1.22292 | CN65: 0 | CO65: 1.05762 | CP65: 0 | CQ65: 0.89232 | CU65: 1990 | CY65: 755.6 | CZ65: 24 | DC65: 14.02173913
A66: 1967-02-02 | B66: 2.7 | C66: 0.444 | D66: 2 | E66: 1967 | F66: 5 | G66: 2.7 | H66: =IF(B66<Parameters!$A$16,B66*Parameters!$B$16,IF(AND(B66>Parameters!$A$16,B66<Parameters!$A$17),B66*Parameters!$B$17,B66*Parameters!$B$18)) -> 2.565 | I66: =IF(B66<Parameters!$A$20,B66*Parameters!$B$20,IF(AND(B66>Parameters!$A$20,B66<Parameters!$A$21),B66*Parameters!$B$21,B66*Parameters!$B$22)) -> 2.025 | O66: 0.4082857143 | R66: =IF('Gegevens '!$G$20="Eigen waarden",VLOOKUP($F66,'Gegevens '!$A$25:$C$77,3,FALSE),VLOOKUP($F66,Lijsten!$A$19:$B$71,2,FALSE)) -> 8.25291793 | AQ66: 0 | BM66: 1967-02-02 | BN66: 2.7 | BO66: 0.444 | BQ66: 1975-02-01 | BR66: 0.2 | BS66: 0.705 | BU66: 2006-02-01 | BV66: 7.46 | BW66: 0.53463 | BX66: 6.5 | BY66: 0.50815 | BZ66: 5.91 | CA66: 0.48185 | CC66: 2016-02-01 | CD66: 7.65 | CE66: 0.54795 | CF66: 6.58 | CG66: 0.51391 | CH66: 5.9 | CI66: 0.48009 | CK66: 2066-02-01 | CL66: 8.67 | CM66: 0.61456 | CN66: 6.99 | CO66: 0.5427 | CP66: 5.85 | CQ66: 0.47131 | CU66: 1991 | CY66: 798.1 | CZ66: 25 | DC66: 13.40434783
A67: 1967-02-03 | B67: 0.4 | C67: 0.824 | D67: 2 | E67: 1967 | F67: 5 | G67: 0.4 | H67: =IF(B67<Parameters!$A$16,B67*Parameters!$B$16,IF(AND(B67>Parameters!$A$16,B67<Parameters!$A$17),B67*Parameters!$B$17,B67*Parameters!$B$18)) -> 0 | I67: =IF(B67<Parameters!$A$20,B67*Parameters!$B$20,IF(AND(B67>Parameters!$A$20,B67<Parameters!$A$21),B67*Parameters!$B$21,B67*Parameters!$B$22)) -> 0 | O67: 0.7882857143 | R67: =IF('Gegevens '!$G$20="Eigen waarden",VLOOKUP($F67,'Gegevens '!$A$25:$C$77,3,FALSE),VLOOKUP($F67,Lijsten!$A$19:$B$71,2,FALSE)) -> 8.25291793 | AQ67: 0 | BM67: 1967-02-03 | BN67: 0.4 | BO67: 0.824 | BQ67: 1975-02-02 | BR67: 0.1 | BS67: 0.514 | BU67: 2006-02-02 | BV67: 3.46 | BW67: 0.48642 | BX67: 2.9 | BY67: 0.46234 | BZ67: 2.52 | CA67: 0.43841 | CC67: 2016-02-02 | CD67: 3.61 | CE67: 0.49855 | CF67: 2.96 | CG67: 0.46758 | CH67: 2.51 | CI67: 0.43681 | CK67: 2066-02-02 | CL67: 4.34 | CM67: 0.55915 | CN67: 3.25 | CO67: 0.49377 | CP67: 2.42 | CQ67: 0.42882 | CU67: 1992 | CY67: 916.5 | CZ67: 26 | DC67: 18.6826087
A68: 1967-02-04 | B68: 0 | C68: 0.661 | D68: 2 | E68: 1967 | F68: 5 | G68: 0 | H68: =IF(B68<Parameters!$A$16,B68*Parameters!$B$16,IF(AND(B68>Parameters!$A$16,B68<Parameters!$A$17),B68*Parameters!$B$17,B68*Parameters!$B$18)) -> 0 | I68: =IF(B68<Parameters!$A$20,B68*Parameters!$B$20,IF(AND(B68>Parameters!$A$20,B68<Parameters!$A$21),B68*Parameters!$B$21,B68*Parameters!$B$22)) -> 0 | L68: 0 | N68: 0 | O68: 0.6252857143 | R68: =IF('Gegevens '!$G$20="Eigen waarden",VLOOKUP($F68,'Gegevens '!$A$25:$C$77,3,FALSE),VLOOKUP($F68,Lijsten!$A$19:$B$71,2,FALSE)) -> 8.25291793 | AC68: 0 | AE68: 0 | AQ68: 0 | BM68: 1967-02-04 | BN68: 0 | BO68: 0.661 | BQ68: 1975-02-03 | BR68: 0 | BS68: 0.704 | BU68: 2006-02-03 | BV68: 0.55 | BW68: 0.90273 | BX68: 0.44 | BY68: 0.85803 | BZ68: 0.36 | CA68: 0.81362 | CC68: 2016-02-03 | CD68: 0.58 | CE68: 0.92523 | CF68: 0.45 | CG68: 0.86775 | CH68: 0.36 | CI68: 0.81065 | CK68: 2066-02-03 | CL68: 0.73 | CM68: 1.0377 | CN68: 0.51 | CO68: 0.91637 | CP68: 0.34 | CQ68: 0.79582 | CU68: 1993 | CY68: 869.8 | CZ68: 27 | DC68: 20.28913043 | DE68: =GETPIVOTDATA("Som van Wekelijkse neerslag",$CZ$40,"Week",27)-GETPIVOTDATA("Som van Opvangverliezen per week",$CZ$40,"Week",27) ->  | DF68: =DE68/GETPIVOTDATA("Som van Wekelijkse neerslag",$CZ$40,"Week",27) -> 
A69: 1967-02-05 | B69: 0 | C69: 0.384 | D69: 2 | E69: 1967 | F69: 5 | G69: 0 | H69: =IF(B69<Parameters!$A$16,B69*Parameters!$B$16,IF(AND(B69>Parameters!$A$16,B69<Parameters!$A$17),B69*Parameters!$B$17,B69*Parameters!$B$18)) -> 0 | I69: =IF(B69<Parameters!$A$20,B69*Parameters!$B$20,IF(AND(B69>Parameters!$A$20,B69<Parameters!$A$21),B69*Parameters!$B$21,B69*Parameters!$B$22)) -> 0 | L69: 0 | N69: 0 | O69: 0.3482857143 | R69: =IF('Gegevens '!$G$20="Eigen waarden",VLOOKUP($F69,'Gegevens '!$A$25:$C$77,3,FALSE),VLOOKUP($F69,Lijsten!$A$19:$B$71,2,FALSE)) -> 8.25291793 | AC69: 0 | AE69: 0 | AQ69: 0 | BM69: 1967-02-05 | BN69: 0 | BO69: 0.384 | BQ69: 1975-02-04 | BR69: 0 | BS69: 0.842 | BU69: 2006-02-04 | BV69: 0 | BW69: 0.72416 | BX69: 0 | BY69: 0.6883 | BZ69: 0 | CA69: 0.65267 | CC69: 2016-02-04 | CD69: 0 | CE69: 0.7422 | CF69: 0 | CG69: 0.6961 | CH69: 0 | CI69: 0.65029 | CK69: 2066-02-04 | CL69: 0 | CM69: 0.83243 | CN69: 0 | CO69: 0.7351 | CP69: 0 | CQ69: 0.63839 | CU69: 1994 | CY69: 887.2 | CZ69: 28 | DC69: 15.8173913
A70: 1967-02-06 | B70: 0 | C70: 0.364 | D70: 2 | E70: 1967 | F70: 6 | G70: 0 | H70: =IF(B70<Parameters!$A$16,B70*Parameters!$B$16,IF(AND(B70>Parameters!$A$16,B70<Parameters!$A$17),B70*Parameters!$B$17,B70*Parameters!$B$18)) -> 0 | I70: =IF(B70<Parameters!$A$20,B70*Parameters!$B$20,IF(AND(B70>Parameters!$A$20,B70<Parameters!$A$21),B70*Parameters!$B$21,B70*Parameters!$B$22)) -> 0 | L70: 0 | N70: 0 | O70: 0.3282857143 | R70: =IF('Gegevens '!$G$20="Eigen waarden",VLOOKUP($F70,'Gegevens '!$A$25:$C$77,3,FALSE),VLOOKUP($F70,Lijsten!$A$19:$B$71,2,FALSE)) -> 9.143042977 | AC70: 0 | AE70: 0 | AQ70: 0 | BM70: 1967-02-06 | BN70: 0 | BO70: 0.364 | BQ70: 1975-02-05 | BR70: 0 | BS70: 0.683 | BU70: 2006-02-05 | BV70: 0 | BW70: 0.42069 | BX70: 0 | BY70: 0.39986 | BZ70: 0 | CA70: 0.37916 | CC70: 2016-02-05 | CD70: 0 | CE70: 0.43117 | CF70: 0 | CG70: 0.40439 | CH70: 0 | CI70: 0.37778 | CK70: 2066-02-05 | CL70: 0 | CM70: 0.48359 | CN70: 0 | CO70: 0.42705 | CP70: 0 | CQ70: 0.37087 | CU70: 1995 | CY70: 758.2 | CZ70: 29 | DC70: 16.60652174
A71: 1967-02-07 | B71: 0.1 | C71: 0.137 | D71: 2 | E71: 1967 | F71: 6 | G71: 0.1 | H71: =IF(B71<Parameters!$A$16,B71*Parameters!$B$16,IF(AND(B71>Parameters!$A$16,B71<Parameters!$A$17),B71*Parameters!$B$17,B71*Parameters!$B$18)) -> 0 | I71: =IF(B71<Parameters!$A$20,B71*Parameters!$B$20,IF(AND(B71>Parameters!$A$20,B71<Parameters!$A$21),B71*Parameters!$B$21,B71*Parameters!$B$22)) -> 0 | O71: 0.1012857143 | R71: =IF('Gegevens '!$G$20="Eigen waarden",VLOOKUP($F71,'Gegevens '!$A$25:$C$77,3,FALSE),VLOOKUP($F71,Lijsten!$A$19:$B$71,2,FALSE)) -> 9.143042977 | AQ71: 0 | BM71: 1967-02-07 | BN71: 0.1 | BO71: 0.137 | BQ71: 1975-02-06 | BR71: 0 | BS71: 0.653 | BU71: 2006-02-06 | BV71: 0 | BW71: 0.39878 | BX71: 0 | BY71: 0.37903 | BZ71: 0 | CA71: 0.35941 | CC71: 2016-02-06 | CD71: 0 | CE71: 0.40872 | CF71: 0 | CG71: 0.38333 | CH71: 0 | CI71: 0.3581 | CK71: 2066-02-06 | CL71: 0 | CM71: 0.4584 | CN71: 0 | CO71: 0.4048 | CP71: 0 | CQ71: 0.35155 | CU71: 1996 | CY71: 743.8 | CZ71: 30 | DC71: 17.36086957
A72: 1967-02-08 | B72: 0.6 | C72: 0.641 | D72: 2 | E72: 1967 | F72: 6 | G72: 0.6 | H72: =IF(B72<Parameters!$A$16,B72*Parameters!$B$16,IF(AND(B72>Parameters!$A$16,B72<Parameters!$A$17),B72*Parameters!$B$17,B72*Parameters!$B$18)) -> 0 | I72: =IF(B72<Parameters!$A$20,B72*Parameters!$B$20,IF(AND(B72>Parameters!$A$20,B72<Parameters!$A$21),B72*Parameters!$B$21,B72*Parameters!$B$22)) -> 0 | O72: 0.6052857143 | R72: =IF('Gegevens '!$G$20="Eigen waarden",VLOOKUP($F72,'Gegevens '!$A$25:$C$77,3,FALSE),VLOOKUP($F72,Lijsten!$A$19:$B$71,2,FALSE)) -> 9.143042977 | AQ72: 0 | BM72: 1967-02-08 | BN72: 0.6 | BO72: 0.641 | BQ72: 1975-02-07 | BR72: 0 | BS72: 0.836 | BU72: 2006-02-07 | BV72: 0.13 | BW72: 0.15009 | BX72: 0.11 | BY72: 0.14266 | BZ72: 0.09 | CA72: 0.13527 | CC72: 2016-02-07 | CD72: 0.13 | CE72: 0.15383 | CF72: 0.11 | CG72: 0.14427 | CH72: 0.09 | CI72: 0.13478 | CK72: 2066-02-07 | CL72: 0.15 | CM72: 0.17253 | CN72: 0.12 | CO72: 0.15236 | CP72: 0 | CQ72: 0.13231 | CU72: 1997 | CY72: 689.4 | CZ72: 31 | DC72: 15.7673913
A73: 1967-02-09 | B73: 0.2 | C73: 0.562 | D73: 2 | E73: 1967 | F73: 6 | G73: 0.2 | H73: =IF(B73<Parameters!$A$16,B73*Parameters!$B$16,IF(AND(B73>Parameters!$A$16,B73<Parameters!$A$17),B73*Parameters!$B$17,B73*Parameters!$B$18)) -> 0 | I73: =IF(B73<Parameters!$A$20,B73*Parameters!$B$20,IF(AND(B73>Parameters!$A$20,B73<Parameters!$A$21),B73*Parameters!$B$21,B73*Parameters!$B$22)) -> 0 | O73: 0.5262857143 | R73: =IF('Gegevens '!$G$20="Eigen waarden",VLOOKUP($F73,'Gegevens '!$A$25:$C$77,3,FALSE),VLOOKUP($F73,Lijsten!$A$19:$B$71,2,FALSE)) -> 9.143042977 | AQ73: 0 | BM73: 1967-02-09 | BN73: 0.2 | BO73: 0.562 | BQ73: 1975-02-08 | BR73: 0 | BS73: 0.538 | BU73: 2006-02-08 | BV73: 0.84 | BW73: 0.70225 | BX73: 0.67 | BY73: 0.66747 | BZ73: 0.56 | CA73: 0.63292 | CC73: 2016-02-08 | CD73: 0.89 | CE73: 0.71975 | CF73: 0.7 | CG73: 0.67504 | CH73: 0.55 | CI73: 0.63062 | CK73: 2066-02-08 | CL73: 1.14 | CM73: 0.80724 | CN73: 0.8 | CO73: 0.71286 | CP73: 0.52 | CQ73: 0.61908 | CU73: 1998 | CY73: 972.5 | CZ73: 32 | DC73: 18.11304348
A74: 1967-02-10 | B74: 0 | C74: 0.592 | D74: 2 | E74: 1967 | F74: 6 | G74: 0 | H74: =IF(B74<Parameters!$A$16,B74*Parameters!$B$16,IF(AND(B74>Parameters!$A$16,B74<Parameters!$A$17),B74*Parameters!$B$17,B74*Parameters!$B$18)) -> 0 | I74: =IF(B74<Parameters!$A$20,B74*Parameters!$B$20,IF(AND(B74>Parameters!$A$20,B74<Parameters!$A$21),B74*Parameters!$B$21,B74*Parameters!$B$22)) -> 0 | L74: 0 | N74: 0 | O74: 0.5562857143 | R74: =IF('Gegevens '!$G$20="Eigen waarden",VLOOKUP($F74,'Gegevens '!$A$25:$C$77,3,FALSE),VLOOKUP($F74,Lijsten!$A$19:$B$71,2,FALSE)) -> 9.143042977 | AC74: 0 | AE74: 0 | AQ74: 0 | BM74: 1967-02-10 | BN74: 0 | BO74: 0.592 | BQ74: 1975-02-09 | BR74: 0 | BS74: 1.082 | BU74: 2006-02-09 | BV74: 0.27 | BW74: 0.6157 | BX74: 0.22 | BY74: 0.58521 | BZ74: 0.18 | CA74: 0.55492 | CC74: 2016-02-09 | CD74: 0.28 | CE74: 0.63104 | CF74: 0.22 | CG74: 0.59184 | CH74: 0.17 | CI74: 0.5529 | CK74: 2066-02-09 | CL74: 0.36 | CM74: 0.70775 | CN74: 0.25 | CO74: 0.625 | CP74: 0.15 | CQ74: 0.54278 | CU74: 1999 | CY74: 874.2 | CZ74: 33 | DC74: 14.91521739
A75: 1967-02-11 | B75: 0 | C75: 0.573 | D75: 2 | E75: 1967 | F75: 6 | G75: 0 | H75: =IF(B75<Parameters!$A$16,B75*Parameters!$B$16,IF(AND(B75>Parameters!$A$16,B75<Parameters!$A$17),B75*Parameters!$B$17,B75*Parameters!$B$18)) -> 0 | I75: =IF(B75<Parameters!$A$20,B75*Parameters!$B$20,IF(AND(B75>Parameters!$A$20,B75<Parameters!$A$21),B75*Parameters!$B$21,B75*Parameters!$B$22)) -> 0 | L75: 0 | N75: 0 | O75: 0.5372857143 | R75: =IF('Gegevens '!$G$20="Eigen waarden",VLOOKUP($F75,'Gegevens '!$A$25:$C$77,3,FALSE),VLOOKUP($F75,Lijsten!$A$19:$B$71,2,FALSE)) -> 9.143042977 | AC75: 0 | AE75: 0 | AQ75: 0 | BM75: 1967-02-11 | BN75: 0 | BO75: 0.573 | BQ75: 1975-02-10 | BR75: 0 | BS75: 0.938 | BU75: 2006-02-10 | BV75: 0 | BW75: 0.64857 | BX75: 0 | BY75: 0.61645 | BZ75: 0 | CA75: 0.58454 | CC75: 2016-02-10 | CD75: 0 | CE75: 0.66473 | CF75: 0 | CG75: 0.62344 | CH75: 0 | CI75: 0.58241 | CK75: 2066-02-10 | CL75: 0 | CM75: 0.74554 | CN75: 0 | CO75: 0.65836 | CP75: 0 | CQ75: 0.57175 | CU75: 2000 | CY75: 847.8 | CZ75: 34 | DC75: 16.43478261
A76: 1967-02-12 | B76: 0 | C76: 1.059 | D76: 2 | E76: 1967 | F76: 6 | G76: 0 | H76: =IF(B76<Parameters!$A$16,B76*Parameters!$B$16,IF(AND(B76>Parameters!$A$16,B76<Parameters!$A$17),B76*Parameters!$B$17,B76*Parameters!$B$18)) -> 0 | I76: =IF(B76<Parameters!$A$20,B76*Parameters!$B$20,IF(AND(B76>Parameters!$A$20,B76<Parameters!$A$21),B76*Parameters!$B$21,B76*Parameters!$B$22)) -> 0 | L76: 0 | N76: 0 | O76: 1.023285714 | R76: =IF('Gegevens '!$G$20="Eigen waarden",VLOOKUP($F76,'Gegevens '!$A$25:$C$77,3,FALSE),VLOOKUP($F76,Lijsten!$A$19:$B$71,2,FALSE)) -> 9.143042977 | AC76: 0 | AE76: 0 | AQ76: 0 | BM76: 1967-02-12 | BN76: 0 | BO76: 1.059 | BQ76: 1975-02-11 | BR76: 0 | BS76: 1.115 | BU76: 2006-02-11 | BV76: 0.7 | BW76: 0.62775 | BX76: 0 | BY76: 0.59666 | BZ76: 0 | CA76: 0.56578 | CC76: 2016-02-11 | CD76: 0 | CE76: 0.64339 | CF76: 0 | CG76: 0.60343 | CH76: 0 | CI76: 0.56372 | CK76: 2066-02-11 | CL76: 0 | CM76: 0.72161 | CN76: 0 | CO76: 0.63723 | CP76: 0 | CQ76: 0.5534 | CU76: 2001 | CY76: 1092.3 | CZ76: 35 | DC76: 17.37391304
A77: 1967-02-13 | B77: 0 | C77: 0 | D77: 2 | E77: 1967 | F77: 7 | G77: 0 | H77: =IF(B77<Parameters!$A$16,B77*Parameters!$B$16,IF(AND(B77>Parameters!$A$16,B77<Parameters!$A$17),B77*Parameters!$B$17,B77*Parameters!$B$18)) -> 0 | I77: =IF(B77<Parameters!$A$20,B77*Parameters!$B$20,IF(AND(B77>Parameters!$A$20,B77<Parameters!$A$21),B77*Parameters!$B$21,B77*Parameters!$B$22)) -> 0 | L77: 0 | N77: 0 | O77: -0.03571428571 | R77: =IF('Gegevens '!$G$20="Eigen waarden",VLOOKUP($F77,'Gegevens '!$A$25:$C$77,3,FALSE),VLOOKUP($F77,Lijsten!$A$19:$B$71,2,FALSE)) -> 10.97763068 | AC77: 0 | AE77: 0 | AQ77: 0 | BM77: 1967-02-13 | BN77: 0 | BO77: 0 | BQ77: 1975-02-12 | BR77: 0.9 | BS77: 0.739 | BU77: 2006-02-12 | BV77: 0 | BW77: 1.16019 | BX77: 0 | BY77: 1.10274 | BZ77: 0 | CA77: 1.04566 | CC77: 2016-02-12 | CD77: 0 | CE77: 1.1891 | CF77: 0 | CG77: 1.11523 | CH77: 0 | CI77: 1.04184 | CK77: 2066-02-12 | CL77: 1.73 | CM77: 1.33365 | CN77: 0 | CO77: 1.17771 | CP77: 0 | CQ77: 1.02278 | CU77: 2002 | CY77: 1062.8 | CZ77: 36 | DC77: 16.46304348
A78: 1967-02-14 | B78: 0 | C78: 0 | D78: 2 | E78: 1967 | F78: 7 | G78: 0 | H78: =IF(B78<Parameters!$A$16,B78*Parameters!$B$16,IF(AND(B78>Parameters!$A$16,B78<Parameters!$A$17),B78*Parameters!$B$17,B78*Parameters!$B$18)) -> 0 | I78: =IF(B78<Parameters!$A$20,B78*Parameters!$B$20,IF(AND(B78>Parameters!$A$20,B78<Parameters!$A$21),B78*Parameters!$B$21,B78*Parameters!$B$22)) -> 0 | L78: 0 | N78: 0 | O78: -0.03571428571 | R78: =IF('Gegevens '!$G$20="Eigen waarden",VLOOKUP($F78,'Gegevens '!$A$25:$C$77,3,FALSE),VLOOKUP($F78,Lijsten!$A$19:$B$71,2,FALSE)) -> 10.97763068 | AC78: 0 | AE78: 0 | AQ78: 0 | BM78: 1967-02-14 | BN78: 0 | BO78: 0 | BQ78: 1975-02-13 | BR78: 0.4 | BS78: 0.397 | BU78: 2006-02-13 | BV78: 0 | BW78: 0 | BX78: 0 | BY78: 0 | BZ78: 0 | CA78: 0 | CC78: 2016-02-13 | CD78: 0 | CE78: 0 | CF78: 0 | CG78: 0 | CH78: 0 | CI78: 0 | CK78: 2066-02-13 | CL78: 0 | CM78: 0 | CN78: 0 | CO78: 0 | CP78: 0 | CQ78: 0 | CU78: 2003 | CY78: 685.5 | CZ78: 37 | DC78: 15.9173913
A79: 1967-02-15 | B79: 0 | C79: 1.535 | D79: 2 | E79: 1967 | F79: 7 | G79: 0 | H79: =IF(B79<Parameters!$A$16,B79*Parameters!$B$16,IF(AND(B79>Parameters!$A$16,B79<Parameters!$A$17),B79*Parameters!$B$17,B79*Parameters!$B$18)) -> 0 | I79: =IF(B79<Parameters!$A$20,B79*Parameters!$B$20,IF(AND(B79>Parameters!$A$20,B79<Parameters!$A$21),B79*Parameters!$B$21,B79*Parameters!$B$22)) -> 0 | L79: 0 | N79: 0 | O79: 1.499285714 | R79: =IF('Gegevens '!$G$20="Eigen waarden",VLOOKUP($F79,'Gegevens '!$A$25:$C$77,3,FALSE),VLOOKUP($F79,Lijsten!$A$19:$B$71,2,FALSE)) -> 10.97763068 | AC79: 0 | AE79: 0 | AQ79: 0 | BM79: 1967-02-15 | BN79: 0 | BO79: 1.535 | BQ79: 1975-02-14 | BR79: 0.8 | BS79: 0.202 | BU79: 2006-02-14 | BV79: 0 | BW79: 0 | BX79: 0 | BY79: 0 | BZ79: 0 | CA79: 0 | CC79: 2016-02-14 | CD79: 0 | CE79: 0 | CF79: 0 | CG79: 0 | CH79: 0 | CI79: 0 | CK79: 2066-02-14 | CL79: 0 | CM79: 0 | CN79: 0 | CO79: 0 | CP79: 0 | CQ79: 0 | CU79: 2004 | CY79: 914.9 | CZ79: 38 | DC79: 13.28913043
A80: 1967-02-16 | B80: 0 | C80: 1.418 | D80: 2 | E80: 1967 | F80: 7 | G80: 0 | H80: =IF(B80<Parameters!$A$16,B80*Parameters!$B$16,IF(AND(B80>Parameters!$A$16,B80<Parameters!$A$17),B80*Parameters!$B$17,B80*Parameters!$B$18)) -> 0 | I80: =IF(B80<Parameters!$A$20,B80*Parameters!$B$20,IF(AND(B80>Parameters!$A$20,B80<Parameters!$A$21),B80*Parameters!$B$21,B80*Parameters!$B$22)) -> 0 | L80: 0 | N80: 0 | O80: 1.382285714 | R80: =IF('Gegevens '!$G$20="Eigen waarden",VLOOKUP($F80,'Gegevens '!$A$25:$C$77,3,FALSE),VLOOKUP($F80,Lijsten!$A$19:$B$71,2,FALSE)) -> 10.97763068 | AC80: 0 | AE80: 0 | AQ80: 0 | BM80: 1967-02-16 | BN80: 0 | BO80: 1.418 | BQ80: 1975-02-15 | BR80: 0.2 | BS80: 0.741 | BU80: 2006-02-15 | BV80: 0 | BW80: 1.68167 | BX80: 0 | BY80: 1.5984 | BZ80: 0 | CA80: 1.51566 | CC80: 2016-02-15 | CD80: 0 | CE80: 1.72357 | CF80: 0 | CG80: 1.61651 | CH80: 0 | CI80: 1.51013 | CK80: 2066-02-15 | CL80: 0 | CM80: 1.9331 | CN80: 0 | CO80: 1.70707 | CP80: 0 | CQ80: 1.4825 | CU80: 2005 | CY80: 749.8 | CZ80: 39 | DC80: 14.54782609
A81: 1967-02-17 | B81: 0.2 | C81: 0.802 | D81: 2 | E81: 1967 | F81: 7 | G81: 0.2 | H81: =IF(B81<Parameters!$A$16,B81*Parameters!$B$16,IF(AND(B81>Parameters!$A$16,B81<Parameters!$A$17),B81*Parameters!$B$17,B81*Parameters!$B$18)) -> 0 | I81: =IF(B81<Parameters!$A$20,B81*Parameters!$B$20,IF(AND(B81>Parameters!$A$20,B81<Parameters!$A$21),B81*Parameters!$B$21,B81*Parameters!$B$22)) -> 0 | O81: 0.7662857143 | R81: =IF('Gegevens '!$G$20="Eigen waarden",VLOOKUP($F81,'Gegevens '!$A$25:$C$77,3,FALSE),VLOOKUP($F81,Lijsten!$A$19:$B$71,2,FALSE)) -> 10.97763068 | AQ81: 0 | BM81: 1967-02-17 | BN81: 0.2 | BO81: 0.802 | BQ81: 1975-02-16 | BR81: 0 | BS81: 1.05 | BU81: 2006-02-16 | BV81: 0 | BW81: 1.55349 | BX81: 0 | BY81: 1.47656 | BZ81: 0 | CA81: 1.40013 | CC81: 2016-02-16 | CD81: 0 | CE81: 1.5922 | CF81: 0 | CG81: 1.4933 | CH81: 0 | CI81: 1.39503 | CK81: 2066-02-16 | CL81: 0 | CM81: 1.78576 | CN81: 0 | CO81: 1.57696 | CP81: 0 | CQ81: 1.3695 | CU81: 2006 | CY81: 833.6 | CZ81: 40 | DC81: 17.84782609
A82: 1967-02-18 | B82: 0.2 | C82: 1.309 | D82: 2 | E82: 1967 | F82: 7 | G82: 0.2 | H82: =IF(B82<Parameters!$A$16,B82*Parameters!$B$16,IF(AND(B82>Parameters!$A$16,B82<Parameters!$A$17),B82*Parameters!$B$17,B82*Parameters!$B$18)) -> 0 | I82: =IF(B82<Parameters!$A$20,B82*Parameters!$B$20,IF(AND(B82>Parameters!$A$20,B82<Parameters!$A$21),B82*Parameters!$B$21,B82*Parameters!$B$22)) -> 0 | O82: 1.273285714 | R82: =IF('Gegevens '!$G$20="Eigen waarden",VLOOKUP($F82,'Gegevens '!$A$25:$C$77,3,FALSE),VLOOKUP($F82,Lijsten!$A$19:$B$71,2,FALSE)) -> 10.97763068 | AQ82: 0 | BM82: 1967-02-18 | BN82: 0.2 | BO82: 1.309 | BQ82: 1975-02-17 | BR82: 0 | BS82: 0.683 | BU82: 2006-02-17 | BV82: 0.27 | BW82: 0.87863 | BX82: 0.22 | BY82: 0.83512 | BZ82: 0.18 | CA82: 0.79189 | CC82: 2016-02-17 | CD82: 0.28 | CE82: 0.90053 | CF82: 0.22 | CG82: 0.84459 | CH82: 0.18 | CI82: 0.78901 | CK82: 2066-02-17 | CL82: 0.36 | CM82: 1.01 | CN82: 0.25 | CO82: 0.8919 | CP82: 0.15 | CQ82: 0.77457 | CU82: 2007 | CY82: 881 | CZ82: 41 | DC82: 15.86956522
A83: 1967-02-19 | B83: 8.6 | C83: 0.756 | D83: 2 | E83: 1967 | F83: 7 | G83: 8.6 | H83: =IF(B83<Parameters!$A$16,B83*Parameters!$B$16,IF(AND(B83>Parameters!$A$16,B83<Parameters!$A$17),B83*Parameters!$B$17,B83*Parameters!$B$18)) -> 8.17 | I83: =IF(B83<Parameters!$A$20,B83*Parameters!$B$20,IF(AND(B83>Parameters!$A$20,B83<Parameters!$A$21),B83*Parameters!$B$21,B83*Parameters!$B$22)) -> 6.45 | O83: 0.7202857143 | R83: =IF('Gegevens '!$G$20="Eigen waarden",VLOOKUP($F83,'Gegevens '!$A$25:$C$77,3,FALSE),VLOOKUP($F83,Lijsten!$A$19:$B$71,2,FALSE)) -> 10.97763068 | AQ83: 0 | BM83: 1967-02-19 | BN83: 8.6 | BO83: 0.756 | BQ83: 1975-02-18 | BR83: 11.4 | BS83: 0.392 | BU83: 2006-02-18 | BV83: 0.27 | BW83: 1.43407 | BX83: 0.22 | BY83: 1.36306 | BZ83: 0.18 | CA83: 1.29251 | CC83: 2016-02-18 | CD83: 0.28 | CE83: 1.46981 | CF83: 0.22 | CG83: 1.37851 | CH83: 0.18 | CI83: 1.28779 | CK83: 2066-02-18 | CL83: 0.36 | CM83: 1.64849 | CN83: 0.25 | CO83: 1.45574 | CP83: 0.16 | CQ83: 1.26423 | CU83: 2008 | CY83: 860.3 | CZ83: 42 | DC83: 13.85434783
A84: 1967-02-20 | B84: 14.1 | C84: 0.977 | D84: 2 | E84: 1967 | F84: 8 | G84: 14.1 | H84: =IF(B84<Parameters!$A$16,B84*Parameters!$B$16,IF(AND(B84>Parameters!$A$16,B84<Parameters!$A$17),B84*Parameters!$B$17,B84*Parameters!$B$18)) -> 13.395 | I84: =IF(B84<Parameters!$A$20,B84*Parameters!$B$20,IF(AND(B84>Parameters!$A$20,B84<Parameters!$A$21),B84*Parameters!$B$21,B84*Parameters!$B$22)) -> 10.575 | O84: 0.9412857143 | R84: =IF('Gegevens '!$G$20="Eigen waarden",VLOOKUP($F84,'Gegevens '!$A$25:$C$77,3,FALSE),VLOOKUP($F84,Lijsten!$A$19:$B$71,2,FALSE)) -> 13.231023 | AQ84: 0 | BM84: 1967-02-20 | BN84: 14.1 | BO84: 0.977 | BQ84: 1975-02-19 | BR84: 4.5 | BS84: 0.643 | BU84: 2006-02-19 | BV84: 10.36 | BW84: 0.82824 | BX84: 8.89 | BY84: 0.78722 | BZ84: 7.94 | CA84: 0.74647 | CC84: 2016-02-19 | CD84: 10.64 | CE84: 0.84887 | CF84: 8.96 | CG84: 0.79614 | CH84: 7.86 | CI84: 0.74375 | CK84: 2066-02-19 | CL84: 12 | CM84: 0.95207 | CN84: 9.37 | CO84: 0.84075 | CP84: 7.44 | CQ84: 0.73014 | CU84: 2009 | CY84: 766.7 | CZ84: 43 | DC84: 15.21956522
A85: 1967-02-21 | B85: 1.6 | C85: 1.132 | D85: 2 | E85: 1967 | F85: 8 | G85: 1.6 | H85: =IF(B85<Parameters!$A$16,B85*Parameters!$B$16,IF(AND(B85>Parameters!$A$16,B85<Parameters!$A$17),B85*Parameters!$B$17,B85*Parameters!$B$18)) -> 1.28 | I85: =IF(B85<Parameters!$A$20,B85*Parameters!$B$20,IF(AND(B85>Parameters!$A$20,B85<Parameters!$A$21),B85*Parameters!$B$21,B85*Parameters!$B$22)) -> 0.96 | O85: 1.096285714 | R85: =IF('Gegevens '!$G$20="Eigen waarden",VLOOKUP($F85,'Gegevens '!$A$25:$C$77,3,FALSE),VLOOKUP($F85,Lijsten!$A$19:$B$71,2,FALSE)) -> 13.231023 | AQ85: 0 | BM85: 1967-02-21 | BN85: 1.6 | BO85: 1.132 | BQ85: 1975-02-20 | BR85: 0 | BS85: 1.194 | BU85: 2006-02-20 | BV85: 17.52 | BW85: 1.07035 | BX85: 14.54 | BY85: 1.01735 | BZ85: 12.52 | CA85: 0.96469 | CC85: 2016-02-20 | CD85: 18.15 | CE85: 1.09702 | CF85: 14.66 | CG85: 1.02888 | CH85: 12.16 | CI85: 0.96117 | CK85: 2066-02-20 | CL85: 21.23 | CM85: 1.23038 | CN85: 15.31 | CO85: 1.08652 | CP85: 10.66 | CQ85: 0.94359 | CU85: 2010 | CY85: 913.3 | CZ85: 44 | DC85: 14.67391304
A86: 1967-02-22 | B86: 0.5 | C86: 1.393 | D86: 2 | E86: 1967 | F86: 8 | G86: 0.5 | H86: =IF(B86<Parameters!$A$16,B86*Parameters!$B$16,IF(AND(B86>Parameters!$A$16,B86<Parameters!$A$17),B86*Parameters!$B$17,B86*Parameters!$B$18)) -> 0 | I86: =IF(B86<Parameters!$A$20,B86*Parameters!$B$20,IF(AND(B86>Parameters!$A$20,B86<Parameters!$A$21),B86*Parameters!$B$21,B86*Parameters!$B$22)) -> 0 | O86: 1.357285714 | R86: =IF('Gegevens '!$G$20="Eigen waarden",VLOOKUP($F86,'Gegevens '!$A$25:$C$77,3,FALSE),VLOOKUP($F86,Lijsten!$A$19:$B$71,2,FALSE)) -> 13.231023 | AQ86: 0 | BM86: 1967-02-22 | BN86: 0.5 | BO86: 1.393 | BQ86: 1975-02-21 | BR86: 0 | BS86: 1.545 | BU86: 2006-02-21 | BV86: 2.16 | BW86: 1.24016 | BX86: 1.75 | BY86: 1.17875 | BZ86: 1.45 | CA86: 1.11774 | CC86: 2016-02-21 | CD86: 2.29 | CE86: 1.27107 | CF86: 1.79 | CG86: 1.19211 | CH86: 1.43 | CI86: 1.11366 | CK86: 2066-02-21 | CL86: 2.87 | CM86: 1.42558 | CN86: 1.99 | CO86: 1.2589 | CP86: 1.31 | CQ86: 1.09329 | CU86: 2011 | CY86: 816.6 | CZ86: 45 | DC86: 19.18695652
A87: 1967-02-23 | B87: 1.6 | C87: 0.965 | D87: 2 | E87: 1967 | F87: 8 | G87: 1.6 | H87: =IF(B87<Parameters!$A$16,B87*Parameters!$B$16,IF(AND(B87>Parameters!$A$16,B87<Parameters!$A$17),B87*Parameters!$B$17,B87*Parameters!$B$18)) -> 1.28 | I87: =IF(B87<Parameters!$A$20,B87*Parameters!$B$20,IF(AND(B87>Parameters!$A$20,B87<Parameters!$A$21),B87*Parameters!$B$21,B87*Parameters!$B$22)) -> 0.96 | O87: 0.9292857143 | R87: =IF('Gegevens '!$G$20="Eigen waarden",VLOOKUP($F87,'Gegevens '!$A$25:$C$77,3,FALSE),VLOOKUP($F87,Lijsten!$A$19:$B$71,2,FALSE)) -> 13.231023 | AQ87: 0 | BM87: 1967-02-23 | BN87: 1.6 | BO87: 0.965 | BQ87: 1975-02-22 | BR87: 0 | BS87: 1.19 | BU87: 2006-02-22 | BV87: 0.7 | BW87: 1.5261 | BX87: 0.56 | BY87: 1.45053 | BZ87: 0.46 | CA87: 1.37545 | CC87: 2016-02-22 | CD87: 0.74 | CE87: 1.56413 | CF87: 0.58 | CG87: 1.46697 | CH87: 0 | CI87: 1.37043 | CK87: 2066-02-22 | CL87: 0.96 | CM87: 1.75427 | CN87: 0.67 | CO87: 1.54916 | CP87: 0.42 | CQ87: 1.34536 | CU87: 2012 | CY87: 960 | CZ87: 46 | DC87: 16.27608696
A88: 1967-02-24 | B88: 0 | C88: 1.474 | D88: 2 | E88: 1967 | F88: 8 | G88: 0 | H88: =IF(B88<Parameters!$A$16,B88*Parameters!$B$16,IF(AND(B88>Parameters!$A$16,B88<Parameters!$A$17),B88*Parameters!$B$17,B88*Parameters!$B$18)) -> 0 | I88: =IF(B88<Parameters!$A$20,B88*Parameters!$B$20,IF(AND(B88>Parameters!$A$20,B88<Parameters!$A$21),B88*Parameters!$B$21,B88*Parameters!$B$22)) -> 0 | L88: 0 | N88: 0 | O88: 1.438285714 | R88: =IF('Gegevens '!$G$20="Eigen waarden",VLOOKUP($F88,'Gegevens '!$A$25:$C$77,3,FALSE),VLOOKUP($F88,Lijsten!$A$19:$B$71,2,FALSE)) -> 13.231023 | AC88: 0 | AE88: 0 | AQ88: 0 | BM88: 1967-02-24 | BN88: 0 | BO88: 1.474 | BQ88: 1975-02-23 | BR88: 0 | BS88: 1.363 | BU88: 2006-02-23 | BV88: 2.16 | BW88: 1.05721 | BX88: 1.75 | BY88: 1.00485 | BZ88: 1.45 | CA88: 0.95284 | CC88: 2016-02-23 | CD88: 2.29 | CE88: 1.08355 | CF88: 1.79 | CG88: 1.01624 | CH88: 1.43 | CI88: 0.94937 | CK88: 2066-02-23 | CL88: 2.88 | CM88: 1.21527 | CN88: 1.99 | CO88: 1.07318 | CP88: 1.31 | CQ88: 0.932 | CU88: Eindtotaal | CY88: 38138.6 | CZ88: 47 | DC88: 18.81956522
A89: 1967-02-25 | B89: 0.5 | C89: 1.411 | D89: 2 | E89: 1967 | F89: 8 | G89: 0.5 | H89: =IF(B89<Parameters!$A$16,B89*Parameters!$B$16,IF(AND(B89>Parameters!$A$16,B89<Parameters!$A$17),B89*Parameters!$B$17,B89*Parameters!$B$18)) -> 0 | I89: =IF(B89<Parameters!$A$20,B89*Parameters!$B$20,IF(AND(B89>Parameters!$A$20,B89<Parameters!$A$21),B89*Parameters!$B$21,B89*Parameters!$B$22)) -> 0 | O89: 1.375285714 | R89: =IF('Gegevens '!$G$20="Eigen waarden",VLOOKUP($F89,'Gegevens '!$A$25:$C$77,3,FALSE),VLOOKUP($F89,Lijsten!$A$19:$B$71,2,FALSE)) -> 13.231023 | AQ89: 0 | BM89: 1967-02-25 | BN89: 0.5 | BO89: 1.411 | BQ89: 1975-02-24 | BR89: 0 | BS89: 1.33 | BU89: 2006-02-24 | BV89: 0 | BW89: 1.61484 | BX89: 0 | BY89: 1.53488 | BZ89: 0 | CA89: 1.45543 | CC89: 2016-02-24 | CD89: 0 | CE89: 1.65508 | CF89: 0 | CG89: 1.55227 | CH89: 0 | CI89: 1.45012 | CK89: 2066-02-24 | CL89: 0 | CM89: 1.85628 | CN89: 3.13 | CO89: 1.63924 | CP89: 0 | CQ89: 1.42359 | CZ89: 48 | DC89: 17.97826087
A90: 1967-02-26 | B90: 14.7 | C90: 1.421 | D90: 2 | E90: 1967 | F90: 8 | G90: 14.7 | H90: =IF(B90<Parameters!$A$16,B90*Parameters!$B$16,IF(AND(B90>Parameters!$A$16,B90<Parameters!$A$17),B90*Parameters!$B$17,B90*Parameters!$B$18)) -> 13.965 | I90: =IF(B90<Parameters!$A$20,B90*Parameters!$B$20,IF(AND(B90>Parameters!$A$20,B90<Parameters!$A$21),B90*Parameters!$B$21,B90*Parameters!$B$22)) -> 11.025 | O90: 1.385285714 | R90: =IF('Gegevens '!$G$20="Eigen waarden",VLOOKUP($F90,'Gegevens '!$A$25:$C$77,3,FALSE),VLOOKUP($F90,Lijsten!$A$19:$B$71,2,FALSE)) -> 13.231023 | AQ90: 0 | BM90: 1967-02-26 | BN90: 14.7 | BO90: 1.421 | BQ90: 1975-02-25 | BR90: 0 | BS90: 1.077 | BU90: 2006-02-25 | BV90: 0.7 | BW90: 1.54582 | BX90: 0.56 | BY90: 1.46927 | BZ90: 0.46 | CA90: 1.39322 | CC90: 2016-02-25 | CD90: 0.74 | CE90: 1.58434 | CF90: 0.58 | CG90: 1.48592 | CH90: 0.45 | CI90: 1.38814 | CK90: 2066-02-25 | CL90: 0.96 | CM90: 1.77694 | CN90: 0.66 | CO90: 1.56917 | CP90: 0.42 | CQ90: 1.36274 | CZ90: 49 | DC90: 19.31086957
A91: 1967-02-27 | B91: 3.8 | C91: 1.529 | D91: 2 | E91: 1967 | F91: 9 | G91: 3.8 | H91: =IF(B91<Parameters!$A$16,B91*Parameters!$B$16,IF(AND(B91>Parameters!$A$16,B91<Parameters!$A$17),B91*Parameters!$B$17,B91*Parameters!$B$18)) -> 3.61 | I91: =IF(B91<Parameters!$A$20,B91*Parameters!$B$20,IF(AND(B91>Parameters!$A$20,B91<Parameters!$A$21),B91*Parameters!$B$21,B91*Parameters!$B$22)) -> 2.85 | O91: 1.493285714 | R91: =IF('Gegevens '!$G$20="Eigen waarden",VLOOKUP($F91,'Gegevens '!$A$25:$C$77,3,FALSE),VLOOKUP($F91,Lijsten!$A$19:$B$71,2,FALSE)) -> 14.86598124 | AQ91: 0 | BM91: 1967-02-27 | BN91: 3.8 | BO91: 1.529 | BQ91: 1975-02-26 | BR91: 0 | BS91: 1.458 | BU91: 2006-02-26 | BV91: 18.36 | BW91: 1.55678 | BX91: 15.2 | BY91: 1.47969 | BZ91: 13.08 | CA91: 1.4031 | CC91: 2016-02-26 | CD91: 18.97 | CE91: 1.59557 | CF91: 15.32 | CG91: 1.49646 | CH91: 12.77 | CI91: 1.39798 | CK91: 2066-02-26 | CL91: 22.19 | CM91: 1.78954 | CN91: 16.09 | CO91: 1.58029 | CP91: 11.24 | CQ91: 1.3724 | CZ91: 50 | DC91: 17.79130435
A92: 1967-02-28 | B92: 11.1 | C92: 1.287 | D92: 2 | E92: 1967 | F92: 9 | G92: 11.1 | H92: =IF(B92<Parameters!$A$16,B92*Parameters!$B$16,IF(AND(B92>Parameters!$A$16,B92<Parameters!$A$17),B92*Parameters!$B$17,B92*Parameters!$B$18)) -> 10.545 | I92: =IF(B92<Parameters!$A$20,B92*Parameters!$B$20,IF(AND(B92>Parameters!$A$20,B92<Parameters!$A$21),B92*Parameters!$B$21,B92*Parameters!$B$22)) -> 8.325 | O92: 1.251285714 | R92: =IF('Gegevens '!$G$20="Eigen waarden",VLOOKUP($F92,'Gegevens '!$A$25:$C$77,3,FALSE),VLOOKUP($F92,Lijsten!$A$19:$B$71,2,FALSE)) -> 14.86598124 | AQ92: 0 | BM92: 1967-02-28 | BN92: 11.1 | BO92: 1.287 | BQ92: 1975-02-27 | BR92: 0 | BS92: 1.649 | BU92: 2006-02-27 | BV92: 4.75 | BW92: 1.6751 | BX92: 4.05 | BY92: 1.59215 | BZ92: 3.58 | CA92: 1.50973 | CC92: 2016-02-27 | CD92: 4.93 | CE92: 1.71684 | CF92: 4.12 | CG92: 1.61019 | CH92: 3.56 | CI92: 1.50423 | CK92: 2066-02-27 | CL92: 5.8 | CM92: 1.92555 | CN92: 4.47 | CO92: 1.7004 | CP92: 3.47 | CQ92: 1.47671 | CZ92: 51 | DC92: 19.29565217
A93: 1967-03-01 | B93: 2 | C93: 0.969 | D93: 3 | E93: 1967 | F93: 9 | G93: 2 | H93: =IF(B93<Parameters!$A$16,B93*Parameters!$B$16,IF(AND(B93>Parameters!$A$16,B93<Parameters!$A$17),B93*Parameters!$B$17,B93*Parameters!$B$18)) -> 1.9 | I93: =IF(B93<Parameters!$A$20,B93*Parameters!$B$20,IF(AND(B93>Parameters!$A$20,B93<Parameters!$A$21),B93*Parameters!$B$21,B93*Parameters!$B$22)) -> 1.5 | O93: 0.8722258065 | R93: =IF('Gegevens '!$G$20="Eigen waarden",VLOOKUP($F93,'Gegevens '!$A$25:$C$77,3,FALSE),VLOOKUP($F93,Lijsten!$A$19:$B$71,2,FALSE)) -> 14.86598124 | AQ93: 0 | BM93: 1967-03-01 | BN93: 2 | BO93: 0.969 | BQ93: 1975-02-28 | BR93: 0 | BS93: 1.463 | BU93: 2006-02-28 | BV93: 13.63 | BW93: 1.40997 | BX93: 11.45 | BY93: 1.34015 | BZ93: 9.99 | CA93: 1.27078 | CC93: 2016-02-28 | CD93: 14.05 | CE93: 1.44511 | CF93: 11.55 | CG93: 1.35534 | CH93: 9.8 | CI93: 1.26615 | CK93: 2066-02-28 | CL93: 16.27 | CM93: 1.62078 | CN93: 12.04 | CO93: 1.43127 | CP93: 8.86 | CQ93: 1.24298 | CZ93: 52 | DC93: 17.04130435
A94: 1967-03-02 | B94: 1 | C94: 1.028 | D94: 3 | E94: 1967 | F94: 9 | G94: 1 | H94: =IF(B94<Parameters!$A$16,B94*Parameters!$B$16,IF(AND(B94>Parameters!$A$16,B94<Parameters!$A$17),B94*Parameters!$B$17,B94*Parameters!$B$18)) -> 0.95 | I94: =IF(B94<Parameters!$A$20,B94*Parameters!$B$20,IF(AND(B94>Parameters!$A$20,B94<Parameters!$A$21),B94*Parameters!$B$21,B94*Parameters!$B$22)) -> 0.75 | O94: 0.9312258065 | R94: =IF('Gegevens '!$G$20="Eigen waarden",VLOOKUP($F94,'Gegevens '!$A$25:$C$77,3,FALSE),VLOOKUP($F94,Lijsten!$A$19:$B$71,2,FALSE)) -> 14.86598124 | AQ94: 0 | BM94: 1967-03-02 | BN94: 1 | BO94: 1.028 | BQ94: 1975-03-01 | BR94: 0 | BS94: 1.334 | BU94: 2006-03-01 | BV94: 2.09 | BW94: 0.97816 | BX94: 2.09 | BY94: 0.97816 | BZ94: 2.09 | CA94: 0.91982 | CC94: 2016-02-29 | CD94: 2.12 | CE94: 0.98077 | CF94: 2.12 | CG94: 0.98077 | CH94: 2.12 | CI94: 0.90577 | CK94: 2066-03-01 | CL94: 2.26 | CM94: 0.99385 | CN94: 2.26 | CO94: 0.99385 | CP94: 2.26 | CQ94: 0.83552 | CZ94: 53 | DC94: 2.539130435
A95: 1967-03-03 | B95: 0 | C95: 0.932 | D95: 3 | E95: 1967 | F95: 9 | G95: 0 | H95: =IF(B95<Parameters!$A$16,B95*Parameters!$B$16,IF(AND(B95>Parameters!$A$16,B95<Parameters!$A$17),B95*Parameters!$B$17,B95*Parameters!$B$18)) -> 0 | I95: =IF(B95<Parameters!$A$20,B95*Parameters!$B$20,IF(AND(B95>Parameters!$A$20,B95<Parameters!$A$21),B95*Parameters!$B$21,B95*Parameters!$B$22)) -> 0 | L95: 0 | N95: 0 | O95: 0.8352258065 | R95: =IF('Gegevens '!$G$20="Eigen waarden",VLOOKUP($F95,'Gegevens '!$A$25:$C$77,3,FALSE),VLOOKUP($F95,Lijsten!$A$19:$B$71,2,FALSE)) -> 14.86598124 | AC95: 0 | AE95: 0 | AQ95: 0 | BM95: 1967-03-03 | BN95: 0 | BO95: 0.932 | BQ95: 1975-03-02 | BR95: 2.2 | BS95: 1.198 | BU95: 2006-03-02 | BV95: 1.06 | BW95: 1.03771 | BX95: 1.06 | BY95: 1.03771 | BZ95: 1.06 | CA95: 0.97583 | CC95: 2016-03-01 | CD95: 1.08 | CE95: 1.04049 | CF95: 1.08 | CG95: 1.04049 | CH95: 1.08 | CI95: 0.96092 | CK95: 2066-03-02 | CL95: 1.17 | CM95: 1.05437 | CN95: 1.17 | CO95: 1.05437 | CP95: 1.17 | CQ95: 0.88639 | CZ95: Eindtotaal | DC95: 829.1
A96: 1967-03-04 | B96: 0 | C96: 0.941 | D96: 3 | E96: 1967 | F96: 9 | G96: 0 | H96: =IF(B96<Parameters!$A$16,B96*Parameters!$B$16,IF(AND(B96>Parameters!$A$16,B96<Parameters!$A$17),B96*Parameters!$B$17,B96*Parameters!$B$18)) -> 0 | I96: =IF(B96<Parameters!$A$20,B96*Parameters!$B$20,IF(AND(B96>Parameters!$A$20,B96<Parameters!$A$21),B96*Parameters!$B$21,B96*Parameters!$B$22)) -> 0 | L96: 0 | N96: 0 | O96: 0.8442258065 | R96: =IF('Gegevens '!$G$20="Eigen waarden",VLOOKUP($F96,'Gegevens '!$A$25:$C$77,3,FALSE),VLOOKUP($F96,Lijsten!$A$19:$B$71,2,FALSE)) -> 14.86598124 | AC96: 0 | AE96: 0 | AQ96: 0 | BM96: 1967-03-04 | BN96: 0 | BO96: 0.941 | BQ96: 1975-03-03 | BR96: 0.2 | BS96: 1.341 | BU96: 2006-03-03 | BV96: 0 | BW96: 0.94081 | BX96: 0 | BY96: 0.94081 | BZ96: 0 | CA96: 0.8847 | CC96: 2016-03-02 | CD96: 0 | CE96: 0.94332 | CF96: 0 | CG96: 0.94332 | CH96: 0 | CI96: 0.87119 | CK96: 2066-03-03 | CL96: 0 | CM96: 0.95591 | CN96: 0 | CO96: 0.95591 | CP96: 0 | CQ96: 0.80362
A97: 1967-03-05 | B97: 0 | C97: 0.71 | D97: 3 | E97: 1967 | F97: 9 | G97: 0 | H97: =IF(B97<Parameters!$A$16,B97*Parameters!$B$16,IF(AND(B97>Parameters!$A$16,B97<Parameters!$A$17),B97*Parameters!$B$17,B97*Parameters!$B$18)) -> 0 | I97: =IF(B97<Parameters!$A$20,B97*Parameters!$B$20,IF(AND(B97>Parameters!$A$20,B97<Parameters!$A$21),B97*Parameters!$B$21,B97*Parameters!$B$22)) -> 0 | L97: 0 | N97: 0 | O97: 0.6132258065 | R97: =IF('Gegevens '!$G$20="Eigen waarden",VLOOKUP($F97,'Gegevens '!$A$25:$C$77,3,FALSE),VLOOKUP($F97,Lijsten!$A$19:$B$71,2,FALSE)) -> 14.86598124 | AC97: 0 | AE97: 0 | AQ97: 0 | BM97: 1967-03-05 | BN97: 0 | BO97: 0.71 | BQ97: 1975-03-04 | BR97: 1.5 | BS97: 1.055 | BU97: 2006-03-04 | BV97: 0 | BW97: 0.94989 | BX97: 0 | BY97: 0.94989 | BZ97: 0 | CA97: 0.89324 | CC97: 2016-03-03 | CD97: 0 | CE97: 0.95243 | CF97: 0 | CG97: 0.95243 | CH97: 0 | CI97: 0.8796 | CK97: 2066-03-04 | CL97: 0 | CM97: 0.96514 | CN97: 0 | CO97: 0.96514 | CP97: 0 | CQ97: 0.81138
A98: 1967-03-06 | B98: 0.2 | C98: 1.521 | D98: 3 | E98: 1967 | F98: 10 | G98: 0.2 | H98: =IF(B98<Parameters!$A$16,B98*Parameters!$B$16,IF(AND(B98>Parameters!$A$16,B98<Parameters!$A$17),B98*Parameters!$B$17,B98*Parameters!$B$18)) -> 0 | I98: =IF(B98<Parameters!$A$20,B98*Parameters!$B$20,IF(AND(B98>Parameters!$A$20,B98<Parameters!$A$21),B98*Parameters!$B$21,B98*Parameters!$B$22)) -> 0 | O98: 1.424225806 | R98: =IF('Gegevens '!$G$20="Eigen waarden",VLOOKUP($F98,'Gegevens '!$A$25:$C$77,3,FALSE),VLOOKUP($F98,Lijsten!$A$19:$B$71,2,FALSE)) -> 16.95100227 | AQ98: 0 | BM98: 1967-03-06 | BN98: 0.2 | BO98: 1.521 | BQ98: 1975-03-05 | BR98: 1.3 | BS98: 0.887 | BU98: 2006-03-05 | BV98: 0 | BW98: 0.71671 | BX98: 0 | BY98: 0.71671 | BZ98: 0 | CA98: 0.67397 | CC98: 2016-03-04 | CD98: 0 | CE98: 0.71863 | CF98: 0 | CG98: 0.71863 | CH98: 0 | CI98: 0.66367 | CK98: 2066-03-05 | CL98: 0 | CM98: 0.72821 | CN98: 0 | CO98: 0.72821 | CP98: 0 | CQ98: 0.6122
A99: 1967-03-07 | B99: 0 | C99: 1.039 | D99: =MONTH(A99) -> 3 | E99: 1967 | F99: =INT((A99-DATE(YEAR(A99-WEEKDAY(A99-1)+4),1,3)+WEEKDAY(DATE(YEAR(A99-WEEKDAY(A99-1)+4),1,3))+5)/7) -> 10 | G99: 0 | H99: =IF(B99<Parameters!$A$16,B99*Parameters!$B$16,IF(AND(B99>Parameters!$A$16,B99<Parameters!$A$17),B99*Parameters!$B$17,B99*Parameters!$B$18)) -> 0 | I99: =IF(B99<Parameters!$A$20,B99*Parameters!$B$20,IF(AND(B99>Parameters!$A$20,B99<Parameters!$A$21),B99*Parameters!$B$21,B99*Parameters!$B$22)) -> 0 | K99: =IF(B99=0,"",SUM(J99/(B99*10))) ->  | L99: 0 | M99: =IF(B99=0,"",L99/J99) ->  | N99: =IF(B99=0,0,SUM(J99-L99)) -> 0 | O99: =IF(OR($D99=1,$D99=12,$D99=8),C99+(2/31),IF($D99=2,C99-(1/28),IF($D99=3,C99-(3/31),IF($D99=4,C99-(5/30),IF($D99=5,C99-(6/31),IF($D99=6,C99-(4/30),IF($D99=7,C99-(1/31),IF($D99=9,C99+(4/30),IF($D99=10,C99+(5/31),IF($D99=11,C99+(5/30))))))))))) -> 0.9422258065 | P99: =-(($BH$3-$BI$3)*($AN$3+$AK$3-U99)/($AK$3)-$BH$3) ->  | R99: =IF('Gegevens '!$G$20="Eigen waarden",VLOOKUP($F99,'Gegevens '!$A$25:$C$77,3,FALSE),VLOOKUP($F99,Lijsten!$A$19:$B$71,2,FALSE)) -> 16.95100227 | Y99: =IF(R99=0,"",((R99-W99)/R99)) ->  | Z99: =IF(B99=0,"",X99/(B99*10)) ->  | AB99: =J99/10 ->  | AC99: =L99/10 -> 0 | AD99: =X99/10 ->  | AE99: 0 | AH99: =(R99-W99)/10 ->  | AI99: =SUM(AC99-AF99-AG99-AD99) ->  | AJ99: =IF(AB99=0,"",AE99/AB99) ->  | AL99: =IF(AC99=0,"",AG99/AC99) ->  | AM99: =IF(AC99=0,"",AD99/AC99) ->  | AN99: =IF(AC99=0,"",AI99/AC99) ->  | AQ99: 0 | BM99: 1967-03-07 | BN99: 0 | BO99: 1.039 | BQ99: 1975-03-06 | BR99: 2.1 | BS99: 0.922 | BU99: 2006-03-06 | BV99: 0.21 | BW99: 1.53537 | BX99: 0.21 | BY99: 1.53537 | BZ99: 0.21 | CA99: 1.44381 | CC99: 2016-03-05 | CD99: 0.21 | CE99: 1.53948 | CF99: 0.21 | CG99: 1.53948 | CH99: 0.21 | CI99: 1.42175 | CK99: 2066-03-06 | CL99: 0.22 | CM99: 1.56001 | CN99: 0.22 | CO99: 1.56001 | CP99: 0.22 | CQ99: 1.31148
A100: 1967-03-08 | B100: 1.3 | C100: 1.134 | D100: 3 | E100: =IF(AND((F99>1),(F100=1)),E99+1,E99) -> 1967 | F100: 10 | G100: =B100 -> 1.3 | H100: =IF(B100<Parameters!$A$16,B100*Parameters!$B$16,IF(AND(B100>Parameters!$A$16,B100<Parameters!$A$17),B100*Parameters!$B$17,B100*Parameters!$B$18)) -> 1.04 | I100: =IF(B100<Parameters!$A$20,B100*Parameters!$B$20,IF(AND(B100>Parameters!$A$20,B100<Parameters!$A$21),B100*Parameters!$B$21,B100*Parameters!$B$22)) -> 0.78 | L100: =IF(B100=0,0,SUM(B100*$D$3+H100*$B$3+I100*$C$3)/$E$3*10) ->  | O100: 1.037225806 | R100: =IF('Gegevens '!$G$20="Eigen waarden",VLOOKUP($F100,'Gegevens '!$A$25:$C$77,3,FALSE),VLOOKUP($F100,Lijsten!$A$19:$B$71,2,FALSE)) -> 16.95100227 | S100: =SUM(L100-R100-Q100) ->  | T100: =L100-Q100 ->  | U100: =IF(U99<$AN$3,U99+T100,IF(AND((U99>$AN$3),(SUM(U99+S100)<$AN$3)),SUM($AN$3+T100),IF((SUM(U99+S100)>($AN$3+$AK$3)),$AN$3+$AK$3,U99+S100))) ->  | X100: =R100-W100 ->  | AA100: =K100 ->  | AF100: =V100/10 ->  | AK100: =IF(AB100=0,"",AF100/AB100) ->  | AO100: =AI100*$E$5/1000 ->  | AP100: =IF(OR(F100<=13,F100>=40),VALUE(AO100),0) ->  | AQ100: =IF(OR(F100<=13,F100>=40),0,VALUE(AO100)) -> 0 | BM100: 1967-03-08 | BN100: 1.3 | BO100: 1.134 | BQ100: 1975-03-07 | BR100: 9.3 | BS100: 0.324 | BU100: 2006-03-07 | BV100: 0 | BW100: 1.04882 | BX100: 0 | BY100: 1.04882 | BZ100: 0 | CA100: 0.98627 | CC100: 2016-03-06 | CD100: 3.58 | CE100: 1.05162 | CF100: 3.58 | CG100: 1.05162 | CH100: 3.58 | CI100: 0.97121 | CK100: 2066-03-07 | CL100: 0 | CM100: 1.06565 | CN100: 0 | CO100: 1.06565 | CP100: 0 | CQ100: 0.89588
A101: 1967-03-09 | B101: 0.3 | C101: 1.902 | D101: 3 | E101: 1967 | F101: 10 | G101: 0.3 | H101: =IF(B101<Parameters!$A$16,B101*Parameters!$B$16,IF(AND(B101>Parameters!$A$16,B101<Parameters!$A$17),B101*Parameters!$B$17,B101*Parameters!$B$18)) -> 0 | I101: =IF(B101<Parameters!$A$20,B101*Parameters!$B$20,IF(AND(B101>Parameters!$A$20,B101<Parameters!$A$21),B101*Parameters!$B$21,B101*Parameters!$B$22)) -> 0 | J101: =B101*SUM($B$3,$C$3,$D$3)/$E$3*10 ->  | O101: 1.805225806 | R101: =IF('Gegevens '!$G$20="Eigen waarden",VLOOKUP($F101,'Gegevens '!$A$25:$C$77,3,FALSE),VLOOKUP($F101,Lijsten!$A$19:$B$71,2,FALSE)) -> 16.95100227 | V101: =IF(SUM(U100+S101)>SUM($AK$3+$AN$3),SUM(U100+S101-($AK$3+$AN$3)),0) ->  | W101: =IF(U100<$AN$3,R101,IF(SUM(U100-R101)>$AN$3,0,IF(SUM(U100+S101)<$AN$3,SUM(R101-(U100-$AN$3)),0))) ->  | AE101: =N101/10 ->  | AF101: =V101/10 ->  | AG101: =Q101/10 ->  | AQ101: 0 | BM101: 1967-03-09 | BN101: 0.3 | BO101: 1.902 | BQ101: 1975-03-08 | BR101: 0.1 | BS101: 1.162 | BU101: 2006-03-08 | BV101: 1.37 | BW101: 1.14472 | BX101: 1.37 | BY101: 1.14472 | BZ101: 1.37 | CA101: 1.07645 | CC101: 2016-03-07 | CD101: 1.39 | CE101: 1.14778 | CF101: 1.39 | CG101: 1.14778 | CH101: 1.39 | CI101: 1.06001 | CK101: 2066-03-08 | CL101: 1.49 | CM101: 1.16309 | CN101: 1.49 | CO101: 1.16309 | CP101: 1.49 | CQ101: 0.97779
A102: 1967-03-10 | B102: 7.5 | C102: 0.95 | D102: 3 | E102: 1967 | F102: 10 | G102: 7.5 | H102: =IF(B102<Parameters!$A$16,B102*Parameters!$B$16,IF(AND(B102>Parameters!$A$16,B102<Parameters!$A$17),B102*Parameters!$B$17,B102*Parameters!$B$18)) -> 7.125 | I102: =IF(B102<Parameters!$A$20,B102*Parameters!$B$20,IF(AND(B102>Parameters!$A$20,B102<Parameters!$A$21),B102*Parameters!$B$21,B102*Parameters!$B$22)) -> 5.625 | O102: 0.8532258065 | Q102: =SUM(O102*P101)/$E$3*10 ->  | R102: =IF('Gegevens '!$G$20="Eigen waarden",VLOOKUP($F102,'Gegevens '!$A$25:$C$77,3,FALSE),VLOOKUP($F102,Lijsten!$A$19:$B$71,2,FALSE)) -> 16.95100227 | AF102: =V102/10 ->  | AQ102: 0 | BM102: 1967-03-10 | BN102: 7.5 | BO102: 0.95 | BQ102: 1975-03-09 | BR102: 1.5 | BS102: 0.672 | BU102: 2006-03-09 | BV102: 0.31 | BW102: 1.91997 | BX102: 0.31 | BY102: 1.91997 | BZ102: 0.31 | CA102: 1.80547 | CC102: 2016-03-08 | CD102: 0.32 | CE102: 1.92511 | CF102: 0.32 | CG102: 1.92511 | CH102: 0.32 | CI102: 1.77789 | CK102: 2066-03-09 | CL102: 0.33 | CM102: 1.95079 | CN102: 0.33 | CO102: 1.95079 | CP102: 0.33 | CQ102: 1.64
A103: 1967-03-11 | B103: 2.6 | C103: 1.517 | D103: 3 | E103: 1967 | F103: 10 | G103: 2.6 | H103: =IF(B103<Parameters!$A$16,B103*Parameters!$B$16,IF(AND(B103>Parameters!$A$16,B103<Parameters!$A$17),B103*Parameters!$B$17,B103*Parameters!$B$18)) -> 2.47 | I103: =IF(B103<Parameters!$A$20,B103*Parameters!$B$20,IF(AND(B103>Parameters!$A$20,B103<Parameters!$A$21),B103*Parameters!$B$21,B103*Parameters!$B$22)) -> 1.95 | O103: 1.420225806 | R103: =IF('Gegevens '!$G$20="Eigen waarden",VLOOKUP($F103,'Gegevens '!$A$25:$C$77,3,FALSE),VLOOKUP($F103,Lijsten!$A$19:$B$71,2,FALSE)) -> 16.95100227 | AF103: =V103/10 ->  | AQ103: 0 | BM103: 1967-03-11 | BN103: 2.6 | BO103: 1.517 | BQ103: 1975-03-10 | BR103: 3.3 | BS103: 1.101 | BU103: 2006-03-10 | BV103: 7.84 | BW103: 0.95898 | BX103: 7.84 | BY103: 0.95898 | BZ103: 7.84 | CA103: 0.90179 | CC103: 2016-03-09 | CD103: 7.94 | CE103: 0.96154 | CF103: 7.94 | CG103: 0.96154 | CH103: 7.94 | CI103: 0.88801 | CK103: 2066-03-10 | CL103: 8.43 | CM103: 0.97437 | CN103: 8.43 | CO103: 0.97437 | CP103: 8.43 | CQ103: 0.81914
A104: 1967-03-12 | B104: 9.4 | C104: 1.676 | D104: 3 | E104: 1967 | F104: 10 | G104: 9.4 | H104: =IF(B104<Parameters!$A$16,B104*Parameters!$B$16,IF(AND(B104>Parameters!$A$16,B104<Parameters!$A$17),B104*Parameters!$B$17,B104*Parameters!$B$18)) -> 8.93 | I104: =IF(B104<Parameters!$A$20,B104*Parameters!$B$20,IF(AND(B104>Parameters!$A$20,B104<Parameters!$A$21),B104*Parameters!$B$21,B104*Parameters!$B$22)) -> 7.05 | O104: 1.579225806 | R104: =IF('Gegevens '!$G$20="Eigen waarden",VLOOKUP($F104,'Gegevens '!$A$25:$C$77,3,FALSE),VLOOKUP($F104,Lijsten!$A$19:$B$71,2,FALSE)) -> 16.95100227 | AF104: =V104/10 ->  | AQ104: 0 | BM104: 1967-03-12 | BN104: 9.4 | BO104: 1.676 | BQ104: 1975-03-11 | BR104: 4 | BS104: 0.474 | BU104: 2006-03-11 | BV104: 2.72 | BW104: 1.53134 | BX104: 2.72 | BY104: 1.53134 | BZ104: 2.72 | CA104: 1.44001 | CC104: 2016-03-10 | CD104: 2.76 | CE104: 1.53543 | CF104: 2.76 | CG104: 1.53543 | CH104: 2.76 | CI104: 1.41802 | CK104: 2066-03-11 | CL104: 2.94 | CM104: 1.55591 | CN104: 2.94 | CO104: 1.55591 | CP104: 2.94 | CQ104: 1.30803
A105: 1967-03-13 | B105: 16.7 | C105: 0.776 | D105: 3 | E105: 1967 | F105: 11 | G105: 16.7 | H105: =IF(B105<Parameters!$A$16,B105*Parameters!$B$16,IF(AND(B105>Parameters!$A$16,B105<Parameters!$A$17),B105*Parameters!$B$17,B105*Parameters!$B$18)) -> 15.865 | I105: =IF(B105<Parameters!$A$20,B105*Parameters!$B$20,IF(AND(B105>Parameters!$A$20,B105<Parameters!$A$21),B105*Parameters!$B$21,B105*Parameters!$B$22)) -> 12.525 | O105: 0.6792258065 | R105: =IF('Gegevens '!$G$20="Eigen waarden",VLOOKUP($F105,'Gegevens '!$A$25:$C$77,3,FALSE),VLOOKUP($F105,Lijsten!$A$19:$B$71,2,FALSE)) -> 19.50906967 | U105: =IF(U104<$AN$3,U104+T105,IF(AND((U104>$AN$3),(SUM(U104+S105)<$AN$3)),SUM($AN$3+T105),IF((SUM(U104+S105)>($AN$3+$AK$3)),$AN$3+$AK$3,U104+S105))) ->  | AF105: =V105/10 ->  | AQ105: 0 | BM105: 1967-03-13 | BN105: 16.7 | BO105: 0.776 | BQ105: 1975-03-12 | BR105: 0.2 | BS105: 0.1 | BU105: 2006-03-12 | BV105: 9.78 | BW105: 1.69184 | BX105: 9.78 | BY105: 1.69184 | BZ105: 9.78 | CA105: 1.59094 | CC105: 2016-03-11 | CD105: 9.89 | CE105: 1.69636 | CF105: 9.89 | CG105: 1.69636 | CH105: 9.89 | CI105: 1.56664 | CK105: 2066-03-12 | CL105: 10.44 | CM105: 1.71899 | CN105: 10.44 | CO105: 1.71899 | CP105: 10.44 | CQ105: 1.44513
A106: 1967-03-14 | B106: 0 | C106: 0.501 | D106: 3 | E106: 1967 | F106: 11 | G106: 0 | H106: =IF(B106<Parameters!$A$16,B106*Parameters!$B$16,IF(AND(B106>Parameters!$A$16,B106<Parameters!$A$17),B106*Parameters!$B$17,B106*Parameters!$B$18)) -> 0 | I106: =IF(B106<Parameters!$A$20,B106*Parameters!$B$20,IF(AND(B106>Parameters!$A$20,B106<Parameters!$A$21),B106*Parameters!$B$21,B106*Parameters!$B$22)) -> 0 | L106: 0 | N106: 0 | O106: 0.4042258065 | R106: =IF('Gegevens '!$G$20="Eigen waarden",VLOOKUP($F106,'Gegevens '!$A$25:$C$77,3,FALSE),VLOOKUP($F106,Lijsten!$A$19:$B$71,2,FALSE)) -> 19.50906967 | AC106: 0 | AE106: 0 | AQ106: 0 | BM106: 1967-03-14 | BN106: 0 | BO106: 0.501 | BQ106: 1975-03-13 | BR106: 0 | BS106: 0.114 | BU106: 2006-03-13 | BV106: 17.49 | BW106: 0.78333 | BX106: 17.49 | BY106: 0.78333 | BZ106: 17.49 | CA106: 0.73662 | CC106: 2016-03-12 | CD106: 17.71 | CE106: 0.78543 | CF106: 17.71 | CG106: 0.78543 | CH106: 17.71 | CI106: 0.72537 | CK106: 2066-03-13 | CL106: 18.83 | CM106: 0.7959 | CN106: 18.83 | CO106: 0.7959 | CP106: 18.83 | CQ106: 0.66911
A107: 1967-03-15 | B107: 0.2 | C107: 1.381 | D107: 3 | E107: 1967 | F107: 11 | G107: 0.2 | H107: =IF(B107<Parameters!$A$16,B107*Parameters!$B$16,IF(AND(B107>Parameters!$A$16,B107<Parameters!$A$17),B107*Parameters!$B$17,B107*Parameters!$B$18)) -> 0 | I107: =IF(B107<Parameters!$A$20,B107*Parameters!$B$20,IF(AND(B107>Parameters!$A$20,B107<Parameters!$A$21),B107*Parameters!$B$21,B107*Parameters!$B$22)) -> 0 | O107: 1.284225806 | R107: =IF('Gegevens '!$G$20="Eigen waarden",VLOOKUP($F107,'Gegevens '!$A$25:$C$77,3,FALSE),VLOOKUP($F107,Lijsten!$A$19:$B$71,2,FALSE)) -> 19.50906967 | AQ107: 0 | BM107: 1967-03-15 | BN107: 0.2 | BO107: 1.381 | BQ107: 1975-03-14 | BR107: 0.1 | BS107: 0.058 | BU107: 2006-03-14 | BV107: 0 | BW107: 0.50573 | BX107: 0 | BY107: 0.50573 | BZ107: 0 | CA107: 0.47557 | CC107: 2016-03-13 | CD107: 0 | CE107: 0.50709 | CF107: 0 | CG107: 0.50709 | CH107: 0 | CI107: 0.46831 | CK107: 2066-03-14 | CL107: 0 | CM107: 0.51385 | CN107: 0 | CO107: 0.51385 | CP107: 0 | CQ107: 0.43199 | CY107: Waarden
A108: 1967-03-16 | B108: 0.2 | C108: 0.994 | D108: 3 | E108: 1967 | F108: 11 | G108: 0.2 | H108: =IF(B108<Parameters!$A$16,B108*Parameters!$B$16,IF(AND(B108>Parameters!$A$16,B108<Parameters!$A$17),B108*Parameters!$B$17,B108*Parameters!$B$18)) -> 0 | I108: =IF(B108<Parameters!$A$20,B108*Parameters!$B$20,IF(AND(B108>Parameters!$A$20,B108<Parameters!$A$21),B108*Parameters!$B$21,B108*Parameters!$B$22)) -> 0 | O108: 0.8972258065 | R108: =IF('Gegevens '!$G$20="Eigen waarden",VLOOKUP($F108,'Gegevens '!$A$25:$C$77,3,FALSE),VLOOKUP($F108,Lijsten!$A$19:$B$71,2,FALSE)) -> 19.50906967 | AQ108: 0 | BM108: 1967-03-16 | BN108: 0.2 | BO108: 0.994 | BQ108: 1975-03-15 | BR108: 7.5 | BS108: 0.058 | BU108: 2006-03-15 | BV108: 0.21 | BW108: 1.39405 | BX108: 0.21 | BY108: 1.39405 | BZ108: 0.21 | CA108: 1.31091 | CC108: 2016-03-14 | CD108: 0.21 | CE108: 1.39778 | CF108: 0.21 | CG108: 1.39778 | CH108: 0.21 | CI108: 1.29089 | CK108: 2066-03-15 | CL108: 0.22 | CM108: 1.41642 | CN108: 0.22 | CO108: 1.41642 | CP108: 0.22 | CQ108: 1.19077 | CX108: Rijlabels | CY108: Som van Evaporatieverliezen per week | CZ108: Som van Overloopverliezen per week | DA108: Som van Opvangverliezen per week
A109: 1967-03-17 | B109: 0.9 | C109: 0.648 | D109: 3 | E109: 1967 | F109: 11 | G109: 0.9 | H109: =IF(B109<Parameters!$A$16,B109*Parameters!$B$16,IF(AND(B109>Parameters!$A$16,B109<Parameters!$A$17),B109*Parameters!$B$17,B109*Parameters!$B$18)) -> 0 | I109: =IF(B109<Parameters!$A$20,B109*Parameters!$B$20,IF(AND(B109>Parameters!$A$20,B109<Parameters!$A$21),B109*Parameters!$B$21,B109*Parameters!$B$22)) -> 0 | O109: 0.5512258065 | R109: =IF('Gegevens '!$G$20="Eigen waarden",VLOOKUP($F109,'Gegevens '!$A$25:$C$77,3,FALSE),VLOOKUP($F109,Lijsten!$A$19:$B$71,2,FALSE)) -> 19.50906967 | AQ109: 0 | BM109: 1967-03-17 | BN109: 0.9 | BO109: 0.648 | BQ109: 1975-03-16 | BR109: 1.6 | BS109: 0.88 | BU109: 2006-03-16 | BV109: 0.21 | BW109: 1.00339 | BX109: 0.21 | BY109: 1.00339 | BZ109: 0.21 | CA109: 0.94355 | CC109: 2016-03-15 | CD109: 0.21 | CE109: 1.00608 | CF109: 0.21 | CG109: 1.00608 | CH109: 0.21 | CI109: 0.92914 | CK109: 2066-03-16 | CL109: 0.22 | CM109: 1.0195 | CN109: 0.22 | CO109: 1.0195 | CP109: 0.22 | CQ109: 0.85708 | CX109: 1
A110: 1967-03-18 | B110: 3 | C110: 1.098 | D110: 3 | E110: 1967 | F110: 11 | G110: 3 | H110: =IF(B110<Parameters!$A$16,B110*Parameters!$B$16,IF(AND(B110>Parameters!$A$16,B110<Parameters!$A$17),B110*Parameters!$B$17,B110*Parameters!$B$18)) -> 2.85 | I110: =IF(B110<Parameters!$A$20,B110*Parameters!$B$20,IF(AND(B110>Parameters!$A$20,B110<Parameters!$A$21),B110*Parameters!$B$21,B110*Parameters!$B$22)) -> 2.25 | O110: 1.001225806 | R110: =IF('Gegevens '!$G$20="Eigen waarden",VLOOKUP($F110,'Gegevens '!$A$25:$C$77,3,FALSE),VLOOKUP($F110,Lijsten!$A$19:$B$71,2,FALSE)) -> 19.50906967 | AQ110: 0 | BM110: 1967-03-18 | BN110: 3 | BO110: 1.098 | BQ110: 1975-03-17 | BR110: 4.2 | BS110: 0.788 | BU110: 2006-03-17 | BV110: 0.95 | BW110: 0.65412 | BX110: 0.95 | BY110: 0.65412 | BZ110: 0.95 | CA110: 0.61511 | CC110: 2016-03-16 | CD110: 0.97 | CE110: 0.65587 | CF110: 0.97 | CG110: 0.65587 | CH110: 0.97 | CI110: 0.60572 | CK110: 2066-03-17 | CL110: 1.05 | CM110: 0.66462 | CN110: 1.05 | CO110: 0.66462 | CP110: 1.05 | CQ110: 0.55874 | CX110: 2
A111: 1967-03-19 | B111: 2.9 | C111: 0.436 | D111: 3 | E111: 1967 | F111: 11 | G111: 2.9 | H111: =IF(B111<Parameters!$A$16,B111*Parameters!$B$16,IF(AND(B111>Parameters!$A$16,B111<Parameters!$A$17),B111*Parameters!$B$17,B111*Parameters!$B$18)) -> 2.755 | I111: =IF(B111<Parameters!$A$20,B111*Parameters!$B$20,IF(AND(B111>Parameters!$A$20,B111<Parameters!$A$21),B111*Parameters!$B$21,B111*Parameters!$B$22)) -> 2.175 | O111: 0.3392258065 | R111: =IF('Gegevens '!$G$20="Eigen waarden",VLOOKUP($F111,'Gegevens '!$A$25:$C$77,3,FALSE),VLOOKUP($F111,Lijsten!$A$19:$B$71,2,FALSE)) -> 19.50906967 | AQ111: 0 | BM111: 1967-03-19 | BN111: 2.9 | BO111: 0.436 | BQ111: 1975-03-18 | BR111: 0 | BS111: 1.05 | BU111: 2006-03-18 | BV111: 3.13 | BW111: 1.10838 | BX111: 3.13 | BY111: 1.10838 | BZ111: 3.13 | CA111: 1.04228 | CC111: 2016-03-17 | CD111: 3.17 | CE111: 1.11134 | CF111: 3.17 | CG111: 1.11134 | CH111: 3.17 | CI111: 1.02636 | CK111: 2066-03-18 | CL111: 3.36 | CM111: 1.12616 | CN111: 3.36 | CO111: 1.12616 | CP111: 3.36 | CQ111: 0.94675 | CX111: 3
A112: 1967-03-20 | B112: 0 | C112: 1.605 | D112: 3 | E112: 1967 | F112: 12 | G112: 0 | H112: =IF(B112<Parameters!$A$16,B112*Parameters!$B$16,IF(AND(B112>Parameters!$A$16,B112<Parameters!$A$17),B112*Parameters!$B$17,B112*Parameters!$B$18)) -> 0 | I112: =IF(B112<Parameters!$A$20,B112*Parameters!$B$20,IF(AND(B112>Parameters!$A$20,B112<Parameters!$A$21),B112*Parameters!$B$21,B112*Parameters!$B$22)) -> 0 | L112: 0 | N112: 0 | O112: 1.508225806 | R112: =IF('Gegevens '!$G$20="Eigen waarden",VLOOKUP($F112,'Gegevens '!$A$25:$C$77,3,FALSE),VLOOKUP($F112,Lijsten!$A$19:$B$71,2,FALSE)) -> 22.55507074 | AC112: 0 | AE112: 0 | AQ112: 0 | BM112: 1967-03-20 | BN112: 0 | BO112: 1.605 | BQ112: 1975-03-19 | BR112: 18.2 | BS112: 0 | BU112: 2006-03-19 | BV112: 3.03 | BW112: 0.44012 | BX112: 3.03 | BY112: 0.44012 | BZ112: 3.03 | CA112: 0.41387 | CC112: 2016-03-18 | CD112: 3.07 | CE112: 0.4413 | CF112: 3.07 | CG112: 0.4413 | CH112: 3.07 | CI112: 0.40755 | CK112: 2066-03-19 | CL112: 3.26 | CM112: 0.44718 | CN112: 3.26 | CO112: 0.44718 | CP112: 3.26 | CQ112: 0.37594 | CX112: 4
A113: 1967-03-21 | B113: 0.3 | C113: 0.861 | D113: 3 | E113: 1967 | F113: 12 | G113: 0.3 | H113: =IF(B113<Parameters!$A$16,B113*Parameters!$B$16,IF(AND(B113>Parameters!$A$16,B113<Parameters!$A$17),B113*Parameters!$B$17,B113*Parameters!$B$18)) -> 0 | I113: =IF(B113<Parameters!$A$20,B113*Parameters!$B$20,IF(AND(B113>Parameters!$A$20,B113<Parameters!$A$21),B113*Parameters!$B$21,B113*Parameters!$B$22)) -> 0 | O113: 0.7642258065 | R113: =IF('Gegevens '!$G$20="Eigen waarden",VLOOKUP($F113,'Gegevens '!$A$25:$C$77,3,FALSE),VLOOKUP($F113,Lijsten!$A$19:$B$71,2,FALSE)) -> 22.55507074 | AQ113: 0 | BM113: 1967-03-21 | BN113: 0.3 | BO113: 0.861 | BQ113: 1975-03-20 | BR113: 3.4 | BS113: 1.28 | BU113: 2006-03-20 | BV113: 0 | BW113: 1.62017 | BX113: 0 | BY113: 1.62017 | BZ113: 0 | CA113: 1.52355 | CC113: 2016-03-19 | CD113: 0 | CE113: 1.6245 | CF113: 0 | CG113: 1.6245 | CH113: 0 | CI113: 1.50027 | CK113: 2066-03-20 | CL113: 0 | CM113: 1.64617 | CN113: 0 | CO113: 1.64617 | CP113: 0 | CQ113: 1.38391 | CX113: 5
A114: 1967-03-22 | B114: 0 | C114: 0.89 | D114: 3 | E114: 1967 | F114: 12 | G114: 0 | H114: =IF(B114<Parameters!$A$16,B114*Parameters!$B$16,IF(AND(B114>Parameters!$A$16,B114<Parameters!$A$17),B114*Parameters!$B$17,B114*Parameters!$B$18)) -> 0 | I114: =IF(B114<Parameters!$A$20,B114*Parameters!$B$20,IF(AND(B114>Parameters!$A$20,B114<Parameters!$A$21),B114*Parameters!$B$21,B114*Parameters!$B$22)) -> 0 | L114: 0 | N114: 0 | O114: 0.7932258065 | R114: =IF('Gegevens '!$G$20="Eigen waarden",VLOOKUP($F114,'Gegevens '!$A$25:$C$77,3,FALSE),VLOOKUP($F114,Lijsten!$A$19:$B$71,2,FALSE)) -> 22.55507074 | AC114: 0 | AE114: 0 | AQ114: 0 | BM114: 1967-03-22 | BN114: 0 | BO114: 0.89 | BQ114: 1975-03-21 | BR114: 0.2 | BS114: 1.457 | BU114: 2006-03-21 | BV114: 0.31 | BW114: 0.86914 | BX114: 0.31 | BY114: 0.86914 | BZ114: 0.31 | CA114: 0.8173 | CC114: 2016-03-20 | CD114: 0.32 | CE114: 0.87146 | CF114: 0.32 | CG114: 0.87146 | CH114: 0.32 | CI114: 0.80482 | CK114: 2066-03-21 | CL114: 0.33 | CM114: 0.88308 | CN114: 0.33 | CO114: 0.88308 | CP114: 0.33 | CQ114: 0.7424 | CU114: Rijlabels | CV114: Som van Watertekort m³/ha teeltopp. | CX114: 6
A115: 1967-03-23 | B115: 0.7 | C115: 1.707 | D115: 3 | E115: 1967 | F115: 12 | G115: 0.7 | H115: =IF(B115<Parameters!$A$16,B115*Parameters!$B$16,IF(AND(B115>Parameters!$A$16,B115<Parameters!$A$17),B115*Parameters!$B$17,B115*Parameters!$B$18)) -> 0 | I115: =IF(B115<Parameters!$A$20,B115*Parameters!$B$20,IF(AND(B115>Parameters!$A$20,B115<Parameters!$A$21),B115*Parameters!$B$21,B115*Parameters!$B$22)) -> 0 | O115: 1.610225806 | R115: =IF('Gegevens '!$G$20="Eigen waarden",VLOOKUP($F115,'Gegevens '!$A$25:$C$77,3,FALSE),VLOOKUP($F115,Lijsten!$A$19:$B$71,2,FALSE)) -> 22.55507074 | AQ115: 0 | BM115: 1967-03-23 | BN115: 0.7 | BO115: 1.707 | BQ115: 1975-03-22 | BR115: 10.9 | BS115: 0.238 | BU115: 2006-03-22 | BV115: 0 | BW115: 0.89841 | BX115: 0 | BY115: 0.89841 | BZ115: 0 | CA115: 0.84483 | CC115: 2016-03-21 | CD115: 0 | CE115: 0.90081 | CF115: 0 | CG115: 0.90081 | CH115: 0 | CI115: 0.83193 | CK115: 2066-03-22 | CL115: 0 | CM115: 0.91283 | CN115: 0 | CO115: 0.91283 | CP115: 0 | CQ115: 0.7674 | CU115: 1967 | CX115: 7
A116: 1967-03-24 | B116: 0 | C116: 1.952 | D116: 3 | E116: 1967 | F116: 12 | G116: 0 | H116: =IF(B116<Parameters!$A$16,B116*Parameters!$B$16,IF(AND(B116>Parameters!$A$16,B116<Parameters!$A$17),B116*Parameters!$B$17,B116*Parameters!$B$18)) -> 0 | I116: =IF(B116<Parameters!$A$20,B116*Parameters!$B$20,IF(AND(B116>Parameters!$A$20,B116<Parameters!$A$21),B116*Parameters!$B$21,B116*Parameters!$B$22)) -> 0 | L116: 0 | N116: 0 | O116: 1.855225806 | R116: =IF('Gegevens '!$G$20="Eigen waarden",VLOOKUP($F116,'Gegevens '!$A$25:$C$77,3,FALSE),VLOOKUP($F116,Lijsten!$A$19:$B$71,2,FALSE)) -> 22.55507074 | AC116: 0 | AE116: 0 | AQ116: 0 | BM116: 1967-03-24 | BN116: 0 | BO116: 1.952 | BQ116: 1975-03-23 | BR116: 0.5 | BS116: 1.368 | BU116: 2006-03-23 | BV116: 0.74 | BW116: 1.72313 | BX116: 0.74 | BY116: 1.72313 | BZ116: 0.74 | CA116: 1.62037 | CC116: 2016-03-22 | CD116: 0.75 | CE116: 1.72774 | CF116: 0.75 | CG116: 1.72774 | CH116: 0.75 | CI116: 1.59562 | CK116: 2066-03-23 | CL116: 0.81 | CM116: 1.75078 | CN116: 0.81 | CO116: 1.75078 | CP116: 0.81 | CQ116: 1.47186 | CU116: 1968 | CX116: 8
A117: 1967-03-25 | B117: 0 | C117: 3.409 | D117: 3 | E117: 1967 | F117: 12 | G117: 0 | H117: =IF(B117<Parameters!$A$16,B117*Parameters!$B$16,IF(AND(B117>Parameters!$A$16,B117<Parameters!$A$17),B117*Parameters!$B$17,B117*Parameters!$B$18)) -> 0 | I117: =IF(B117<Parameters!$A$20,B117*Parameters!$B$20,IF(AND(B117>Parameters!$A$20,B117<Parameters!$A$21),B117*Parameters!$B$21,B117*Parameters!$B$22)) -> 0 | L117: 0 | N117: 0 | O117: 3.312225806 | R117: =IF('Gegevens '!$G$20="Eigen waarden",VLOOKUP($F117,'Gegevens '!$A$25:$C$77,3,FALSE),VLOOKUP($F117,Lijsten!$A$19:$B$71,2,FALSE)) -> 22.55507074 | AC117: 0 | AE117: 0 | AQ117: 0 | BM117: 1967-03-25 | BN117: 0 | BO117: 3.409 | BQ117: 1975-03-24 | BR117: 6 | BS117: 0.749 | BU117: 2006-03-24 | BV117: 0 | BW117: 1.97045 | BX117: 0 | BY117: 1.97045 | BZ117: 0 | CA117: 1.85294 | CC117: 2016-03-23 | CD117: 0 | CE117: 1.97572 | CF117: 0 | CG117: 1.97572 | CH117: 0 | CI117: 1.82463 | CK117: 2066-03-24 | CL117: 0 | CM117: 2.00207 | CN117: 0 | CO117: 2.00207 | CP117: 0 | CQ117: 1.68311 | CU117: 1969 | CX117: 9
A118: 1967-03-26 | B118: 1.8 | C118: 2.146 | D118: 3 | E118: 1967 | F118: 12 | G118: 1.8 | H118: =IF(B118<Parameters!$A$16,B118*Parameters!$B$16,IF(AND(B118>Parameters!$A$16,B118<Parameters!$A$17),B118*Parameters!$B$17,B118*Parameters!$B$18)) -> 1.44 | I118: =IF(B118<Parameters!$A$20,B118*Parameters!$B$20,IF(AND(B118>Parameters!$A$20,B118<Parameters!$A$21),B118*Parameters!$B$21,B118*Parameters!$B$22)) -> 1.08 | O118: 2.049225806 | R118: =IF('Gegevens '!$G$20="Eigen waarden",VLOOKUP($F118,'Gegevens '!$A$25:$C$77,3,FALSE),VLOOKUP($F118,Lijsten!$A$19:$B$71,2,FALSE)) -> 22.55507074 | AQ118: 0 | BM118: 1967-03-26 | BN118: 1.8 | BO118: 2.146 | BQ118: 1975-03-25 | BR118: 1.1 | BS118: 1.094 | BU118: 2006-03-25 | BV118: 0 | BW118: 3.44122 | BX118: 0 | BY118: 3.44122 | BZ118: 0 | CA118: 3.23599 | CC118: 2016-03-24 | CD118: 0 | CE118: 3.45042 | CF118: 0 | CG118: 3.45042 | CH118: 0 | CI118: 3.18656 | CK118: 2066-03-25 | CL118: 0 | CM118: 3.49644 | CN118: 0 | CO118: 3.49644 | CP118: 0 | CQ118: 2.93941 | CU118: 1970 | CX118: 10
A119: 1967-03-27 | B119: 13.5 | C119: 0.894 | D119: 3 | E119: 1967 | F119: 13 | G119: 13.5 | H119: =IF(B119<Parameters!$A$16,B119*Parameters!$B$16,IF(AND(B119>Parameters!$A$16,B119<Parameters!$A$17),B119*Parameters!$B$17,B119*Parameters!$B$18)) -> 12.825 | I119: =IF(B119<Parameters!$A$20,B119*Parameters!$B$20,IF(AND(B119>Parameters!$A$20,B119<Parameters!$A$21),B119*Parameters!$B$21,B119*Parameters!$B$22)) -> 10.125 | O119: 0.7972258065 | R119: =IF('Gegevens '!$G$20="Eigen waarden",VLOOKUP($F119,'Gegevens '!$A$25:$C$77,3,FALSE),VLOOKUP($F119,Lijsten!$A$19:$B$71,2,FALSE)) -> 23.4603422 | AQ119: 0 | BM119: 1967-03-27 | BN119: 13.5 | BO119: 0.894 | BQ119: 1975-03-26 | BR119: 8.9 | BS119: 0.109 | BU119: 2006-03-26 | BV119: 1.89 | BW119: 2.16628 | BX119: 1.89 | BY119: 2.16628 | BZ119: 1.89 | CA119: 2.03709 | CC119: 2016-03-25 | CD119: 1.91 | CE119: 2.17207 | CF119: 1.91 | CG119: 2.17207 | CH119: 1.91 | CI119: 2.00597 | CK119: 2066-03-26 | CL119: 2.03 | CM119: 2.20104 | CN119: 2.03 | CO119: 2.20104 | CP119: 2.03 | CQ119: 1.85039 | CU119: 1971 | CX119: 11
A120: 1967-03-28 | B120: 1 | C120: 1.375 | D120: 3 | E120: 1967 | F120: 13 | G120: 1 | H120: =IF(B120<Parameters!$A$16,B120*Parameters!$B$16,IF(AND(B120>Parameters!$A$16,B120<Parameters!$A$17),B120*Parameters!$B$17,B120*Parameters!$B$18)) -> 0.95 | I120: =IF(B120<Parameters!$A$20,B120*Parameters!$B$20,IF(AND(B120>Parameters!$A$20,B120<Parameters!$A$21),B120*Parameters!$B$21,B120*Parameters!$B$22)) -> 0.75 | O120: 1.278225806 | R120: =IF('Gegevens '!$G$20="Eigen waarden",VLOOKUP($F120,'Gegevens '!$A$25:$C$77,3,FALSE),VLOOKUP($F120,Lijsten!$A$19:$B$71,2,FALSE)) -> 23.4603422 | AQ120: 0 | BM120: 1967-03-28 | BN120: 1 | BO120: 1.375 | BQ120: 1975-03-27 | BR120: 18.5 | BS120: 0.247 | BU120: 2006-03-27 | BV120: 14.06 | BW120: 0.90245 | BX120: 14.06 | BY120: 0.90245 | BZ120: 14.06 | CA120: 0.84863 | CC120: 2016-03-26 | CD120: 14.22 | CE120: 0.90486 | CF120: 14.22 | CG120: 0.90486 | CH120: 14.22 | CI120: 0.83567 | CK120: 2066-03-27 | CL120: 15.02 | CM120: 0.91693 | CN120: 15.02 | CO120: 0.91693 | CP120: 15.02 | CQ120: 0.77085 | CU120: 1972 | CX120: 12
A121: 1967-03-29 | B121: 0.1 | C121: 1.736 | D121: 3 | E121: 1967 | F121: 13 | G121: 0.1 | H121: =IF(B121<Parameters!$A$16,B121*Parameters!$B$16,IF(AND(B121>Parameters!$A$16,B121<Parameters!$A$17),B121*Parameters!$B$17,B121*Parameters!$B$18)) -> 0 | I121: =IF(B121<Parameters!$A$20,B121*Parameters!$B$20,IF(AND(B121>Parameters!$A$20,B121<Parameters!$A$21),B121*Parameters!$B$21,B121*Parameters!$B$22)) -> 0 | O121: 1.639225806 | R121: =IF('Gegevens '!$G$20="Eigen waarden",VLOOKUP($F121,'Gegevens '!$A$25:$C$77,3,FALSE),VLOOKUP($F121,Lijsten!$A$19:$B$71,2,FALSE)) -> 23.4603422 | AQ121: 0 | BM121: 1967-03-29 | BN121: 0.1 | BO121: 1.736 | BQ121: 1975-03-28 | BR121: 7.3 | BS121: 0.53 | BU121: 2006-03-28 | BV121: 1.06 | BW121: 1.38799 | BX121: 1.06 | BY121: 1.38799 | BZ121: 1.06 | CA121: 1.30522 | CC121: 2016-03-27 | CD121: 1.08 | CE121: 1.39171 | CF121: 1.08 | CG121: 1.39171 | CH121: 1.08 | CI121: 1.28528 | CK121: 2066-03-28 | CL121: 1.17 | CM121: 1.41027 | CN121: 1.17 | CO121: 1.41027 | CP121: 1.17 | CQ121: 1.18559 | CU121: 1973 | CX121: 13
A122: 1967-03-30 | B122: 0 | C122: 1.99 | D122: 3 | E122: 1967 | F122: 13 | G122: 0 | H122: =IF(B122<Parameters!$A$16,B122*Parameters!$B$16,IF(AND(B122>Parameters!$A$16,B122<Parameters!$A$17),B122*Parameters!$B$17,B122*Parameters!$B$18)) -> 0 | I122: =IF(B122<Parameters!$A$20,B122*Parameters!$B$20,IF(AND(B122>Parameters!$A$20,B122<Parameters!$A$21),B122*Parameters!$B$21,B122*Parameters!$B$22)) -> 0 | L122: 0 | N122: 0 | O122: 1.893225806 | R122: =IF('Gegevens '!$G$20="Eigen waarden",VLOOKUP($F122,'Gegevens '!$A$25:$C$77,3,FALSE),VLOOKUP($F122,Lijsten!$A$19:$B$71,2,FALSE)) -> 23.4603422 | AC122: 0 | AE122: 0 | AQ122: 0 | BM122: 1967-03-30 | BN122: 0 | BO122: 1.99 | BQ122: 1975-03-29 | BR122: 1.4 | BS122: 1.293 | BU122: 2006-03-29 | BV122: 0.1 | BW122: 1.75241 | BX122: 0.1 | BY122: 1.75241 | BZ122: 0.1 | CA122: 1.6479 | CC122: 2016-03-28 | CD122: 0.1 | CE122: 1.75709 | CF122: 0.1 | CG122: 1.75709 | CH122: 0.1 | CI122: 1.62273 | CK122: 2066-03-29 | CL122: 0.11 | CM122: 1.78053 | CN122: 0.11 | CO122: 1.78053 | CP122: 0.11 | CQ122: 1.49687 | CU122: 1974 | CX122: 14
A123: 1967-03-31 | B123: 0.1 | C123: 1.715 | D123: 3 | E123: 1967 | F123: 13 | G123: 0.1 | H123: =IF(B123<Parameters!$A$16,B123*Parameters!$B$16,IF(AND(B123>Parameters!$A$16,B123<Parameters!$A$17),B123*Parameters!$B$17,B123*Parameters!$B$18)) -> 0 | I123: =IF(B123<Parameters!$A$20,B123*Parameters!$B$20,IF(AND(B123>Parameters!$A$20,B123<Parameters!$A$21),B123*Parameters!$B$21,B123*Parameters!$B$22)) -> 0 | O123: 1.618225806 | R123: =IF('Gegevens '!$G$20="Eigen waarden",VLOOKUP($F123,'Gegevens '!$A$25:$C$77,3,FALSE),VLOOKUP($F123,Lijsten!$A$19:$B$71,2,FALSE)) -> 23.4603422 | AQ123: 0 | BM123: 1967-03-31 | BN123: 0.1 | BO123: 1.715 | BQ123: 1975-03-30 | BR123: 3 | BS123: 0.747 | BU123: 2006-03-30 | BV123: 0 | BW123: 2.00881 | BX123: 0 | BY123: 2.00881 | BZ123: 0 | CA123: 1.88901 | CC123: 2016-03-29 | CD123: 0 | CE123: 2.01418 | CF123: 0 | CG123: 2.01418 | CH123: 0 | CI123: 1.86015 | CK123: 2066-03-30 | CL123: 0 | CM123: 2.04104 | CN123: 0 | CO123: 2.04104 | CP123: 0 | CQ123: 1.71588 | CU123: 1975 | CX123: 15
A124: 1967-04-01 | B124: 0.2 | C124: 1.833 | D124: 4 | E124: 1967 | F124: 13 | G124: 0.2 | H124: =IF(B124<Parameters!$A$16,B124*Parameters!$B$16,IF(AND(B124>Parameters!$A$16,B124<Parameters!$A$17),B124*Parameters!$B$17,B124*Parameters!$B$18)) -> 0 | I124: =IF(B124<Parameters!$A$20,B124*Parameters!$B$20,IF(AND(B124>Parameters!$A$20,B124<Parameters!$A$21),B124*Parameters!$B$21,B124*Parameters!$B$22)) -> 0 | O124: 1.666333333 | R124: =IF('Gegevens '!$G$20="Eigen waarden",VLOOKUP($F124,'Gegevens '!$A$25:$C$77,3,FALSE),VLOOKUP($F124,Lijsten!$A$19:$B$71,2,FALSE)) -> 23.4603422 | AQ124: 0 | BM124: 1967-04-01 | BN124: 0.2 | BO124: 1.833 | BQ124: 1975-03-31 | BR124: 0.2 | BS124: 1.912 | BU124: 2006-03-31 | BV124: 0.1 | BW124: 1.73121 | BX124: 0.1 | BY124: 1.73121 | BZ124: 0.1 | CA124: 1.62796 | CC124: 2016-03-30 | CD124: 0.1 | CE124: 1.73584 | CF124: 0.1 | CG124: 1.73584 | CH124: 0.1 | CI124: 1.6031 | CK124: 2066-03-31 | CL124: 0.11 | CM124: 1.75899 | CN124: 0.11 | CO124: 1.75899 | CP124: 0.11 | CQ124: 1.47876 | CU124: 1976 | CX124: 16
A125: 1967-04-02 | B125: 4.5 | C125: 0.923 | D125: 4 | E125: 1967 | F125: 13 | G125: 4.5 | H125: =IF(B125<Parameters!$A$16,B125*Parameters!$B$16,IF(AND(B125>Parameters!$A$16,B125<Parameters!$A$17),B125*Parameters!$B$17,B125*Parameters!$B$18)) -> 4.275 | I125: =IF(B125<Parameters!$A$20,B125*Parameters!$B$20,IF(AND(B125>Parameters!$A$20,B125<Parameters!$A$21),B125*Parameters!$B$21,B125*Parameters!$B$22)) -> 3.375 | O125: 0.7563333333 | R125: =IF('Gegevens '!$G$20="Eigen waarden",VLOOKUP($F125,'Gegevens '!$A$25:$C$77,3,FALSE),VLOOKUP($F125,Lijsten!$A$19:$B$71,2,FALSE)) -> 23.4603422 | AQ125: 0 | BM125: 1967-04-02 | BN125: 4.5 | BO125: 0.923 | BQ125: 1975-04-01 | BR125: 1 | BS125: 1.225 | BU125: 2006-04-01 | BV125: 0.23 | BW125: 1.88561 | BX125: 0.23 | BY125: 1.88561 | BZ125: 0.23 | CA125: 1.80413 | CC125: 2016-03-31 | CD125: 0.23 | CE125: 1.90064 | CF125: 0.23 | CG125: 1.90064 | CH125: 0.23 | CI125: 1.79588 | CK125: 2066-04-01 | CL125: 0 | CM125: 1.97579 | CN125: 0 | CO125: 1.97579 | CP125: 0 | CQ125: 1.75464 | CU125: 1977 | CX125: 17
A126: 1967-04-03 | B126: 0.9 | C126: 1.76 | D126: 4 | E126: 1967 | F126: 14 | G126: 0.9 | H126: =IF(B126<Parameters!$A$16,B126*Parameters!$B$16,IF(AND(B126>Parameters!$A$16,B126<Parameters!$A$17),B126*Parameters!$B$17,B126*Parameters!$B$18)) -> 0 | I126: =IF(B126<Parameters!$A$20,B126*Parameters!$B$20,IF(AND(B126>Parameters!$A$20,B126<Parameters!$A$21),B126*Parameters!$B$21,B126*Parameters!$B$22)) -> 0 | O126: 1.593333333 | R126: =IF('Gegevens '!$G$20="Eigen waarden",VLOOKUP($F126,'Gegevens '!$A$25:$C$77,3,FALSE),VLOOKUP($F126,Lijsten!$A$19:$B$71,2,FALSE)) -> 27.01993778 | AP126: 0 | BM126: 1967-04-03 | BN126: 0.9 | BO126: 1.76 | BQ126: 1975-04-02 | BR126: 12.9 | BS126: 0.018 | BU126: 2006-04-02 | BV126: 5.23 | BW126: 0.94949 | BX126: 5.23 | BY126: 0.94949 | BZ126: 5.23 | CA126: 0.90846 | CC126: 2016-04-01 | CD126: 5.23 | CE126: 0.95706 | CF126: 5.23 | CG126: 0.95706 | CH126: 5.23 | CI126: 0.90431 | CK126: 2066-04-02 | CL126: 5.24 | CM126: 0.9949 | CN126: 5.24 | CO126: 0.9949 | CP126: 5.24 | CQ126: 0.88354 | CU126: 1978 | CX126: 18
A127: 1967-04-04 | B127: 0.5 | C127: 0.796 | D127: 4 | E127: 1967 | F127: 14 | G127: 0.5 | H127: =IF(B127<Parameters!$A$16,B127*Parameters!$B$16,IF(AND(B127>Parameters!$A$16,B127<Parameters!$A$17),B127*Parameters!$B$17,B127*Parameters!$B$18)) -> 0 | I127: =IF(B127<Parameters!$A$20,B127*Parameters!$B$20,IF(AND(B127>Parameters!$A$20,B127<Parameters!$A$21),B127*Parameters!$B$21,B127*Parameters!$B$22)) -> 0 | O127: 0.6293333333 | R127: =IF('Gegevens '!$G$20="Eigen waarden",VLOOKUP($F127,'Gegevens '!$A$25:$C$77,3,FALSE),VLOOKUP($F127,Lijsten!$A$19:$B$71,2,FALSE)) -> 27.01993778 | AP127: 0 | BM127: 1967-04-04 | BN127: 0.5 | BO127: 0.796 | BQ127: 1975-04-03 | BR127: 4.7 | BS127: 0.845 | BU127: 2006-04-03 | BV127: 1.02 | BW127: 1.81051 | BX127: 1.02 | BY127: 1.81051 | BZ127: 1.02 | CA127: 1.73228 | CC127: 2016-04-02 | CD127: 1.02 | CE127: 1.82494 | CF127: 1.02 | CG127: 1.82494 | CH127: 1.02 | CI127: 1.72436 | CK127: 2066-04-03 | CL127: 0.99 | CM127: 1.8971 | CN127: 0.99 | CO127: 1.8971 | CP127: 0.99 | CQ127: 1.68476 | CU127: 1979 | CX127: 19
A128: 1967-04-05 | B128: 0.1 | C128: 1.08 | D128: 4 | E128: 1967 | F128: 14 | G128: 0.1 | H128: =IF(B128<Parameters!$A$16,B128*Parameters!$B$16,IF(AND(B128>Parameters!$A$16,B128<Parameters!$A$17),B128*Parameters!$B$17,B128*Parameters!$B$18)) -> 0 | I128: =IF(B128<Parameters!$A$20,B128*Parameters!$B$20,IF(AND(B128>Parameters!$A$20,B128<Parameters!$A$21),B128*Parameters!$B$21,B128*Parameters!$B$22)) -> 0 | O128: 0.9133333333 | R128: =IF('Gegevens '!$G$20="Eigen waarden",VLOOKUP($F128,'Gegevens '!$A$25:$C$77,3,FALSE),VLOOKUP($F128,Lijsten!$A$19:$B$71,2,FALSE)) -> 27.01993778 | AP128: 0 | BM128: 1967-04-05 | BN128: 0.1 | BO128: 1.08 | BQ128: 1975-04-04 | BR128: 6.2 | BS128: 0.647 | BU128: 2006-04-04 | BV128: 0.57 | BW128: 0.81885 | BX128: 0.57 | BY128: 0.81885 | BZ128: 0.57 | CA128: 0.78346 | CC128: 2016-04-03 | CD128: 0.57 | CE128: 0.82537 | CF128: 0.57 | CG128: 0.82537 | CH128: 0.57 | CI128: 0.77988 | CK128: 2066-04-04 | CL128: 0.56 | CM128: 0.85801 | CN128: 0.56 | CO128: 0.85801 | CP128: 0.56 | CQ128: 0.76197 | CU128: 1980 | CX128: 20
A129: 1967-04-06 | B129: 8.8 | C129: 0.64 | D129: 4 | E129: 1967 | F129: 14 | G129: 8.8 | H129: =IF(B129<Parameters!$A$16,B129*Parameters!$B$16,IF(AND(B129>Parameters!$A$16,B129<Parameters!$A$17),B129*Parameters!$B$17,B129*Parameters!$B$18)) -> 8.36 | I129: =IF(B129<Parameters!$A$20,B129*Parameters!$B$20,IF(AND(B129>Parameters!$A$20,B129<Parameters!$A$21),B129*Parameters!$B$21,B129*Parameters!$B$22)) -> 6.6 | O129: 0.4733333333 | R129: =IF('Gegevens '!$G$20="Eigen waarden",VLOOKUP($F129,'Gegevens '!$A$25:$C$77,3,FALSE),VLOOKUP($F129,Lijsten!$A$19:$B$71,2,FALSE)) -> 27.01993778 | AP129: 0 | BM129: 1967-04-06 | BN129: 8.8 | BO129: 0.64 | BQ129: 1975-04-05 | BR129: 0.7 | BS129: 1.515 | BU129: 2006-04-05 | BV129: 0.12 | BW129: 1.111 | BX129: 0.12 | BY129: 1.111 | BZ129: 0.12 | CA129: 1.06299 | CC129: 2016-04-04 | CD129: 0.12 | CE129: 1.11985 | CF129: 0.12 | CG129: 1.11985 | CH129: 0.12 | CI129: 1.05813 | CK129: 2066-04-05 | CL129: 0.12 | CM129: 1.16413 | CN129: 0.12 | CO129: 1.16413 | CP129: 0.12 | CQ129: 1.03383 | CU129: 1981 | CX129: 21
A130: 1967-04-07 | B130: 0.4 | C130: 1.166 | D130: 4 | E130: 1967 | F130: 14 | G130: 0.4 | H130: =IF(B130<Parameters!$A$16,B130*Parameters!$B$16,IF(AND(B130>Parameters!$A$16,B130<Parameters!$A$17),B130*Parameters!$B$17,B130*Parameters!$B$18)) -> 0 | I130: =IF(B130<Parameters!$A$20,B130*Parameters!$B$20,IF(AND(B130>Parameters!$A$20,B130<Parameters!$A$21),B130*Parameters!$B$21,B130*Parameters!$B$22)) -> 0 | O130: 0.9993333333 | R130: =IF('Gegevens '!$G$20="Eigen waarden",VLOOKUP($F130,'Gegevens '!$A$25:$C$77,3,FALSE),VLOOKUP($F130,Lijsten!$A$19:$B$71,2,FALSE)) -> 27.01993778 | AP130: 0 | BM130: 1967-04-07 | BN130: 0.4 | BO130: 1.166 | BQ130: 1975-04-06 | BR130: 0.3 | BS130: 0.27 | BU130: 2006-04-06 | BV130: 10.38 | BW130: 0.65837 | BX130: 10.38 | BY130: 0.65837 | BZ130: 10.38 | CA130: 0.62992 | CC130: 2016-04-05 | CD130: 10.42 | CE130: 0.66362 | CF130: 10.42 | CG130: 0.66362 | CH130: 10.42 | CI130: 0.62704 | CK130: 2066-04-06 | CL130: 10.67 | CM130: 0.68986 | CN130: 10.67 | CO130: 0.68986 | CP130: 10.67 | CQ130: 0.61264 | CU130: 1982 | CX130: 22
A131: 1967-04-08 | B131: 0 | C131: 2.363 | D131: 4 | E131: 1967 | F131: 14 | G131: 0 | H131: =IF(B131<Parameters!$A$16,B131*Parameters!$B$16,IF(AND(B131>Parameters!$A$16,B131<Parameters!$A$17),B131*Parameters!$B$17,B131*Parameters!$B$18)) -> 0 | I131: =IF(B131<Parameters!$A$20,B131*Parameters!$B$20,IF(AND(B131>Parameters!$A$20,B131<Parameters!$A$21),B131*Parameters!$B$21,B131*Parameters!$B$22)) -> 0 | L131: 0 | N131: 0 | O131: 2.196333333 | R131: =IF('Gegevens '!$G$20="Eigen waarden",VLOOKUP($F131,'Gegevens '!$A$25:$C$77,3,FALSE),VLOOKUP($F131,Lijsten!$A$19:$B$71,2,FALSE)) -> 27.01993778 | AC131: 0 | AE131: 0 | AP131: 0 | BM131: 1967-04-08 | BN131: 0 | BO131: 2.363 | BQ131: 1975-04-07 | BR131: 4.8 | BS131: 1.357 | BU131: 2006-04-07 | BV131: 0.46 | BW131: 1.19946 | BX131: 0.46 | BY131: 1.19946 | BZ131: 0.46 | CA131: 1.14764 | CC131: 2016-04-06 | CD131: 0.46 | CE131: 1.20903 | CF131: 0.46 | CG131: 1.20903 | CH131: 0.46 | CI131: 1.14239 | CK131: 2066-04-07 | CL131: 0.45 | CM131: 1.25683 | CN131: 0.45 | CO131: 1.25683 | CP131: 0.45 | CQ131: 1.11615 | CU131: 1983 | CX131: 23
A132: 1967-04-09 | B132: 0.3 | C132: 1.879 | D132: 4 | E132: 1967 | F132: 14 | G132: 0.3 | H132: =IF(B132<Parameters!$A$16,B132*Parameters!$B$16,IF(AND(B132>Parameters!$A$16,B132<Parameters!$A$17),B132*Parameters!$B$17,B132*Parameters!$B$18)) -> 0 | I132: =IF(B132<Parameters!$A$20,B132*Parameters!$B$20,IF(AND(B132>Parameters!$A$20,B132<Parameters!$A$21),B132*Parameters!$B$21,B132*Parameters!$B$22)) -> 0 | O132: 1.712333333 | R132: =IF('Gegevens '!$G$20="Eigen waarden",VLOOKUP($F132,'Gegevens '!$A$25:$C$77,3,FALSE),VLOOKUP($F132,Lijsten!$A$19:$B$71,2,FALSE)) -> 27.01993778 | AP132: 0 | BM132: 1967-04-09 | BN132: 0.3 | BO132: 1.879 | BQ132: 1975-04-08 | BR132: 1 | BS132: 1.403 | BU132: 2006-04-08 | BV132: 0 | BW132: 2.43082 | BX132: 0 | BY132: 2.43082 | BZ132: 0 | CA132: 2.32578 | CC132: 2016-04-07 | CD132: 0 | CE132: 2.45019 | CF132: 0 | CG132: 2.45019 | CH132: 0 | CI132: 2.31515 | CK132: 2066-04-08 | CL132: 0 | CM132: 2.54708 | CN132: 0 | CO132: 2.54708 | CP132: 0 | CQ132: 2.26198 | CU132: 1984 | CX132: 24
A133: 1967-04-10 | B133: 4.7 | C133: 2.271 | D133: 4 | E133: 1967 | F133: 15 | G133: 4.7 | H133: =IF(B133<Parameters!$A$16,B133*Parameters!$B$16,IF(AND(B133>Parameters!$A$16,B133<Parameters!$A$17),B133*Parameters!$B$17,B133*Parameters!$B$18)) -> 4.465 | I133: =IF(B133<Parameters!$A$20,B133*Parameters!$B$20,IF(AND(B133>Parameters!$A$20,B133<Parameters!$A$21),B133*Parameters!$B$21,B133*Parameters!$B$22)) -> 3.525 | O133: 2.104333333 | R133: =IF('Gegevens '!$G$20="Eigen waarden",VLOOKUP($F133,'Gegevens '!$A$25:$C$77,3,FALSE),VLOOKUP($F133,Lijsten!$A$19:$B$71,2,FALSE)) -> 28.92536326 | AP133: 0 | BM133: 1967-04-10 | BN133: 4.7 | BO133: 2.271 | BQ133: 1975-04-09 | BR133: 6.6 | BS133: 0.267 | BU133: 2006-04-09 | BV133: 0.35 | BW133: 1.93293 | BX133: 0.35 | BY133: 1.93293 | BZ133: 0.35 | CA133: 1.84941 | CC133: 2016-04-08 | CD133: 0.35 | CE133: 1.94834 | CF133: 0.35 | CG133: 1.94834 | CH133: 0.35 | CI133: 1.84095 | CK133: 2066-04-09 | CL133: 0.35 | CM133: 2.02537 | CN133: 0.35 | CO133: 2.02537 | CP133: 0.35 | CQ133: 1.79867 | CU133: 1985 | CX133: 25
A134: 1967-04-11 | B134: 0 | C134: 1.397 | D134: 4 | E134: 1967 | F134: 15 | G134: 0 | H134: =IF(B134<Parameters!$A$16,B134*Parameters!$B$16,IF(AND(B134>Parameters!$A$16,B134<Parameters!$A$17),B134*Parameters!$B$17,B134*Parameters!$B$18)) -> 0 | I134: =IF(B134<Parameters!$A$20,B134*Parameters!$B$20,IF(AND(B134>Parameters!$A$20,B134<Parameters!$A$21),B134*Parameters!$B$21,B134*Parameters!$B$22)) -> 0 | L134: 0 | N134: 0 | O134: 1.230333333 | R134: =IF('Gegevens '!$G$20="Eigen waarden",VLOOKUP($F134,'Gegevens '!$A$25:$C$77,3,FALSE),VLOOKUP($F134,Lijsten!$A$19:$B$71,2,FALSE)) -> 28.92536326 | AC134: 0 | AE134: 0 | AP134: 0 | BM134: 1967-04-11 | BN134: 0 | BO134: 1.397 | BQ134: 1975-04-10 | BR134: 0.2 | BS134: 1.824 | BU134: 2006-04-10 | BV134: 5.48 | BW134: 2.33618 | BX134: 5.48 | BY134: 2.33618 | BZ134: 5.48 | CA134: 2.23523 | CC134: 2016-04-09 | CD134: 5.49 | CE134: 2.3548 | CF134: 5.49 | CG134: 2.3548 | CH134: 5.49 | CI134: 2.22501 | CK134: 2066-04-10 | CL134: 0 | CM134: 2.44791 | CN134: 0 | CO134: 2.44791 | CP134: 0 | CQ134: 2.17391 | CU134: 1986 | CX134: 26
A135: 1967-04-12 | B135: 0.6 | C135: 1.842 | D135: 4 | E135: 1967 | F135: 15 | G135: 0.6 | H135: =IF(B135<Parameters!$A$16,B135*Parameters!$B$16,IF(AND(B135>Parameters!$A$16,B135<Parameters!$A$17),B135*Parameters!$B$17,B135*Parameters!$B$18)) -> 0 | I135: =IF(B135<Parameters!$A$20,B135*Parameters!$B$20,IF(AND(B135>Parameters!$A$20,B135<Parameters!$A$21),B135*Parameters!$B$21,B135*Parameters!$B$22)) -> 0 | O135: 1.675333333 | R135: =IF('Gegevens '!$G$20="Eigen waarden",VLOOKUP($F135,'Gegevens '!$A$25:$C$77,3,FALSE),VLOOKUP($F135,Lijsten!$A$19:$B$71,2,FALSE)) -> 28.92536326 | AP135: 0 | BM135: 1967-04-12 | BN135: 0.6 | BO135: 1.842 | BQ135: 1975-04-11 | BR135: 1 | BS135: 0.429 | BU135: 2006-04-11 | BV135: 0 | BW135: 1.43709 | BX135: 0 | BY135: 1.43709 | BZ135: 0 | CA135: 1.375 | CC135: 2016-04-10 | CD135: 0 | CE135: 1.44855 | CF135: 0 | CG135: 1.44855 | CH135: 0 | CI135: 1.36871 | CK135: 2066-04-11 | CL135: 0 | CM135: 1.50583 | CN135: 0 | CO135: 1.50583 | CP135: 0 | CQ135: 1.33728 | CU135: 1987 | CX135: 27
A136: 1967-04-13 | B136: 0.1 | C136: 2.208 | D136: 4 | E136: 1967 | F136: 15 | G136: 0.1 | H136: =IF(B136<Parameters!$A$16,B136*Parameters!$B$16,IF(AND(B136>Parameters!$A$16,B136<Parameters!$A$17),B136*Parameters!$B$17,B136*Parameters!$B$18)) -> 0 | I136: =IF(B136<Parameters!$A$20,B136*Parameters!$B$20,IF(AND(B136>Parameters!$A$20,B136<Parameters!$A$21),B136*Parameters!$B$21,B136*Parameters!$B$22)) -> 0 | O136: 2.041333333 | R136: =IF('Gegevens '!$G$20="Eigen waarden",VLOOKUP($F136,'Gegevens '!$A$25:$C$77,3,FALSE),VLOOKUP($F136,Lijsten!$A$19:$B$71,2,FALSE)) -> 28.92536326 | AP136: 0 | BM136: 1967-04-13 | BN136: 0.1 | BO136: 2.208 | BQ136: 1975-04-12 | BR136: 0.5 | BS136: 0.516 | BU136: 2006-04-12 | BV136: 0.68 | BW136: 1.89487 | BX136: 0.68 | BY136: 1.89487 | BZ136: 0.68 | CA136: 1.81299 | CC136: 2016-04-11 | CD136: 0.68 | CE136: 1.90997 | CF136: 0.68 | CG136: 1.90997 | CH136: 0.68 | CI136: 1.8047 | CK136: 2066-04-12 | CL136: 0.66 | CM136: 1.98549 | CN136: 0.66 | CO136: 1.98549 | CP136: 0.66 | CQ136: 1.76325 | CU136: 1988 | CX136: 28
A137: 1967-04-14 | B137: 0 | C137: 3.466 | D137: 4 | E137: 1967 | F137: 15 | G137: 0 | H137: =IF(B137<Parameters!$A$16,B137*Parameters!$B$16,IF(AND(B137>Parameters!$A$16,B137<Parameters!$A$17),B137*Parameters!$B$17,B137*Parameters!$B$18)) -> 0 | I137: =IF(B137<Parameters!$A$20,B137*Parameters!$B$20,IF(AND(B137>Parameters!$A$20,B137<Parameters!$A$21),B137*Parameters!$B$21,B137*Parameters!$B$22)) -> 0 | L137: 0 | N137: 0 | O137: 3.299333333 | R137: =IF('Gegevens '!$G$20="Eigen waarden",VLOOKUP($F137,'Gegevens '!$A$25:$C$77,3,FALSE),VLOOKUP($F137,Lijsten!$A$19:$B$71,2,FALSE)) -> 28.92536326 | AC137: 0 | AE137: 0 | AP137: 0 | BM137: 1967-04-14 | BN137: 0 | BO137: 3.466 | BQ137: 1975-04-13 | BR137: 0.2 | BS137: 1.866 | BU137: 2006-04-13 | BV137: 0.12 | BW137: 2.27137 | BX137: 0.12 | BY137: 2.27137 | BZ137: 0.12 | CA137: 2.17322 | CC137: 2016-04-12 | CD137: 0.12 | CE137: 2.28948 | CF137: 0.12 | CG137: 2.28948 | CH137: 0.12 | CI137: 2.16329 | CK137: 2066-04-13 | CL137: 0.12 | CM137: 2.38 | CN137: 0.12 | CO137: 2.38 | CP137: 0.12 | CQ137: 2.11361 | CU137: 1989 | CX137: 29
A138: 1967-04-15 | B138: 0.6 | C138: 2.803 | D138: 4 | E138: 1967 | F138: 15 | G138: 0.6 | H138: =IF(B138<Parameters!$A$16,B138*Parameters!$B$16,IF(AND(B138>Parameters!$A$16,B138<Parameters!$A$17),B138*Parameters!$B$17,B138*Parameters!$B$18)) -> 0 | I138: =IF(B138<Parameters!$A$20,B138*Parameters!$B$20,IF(AND(B138>Parameters!$A$20,B138<Parameters!$A$21),B138*Parameters!$B$21,B138*Parameters!$B$22)) -> 0 | O138: 2.636333333 | R138: =IF('Gegevens '!$G$20="Eigen waarden",VLOOKUP($F138,'Gegevens '!$A$25:$C$77,3,FALSE),VLOOKUP($F138,Lijsten!$A$19:$B$71,2,FALSE)) -> 28.92536326 | AP138: 0 | BM138: 1967-04-15 | BN138: 0.6 | BO138: 2.803 | BQ138: 1975-04-14 | BR138: 4.3 | BS138: 1.114 | BU138: 2006-04-14 | BV138: 0 | BW138: 3.56547 | BX138: 0 | BY138: 3.56547 | BZ138: 0 | CA138: 3.41141 | CC138: 2016-04-13 | CD138: 0 | CE138: 3.5939 | CF138: 0 | CG138: 3.5939 | CH138: 0 | CI138: 3.39581 | CK138: 2066-04-14 | CL138: 0 | CM138: 3.736 | CN138: 0 | CO138: 3.736 | CP138: 0 | CQ138: 3.31783 | CU138: 1990 | CX138: 30
A139: 1967-04-16 | B139: 0 | C139: 3.067 | D139: 4 | E139: 1967 | F139: 15 | G139: 0 | H139: =IF(B139<Parameters!$A$16,B139*Parameters!$B$16,IF(AND(B139>Parameters!$A$16,B139<Parameters!$A$17),B139*Parameters!$B$17,B139*Parameters!$B$18)) -> 0 | I139: =IF(B139<Parameters!$A$20,B139*Parameters!$B$20,IF(AND(B139>Parameters!$A$20,B139<Parameters!$A$21),B139*Parameters!$B$21,B139*Parameters!$B$22)) -> 0 | L139: 0 | N139: 0 | O139: 2.900333333 | R139: =IF('Gegevens '!$G$20="Eigen waarden",VLOOKUP($F139,'Gegevens '!$A$25:$C$77,3,FALSE),VLOOKUP($F139,Lijsten!$A$19:$B$71,2,FALSE)) -> 28.92536326 | AC139: 0 | AE139: 0 | AP139: 0 | BM139: 1967-04-16 | BN139: 0 | BO139: 3.067 | BQ139: 1975-04-15 | BR139: 2.6 | BS139: 1.499 | BU139: 2006-04-15 | BV139: 0.68 | BW139: 2.88345 | BX139: 0.68 | BY139: 2.88345 | BZ139: 0.68 | CA139: 2.75885 | CC139: 2016-04-14 | CD139: 0.68 | CE139: 2.90643 | CF139: 0.68 | CG139: 2.90643 | CH139: 0.68 | CI139: 2.74624 | CK139: 2066-04-15 | CL139: 0.66 | CM139: 3.02135 | CN139: 0.66 | CO139: 3.02135 | CP139: 0.66 | CQ139: 2.68317 | CU139: 1991 | CX139: 31
A140: 1967-04-17 | B140: 0 | C140: 2.959 | D140: 4 | E140: 1967 | F140: 16 | G140: 0 | H140: =IF(B140<Parameters!$A$16,B140*Parameters!$B$16,IF(AND(B140>Parameters!$A$16,B140<Parameters!$A$17),B140*Parameters!$B$17,B140*Parameters!$B$18)) -> 0 | I140: =IF(B140<Parameters!$A$20,B140*Parameters!$B$20,IF(AND(B140>Parameters!$A$20,B140<Parameters!$A$21),B140*Parameters!$B$21,B140*Parameters!$B$22)) -> 0 | L140: 0 | N140: 0 | O140: 2.792333333 | R140: =IF('Gegevens '!$G$20="Eigen waarden",VLOOKUP($F140,'Gegevens '!$A$25:$C$77,3,FALSE),VLOOKUP($F140,Lijsten!$A$19:$B$71,2,FALSE)) -> 32.71974768 | AC140: 0 | AE140: 0 | AP140: 0 | BM140: 1967-04-17 | BN140: 0 | BO140: 2.959 | BQ140: 1975-04-16 | BR140: 0.2 | BS140: 0.516 | BU140: 2006-04-16 | BV140: 0 | BW140: 3.15502 | BX140: 0 | BY140: 3.15502 | BZ140: 0 | CA140: 3.01869 | CC140: 2016-04-15 | CD140: 0 | CE140: 3.18017 | CF140: 0 | CG140: 3.18017 | CH140: 0 | CI140: 3.00489 | CK140: 2066-04-16 | CL140: 0 | CM140: 3.30592 | CN140: 0 | CO140: 3.30592 | CP140: 0 | CQ140: 2.93589 | CU140: 1992 | CX140: 32
A141: 1967-04-18 | B141: 0 | C141: 2.043 | D141: 4 | E141: 1967 | F141: 16 | G141: 0 | H141: =IF(B141<Parameters!$A$16,B141*Parameters!$B$16,IF(AND(B141>Parameters!$A$16,B141<Parameters!$A$17),B141*Parameters!$B$17,B141*Parameters!$B$18)) -> 0 | I141: =IF(B141<Parameters!$A$20,B141*Parameters!$B$20,IF(AND(B141>Parameters!$A$20,B141<Parameters!$A$21),B141*Parameters!$B$21,B141*Parameters!$B$22)) -> 0 | L141: 0 | N141: 0 | O141: 1.876333333 | R141: =IF('Gegevens '!$G$20="Eigen waarden",VLOOKUP($F141,'Gegevens '!$A$25:$C$77,3,FALSE),VLOOKUP($F141,Lijsten!$A$19:$B$71,2,FALSE)) -> 32.71974768 | AC141: 0 | AE141: 0 | AP141: 0 | BM141: 1967-04-18 | BN141: 0 | BO141: 2.043 | BQ141: 1975-04-17 | BR141: 2.9 | BS141: 1.33 | BU141: 2006-04-17 | BV141: 0 | BW141: 3.04392 | BX141: 0 | BY141: 3.04392 | BZ141: 0 | CA141: 2.9124 | CC141: 2016-04-16 | CD141: 0 | CE141: 3.06819 | CF141: 0 | CG141: 3.06819 | CH141: 0 | CI141: 2.89908 | CK141: 2066-04-17 | CL141: 0 | CM141: 3.18951 | CN141: 0 | CO141: 3.18951 | CP141: 0 | CQ141: 2.8325 | CU141: 1993 | CX141: 33
A142: 1967-04-19 | B142: 0 | C142: 3.205 | D142: 4 | E142: 1967 | F142: 16 | G142: 0 | H142: =IF(B142<Parameters!$A$16,B142*Parameters!$B$16,IF(AND(B142>Parameters!$A$16,B142<Parameters!$A$17),B142*Parameters!$B$17,B142*Parameters!$B$18)) -> 0 | I142: =IF(B142<Parameters!$A$20,B142*Parameters!$B$20,IF(AND(B142>Parameters!$A$20,B142<Parameters!$A$21),B142*Parameters!$B$21,B142*Parameters!$B$22)) -> 0 | L142: 0 | N142: 0 | O142: 3.038333333 | R142: =IF('Gegevens '!$G$20="Eigen waarden",VLOOKUP($F142,'Gegevens '!$A$25:$C$77,3,FALSE),VLOOKUP($F142,Lijsten!$A$19:$B$71,2,FALSE)) -> 32.71974768 | AC142: 0 | AE142: 0 | AP142: 0 | BM142: 1967-04-19 | BN142: 0 | BO142: 3.205 | BQ142: 1975-04-18 | BR142: 2.8 | BS142: 2.61 | BU142: 2006-04-18 | BV142: 0 | BW142: 2.10163 | BX142: 0 | BY142: 2.10163 | BZ142: 0 | CA142: 2.01082 | CC142: 2016-04-17 | CD142: 0 | CE142: 2.11839 | CF142: 0 | CG142: 2.11839 | CH142: 0 | CI142: 2.00163 | CK142: 2066-04-18 | CL142: 0 | CM142: 2.20215 | CN142: 0 | CO142: 2.20215 | CP142: 0 | CQ142: 1.95566 | CU142: 1994 | CX142: 34
A143: 1967-04-20 | B143: 0.7 | C143: 1.268 | D143: 4 | E143: 1967 | F143: 16 | G143: 0.7 | H143: =IF(B143<Parameters!$A$16,B143*Parameters!$B$16,IF(AND(B143>Parameters!$A$16,B143<Parameters!$A$17),B143*Parameters!$B$17,B143*Parameters!$B$18)) -> 0 | I143: =IF(B143<Parameters!$A$20,B143*Parameters!$B$20,IF(AND(B143>Parameters!$A$20,B143<Parameters!$A$21),B143*Parameters!$B$21,B143*Parameters!$B$22)) -> 0 | O143: 1.101333333 | R143: =IF('Gegevens '!$G$20="Eigen waarden",VLOOKUP($F143,'Gegevens '!$A$25:$C$77,3,FALSE),VLOOKUP($F143,Lijsten!$A$19:$B$71,2,FALSE)) -> 32.71974768 | AP143: 0 | BM143: 1967-04-20 | BN143: 0.7 | BO143: 1.268 | BQ143: 1975-04-19 | BR143: 1.4 | BS143: 1.058 | BU143: 2006-04-19 | BV143: 0 | BW143: 3.29698 | BX143: 0 | BY143: 3.29698 | BZ143: 0 | CA143: 3.15452 | CC143: 2016-04-18 | CD143: 0 | CE143: 3.32326 | CF143: 0 | CG143: 3.32326 | CH143: 0 | CI143: 3.1401 | CK143: 2066-04-19 | CL143: 0 | CM143: 3.45467 | CN143: 0 | CO143: 3.45467 | CP143: 0 | CQ143: 3.06799 | CU143: 1995 | CX143: 35
A144: 1967-04-21 | B144: 1.5 | C144: 2.073 | D144: 4 | E144: 1967 | F144: 16 | G144: 1.5 | H144: =IF(B144<Parameters!$A$16,B144*Parameters!$B$16,IF(AND(B144>Parameters!$A$16,B144<Parameters!$A$17),B144*Parameters!$B$17,B144*Parameters!$B$18)) -> 1.2 | I144: =IF(B144<Parameters!$A$20,B144*Parameters!$B$20,IF(AND(B144>Parameters!$A$20,B144<Parameters!$A$21),B144*Parameters!$B$21,B144*Parameters!$B$22)) -> 0.9 | O144: 1.906333333 | R144: =IF('Gegevens '!$G$20="Eigen waarden",VLOOKUP($F144,'Gegevens '!$A$25:$C$77,3,FALSE),VLOOKUP($F144,Lijsten!$A$19:$B$71,2,FALSE)) -> 32.71974768 | AP144: 0 | BM144: 1967-04-21 | BN144: 1.5 | BO144: 2.073 | BQ144: 1975-04-20 | BR144: 0 | BS144: 2.626 | BU144: 2006-04-20 | BV144: 0.8 | BW144: 1.30439 | BX144: 0.8 | BY144: 1.30439 | BZ144: 0.8 | CA144: 1.24803 | CC144: 2016-04-19 | CD144: 0.79 | CE144: 1.31479 | CF144: 0.79 | CG144: 1.31479 | CH144: 0.79 | CI144: 1.24232 | CK144: 2066-04-20 | CL144: 0.78 | CM144: 1.36678 | CN144: 0.78 | CO144: 1.36678 | CP144: 0.78 | CQ144: 1.21379 | CU144: 1996 | CX144: 36
A145: 1967-04-22 | B145: 0.8 | C145: 1.682 | D145: 4 | E145: 1967 | F145: 16 | G145: 0.8 | H145: =IF(B145<Parameters!$A$16,B145*Parameters!$B$16,IF(AND(B145>Parameters!$A$16,B145<Parameters!$A$17),B145*Parameters!$B$17,B145*Parameters!$B$18)) -> 0 | I145: =IF(B145<Parameters!$A$20,B145*Parameters!$B$20,IF(AND(B145>Parameters!$A$20,B145<Parameters!$A$21),B145*Parameters!$B$21,B145*Parameters!$B$22)) -> 0 | O145: 1.515333333 | R145: =IF('Gegevens '!$G$20="Eigen waarden",VLOOKUP($F145,'Gegevens '!$A$25:$C$77,3,FALSE),VLOOKUP($F145,Lijsten!$A$19:$B$71,2,FALSE)) -> 32.71974768 | AP145: 0 | BM145: 1967-04-22 | BN145: 0.8 | BO145: 1.682 | BQ145: 1975-04-21 | BR145: 0 | BS145: 3.436 | BU145: 2006-04-21 | BV145: 1.71 | BW145: 2.1325 | BX145: 1.71 | BY145: 2.1325 | BZ145: 1.71 | CA145: 2.04035 | CC145: 2016-04-20 | CD145: 1.69 | CE145: 2.14949 | CF145: 1.69 | CG145: 2.14949 | CH145: 1.69 | CI145: 2.03102 | CK145: 2066-04-21 | CL145: 1.65 | CM145: 2.23449 | CN145: 1.65 | CO145: 2.23449 | CP145: 1.65 | CQ145: 1.98438 | CU145: 1997 | CX145: 37
A146: 1967-04-23 | B146: 5.1 | C146: 0.564 | D146: 4 | E146: 1967 | F146: 16 | G146: 5.1 | H146: =IF(B146<Parameters!$A$16,B146*Parameters!$B$16,IF(AND(B146>Parameters!$A$16,B146<Parameters!$A$17),B146*Parameters!$B$17,B146*Parameters!$B$18)) -> 4.845 | I146: =IF(B146<Parameters!$A$20,B146*Parameters!$B$20,IF(AND(B146>Parameters!$A$20,B146<Parameters!$A$21),B146*Parameters!$B$21,B146*Parameters!$B$22)) -> 3.825 | O146: 0.3973333333 | R146: =IF('Gegevens '!$G$20="Eigen waarden",VLOOKUP($F146,'Gegevens '!$A$25:$C$77,3,FALSE),VLOOKUP($F146,Lijsten!$A$19:$B$71,2,FALSE)) -> 32.71974768 | AP146: 0 | BM146: 1967-04-23 | BN146: 5.1 | BO146: 0.564 | BQ146: 1975-04-22 | BR146: 0 | BS146: 4.448 | BU146: 2006-04-22 | BV146: 0.92 | BW146: 1.73027 | BX146: 0.92 | BY146: 1.73027 | BZ146: 0.92 | CA146: 1.65551 | CC146: 2016-04-21 | CD146: 0.9 | CE146: 1.74407 | CF146: 0.9 | CG146: 1.74407 | CH146: 0.9 | CI146: 1.64794 | CK146: 2066-04-22 | CL146: 0.88 | CM146: 1.81303 | CN146: 0.88 | CO146: 1.81303 | CP146: 0.88 | CQ146: 1.61009 | CU146: 1998 | CX146: 38
A147: 1967-04-24 | B147: 0 | C147: 3.513 | D147: 4 | E147: 1967 | F147: 17 | G147: 0 | H147: =IF(B147<Parameters!$A$16,B147*Parameters!$B$16,IF(AND(B147>Parameters!$A$16,B147<Parameters!$A$17),B147*Parameters!$B$17,B147*Parameters!$B$18)) -> 0 | I147: =IF(B147<Parameters!$A$20,B147*Parameters!$B$20,IF(AND(B147>Parameters!$A$20,B147<Parameters!$A$21),B147*Parameters!$B$21,B147*Parameters!$B$22)) -> 0 | L147: 0 | N147: 0 | O147: 3.346333333 | R147: =IF('Gegevens '!$G$20="Eigen waarden",VLOOKUP($F147,'Gegevens '!$A$25:$C$77,3,FALSE),VLOOKUP($F147,Lijsten!$A$19:$B$71,2,FALSE)) -> 34.00984409 | AC147: 0 | AE147: 0 | AP147: 0 | BM147: 1967-04-24 | BN147: 0 | BO147: 3.513 | BQ147: 1975-04-23 | BR147: 0 | BS147: 2.757 | BU147: 2006-04-23 | BV147: 5.95 | BW147: 0.58019 | BX147: 5.95 | BY147: 0.58019 | BZ147: 5.95 | CA147: 0.55512 | CC147: 2016-04-22 | CD147: 5.97 | CE147: 0.58481 | CF147: 5.97 | CG147: 0.58481 | CH147: 5.97 | CI147: 0.55258 | CK147: 2066-04-23 | CL147: 6 | CM147: 0.60794 | CN147: 6 | CO147: 0.60794 | CP147: 6 | CQ147: 0.53989 | CU147: 1999 | CX147: 39
A148: 1967-04-25 | B148: 0 | C148: 3.833 | D148: 4 | E148: 1967 | F148: 17 | G148: 0 | H148: =IF(B148<Parameters!$A$16,B148*Parameters!$B$16,IF(AND(B148>Parameters!$A$16,B148<Parameters!$A$17),B148*Parameters!$B$17,B148*Parameters!$B$18)) -> 0 | I148: =IF(B148<Parameters!$A$20,B148*Parameters!$B$20,IF(AND(B148>Parameters!$A$20,B148<Parameters!$A$21),B148*Parameters!$B$21,B148*Parameters!$B$22)) -> 0 | L148: 0 | N148: 0 | O148: 3.666333333 | R148: =IF('Gegevens '!$G$20="Eigen waarden",VLOOKUP($F148,'Gegevens '!$A$25:$C$77,3,FALSE),VLOOKUP($F148,Lijsten!$A$19:$B$71,2,FALSE)) -> 34.00984409 | AC148: 0 | AE148: 0 | AP148: 0 | BM148: 1967-04-25 | BN148: 0 | BO148: 3.833 | BQ148: 1975-04-24 | BR148: 0 | BS148: 2.741 | BU148: 2006-04-24 | BV148: 0 | BW148: 3.61382 | BX148: 0 | BY148: 3.61382 | BZ148: 0 | CA148: 3.45767 | CC148: 2016-04-23 | CD148: 0 | CE148: 3.64263 | CF148: 0 | CG148: 3.64263 | CH148: 0 | CI148: 3.44186 | CK148: 2066-04-24 | CL148: 0 | CM148: 3.78666 | CN148: 0 | CO148: 3.78666 | CP148: 0 | CQ148: 3.36282 | CU148: 2000 | CX148: 40
A149: 1967-04-26 | B149: 0 | C149: 4.119 | D149: 4 | E149: 1967 | F149: 17 | G149: 0 | H149: =IF(B149<Parameters!$A$16,B149*Parameters!$B$16,IF(AND(B149>Parameters!$A$16,B149<Parameters!$A$17),B149*Parameters!$B$17,B149*Parameters!$B$18)) -> 0 | I149: =IF(B149<Parameters!$A$20,B149*Parameters!$B$20,IF(AND(B149>Parameters!$A$20,B149<Parameters!$A$21),B149*Parameters!$B$21,B149*Parameters!$B$22)) -> 0 | L149: 0 | N149: 0 | O149: 3.952333333 | R149: =IF('Gegevens '!$G$20="Eigen waarden",VLOOKUP($F149,'Gegevens '!$A$25:$C$77,3,FALSE),VLOOKUP($F149,Lijsten!$A$19:$B$71,2,FALSE)) -> 34.00984409 | AC149: 0 | AE149: 0 | AP149: 0 | BM149: 1967-04-26 | BN149: 0 | BO149: 4.119 | BQ149: 1975-04-25 | BR149: 0 | BS149: 3.637 | BU149: 2006-04-25 | BV149: 0 | BW149: 3.94301 | BX149: 0 | BY149: 3.94301 | BZ149: 0 | CA149: 3.77263 | CC149: 2016-04-24 | CD149: 0 | CE149: 3.97444 | CF149: 0 | CG149: 3.97444 | CH149: 0 | CI149: 3.75538 | CK149: 2066-04-25 | CL149: 0 | CM149: 4.13159 | CN149: 0 | CO149: 4.13159 | CP149: 0 | CQ149: 3.66914 | CU149: 2001 | CX149: 41
A150: 1967-04-27 | B150: 0 | C150: 4.576 | D150: 4 | E150: 1967 | F150: 17 | G150: 0 | H150: =IF(B150<Parameters!$A$16,B150*Parameters!$B$16,IF(AND(B150>Parameters!$A$16,B150<Parameters!$A$17),B150*Parameters!$B$17,B150*Parameters!$B$18)) -> 0 | I150: =IF(B150<Parameters!$A$20,B150*Parameters!$B$20,IF(AND(B150>Parameters!$A$20,B150<Parameters!$A$21),B150*Parameters!$B$21,B150*Parameters!$B$22)) -> 0 | L150: 0 | N150: 0 | O150: 4.409333333 | R150: =IF('Gegevens '!$G$20="Eigen waarden",VLOOKUP($F150,'Gegevens '!$A$25:$C$77,3,FALSE),VLOOKUP($F150,Lijsten!$A$19:$B$71,2,FALSE)) -> 34.00984409 | AC150: 0 | AE150: 0 | AP150: 0 | BM150: 1967-04-27 | BN150: 0 | BO150: 4.576 | BQ150: 1975-04-26 | BR150: 0.5 | BS150: 1.026 | BU150: 2006-04-26 | BV150: 0 | BW150: 4.23722 | BX150: 0 | BY150: 4.23722 | BZ150: 0 | CA150: 4.05413 | CC150: 2016-04-25 | CD150: 0 | CE150: 4.27099 | CF150: 0 | CG150: 4.27099 | CH150: 0 | CI150: 4.03559 | CK150: 2066-04-26 | CL150: 0 | CM150: 4.43987 | CN150: 0 | CO150: 4.43987 | CP150: 0 | CQ150: 3.94291 | CU150: 2002 | CX150: 42
A151: 1967-04-28 | B151: 0 | C151: 4.137 | D151: 4 | E151: 1967 | F151: 17 | G151: 0 | H151: =IF(B151<Parameters!$A$16,B151*Parameters!$B$16,IF(AND(B151>Parameters!$A$16,B151<Parameters!$A$17),B151*Parameters!$B$17,B151*Parameters!$B$18)) -> 0 | I151: =IF(B151<Parameters!$A$20,B151*Parameters!$B$20,IF(AND(B151>Parameters!$A$20,B151<Parameters!$A$21),B151*Parameters!$B$21,B151*Parameters!$B$22)) -> 0 | L151: 0 | N151: 0 | O151: 3.970333333 | R151: =IF('Gegevens '!$G$20="Eigen waarden",VLOOKUP($F151,'Gegevens '!$A$25:$C$77,3,FALSE),VLOOKUP($F151,Lijsten!$A$19:$B$71,2,FALSE)) -> 34.00984409 | AC151: 0 | AE151: 0 | AP151: 0 | BM151: 1967-04-28 | BN151: 0 | BO151: 4.137 | BQ151: 1975-04-27 | BR151: 0 | BS151: 3.997 | BU151: 2006-04-27 | BV151: 0 | BW151: 4.70733 | BX151: 0 | BY151: 4.70733 | BZ151: 0 | CA151: 4.50393 | CC151: 2016-04-26 | CD151: 0 | CE151: 4.74485 | CF151: 0 | CG151: 4.74485 | CH151: 0 | CI151: 4.48334 | CK151: 2066-04-27 | CL151: 0 | CM151: 4.93247 | CN151: 0 | CO151: 4.93247 | CP151: 0 | CQ151: 4.38038 | CU151: 2003 | CX151: 43
A152: 1967-04-29 | B152: 0.3 | C152: 2.953 | D152: 4 | E152: 1967 | F152: 17 | G152: 0.3 | H152: =IF(B152<Parameters!$A$16,B152*Parameters!$B$16,IF(AND(B152>Parameters!$A$16,B152<Parameters!$A$17),B152*Parameters!$B$17,B152*Parameters!$B$18)) -> 0 | I152: =IF(B152<Parameters!$A$20,B152*Parameters!$B$20,IF(AND(B152>Parameters!$A$20,B152<Parameters!$A$21),B152*Parameters!$B$21,B152*Parameters!$B$22)) -> 0 | O152: 2.786333333 | R152: =IF('Gegevens '!$G$20="Eigen waarden",VLOOKUP($F152,'Gegevens '!$A$25:$C$77,3,FALSE),VLOOKUP($F152,Lijsten!$A$19:$B$71,2,FALSE)) -> 34.00984409 | AP152: 0 | BM152: 1967-04-29 | BN152: 0.3 | BO152: 2.953 | BQ152: 1975-04-28 | BR152: 0 | BS152: 4.866 | BU152: 2006-04-28 | BV152: 0 | BW152: 4.25573 | BX152: 0 | BY152: 4.25573 | BZ152: 0 | CA152: 4.07184 | CC152: 2016-04-27 | CD152: 0 | CE152: 4.28966 | CF152: 0 | CG152: 4.28966 | CH152: 0 | CI152: 4.05323 | CK152: 2066-04-28 | CL152: 0 | CM152: 4.45927 | CN152: 0 | CO152: 4.45927 | CP152: 0 | CQ152: 3.96014 | CU152: 2004 | CX152: 44
A153: 1967-04-30 | B153: 0 | C153: 4.538 | D153: 4 | E153: 1967 | F153: 17 | G153: 0 | H153: =IF(B153<Parameters!$A$16,B153*Parameters!$B$16,IF(AND(B153>Parameters!$A$16,B153<Parameters!$A$17),B153*Parameters!$B$17,B153*Parameters!$B$18)) -> 0 | I153: =IF(B153<Parameters!$A$20,B153*Parameters!$B$20,IF(AND(B153>Parameters!$A$20,B153<Parameters!$A$21),B153*Parameters!$B$21,B153*Parameters!$B$22)) -> 0 | L153: 0 | N153: 0 | O153: 4.371333333 | R153: =IF('Gegevens '!$G$20="Eigen waarden",VLOOKUP($F153,'Gegevens '!$A$25:$C$77,3,FALSE),VLOOKUP($F153,Lijsten!$A$19:$B$71,2,FALSE)) -> 34.00984409 | AC153: 0 | AE153: 0 | AP153: 0 | BM153: 1967-04-30 | BN153: 0 | BO153: 4.538 | BQ153: 1975-04-29 | BR153: 10.3 | BS153: 3.748 | BU153: 2006-04-29 | BV153: 0.35 | BW153: 3.03775 | BX153: 0.35 | BY153: 3.03775 | BZ153: 0.35 | CA153: 2.90649 | CC153: 2016-04-28 | CD153: 0.35 | CE153: 3.06197 | CF153: 0.35 | CG153: 3.06197 | CH153: 0.35 | CI153: 2.8932 | CK153: 2066-04-29 | CL153: 0.35 | CM153: 3.18304 | CN153: 0.35 | CO153: 3.18304 | CP153: 0.35 | CQ153: 2.82676 | CU153: 2005 | CX153: 45
A154: 1967-05-01 | B154: 1.8 | C154: 0.812 | D154: 5 | E154: 1967 | F154: 18 | G154: 1.8 | H154: =IF(B154<Parameters!$A$16,B154*Parameters!$B$16,IF(AND(B154>Parameters!$A$16,B154<Parameters!$A$17),B154*Parameters!$B$17,B154*Parameters!$B$18)) -> 1.44 | I154: =IF(B154<Parameters!$A$20,B154*Parameters!$B$20,IF(AND(B154>Parameters!$A$20,B154<Parameters!$A$21),B154*Parameters!$B$21,B154*Parameters!$B$22)) -> 1.08 | O154: 0.6184516129 | R154: =IF('Gegevens '!$G$20="Eigen waarden",VLOOKUP($F154,'Gegevens '!$A$25:$C$77,3,FALSE),VLOOKUP($F154,Lijsten!$A$19:$B$71,2,FALSE)) -> 33.34019503 | AP154: 0 | BM154: 1967-05-01 | BN154: 1.8 | BO154: 0.812 | BQ154: 1975-04-30 | BR154: 2 | BS154: 3.006 | BU154: 2006-04-30 | BV154: 0 | BW154: 4.66824 | BX154: 0 | BY154: 4.66824 | BZ154: 0 | CA154: 4.46653 | CC154: 2016-04-29 | CD154: 0 | CE154: 4.70545 | CF154: 0 | CG154: 4.70545 | CH154: 0 | CI154: 4.44611 | CK154: 2066-04-30 | CL154: 0 | CM154: 4.89151 | CN154: 0 | CO154: 4.89151 | CP154: 0 | CQ154: 4.344 | CU154: 2006 | CX154: 46
A155: 1967-05-02 | B155: 2.4 | C155: 2.509 | D155: 5 | E155: 1967 | F155: 18 | G155: 2.4 | H155: =IF(B155<Parameters!$A$16,B155*Parameters!$B$16,IF(AND(B155>Parameters!$A$16,B155<Parameters!$A$17),B155*Parameters!$B$17,B155*Parameters!$B$18)) -> 2.28 | I155: =IF(B155<Parameters!$A$20,B155*Parameters!$B$20,IF(AND(B155>Parameters!$A$20,B155<Parameters!$A$21),B155*Parameters!$B$21,B155*Parameters!$B$22)) -> 1.8 | O155: 2.315451613 | R155: =IF('Gegevens '!$G$20="Eigen waarden",VLOOKUP($F155,'Gegevens '!$A$25:$C$77,3,FALSE),VLOOKUP($F155,Lijsten!$A$19:$B$71,2,FALSE)) -> 33.34019503 | AP155: 0 | BM155: 1967-05-02 | BN155: 2.4 | BO155: 2.509 | BQ155: 1975-05-01 | BR155: 0 | BS155: 3.723 | BU155: 2006-05-01 | BV155: 2.01 | BW155: 0.84554 | BX155: 2.01 | BY155: 0.84554 | BZ155: 2.01 | CA155: 0.80688 | CC155: 2016-04-30 | CD155: 1.97 | CE155: 0.85512 | CF155: 1.97 | CG155: 0.85512 | CH155: 1.97 | CI155: 0.80542 | CK155: 2066-05-01 | CL155: 1.84 | CM155: 0.90303 | CN155: 1.84 | CO155: 0.90303 | CP155: 1.84 | CQ155: 0.79811 | CU155: 2007 | CX155: 47
A156: 1967-05-03 | B156: 0 | C156: 2.932 | D156: 5 | E156: 1967 | F156: 18 | G156: 0 | H156: =IF(B156<Parameters!$A$16,B156*Parameters!$B$16,IF(AND(B156>Parameters!$A$16,B156<Parameters!$A$17),B156*Parameters!$B$17,B156*Parameters!$B$18)) -> 0 | I156: =IF(B156<Parameters!$A$20,B156*Parameters!$B$20,IF(AND(B156>Parameters!$A$20,B156<Parameters!$A$21),B156*Parameters!$B$21,B156*Parameters!$B$22)) -> 0 | L156: 0 | N156: 0 | O156: 2.738451613 | R156: =IF('Gegevens '!$G$20="Eigen waarden",VLOOKUP($F156,'Gegevens '!$A$25:$C$77,3,FALSE),VLOOKUP($F156,Lijsten!$A$19:$B$71,2,FALSE)) -> 33.34019503 | AC156: 0 | AE156: 0 | AP156: 0 | BM156: 1967-05-03 | BN156: 0 | BO156: 2.932 | BQ156: 1975-05-02 | BR156: 1.1 | BS156: 3.214 | BU156: 2006-05-02 | BV156: 2.69 | BW156: 2.61262 | BX156: 2.69 | BY156: 2.61262 | BZ156: 2.69 | CA156: 2.49319 | CC156: 2016-05-01 | CD156: 2.66 | CE156: 2.64223 | CF156: 2.66 | CG156: 2.64223 | CH156: 2.66 | CI156: 2.48868 | CK156: 2066-05-02 | CL156: 2.51 | CM156: 2.79026 | CN156: 2.51 | CO156: 2.79026 | CP156: 2.51 | CQ156: 2.4661 | CU156: 2008 | CX156: 48
A157: 1967-05-04 | B157: 0 | C157: 4.774 | D157: 5 | E157: 1967 | F157: 18 | G157: 0 | H157: =IF(B157<Parameters!$A$16,B157*Parameters!$B$16,IF(AND(B157>Parameters!$A$16,B157<Parameters!$A$17),B157*Parameters!$B$17,B157*Parameters!$B$18)) -> 0 | I157: =IF(B157<Parameters!$A$20,B157*Parameters!$B$20,IF(AND(B157>Parameters!$A$20,B157<Parameters!$A$21),B157*Parameters!$B$21,B157*Parameters!$B$22)) -> 0 | L157: 0 | N157: 0 | O157: 4.580451613 | R157: =IF('Gegevens '!$G$20="Eigen waarden",VLOOKUP($F157,'Gegevens '!$A$25:$C$77,3,FALSE),VLOOKUP($F157,Lijsten!$A$19:$B$71,2,FALSE)) -> 33.34019503 | AC157: 0 | AE157: 0 | AP157: 0 | BM157: 1967-05-04 | BN157: 0 | BO157: 4.774 | BQ157: 1975-05-03 | BR157: 5.1 | BS157: 3.013 | BU157: 2006-05-03 | BV157: 0 | BW157: 3.05309 | BX157: 0 | BY157: 3.05309 | BZ157: 0 | CA157: 2.91353 | CC157: 2016-05-02 | CD157: 0 | CE157: 3.08769 | CF157: 0 | CG157: 3.08769 | CH157: 0 | CI157: 2.90825 | CK157: 2066-05-03 | CL157: 0 | CM157: 3.26068 | CN157: 0 | CO157: 3.26068 | CP157: 0 | CQ157: 2.88186 | CU157: 2009 | CX157: 49
A158: 1967-05-05 | B158: 1 | C158: 4.503 | D158: 5 | E158: 1967 | F158: 18 | G158: 1 | H158: =IF(B158<Parameters!$A$16,B158*Parameters!$B$16,IF(AND(B158>Parameters!$A$16,B158<Parameters!$A$17),B158*Parameters!$B$17,B158*Parameters!$B$18)) -> 0.95 | I158: =IF(B158<Parameters!$A$20,B158*Parameters!$B$20,IF(AND(B158>Parameters!$A$20,B158<Parameters!$A$21),B158*Parameters!$B$21,B158*Parameters!$B$22)) -> 0.75 | O158: 4.309451613 | R158: =IF('Gegevens '!$G$20="Eigen waarden",VLOOKUP($F158,'Gegevens '!$A$25:$C$77,3,FALSE),VLOOKUP($F158,Lijsten!$A$19:$B$71,2,FALSE)) -> 33.34019503 | AP158: 0 | BM158: 1967-05-05 | BN158: 1 | BO158: 4.503 | BQ158: 1975-05-04 | BR158: 0.7 | BS158: 2.503 | BU158: 2006-05-04 | BV158: 0 | BW158: 4.97117 | BX158: 0 | BY158: 4.97117 | BZ158: 0 | CA158: 4.74392 | CC158: 2016-05-03 | CD158: 0 | CE158: 5.0275 | CF158: 0 | CG158: 5.0275 | CH158: 0 | CI158: 4.73533 | CK158: 2066-05-04 | CL158: 0 | CM158: 5.30917 | CN158: 0 | CO158: 5.30917 | CP158: 0 | CQ158: 4.69236 | CU158: 2010 | CX158: 50
A159: 1967-05-06 | B159: 2.3 | C159: 2.396 | D159: 5 | E159: 1967 | F159: 18 | G159: 2.3 | H159: =IF(B159<Parameters!$A$16,B159*Parameters!$B$16,IF(AND(B159>Parameters!$A$16,B159<Parameters!$A$17),B159*Parameters!$B$17,B159*Parameters!$B$18)) -> 2.185 | I159: =IF(B159<Parameters!$A$20,B159*Parameters!$B$20,IF(AND(B159>Parameters!$A$20,B159<Parameters!$A$21),B159*Parameters!$B$21,B159*Parameters!$B$22)) -> 1.725 | O159: 2.202451613 | R159: =IF('Gegevens '!$G$20="Eigen waarden",VLOOKUP($F159,'Gegevens '!$A$25:$C$77,3,FALSE),VLOOKUP($F159,Lijsten!$A$19:$B$71,2,FALSE)) -> 33.34019503 | AP159: 0 | BM159: 1967-05-06 | BN159: 2.3 | BO159: 2.396 | BQ159: 1975-05-05 | BR159: 0.2 | BS159: 3.783 | BU159: 2006-05-05 | BV159: 1.1 | BW159: 4.68897 | BX159: 1.1 | BY159: 4.68897 | BZ159: 1.1 | CA159: 4.47463 | CC159: 2016-05-04 | CD159: 1.08 | CE159: 4.74211 | CF159: 1.08 | CG159: 4.74211 | CH159: 1.08 | CI159: 4.46653 | CK159: 2066-05-05 | CL159: 1 | CM159: 5.00779 | CN159: 1 | CO159: 5.00779 | CP159: 1 | CQ159: 4.426 | CU159: 2011 | CX159: 51
A160: 1967-05-07 | B160: 1.3 | C160: 2.527 | D160: 5 | E160: 1967 | F160: 18 | G160: 1.3 | H160: =IF(B160<Parameters!$A$16,B160*Parameters!$B$16,IF(AND(B160>Parameters!$A$16,B160<Parameters!$A$17),B160*Parameters!$B$17,B160*Parameters!$B$18)) -> 1.04 | I160: =IF(B160<Parameters!$A$20,B160*Parameters!$B$20,IF(AND(B160>Parameters!$A$20,B160<Parameters!$A$21),B160*Parameters!$B$21,B160*Parameters!$B$22)) -> 0.78 | O160: 2.333451613 | R160: =IF('Gegevens '!$G$20="Eigen waarden",VLOOKUP($F160,'Gegevens '!$A$25:$C$77,3,FALSE),VLOOKUP($F160,Lijsten!$A$19:$B$71,2,FALSE)) -> 33.34019503 | AP160: 0 | BM160: 1967-05-07 | BN160: 1.3 | BO160: 2.527 | BQ160: 1975-05-06 | BR160: 0.2 | BS160: 3.061 | BU160: 2006-05-06 | BV160: 0 | BW160: 2.49495 | BX160: 0 | BY160: 2.49495 | BZ160: 0 | CA160: 2.38091 | CC160: 2016-05-05 | CD160: 2.54 | CE160: 2.52323 | CF160: 2.54 | CG160: 2.52323 | CH160: 2.54 | CI160: 2.37659 | CK160: 2066-05-06 | CL160: 2.39 | CM160: 2.66459 | CN160: 2.39 | CO160: 2.66459 | CP160: 2.39 | CQ160: 2.35503 | CU160: 2012 | CX160: 52
A161: 1967-05-08 | B161: 0.3 | C161: 3.319 | D161: 5 | E161: 1967 | F161: 19 | G161: 0.3 | H161: =IF(B161<Parameters!$A$16,B161*Parameters!$B$16,IF(AND(B161>Parameters!$A$16,B161<Parameters!$A$17),B161*Parameters!$B$17,B161*Parameters!$B$18)) -> 0 | I161: =IF(B161<Parameters!$A$20,B161*Parameters!$B$20,IF(AND(B161>Parameters!$A$20,B161<Parameters!$A$21),B161*Parameters!$B$21,B161*Parameters!$B$22)) -> 0 | O161: 3.125451613 | R161: =IF('Gegevens '!$G$20="Eigen waarden",VLOOKUP($F161,'Gegevens '!$A$25:$C$77,3,FALSE),VLOOKUP($F161,Lijsten!$A$19:$B$71,2,FALSE)) -> 36.14955501 | AP161: 0 | BM161: 1967-05-08 | BN161: 0.3 | BO161: 3.319 | BQ161: 1975-05-07 | BR161: 6.5 | BS161: 1.674 | BU161: 2006-05-07 | BV161: 1.44 | BW161: 2.63137 | BX161: 1.44 | BY161: 2.63137 | BZ161: 1.44 | CA161: 2.51108 | CC161: 2016-05-06 | CD161: 0 | CE161: 2.66118 | CF161: 0 | CG161: 2.66118 | CH161: 0 | CI161: 2.50653 | CK161: 2066-05-07 | CL161: 1.31 | CM161: 2.81028 | CN161: 1.31 | CO161: 2.81028 | CP161: 1.31 | CQ161: 2.48379 | CU161: Eindtotaal | CX161: 53
A162: 1967-05-09 | B162: 0 | C162: 5.218 | D162: 5 | E162: 1967 | F162: 19 | G162: 0 | H162: =IF(B162<Parameters!$A$16,B162*Parameters!$B$16,IF(AND(B162>Parameters!$A$16,B162<Parameters!$A$17),B162*Parameters!$B$17,B162*Parameters!$B$18)) -> 0 | I162: =IF(B162<Parameters!$A$20,B162*Parameters!$B$20,IF(AND(B162>Parameters!$A$20,B162<Parameters!$A$21),B162*Parameters!$B$21,B162*Parameters!$B$22)) -> 0 | L162: 0 | N162: 0 | O162: 5.024451613 | R162: =IF('Gegevens '!$G$20="Eigen waarden",VLOOKUP($F162,'Gegevens '!$A$25:$C$77,3,FALSE),VLOOKUP($F162,Lijsten!$A$19:$B$71,2,FALSE)) -> 36.14955501 | AC162: 0 | AE162: 0 | AP162: 0 | BM162: 1967-05-09 | BN162: 0 | BO162: 5.218 | BQ162: 1975-05-08 | BR162: 1.3 | BS162: 3.552 | BU162: 2006-05-08 | BV162: 0.34 | BW162: 3.45607 | BX162: 0.34 | BY162: 3.45607 | BZ162: 0.34 | CA162: 3.29809 | CC162: 2016-05-07 | CD162: 0.32 | CE162: 3.49524 | CF162: 0.32 | CG162: 3.49524 | CH162: 0.32 | CI162: 3.29212 | CK162: 2066-05-08 | CL162: 0.3 | CM162: 3.69106 | CN162: 0.3 | CO162: 3.69106 | CP162: 0.3 | CQ162: 3.26225 | CV162: =MAX(CV115:CV160) ->  | CX162: Eindtotaal
A163: 1967-05-10 | B163: 0 | C163: 5.964 | D163: =MONTH(A163) -> 5 | E163: 1967 | F163: =INT((A163-DATE(YEAR(A163-WEEKDAY(A163-1)+4),1,3)+WEEKDAY(DATE(YEAR(A163-WEEKDAY(A163-1)+4),1,3))+5)/7) -> 19 | G163: 0 | H163: =IF(B163<Parameters!$A$16,B163*Parameters!$B$16,IF(AND(B163>Parameters!$A$16,B163<Parameters!$A$17),B163*Parameters!$B$17,B163*Parameters!$B$18)) -> 0 | I163: =IF(B163<Parameters!$A$20,B163*Parameters!$B$20,IF(AND(B163>Parameters!$A$20,B163<Parameters!$A$21),B163*Parameters!$B$21,B163*Parameters!$B$22)) -> 0 | K163: =IF(B163=0,"",SUM(J163/(B163*10))) ->  | L163: 0 | M163: =IF(B163=0,"",L163/J163) ->  | N163: =IF(B163=0,0,SUM(J163-L163)) -> 0 | O163: =IF(OR($D163=1,$D163=12,$D163=8),C163+(2/31),IF($D163=2,C163-(1/28),IF($D163=3,C163-(3/31),IF($D163=4,C163-(5/30),IF($D163=5,C163-(6/31),IF($D163=6,C163-(4/30),IF($D163=7,C163-(1/31),IF($D163=9,C163+(4/30),IF($D163=10,C163+(5/31),IF($D163=11,C163+(5/30))))))))))) -> 5.770451613 | P163: =-(($BH$3-$BI$3)*($AN$3+$AK$3-U163)/($AK$3)-$BH$3) ->  | R163: =IF('Gegevens '!$G$20="Eigen waarden",VLOOKUP($F163,'Gegevens '!$A$25:$C$77,3,FALSE),VLOOKUP($F163,Lijsten!$A$19:$B$71,2,FALSE)) -> 36.14955501 | Y163: =IF(R163=0,"",((R163-W163)/R163)) ->  | Z163: =IF(B163=0,"",X163/(B163*10)) ->  | AB163: =J163/10 ->  | AC163: =L163/10 -> 0 | AD163: =X163/10 ->  | AE163: 0 | AH163: =(R163-W163)/10 ->  | AI163: =SUM(AC163-AF163-AG163-AD163) ->  | AJ163: =IF(AB163=0,"",AE163/AB163) ->  | AL163: =IF(AC163=0,"",AG163/AC163) ->  | AM163: =IF(AC163=0,"",AD163/AC163) ->  | AN163: =IF(AC163=0,"",AI163/AC163) ->  | AP163: 0 | BM163: 1967-05-10 | BN163: 0 | BO163: 5.964 | BQ163: 1975-05-09 | BR163: 0.4 | BS163: 2.226 | BU163: 2006-05-09 | BV163: 0 | BW163: 5.4335 | BX163: 0 | BY163: 5.4335 | BZ163: 0 | CA163: 5.18513 | CC163: 2016-05-08 | CD163: 0 | CE163: 5.49508 | CF163: 0 | CG163: 5.49508 | CH163: 0 | CI163: 5.17573 | CK163: 2066-05-09 | CL163: 0 | CM163: 5.80294 | CN163: 0 | CO163: 5.80294 | CP163: 0 | CQ163: 5.12877
A164: 1967-05-11 | B164: 6.9 | C164: 4.781 | D164: 5 | E164: =IF(AND((F163>1),(F164=1)),E163+1,E163) -> 1967 | F164: 19 | G164: =B164 -> 6.9 | H164: =IF(B164<Parameters!$A$16,B164*Parameters!$B$16,IF(AND(B164>Parameters!$A$16,B164<Parameters!$A$17),B164*Parameters!$B$17,B164*Parameters!$B$18)) -> 6.555 | I164: =IF(B164<Parameters!$A$20,B164*Parameters!$B$20,IF(AND(B164>Parameters!$A$20,B164<Parameters!$A$21),B164*Parameters!$B$21,B164*Parameters!$B$22)) -> 5.175 | L164: =IF(B164=0,0,SUM(B164*$D$3+H164*$B$3+I164*$C$3)/$E$3*10) ->  | O164: 4.587451613 | R164: =IF('Gegevens '!$G$20="Eigen waarden",VLOOKUP($F164,'Gegevens '!$A$25:$C$77,3,FALSE),VLOOKUP($F164,Lijsten!$A$19:$B$71,2,FALSE)) -> 36.14955501 | S164: =SUM(L164-R164-Q164) ->  | T164: =L164-Q164 ->  | U164: =IF(U163<$AN$3,U163+T164,IF(AND((U163>$AN$3),(SUM(U163+S164)<$AN$3)),SUM($AN$3+T164),IF((SUM(U163+S164)>($AN$3+$AK$3)),$AN$3+$AK$3,U163+S164))) ->  | X164: =R164-W164 ->  | AA164: =K164 ->  | AK164: =IF(AB164=0,"",AF164/AB164) ->  | AO164: =AI164*$E$5/1000 ->  | AP164: =IF(OR(F164<=13,F164>=40),VALUE(AO164),0) -> 0 | AQ164: =IF(OR(F164<=13,F164>=40),0,VALUE(AO164)) ->  | BM164: 1967-05-11 | BN164: 6.9 | BO164: 4.781 | BQ164: 1975-05-10 | BR164: 0.8 | BS164: 2.076 | BU164: 2006-05-10 | BV164: 0 | BW164: 6.21031 | BX164: 0 | BY164: 6.21031 | BZ164: 0 | CA164: 5.92643 | CC164: 2016-05-09 | CD164: 0 | CE164: 6.28069 | CF164: 0 | CG164: 6.28069 | CH164: 0 | CI164: 5.91569 | CK164: 2066-05-10 | CL164: 0 | CM164: 6.63256 | CN164: 0 | CO164: 6.63256 | CP164: 0 | CQ164: 5.86202
A165: 1967-05-12 | B165: 2.5 | C165: 4.382 | D165: 5 | E165: 1967 | F165: 19 | G165: 2.5 | H165: =IF(B165<Parameters!$A$16,B165*Parameters!$B$16,IF(AND(B165>Parameters!$A$16,B165<Parameters!$A$17),B165*Parameters!$B$17,B165*Parameters!$B$18)) -> 2.375 | I165: =IF(B165<Parameters!$A$20,B165*Parameters!$B$20,IF(AND(B165>Parameters!$A$20,B165<Parameters!$A$21),B165*Parameters!$B$21,B165*Parameters!$B$22)) -> 1.875 | J165: =B165*SUM($B$3,$C$3,$D$3)/$E$3*10 ->  | O165: 4.188451613 | R165: =IF('Gegevens '!$G$20="Eigen waarden",VLOOKUP($F165,'Gegevens '!$A$25:$C$77,3,FALSE),VLOOKUP($F165,Lijsten!$A$19:$B$71,2,FALSE)) -> 36.14955501 | V165: =IF(SUM(U164+S165)>SUM($AK$3+$AN$3),SUM(U164+S165-($AK$3+$AN$3)),0) ->  | W165: =IF(U164<$AN$3,R165,IF(SUM(U164-R165)>$AN$3,0,IF(SUM(U164+S165)<$AN$3,SUM(R165-(U164-$AN$3)),0))) ->  | AE165: =N165/10 ->  | AG165: =Q165/10 ->  | AP165: 0 | BM165: 1967-05-12 | BN165: 2.5 | BO165: 4.382 | BQ165: 1975-05-11 | BR165: 0.1 | BS165: 2.616 | BU165: 2006-05-11 | BV165: 7.93 | BW165: 4.97846 | BX165: 7.93 | BY165: 4.97846 | BZ165: 7.93 | CA165: 4.75088 | CC165: 2016-05-10 | CD165: 7.89 | CE165: 5.03487 | CF165: 7.89 | CG165: 5.03487 | CH165: 7.89 | CI165: 4.74227 | CK165: 2066-05-11 | CL165: 7.77 | CM165: 5.31695 | CN165: 7.77 | CO165: 5.31695 | CP165: 7.77 | CQ165: 4.69924
A166: 1967-05-13 | B166: 3.5 | C166: 4.277 | D166: 5 | E166: 1967 | F166: 19 | G166: 3.5 | H166: =IF(B166<Parameters!$A$16,B166*Parameters!$B$16,IF(AND(B166>Parameters!$A$16,B166<Parameters!$A$17),B166*Parameters!$B$17,B166*Parameters!$B$18)) -> 3.325 | I166: =IF(B166<Parameters!$A$20,B166*Parameters!$B$20,IF(AND(B166>Parameters!$A$20,B166<Parameters!$A$21),B166*Parameters!$B$21,B166*Parameters!$B$22)) -> 2.625 | O166: 4.083451613 | Q166: =SUM(O166*P165)/$E$3*10 ->  | R166: =IF('Gegevens '!$G$20="Eigen waarden",VLOOKUP($F166,'Gegevens '!$A$25:$C$77,3,FALSE),VLOOKUP($F166,Lijsten!$A$19:$B$71,2,FALSE)) -> 36.14955501 | AP166: 0 | BM166: 1967-05-13 | BN166: 3.5 | BO166: 4.277 | BQ166: 1975-05-12 | BR166: 0 | BS166: 3.898 | BU166: 2006-05-12 | BV166: 2.8 | BW166: 4.56298 | BX166: 2.8 | BY166: 4.56298 | BZ166: 2.8 | CA166: 4.35439 | CC166: 2016-05-11 | CD166: 2.77 | CE166: 4.61468 | CF166: 2.77 | CG166: 4.61468 | CH166: 2.77 | CI166: 4.34651 | CK166: 2066-05-12 | CL166: 2.61 | CM166: 4.87322 | CN166: 2.61 | CO166: 4.87322 | CP166: 2.61 | CQ166: 4.30707
A167: 1967-05-14 | B167: 0.3 | C167: 4.795 | D167: 5 | E167: 1967 | F167: 19 | G167: 0.3 | H167: =IF(B167<Parameters!$A$16,B167*Parameters!$B$16,IF(AND(B167>Parameters!$A$16,B167<Parameters!$A$17),B167*Parameters!$B$17,B167*Parameters!$B$18)) -> 0 | I167: =IF(B167<Parameters!$A$20,B167*Parameters!$B$20,IF(AND(B167>Parameters!$A$20,B167<Parameters!$A$21),B167*Parameters!$B$21,B167*Parameters!$B$22)) -> 0 | O167: 4.601451613 | R167: =IF('Gegevens '!$G$20="Eigen waarden",VLOOKUP($F167,'Gegevens '!$A$25:$C$77,3,FALSE),VLOOKUP($F167,Lijsten!$A$19:$B$71,2,FALSE)) -> 36.14955501 | AP167: 0 | BM167: 1967-05-14 | BN167: 0.3 | BO167: 4.795 | BQ167: 1975-05-13 | BR167: 0.7 | BS167: 2.325 | BU167: 2006-05-13 | BV167: 3.94 | BW167: 4.45364 | BX167: 3.94 | BY167: 4.45364 | BZ167: 3.94 | CA167: 4.25005 | CC167: 2016-05-12 | CD167: 3.91 | CE167: 4.50411 | CF167: 3.91 | CG167: 4.50411 | CH167: 3.91 | CI167: 4.24236 | CK167: 2066-05-13 | CL167: 3.76 | CM167: 4.75645 | CN167: 3.76 | CO167: 4.75645 | CP167: 3.76 | CQ167: 4.20386
A168: 1967-05-15 | B168: 3.2 | C168: 3.224 | D168: 5 | E168: 1967 | F168: 20 | G168: 3.2 | H168: =IF(B168<Parameters!$A$16,B168*Parameters!$B$16,IF(AND(B168>Parameters!$A$16,B168<Parameters!$A$17),B168*Parameters!$B$17,B168*Parameters!$B$18)) -> 3.04 | I168: =IF(B168<Parameters!$A$20,B168*Parameters!$B$20,IF(AND(B168>Parameters!$A$20,B168<Parameters!$A$21),B168*Parameters!$B$21,B168*Parameters!$B$22)) -> 2.4 | O168: 3.030451613 | R168: =IF('Gegevens '!$G$20="Eigen waarden",VLOOKUP($F168,'Gegevens '!$A$25:$C$77,3,FALSE),VLOOKUP($F168,Lijsten!$A$19:$B$71,2,FALSE)) -> 36.90824748 | AP168: 0 | BM168: 1967-05-15 | BN168: 3.2 | BO168: 3.224 | BQ168: 1975-05-14 | BR168: 0.2 | BS168: 3.529 | BU168: 2006-05-14 | BV168: 0.34 | BW168: 4.99303 | BX168: 0.34 | BY168: 4.99303 | BZ168: 0.34 | CA168: 4.76479 | CC168: 2016-05-13 | CD168: 0.32 | CE168: 5.04961 | CF168: 0.32 | CG168: 5.04961 | CH168: 0.32 | CI168: 4.75616 | CK168: 2066-05-14 | CL168: 0.3 | CM168: 5.33252 | CN168: 0.3 | CO168: 5.33252 | CP168: 0.3 | CQ168: 4.71301 | CU168: Rijlabels | CV168: Som van Bufferopbouw mm2
A169: 1967-05-16 | B169: 0 | C169: 2.91 | D169: 5 | E169: 1967 | F169: 20 | G169: 0 | H169: =IF(B169<Parameters!$A$16,B169*Parameters!$B$16,IF(AND(B169>Parameters!$A$16,B169<Parameters!$A$17),B169*Parameters!$B$17,B169*Parameters!$B$18)) -> 0 | I169: =IF(B169<Parameters!$A$20,B169*Parameters!$B$20,IF(AND(B169>Parameters!$A$20,B169<Parameters!$A$21),B169*Parameters!$B$21,B169*Parameters!$B$22)) -> 0 | L169: 0 | N169: 0 | O169: 2.716451613 | R169: =IF('Gegevens '!$G$20="Eigen waarden",VLOOKUP($F169,'Gegevens '!$A$25:$C$77,3,FALSE),VLOOKUP($F169,Lijsten!$A$19:$B$71,2,FALSE)) -> 36.90824748 | AC169: 0 | AE169: 0 | AF169: =V169/10 ->  | AP169: 0 | BM169: 1967-05-16 | BN169: 0 | BO169: 2.91 | BQ169: 1975-05-15 | BR169: 1.7 | BS169: 2.635 | BU169: 2006-05-15 | BV169: 3.6 | BW169: 3.35715 | BX169: 3.6 | BY169: 3.35715 | BZ169: 3.6 | CA169: 3.20369 | CC169: 2016-05-14 | CD169: 3.56 | CE169: 3.39519 | CF169: 3.56 | CG169: 3.39519 | CH169: 3.56 | CI169: 3.19789 | CK169: 2066-05-15 | CL169: 3.38 | CM169: 3.58541 | CN169: 3.38 | CO169: 3.58541 | CP169: 3.38 | CQ169: 3.16887 | CU169: 1
A170: 1967-05-17 | B170: 5.6 | C170: 3.304 | D170: 5 | E170: 1967 | F170: 20 | G170: 5.6 | H170: =IF(B170<Parameters!$A$16,B170*Parameters!$B$16,IF(AND(B170>Parameters!$A$16,B170<Parameters!$A$17),B170*Parameters!$B$17,B170*Parameters!$B$18)) -> 5.32 | I170: =IF(B170<Parameters!$A$20,B170*Parameters!$B$20,IF(AND(B170>Parameters!$A$20,B170<Parameters!$A$21),B170*Parameters!$B$21,B170*Parameters!$B$22)) -> 4.2 | O170: 3.110451613 | R170: =IF('Gegevens '!$G$20="Eigen waarden",VLOOKUP($F170,'Gegevens '!$A$25:$C$77,3,FALSE),VLOOKUP($F170,Lijsten!$A$19:$B$71,2,FALSE)) -> 36.90824748 | AP170: 0 | BM170: 1967-05-17 | BN170: 5.6 | BO170: 3.304 | BQ170: 1975-05-16 | BR170: 0 | BS170: 4.503 | BU170: 2006-05-16 | BV170: 0 | BW170: 3.03018 | BX170: 0 | BY170: 3.03018 | BZ170: 0 | CA170: 2.89167 | CC170: 2016-05-15 | CD170: 0 | CE170: 3.06452 | CF170: 0 | CG170: 3.06452 | CH170: 0 | CI170: 2.88643 | CK170: 2066-05-16 | CL170: 0 | CM170: 3.23621 | CN170: 0 | CO170: 3.23621 | CP170: 0 | CQ170: 2.86024 | CU170: 2
A171: 1967-05-18 | B171: 0.5 | C171: 3.001 | D171: 5 | E171: 1967 | F171: 20 | G171: 0.5 | H171: =IF(B171<Parameters!$A$16,B171*Parameters!$B$16,IF(AND(B171>Parameters!$A$16,B171<Parameters!$A$17),B171*Parameters!$B$17,B171*Parameters!$B$18)) -> 0 | I171: =IF(B171<Parameters!$A$20,B171*Parameters!$B$20,IF(AND(B171>Parameters!$A$20,B171<Parameters!$A$21),B171*Parameters!$B$21,B171*Parameters!$B$22)) -> 0 | O171: 2.807451613 | R171: =IF('Gegevens '!$G$20="Eigen waarden",VLOOKUP($F171,'Gegevens '!$A$25:$C$77,3,FALSE),VLOOKUP($F171,Lijsten!$A$19:$B$71,2,FALSE)) -> 36.90824748 | AP171: 0 | BM171: 1967-05-18 | BN171: 0.5 | BO171: 3.001 | BQ171: 1975-05-17 | BR171: 0.3 | BS171: 4.868 | BU171: 2006-05-17 | BV171: 6.39 | BW171: 3.44046 | BX171: 6.39 | BY171: 3.44046 | BZ171: 6.39 | CA171: 3.28318 | CC171: 2016-05-16 | CD171: 6.36 | CE171: 3.47944 | CF171: 6.36 | CG171: 3.47944 | CH171: 6.36 | CI171: 3.27724 | CK171: 2066-05-17 | CL171: 6.19 | CM171: 3.67438 | CN171: 6.19 | CO171: 3.67438 | CP171: 6.19 | CQ171: 3.2475 | CU171: 3
A172: 1967-05-19 | B172: 0.9 | C172: 3.316 | D172: 5 | E172: 1967 | F172: 20 | G172: 0.9 | H172: =IF(B172<Parameters!$A$16,B172*Parameters!$B$16,IF(AND(B172>Parameters!$A$16,B172<Parameters!$A$17),B172*Parameters!$B$17,B172*Parameters!$B$18)) -> 0 | I172: =IF(B172<Parameters!$A$20,B172*Parameters!$B$20,IF(AND(B172>Parameters!$A$20,B172<Parameters!$A$21),B172*Parameters!$B$21,B172*Parameters!$B$22)) -> 0 | O172: 3.122451613 | R172: =IF('Gegevens '!$G$20="Eigen waarden",VLOOKUP($F172,'Gegevens '!$A$25:$C$77,3,FALSE),VLOOKUP($F172,Lijsten!$A$19:$B$71,2,FALSE)) -> 36.90824748 | AP172: 0 | BM172: 1967-05-19 | BN172: 0.9 | BO172: 3.316 | BQ172: 1975-05-18 | BR172: 0 | BS172: 3.688 | BU172: 2006-05-18 | BV172: 0.56 | BW172: 3.12494 | BX172: 0.56 | BY172: 3.12494 | BZ172: 0.56 | CA172: 2.98209 | CC172: 2016-05-17 | CD172: 0.55 | CE172: 3.16035 | CF172: 0.55 | CG172: 3.16035 | CH172: 0.55 | CI172: 2.97669 | CK172: 2066-05-18 | CL172: 0.51 | CM172: 3.33741 | CN172: 0.51 | CO172: 3.33741 | CP172: 0.51 | CQ172: 2.94968 | CU172: 4
A173: 1967-05-20 | B173: 0 | C173: 4.104 | D173: 5 | E173: 1967 | F173: 20 | G173: 0 | H173: =IF(B173<Parameters!$A$16,B173*Parameters!$B$16,IF(AND(B173>Parameters!$A$16,B173<Parameters!$A$17),B173*Parameters!$B$17,B173*Parameters!$B$18)) -> 0 | I173: =IF(B173<Parameters!$A$20,B173*Parameters!$B$20,IF(AND(B173>Parameters!$A$20,B173<Parameters!$A$21),B173*Parameters!$B$21,B173*Parameters!$B$22)) -> 0 | L173: 0 | N173: 0 | O173: 3.910451613 | R173: =IF('Gegevens '!$G$20="Eigen waarden",VLOOKUP($F173,'Gegevens '!$A$25:$C$77,3,FALSE),VLOOKUP($F173,Lijsten!$A$19:$B$71,2,FALSE)) -> 36.90824748 | AC173: 0 | AE173: 0 | AP173: 0 | BM173: 1967-05-20 | BN173: 0 | BO173: 4.104 | BQ173: 1975-05-19 | BR173: 0 | BS173: 1.523 | BU173: 2006-05-19 | BV173: 0 | BW173: 3.45295 | BX173: 0 | BY173: 3.45295 | BZ173: 0 | CA173: 3.29511 | CC173: 2016-05-18 | CD173: 0 | CE173: 3.49208 | CF173: 0 | CG173: 3.49208 | CH173: 0 | CI173: 3.28914 | CK173: 2066-05-19 | CL173: 0 | CM173: 3.68772 | CN173: 0 | CO173: 3.68772 | CP173: 0 | CQ173: 3.2593 | CU173: 5
A174: 1967-05-21 | B174: 0 | C174: 5.389 | D174: 5 | E174: 1967 | F174: 20 | G174: 0 | H174: =IF(B174<Parameters!$A$16,B174*Parameters!$B$16,IF(AND(B174>Parameters!$A$16,B174<Parameters!$A$17),B174*Parameters!$B$17,B174*Parameters!$B$18)) -> 0 | I174: =IF(B174<Parameters!$A$20,B174*Parameters!$B$20,IF(AND(B174>Parameters!$A$20,B174<Parameters!$A$21),B174*Parameters!$B$21,B174*Parameters!$B$22)) -> 0 | L174: 0 | N174: 0 | O174: 5.195451613 | R174: =IF('Gegevens '!$G$20="Eigen waarden",VLOOKUP($F174,'Gegevens '!$A$25:$C$77,3,FALSE),VLOOKUP($F174,Lijsten!$A$19:$B$71,2,FALSE)) -> 36.90824748 | AC174: 0 | AE174: 0 | AP174: 0 | BM174: 1967-05-21 | BN174: 0 | BO174: 5.389 | BQ174: 1975-05-20 | BR174: 0 | BS174: 5.776 | BU174: 2006-05-20 | BV174: 0 | BW174: 4.2735 | BX174: 0 | BY174: 4.2735 | BZ174: 0 | CA174: 4.07814 | CC174: 2016-05-19 | CD174: 0 | CE174: 4.32192 | CF174: 0 | CG174: 4.32192 | CH174: 0 | CI174: 4.07076 | CK174: 2066-05-20 | CL174: 0 | CM174: 4.56406 | CN174: 0 | CO174: 4.56406 | CP174: 0 | CQ174: 4.03382 | CU174: 6
A175: 1967-05-22 | B175: 2.1 | C175: 2.039 | D175: 5 | E175: 1967 | F175: 21 | G175: 2.1 | H175: =IF(B175<Parameters!$A$16,B175*Parameters!$B$16,IF(AND(B175>Parameters!$A$16,B175<Parameters!$A$17),B175*Parameters!$B$17,B175*Parameters!$B$18)) -> 1.995 | I175: =IF(B175<Parameters!$A$20,B175*Parameters!$B$20,IF(AND(B175>Parameters!$A$20,B175<Parameters!$A$21),B175*Parameters!$B$21,B175*Parameters!$B$22)) -> 1.575 | O175: 1.845451613 | R175: =IF('Gegevens '!$G$20="Eigen waarden",VLOOKUP($F175,'Gegevens '!$A$25:$C$77,3,FALSE),VLOOKUP($F175,Lijsten!$A$19:$B$71,2,FALSE)) -> 38.5692264 | AP175: 0 | BM175: 1967-05-22 | BN175: 2.1 | BO175: 2.039 | BQ175: 1975-05-21 | BR175: 0 | BS175: 3.973 | BU175: 2006-05-21 | BV175: 0 | BW175: 5.61157 | BX175: 0 | BY175: 5.61157 | BZ175: 0 | CA175: 5.35505 | CC175: 2016-05-20 | CD175: 0 | CE175: 5.67516 | CF175: 0 | CG175: 5.67516 | CH175: 0 | CI175: 5.34535 | CK175: 2066-05-21 | CL175: 0 | CM175: 5.99311 | CN175: 0 | CO175: 5.99311 | CP175: 0 | CQ175: 5.29685 | CU175: 7
A176: 1967-05-23 | B176: 0.1 | C176: 3.52 | D176: 5 | E176: 1967 | F176: 21 | G176: 0.1 | H176: =IF(B176<Parameters!$A$16,B176*Parameters!$B$16,IF(AND(B176>Parameters!$A$16,B176<Parameters!$A$17),B176*Parameters!$B$17,B176*Parameters!$B$18)) -> 0 | I176: =IF(B176<Parameters!$A$20,B176*Parameters!$B$20,IF(AND(B176>Parameters!$A$20,B176<Parameters!$A$21),B176*Parameters!$B$21,B176*Parameters!$B$22)) -> 0 | O176: 3.326451613 | R176: =IF('Gegevens '!$G$20="Eigen waarden",VLOOKUP($F176,'Gegevens '!$A$25:$C$77,3,FALSE),VLOOKUP($F176,Lijsten!$A$19:$B$71,2,FALSE)) -> 38.5692264 | AP176: 0 | BM176: 1967-05-23 | BN176: 0.1 | BO176: 3.52 | BQ176: 1975-05-22 | BR176: 0 | BS176: 4.318 | BU176: 2006-05-22 | BV176: 2.34 | BW176: 2.12321 | BX176: 2.34 | BY176: 2.12321 | BZ176: 2.34 | CA176: 2.02615 | CC176: 2016-05-21 | CD176: 2.31 | CE176: 2.14727 | CF176: 2.31 | CG176: 2.14727 | CH176: 2.31 | CI176: 2.02248 | CK176: 2066-05-22 | CL176: 2.17 | CM176: 2.26757 | CN176: 2.17 | CO176: 2.26757 | CP176: 2.17 | CQ176: 2.00413 | CU176: 8
A177: 1967-05-24 | B177: 5.2 | C177: 1.785 | D177: 5 | E177: 1967 | F177: 21 | G177: 5.2 | H177: =IF(B177<Parameters!$A$16,B177*Parameters!$B$16,IF(AND(B177>Parameters!$A$16,B177<Parameters!$A$17),B177*Parameters!$B$17,B177*Parameters!$B$18)) -> 4.94 | I177: =IF(B177<Parameters!$A$20,B177*Parameters!$B$20,IF(AND(B177>Parameters!$A$20,B177<Parameters!$A$21),B177*Parameters!$B$21,B177*Parameters!$B$22)) -> 3.9 | O177: 1.591451613 | R177: =IF('Gegevens '!$G$20="Eigen waarden",VLOOKUP($F177,'Gegevens '!$A$25:$C$77,3,FALSE),VLOOKUP($F177,Lijsten!$A$19:$B$71,2,FALSE)) -> 38.5692264 | AP177: 0 | BM177: 1967-05-24 | BN177: 5.2 | BO177: 1.785 | BQ177: 1975-05-23 | BR177: 0 | BS177: 2.669 | BU177: 2006-05-23 | BV177: 0.12 | BW177: 3.66538 | BX177: 0.12 | BY177: 3.66538 | BZ177: 0.12 | CA177: 3.49782 | CC177: 2016-05-22 | CD177: 0.1 | CE177: 3.70691 | CF177: 0.1 | CG177: 3.70691 | CH177: 0.1 | CI177: 3.49149 | CK177: 2066-05-23 | CL177: 0.1 | CM177: 3.91459 | CN177: 0.1 | CO177: 3.91459 | CP177: 0.1 | CQ177: 3.45981 | CU177: 9
A178: 1967-05-25 | B178: 15.9 | C178: 2.031 | D178: 5 | E178: 1967 | F178: 21 | G178: 15.9 | H178: =IF(B178<Parameters!$A$16,B178*Parameters!$B$16,IF(AND(B178>Parameters!$A$16,B178<Parameters!$A$17),B178*Parameters!$B$17,B178*Parameters!$B$18)) -> 15.105 | I178: =IF(B178<Parameters!$A$20,B178*Parameters!$B$20,IF(AND(B178>Parameters!$A$20,B178<Parameters!$A$21),B178*Parameters!$B$21,B178*Parameters!$B$22)) -> 11.925 | O178: 1.837451613 | R178: =IF('Gegevens '!$G$20="Eigen waarden",VLOOKUP($F178,'Gegevens '!$A$25:$C$77,3,FALSE),VLOOKUP($F178,Lijsten!$A$19:$B$71,2,FALSE)) -> 38.5692264 | AP178: 0 | BM178: 1967-05-25 | BN178: 15.9 | BO178: 2.031 | BQ178: 1975-05-24 | BR178: 0 | BS178: 2.307 | BU178: 2006-05-24 | BV178: 5.92 | BW178: 1.85872 | BX178: 5.92 | BY178: 1.85872 | BZ178: 5.92 | CA178: 1.77375 | CC178: 2016-05-23 | CD178: 5.9 | CE178: 1.87978 | CF178: 5.9 | CG178: 1.87978 | CH178: 5.9 | CI178: 1.77054 | CK178: 2066-05-24 | CL178: 5.74 | CM178: 1.9851 | CN178: 5.74 | CO178: 1.9851 | CP178: 5.74 | CQ178: 1.75448 | CU178: 10
A179: 1967-05-26 | B179: 0.8 | C179: 3.212 | D179: 5 | E179: 1967 | F179: 21 | G179: 0.8 | H179: =IF(B179<Parameters!$A$16,B179*Parameters!$B$16,IF(AND(B179>Parameters!$A$16,B179<Parameters!$A$17),B179*Parameters!$B$17,B179*Parameters!$B$18)) -> 0 | I179: =IF(B179<Parameters!$A$20,B179*Parameters!$B$20,IF(AND(B179>Parameters!$A$20,B179<Parameters!$A$21),B179*Parameters!$B$21,B179*Parameters!$B$22)) -> 0 | O179: 3.018451613 | R179: =IF('Gegevens '!$G$20="Eigen waarden",VLOOKUP($F179,'Gegevens '!$A$25:$C$77,3,FALSE),VLOOKUP($F179,Lijsten!$A$19:$B$71,2,FALSE)) -> 38.5692264 | AP179: 0 | BM179: 1967-05-26 | BN179: 0.8 | BO179: 3.212 | BQ179: 1975-05-25 | BR179: 0 | BS179: 3.037 | BU179: 2006-05-25 | BV179: 18.9 | BW179: 2.11488 | BX179: 18.9 | BY179: 2.11488 | BZ179: 18.9 | CA179: 2.0182 | CC179: 2016-05-24 | CD179: 19.04 | CE179: 2.13885 | CF179: 19.04 | CG179: 2.13885 | CH179: 19.04 | CI179: 2.01455 | CK179: 2066-05-25 | CL179: 0 | CM179: 2.25868 | CN179: 0 | CO179: 2.25868 | CP179: 0 | CQ179: 1.99627 | CU179: 11
A180: 1967-05-27 | B180: 0 | C180: 5.259 | D180: 5 | E180: 1967 | F180: 21 | G180: 0 | H180: =IF(B180<Parameters!$A$16,B180*Parameters!$B$16,IF(AND(B180>Parameters!$A$16,B180<Parameters!$A$17),B180*Parameters!$B$17,B180*Parameters!$B$18)) -> 0 | I180: =IF(B180<Parameters!$A$20,B180*Parameters!$B$20,IF(AND(B180>Parameters!$A$20,B180<Parameters!$A$21),B180*Parameters!$B$21,B180*Parameters!$B$22)) -> 0 | L180: 0 | N180: 0 | O180: 5.065451613 | R180: =IF('Gegevens '!$G$20="Eigen waarden",VLOOKUP($F180,'Gegevens '!$A$25:$C$77,3,FALSE),VLOOKUP($F180,Lijsten!$A$19:$B$71,2,FALSE)) -> 38.5692264 | AC180: 0 | AE180: 0 | AP180: 0 | BM180: 1967-05-27 | BN180: 0 | BO180: 5.259 | BQ180: 1975-05-26 | BR180: 0.1 | BS180: 4.567 | BU180: 2006-05-26 | BV180: 0.88 | BW180: 3.34466 | BX180: 0.88 | BY180: 3.34466 | BZ180: 0.88 | CA180: 3.19176 | CC180: 2016-05-25 | CD180: 0.87 | CE180: 3.38256 | CF180: 0.87 | CG180: 3.38256 | CH180: 0.87 | CI180: 3.18598 | CK180: 2066-05-26 | CL180: 0.8 | CM180: 3.57207 | CN180: 0.8 | CO180: 3.57207 | CP180: 0.8 | CQ180: 3.15707 | CU180: 12
A181: 1967-05-28 | B181: 9.8 | C181: 5.027 | D181: 5 | E181: 1967 | F181: 21 | G181: 9.8 | H181: =IF(B181<Parameters!$A$16,B181*Parameters!$B$16,IF(AND(B181>Parameters!$A$16,B181<Parameters!$A$17),B181*Parameters!$B$17,B181*Parameters!$B$18)) -> 9.31 | I181: =IF(B181<Parameters!$A$20,B181*Parameters!$B$20,IF(AND(B181>Parameters!$A$20,B181<Parameters!$A$21),B181*Parameters!$B$21,B181*Parameters!$B$22)) -> 7.35 | O181: 4.833451613 | R181: =IF('Gegevens '!$G$20="Eigen waarden",VLOOKUP($F181,'Gegevens '!$A$25:$C$77,3,FALSE),VLOOKUP($F181,Lijsten!$A$19:$B$71,2,FALSE)) -> 38.5692264 | AP181: 0 | BM181: 1967-05-28 | BN181: 9.8 | BO181: 5.027 | BQ181: 1975-05-27 | BR181: 0 | BS181: 3.595 | BU181: 2006-05-27 | BV181: 0 | BW181: 5.4762 | BX181: 0 | BY181: 5.4762 | BZ181: 0 | CA181: 5.22587 | CC181: 2016-05-26 | CD181: 0 | CE181: 5.53825 | CF181: 0 | CG181: 5.53825 | CH181: 0 | CI181: 5.2164 | CK181: 2066-05-27 | CL181: 0 | CM181: 5.84853 | CN181: 0 | CO181: 5.84853 | CP181: 0 | CQ181: 5.16907 | CU181: 13
A182: 1967-05-29 | B182: 0 | C182: 3.864 | D182: 5 | E182: 1967 | F182: 22 | G182: 0 | H182: =IF(B182<Parameters!$A$16,B182*Parameters!$B$16,IF(AND(B182>Parameters!$A$16,B182<Parameters!$A$17),B182*Parameters!$B$17,B182*Parameters!$B$18)) -> 0 | I182: =IF(B182<Parameters!$A$20,B182*Parameters!$B$20,IF(AND(B182>Parameters!$A$20,B182<Parameters!$A$21),B182*Parameters!$B$21,B182*Parameters!$B$22)) -> 0 | L182: 0 | N182: 0 | O182: 3.670451613 | R182: =IF('Gegevens '!$G$20="Eigen waarden",VLOOKUP($F182,'Gegevens '!$A$25:$C$77,3,FALSE),VLOOKUP($F182,Lijsten!$A$19:$B$71,2,FALSE)) -> 39.77958241 | AC182: 0 | AE182: 0 | AP182: 0 | BM182: 1967-05-29 | BN182: 0 | BO182: 3.864 | BQ182: 1975-05-28 | BR182: 0 | BS182: 4.96 | BU182: 2006-05-28 | BV182: 11.45 | BW182: 5.23462 | BX182: 11.45 | BY182: 5.23462 | BZ182: 11.45 | CA182: 4.99533 | CC182: 2016-05-27 | CD182: 11.47 | CE182: 5.29393 | CF182: 11.47 | CG182: 5.29393 | CH182: 11.47 | CI182: 4.98628 | CK182: 2066-05-28 | CL182: 11.6 | CM182: 5.59053 | CN182: 11.6 | CO182: 5.59053 | CP182: 11.6 | CQ182: 4.94104 | CU182: 14
A183: 1967-05-30 | B183: 1.8 | C183: 3.018 | D183: 5 | E183: 1967 | F183: 22 | G183: 1.8 | H183: =IF(B183<Parameters!$A$16,B183*Parameters!$B$16,IF(AND(B183>Parameters!$A$16,B183<Parameters!$A$17),B183*Parameters!$B$17,B183*Parameters!$B$18)) -> 1.44 | I183: =IF(B183<Parameters!$A$20,B183*Parameters!$B$20,IF(AND(B183>Parameters!$A$20,B183<Parameters!$A$21),B183*Parameters!$B$21,B183*Parameters!$B$22)) -> 1.08 | O183: 2.824451613 | R183: =IF('Gegevens '!$G$20="Eigen waarden",VLOOKUP($F183,'Gegevens '!$A$25:$C$77,3,FALSE),VLOOKUP($F183,Lijsten!$A$19:$B$71,2,FALSE)) -> 39.77958241 | AP183: 0 | BM183: 1967-05-30 | BN183: 1.8 | BO183: 3.018 | BQ183: 1975-05-29 | BR183: 0 | BS183: 4.676 | BU183: 2006-05-29 | BV183: 0 | BW183: 4.02358 | BX183: 0 | BY183: 4.02358 | BZ183: 0 | CA183: 3.83966 | CC183: 2016-05-28 | CD183: 0 | CE183: 4.06918 | CF183: 0 | CG183: 4.06918 | CH183: 0 | CI183: 3.8327 | CK183: 2066-05-29 | CL183: 0 | CM183: 4.29715 | CN183: 0 | CO183: 4.29715 | CP183: 0 | CQ183: 3.79793 | CU183: 15
A184: 1967-05-31 | B184: 0 | C184: 2.329 | D184: 5 | E184: 1967 | F184: 22 | G184: 0 | H184: =IF(B184<Parameters!$A$16,B184*Parameters!$B$16,IF(AND(B184>Parameters!$A$16,B184<Parameters!$A$17),B184*Parameters!$B$17,B184*Parameters!$B$18)) -> 0 | I184: =IF(B184<Parameters!$A$20,B184*Parameters!$B$20,IF(AND(B184>Parameters!$A$20,B184<Parameters!$A$21),B184*Parameters!$B$21,B184*Parameters!$B$22)) -> 0 | L184: 0 | N184: 0 | O184: 2.135451613 | R184: =IF('Gegevens '!$G$20="Eigen waarden",VLOOKUP($F184,'Gegevens '!$A$25:$C$77,3,FALSE),VLOOKUP($F184,Lijsten!$A$19:$B$71,2,FALSE)) -> 39.77958241 | AC184: 0 | AE184: 0 | AP184: 0 | BM184: 1967-05-31 | BN184: 0 | BO184: 2.329 | BQ184: 1975-05-30 | BR184: 0 | BS184: 2.165 | BU184: 2006-05-30 | BV184: 2 | BW184: 3.14264 | BX184: 2 | BY184: 3.14264 | BZ184: 2 | CA184: 2.99899 | CC184: 2016-05-29 | CD184: 1.97 | CE184: 3.17826 | CF184: 1.97 | CG184: 3.17826 | CH184: 1.97 | CI184: 2.99355 | CK184: 2066-05-30 | CL184: 1.83 | CM184: 3.35632 | CN184: 1.83 | CO184: 3.35632 | CP184: 1.83 | CQ184: 2.96639 | CU184: 16
A185: 1967-06-01 | B185: 0.2 | C185: 1.534 | D185: 6 | E185: 1967 | F185: 22 | G185: 0.2 | H185: =IF(B185<Parameters!$A$16,B185*Parameters!$B$16,IF(AND(B185>Parameters!$A$16,B185<Parameters!$A$17),B185*Parameters!$B$17,B185*Parameters!$B$18)) -> 0 | I185: =IF(B185<Parameters!$A$20,B185*Parameters!$B$20,IF(AND(B185>Parameters!$A$20,B185<Parameters!$A$21),B185*Parameters!$B$21,B185*Parameters!$B$22)) -> 0 | O185: 1.400666667 | R185: =IF('Gegevens '!$G$20="Eigen waarden",VLOOKUP($F185,'Gegevens '!$A$25:$C$77,3,FALSE),VLOOKUP($F185,Lijsten!$A$19:$B$71,2,FALSE)) -> 39.77958241 | AP185: 0 | BM185: 1967-06-01 | BN185: 0.2 | BO185: 1.534 | BQ185: 1975-05-31 | BR185: 0 | BS185: 3.694 | BU185: 2006-05-31 | BV185: 0 | BW185: 2.42519 | BX185: 0 | BY185: 2.42519 | BZ185: 0 | CA185: 2.31433 | CC185: 2016-05-30 | CD185: 0 | CE185: 2.45267 | CF185: 0 | CG185: 2.45267 | CH185: 0 | CI185: 2.31014 | CK185: 2066-05-31 | CL185: 0 | CM185: 2.59008 | CN185: 0 | CO185: 2.59008 | CP185: 0 | CQ185: 2.28917 | CU185: 17
A186: 1967-06-02 | B186: 0.2 | C186: 1.893 | D186: 6 | E186: 1967 | F186: 22 | G186: 0.2 | H186: =IF(B186<Parameters!$A$16,B186*Parameters!$B$16,IF(AND(B186>Parameters!$A$16,B186<Parameters!$A$17),B186*Parameters!$B$17,B186*Parameters!$B$18)) -> 0 | I186: =IF(B186<Parameters!$A$20,B186*Parameters!$B$20,IF(AND(B186>Parameters!$A$20,B186<Parameters!$A$21),B186*Parameters!$B$21,B186*Parameters!$B$22)) -> 0 | O186: 1.759666667 | R186: =IF('Gegevens '!$G$20="Eigen waarden",VLOOKUP($F186,'Gegevens '!$A$25:$C$77,3,FALSE),VLOOKUP($F186,Lijsten!$A$19:$B$71,2,FALSE)) -> 39.77958241 | AP186: 0 | BM186: 1967-06-02 | BN186: 0.2 | BO186: 1.893 | BQ186: 1975-06-01 | BR186: 0.1 | BS186: 2.607 | BU186: 2006-06-01 | BV186: 0.18 | BW186: 1.66071 | BX186: 0.22 | BY186: 1.58769 | BZ186: 0.18 | CA186: 1.5195 | CC186: 2016-05-31 | CD186: 0.17 | CE186: 1.69691 | CF186: 0.21 | CG186: 1.60303 | CH186: 0.17 | CI186: 1.51536 | CK186: 2066-06-01 | CL186: 0.14 | CM186: 1.87792 | CN186: 0 | CO186: 1.67973 | CP186: 0.14 | CQ186: 1.49465 | CU186: 18
A187: 1967-06-03 | B187: 0 | C187: 2.91 | D187: 6 | E187: 1967 | F187: 22 | G187: 0 | H187: =IF(B187<Parameters!$A$16,B187*Parameters!$B$16,IF(AND(B187>Parameters!$A$16,B187<Parameters!$A$17),B187*Parameters!$B$17,B187*Parameters!$B$18)) -> 0 | I187: =IF(B187<Parameters!$A$20,B187*Parameters!$B$20,IF(AND(B187>Parameters!$A$20,B187<Parameters!$A$21),B187*Parameters!$B$21,B187*Parameters!$B$22)) -> 0 | L187: 0 | N187: 0 | O187: 2.776666667 | R187: =IF('Gegevens '!$G$20="Eigen waarden",VLOOKUP($F187,'Gegevens '!$A$25:$C$77,3,FALSE),VLOOKUP($F187,Lijsten!$A$19:$B$71,2,FALSE)) -> 39.77958241 | AC187: 0 | AE187: 0 | AP187: 0 | BM187: 1967-06-03 | BN187: 0 | BO187: 2.91 | BQ187: 1975-06-02 | BR187: 4.5 | BS187: 2.517 | BU187: 2006-06-02 | BV187: 0.18 | BW187: 2.04936 | BX187: 0.22 | BY187: 1.95926 | BZ187: 0.18 | CA187: 1.87511 | CC187: 2016-06-01 | CD187: 0 | CE187: 2.09404 | CF187: 0.22 | CG187: 1.97818 | CH187: 0 | CI187: 1.87 | CK187: 2066-06-02 | CL187: 0.14 | CM187: 2.31741 | CN187: 0.2 | CO187: 2.07284 | CP187: 0.14 | CQ187: 1.84444 | CU187: 19
A188: 1967-06-04 | B188: 0 | C188: 5.447 | D188: 6 | E188: 1967 | F188: 22 | G188: 0 | H188: =IF(B188<Parameters!$A$16,B188*Parameters!$B$16,IF(AND(B188>Parameters!$A$16,B188<Parameters!$A$17),B188*Parameters!$B$17,B188*Parameters!$B$18)) -> 0 | I188: =IF(B188<Parameters!$A$20,B188*Parameters!$B$20,IF(AND(B188>Parameters!$A$20,B188<Parameters!$A$21),B188*Parameters!$B$21,B188*Parameters!$B$22)) -> 0 | L188: 0 | N188: 0 | O188: 5.313666667 | R188: =IF('Gegevens '!$G$20="Eigen waarden",VLOOKUP($F188,'Gegevens '!$A$25:$C$77,3,FALSE),VLOOKUP($F188,Lijsten!$A$19:$B$71,2,FALSE)) -> 39.77958241 | AC188: 0 | AE188: 0 | AP188: 0 | BM188: 1967-06-04 | BN188: 0 | BO188: 5.447 | BQ188: 1975-06-03 | BR188: 1.4 | BS188: 1.458 | BU188: 2006-06-03 | BV188: 0 | BW188: 3.15037 | BX188: 0 | BY188: 3.01185 | BZ188: 0 | CA188: 2.8825 | CC188: 2016-06-02 | CD188: 0 | CE188: 3.21904 | CF188: 0 | CG188: 3.04095 | CH188: 0 | CI188: 2.87464 | CK188: 2066-06-03 | CL188: 0 | CM188: 3.56242 | CN188: 0 | CO188: 3.18645 | CP188: 0 | CQ188: 2.83536 | CU188: 20
A189: 1967-06-05 | B189: 0 | C189: 2.245 | D189: 6 | E189: 1967 | F189: 23 | G189: 0 | H189: =IF(B189<Parameters!$A$16,B189*Parameters!$B$16,IF(AND(B189>Parameters!$A$16,B189<Parameters!$A$17),B189*Parameters!$B$17,B189*Parameters!$B$18)) -> 0 | I189: =IF(B189<Parameters!$A$20,B189*Parameters!$B$20,IF(AND(B189>Parameters!$A$20,B189<Parameters!$A$21),B189*Parameters!$B$21,B189*Parameters!$B$22)) -> 0 | L189: 0 | N189: 0 | O189: 2.111666667 | R189: =IF('Gegevens '!$G$20="Eigen waarden",VLOOKUP($F189,'Gegevens '!$A$25:$C$77,3,FALSE),VLOOKUP($F189,Lijsten!$A$19:$B$71,2,FALSE)) -> 40.29181069 | AC189: 0 | AE189: 0 | AP189: 0 | BM189: 1967-06-05 | BN189: 0 | BO189: 2.245 | BQ189: 1975-06-04 | BR189: 0.8 | BS189: 3.224 | BU189: 2006-06-04 | BV189: 0 | BW189: 5.89692 | BX189: 0 | BY189: 5.63765 | BZ189: 0 | CA189: 5.39553 | CC189: 2016-06-03 | CD189: 0 | CE189: 6.02547 | CF189: 0 | CG189: 5.69211 | CH189: 0 | CI189: 5.38082 | CK189: 2066-06-04 | CL189: 0 | CM189: 6.66822 | CN189: 0 | CO189: 5.96447 | CP189: 0 | CQ189: 5.30728 | CU189: 21
A190: 1967-06-06 | B190: 0 | C190: 5.048 | D190: 6 | E190: 1967 | F190: 23 | G190: 0 | H190: =IF(B190<Parameters!$A$16,B190*Parameters!$B$16,IF(AND(B190>Parameters!$A$16,B190<Parameters!$A$17),B190*Parameters!$B$17,B190*Parameters!$B$18)) -> 0 | I190: =IF(B190<Parameters!$A$20,B190*Parameters!$B$20,IF(AND(B190>Parameters!$A$20,B190<Parameters!$A$21),B190*Parameters!$B$21,B190*Parameters!$B$22)) -> 0 | L190: 0 | N190: 0 | O190: 4.914666667 | R190: =IF('Gegevens '!$G$20="Eigen waarden",VLOOKUP($F190,'Gegevens '!$A$25:$C$77,3,FALSE),VLOOKUP($F190,Lijsten!$A$19:$B$71,2,FALSE)) -> 40.29181069 | AC190: 0 | AE190: 0 | AP190: 0 | BM190: 1967-06-06 | BN190: 0 | BO190: 5.048 | BQ190: 1975-06-05 | BR190: 0 | BS190: 4.624 | BU190: 2006-06-05 | BV190: 0 | BW190: 2.43044 | BX190: 0 | BY190: 2.32358 | BZ190: 0 | CA190: 2.22378 | CC190: 2016-06-04 | CD190: 0 | CE190: 2.48342 | CF190: 0 | CG190: 2.34602 | CH190: 0 | CI190: 2.21772 | CK190: 2066-06-05 | CL190: 0 | CM190: 2.74833 | CN190: 0 | CO190: 2.45828 | CP190: 0 | CQ190: 2.18742 | CU190: 22
A191: 1967-06-07 | B191: 1.9 | C191: 2.985 | D191: 6 | E191: 1967 | F191: 23 | G191: 1.9 | H191: =IF(B191<Parameters!$A$16,B191*Parameters!$B$16,IF(AND(B191>Parameters!$A$16,B191<Parameters!$A$17),B191*Parameters!$B$17,B191*Parameters!$B$18)) -> 1.52 | I191: =IF(B191<Parameters!$A$20,B191*Parameters!$B$20,IF(AND(B191>Parameters!$A$20,B191<Parameters!$A$21),B191*Parameters!$B$21,B191*Parameters!$B$22)) -> 1.14 | O191: 2.851666667 | R191: =IF('Gegevens '!$G$20="Eigen waarden",VLOOKUP($F191,'Gegevens '!$A$25:$C$77,3,FALSE),VLOOKUP($F191,Lijsten!$A$19:$B$71,2,FALSE)) -> 40.29181069 | AP191: 0 | BM191: 1967-06-07 | BN191: 1.9 | BO191: 2.985 | BQ191: 1975-06-06 | BR191: 0 | BS191: 5.983 | BU191: 2006-06-06 | BV191: 0 | BW191: 5.46496 | BX191: 0 | BY191: 5.22468 | BZ191: 0 | CA191: 5.0003 | CC191: 2016-06-05 | CD191: 0 | CE191: 5.5841 | CF191: 0 | CG191: 5.27516 | CH191: 0 | CI191: 4.98667 | CK191: 2066-06-06 | CL191: 0 | CM191: 6.17976 | CN191: 0 | CO191: 5.52756 | CP191: 0 | CQ191: 4.91852 | CU191: 23
A192: 1967-06-08 | B192: 1.4 | C192: 3.956 | D192: 6 | E192: 1967 | F192: 23 | G192: 1.4 | H192: =IF(B192<Parameters!$A$16,B192*Parameters!$B$16,IF(AND(B192>Parameters!$A$16,B192<Parameters!$A$17),B192*Parameters!$B$17,B192*Parameters!$B$18)) -> 1.12 | I192: =IF(B192<Parameters!$A$20,B192*Parameters!$B$20,IF(AND(B192>Parameters!$A$20,B192<Parameters!$A$21),B192*Parameters!$B$21,B192*Parameters!$B$22)) -> 0.84 | O192: 3.822666667 | R192: =IF('Gegevens '!$G$20="Eigen waarden",VLOOKUP($F192,'Gegevens '!$A$25:$C$77,3,FALSE),VLOOKUP($F192,Lijsten!$A$19:$B$71,2,FALSE)) -> 40.29181069 | AP192: 0 | BM192: 1967-06-08 | BN192: 1.4 | BO192: 3.956 | BQ192: 1975-06-07 | BR192: 0 | BS192: 6.323 | BU192: 2006-06-07 | BV192: 1.62 | BW192: 3.23156 | BX192: 2.04 | BY192: 3.08948 | BZ192: 1.62 | CA192: 2.95679 | CC192: 2016-06-06 | CD192: 1.55 | CE192: 3.30201 | CF192: 2 | CG192: 3.11932 | CH192: 1.55 | CI192: 2.94873 | CK192: 2066-06-07 | CL192: 0 | CM192: 3.65424 | CN192: 1.77 | CO192: 3.26858 | CP192: 0 | CQ192: 2.90843 | CU192: 24
A193: 1967-06-09 | B193: 0 | C193: 3.59 | D193: 6 | E193: 1967 | F193: 23 | G193: 0 | H193: =IF(B193<Parameters!$A$16,B193*Parameters!$B$16,IF(AND(B193>Parameters!$A$16,B193<Parameters!$A$17),B193*Parameters!$B$17,B193*Parameters!$B$18)) -> 0 | I193: =IF(B193<Parameters!$A$20,B193*Parameters!$B$20,IF(AND(B193>Parameters!$A$20,B193<Parameters!$A$21),B193*Parameters!$B$21,B193*Parameters!$B$22)) -> 0 | L193: 0 | N193: 0 | O193: 3.456666667 | R193: =IF('Gegevens '!$G$20="Eigen waarden",VLOOKUP($F193,'Gegevens '!$A$25:$C$77,3,FALSE),VLOOKUP($F193,Lijsten!$A$19:$B$71,2,FALSE)) -> 40.29181069 | AC193: 0 | AE193: 0 | AP193: 0 | BM193: 1967-06-09 | BN193: 0 | BO193: 3.59 | BQ193: 1975-06-08 | BR193: 0 | BS193: 6.452 | BU193: 2006-06-08 | BV193: 1.19 | BW193: 4.28277 | BX193: 1.5 | BY193: 4.09446 | BZ193: 1.19 | CA193: 3.91862 | CC193: 2016-06-07 | CD193: 1.12 | CE193: 4.37613 | CF193: 1.46 | CG193: 4.13402 | CH193: 1.12 | CI193: 3.90793 | CK193: 2066-06-08 | CL193: 0.82 | CM193: 4.84294 | CN193: 1.29 | CO193: 4.33182 | CP193: 0.82 | CQ193: 3.85453 | CU193: 25
A194: 1967-06-10 | B194: 0 | C194: 3.291 | D194: 6 | E194: 1967 | F194: 23 | G194: 0 | H194: =IF(B194<Parameters!$A$16,B194*Parameters!$B$16,IF(AND(B194>Parameters!$A$16,B194<Parameters!$A$17),B194*Parameters!$B$17,B194*Parameters!$B$18)) -> 0 | I194: =IF(B194<Parameters!$A$20,B194*Parameters!$B$20,IF(AND(B194>Parameters!$A$20,B194<Parameters!$A$21),B194*Parameters!$B$21,B194*Parameters!$B$22)) -> 0 | L194: 0 | N194: 0 | O194: 3.157666667 | R194: =IF('Gegevens '!$G$20="Eigen waarden",VLOOKUP($F194,'Gegevens '!$A$25:$C$77,3,FALSE),VLOOKUP($F194,Lijsten!$A$19:$B$71,2,FALSE)) -> 40.29181069 | AC194: 0 | AE194: 0 | AP194: 0 | BM194: 1967-06-10 | BN194: 0 | BO194: 3.291 | BQ194: 1975-06-09 | BR194: 0 | BS194: 6.365 | BU194: 2006-06-09 | BV194: 0 | BW194: 3.88653 | BX194: 0 | BY194: 3.71565 | BZ194: 0 | CA194: 3.55607 | CC194: 2016-06-08 | CD194: 0 | CE194: 3.97126 | CF194: 0 | CG194: 3.75155 | CH194: 0 | CI194: 3.54638 | CK194: 2066-06-09 | CL194: 0 | CM194: 4.39488 | CN194: 0 | CO194: 3.93105 | CP194: 0 | CQ194: 3.49792 | CU194: 26
A195: 1967-06-11 | B195: 0 | C195: 2.169 | D195: 6 | E195: 1967 | F195: 23 | G195: 0 | H195: =IF(B195<Parameters!$A$16,B195*Parameters!$B$16,IF(AND(B195>Parameters!$A$16,B195<Parameters!$A$17),B195*Parameters!$B$17,B195*Parameters!$B$18)) -> 0 | I195: =IF(B195<Parameters!$A$20,B195*Parameters!$B$20,IF(AND(B195>Parameters!$A$20,B195<Parameters!$A$21),B195*Parameters!$B$21,B195*Parameters!$B$22)) -> 0 | L195: 0 | N195: 0 | O195: 2.035666667 | R195: =IF('Gegevens '!$G$20="Eigen waarden",VLOOKUP($F195,'Gegevens '!$A$25:$C$77,3,FALSE),VLOOKUP($F195,Lijsten!$A$19:$B$71,2,FALSE)) -> 40.29181069 | AC195: 0 | AE195: 0 | AP195: 0 | BM195: 1967-06-11 | BN195: 0 | BO195: 2.169 | BQ195: 1975-06-10 | BR195: 0 | BS195: 4.735 | BU195: 2006-06-10 | BV195: 0 | BW195: 3.56284 | BX195: 0 | BY195: 3.40618 | BZ195: 0 | CA195: 3.2599 | CC195: 2016-06-09 | CD195: 0 | CE195: 3.6405 | CF195: 0 | CG195: 3.43909 | CH195: 0 | CI195: 3.25101 | CK195: 2066-06-10 | CL195: 0 | CM195: 4.02884 | CN195: 0 | CO195: 3.60365 | CP195: 0 | CQ195: 3.20659 | CU195: 27
A196: 1967-06-12 | B196: 0 | C196: 4.566 | D196: 6 | E196: 1967 | F196: 24 | G196: 0 | H196: =IF(B196<Parameters!$A$16,B196*Parameters!$B$16,IF(AND(B196>Parameters!$A$16,B196<Parameters!$A$17),B196*Parameters!$B$17,B196*Parameters!$B$18)) -> 0 | I196: =IF(B196<Parameters!$A$20,B196*Parameters!$B$20,IF(AND(B196>Parameters!$A$20,B196<Parameters!$A$21),B196*Parameters!$B$21,B196*Parameters!$B$22)) -> 0 | L196: 0 | N196: 0 | O196: 4.432666667 | R196: =IF('Gegevens '!$G$20="Eigen waarden",VLOOKUP($F196,'Gegevens '!$A$25:$C$77,3,FALSE),VLOOKUP($F196,Lijsten!$A$19:$B$71,2,FALSE)) -> 43.95116237 | AC196: 0 | AE196: 0 | AP196: 0 | BM196: 1967-06-12 | BN196: 0 | BO196: 4.566 | BQ196: 1975-06-11 | BR196: 0 | BS196: 4.751 | BU196: 2006-06-11 | BV196: 0 | BW196: 2.34816 | BX196: 0 | BY196: 2.24492 | BZ196: 0 | CA196: 2.1485 | CC196: 2016-06-10 | CD196: 0 | CE196: 2.39935 | CF196: 0 | CG196: 2.2666 | CH196: 0 | CI196: 2.14265 | CK196: 2066-06-11 | CL196: 0 | CM196: 2.65529 | CN196: 0 | CO196: 2.37506 | CP196: 0 | CQ196: 2.11337 | CU196: 28
A197: 1967-06-13 | B197: 0 | C197: 4.714 | D197: 6 | E197: 1967 | F197: 24 | G197: 0 | H197: =IF(B197<Parameters!$A$16,B197*Parameters!$B$16,IF(AND(B197>Parameters!$A$16,B197<Parameters!$A$17),B197*Parameters!$B$17,B197*Parameters!$B$18)) -> 0 | I197: =IF(B197<Parameters!$A$20,B197*Parameters!$B$20,IF(AND(B197>Parameters!$A$20,B197<Parameters!$A$21),B197*Parameters!$B$21,B197*Parameters!$B$22)) -> 0 | L197: 0 | N197: 0 | O197: 4.580666667 | R197: =IF('Gegevens '!$G$20="Eigen waarden",VLOOKUP($F197,'Gegevens '!$A$25:$C$77,3,FALSE),VLOOKUP($F197,Lijsten!$A$19:$B$71,2,FALSE)) -> 43.95116237 | AC197: 0 | AE197: 0 | AP197: 0 | BM197: 1967-06-13 | BN197: 0 | BO197: 4.714 | BQ197: 1975-06-12 | BR197: 0 | BS197: 5.963 | BU197: 2006-06-12 | BV197: 0 | BW197: 4.94315 | BX197: 0 | BY197: 4.72581 | BZ197: 0 | CA197: 4.52285 | CC197: 2016-06-11 | CD197: 0 | CE197: 5.05091 | CF197: 0 | CG197: 4.77147 | CH197: 0 | CI197: 4.51052 | CK197: 2066-06-12 | CL197: 0 | CM197: 5.5897 | CN197: 0 | CO197: 4.99977 | CP197: 0 | CQ197: 4.44888 | CU197: 29
A198: 1967-06-14 | B198: 0 | C198: 5.368 | D198: 6 | E198: 1967 | F198: 24 | G198: 0 | H198: =IF(B198<Parameters!$A$16,B198*Parameters!$B$16,IF(AND(B198>Parameters!$A$16,B198<Parameters!$A$17),B198*Parameters!$B$17,B198*Parameters!$B$18)) -> 0 | I198: =IF(B198<Parameters!$A$20,B198*Parameters!$B$20,IF(AND(B198>Parameters!$A$20,B198<Parameters!$A$21),B198*Parameters!$B$21,B198*Parameters!$B$22)) -> 0 | L198: 0 | N198: 0 | O198: 5.234666667 | R198: =IF('Gegevens '!$G$20="Eigen waarden",VLOOKUP($F198,'Gegevens '!$A$25:$C$77,3,FALSE),VLOOKUP($F198,Lijsten!$A$19:$B$71,2,FALSE)) -> 43.95116237 | AC198: 0 | AE198: 0 | AP198: 0 | BM198: 1967-06-14 | BN198: 0 | BO198: 5.368 | BQ198: 1975-06-13 | BR198: 0 | BS198: 5.536 | BU198: 2006-06-13 | BV198: 0 | BW198: 5.10338 | BX198: 0 | BY198: 4.87899 | BZ198: 0 | CA198: 4.66945 | CC198: 2016-06-12 | CD198: 0 | CE198: 5.21463 | CF198: 0 | CG198: 4.92613 | CH198: 0 | CI198: 4.65672 | CK198: 2066-06-13 | CL198: 0 | CM198: 5.77088 | CN198: 0 | CO198: 5.16183 | CP198: 0 | CQ198: 4.59309 | CU198: 30
A199: 1967-06-15 | B199: 1.4 | C199: 3.857 | D199: 6 | E199: 1967 | F199: 24 | G199: 1.4 | H199: =IF(B199<Parameters!$A$16,B199*Parameters!$B$16,IF(AND(B199>Parameters!$A$16,B199<Parameters!$A$17),B199*Parameters!$B$17,B199*Parameters!$B$18)) -> 1.12 | I199: =IF(B199<Parameters!$A$20,B199*Parameters!$B$20,IF(AND(B199>Parameters!$A$20,B199<Parameters!$A$21),B199*Parameters!$B$21,B199*Parameters!$B$22)) -> 0.84 | O199: 3.723666667 | R199: =IF('Gegevens '!$G$20="Eigen waarden",VLOOKUP($F199,'Gegevens '!$A$25:$C$77,3,FALSE),VLOOKUP($F199,Lijsten!$A$19:$B$71,2,FALSE)) -> 43.95116237 | AP199: 0 | BM199: 1967-06-15 | BN199: 1.4 | BO199: 3.857 | BQ199: 1975-06-14 | BR199: 0 | BS199: 4.577 | BU199: 2006-06-14 | BV199: 0 | BW199: 5.8114 | BX199: 0 | BY199: 5.55588 | BZ199: 0 | CA199: 5.31727 | CC199: 2016-06-13 | CD199: 0 | CE199: 5.93808 | CF199: 0 | CG199: 5.60956 | CH199: 0 | CI199: 5.30278 | CK199: 2066-06-14 | CL199: 0 | CM199: 6.57151 | CN199: 0 | CO199: 5.87796 | CP199: 0 | CQ199: 5.23031 | CU199: 31
A200: 1967-06-16 | B200: 0.1 | C200: 2.426 | D200: 6 | E200: 1967 | F200: 24 | G200: 0.1 | H200: =IF(B200<Parameters!$A$16,B200*Parameters!$B$16,IF(AND(B200>Parameters!$A$16,B200<Parameters!$A$17),B200*Parameters!$B$17,B200*Parameters!$B$18)) -> 0 | I200: =IF(B200<Parameters!$A$20,B200*Parameters!$B$20,IF(AND(B200>Parameters!$A$20,B200<Parameters!$A$21),B200*Parameters!$B$21,B200*Parameters!$B$22)) -> 0 | O200: 2.292666667 | R200: =IF('Gegevens '!$G$20="Eigen waarden",VLOOKUP($F200,'Gegevens '!$A$25:$C$77,3,FALSE),VLOOKUP($F200,Lijsten!$A$19:$B$71,2,FALSE)) -> 43.95116237 | AP200: 0 | BM200: 1967-06-16 | BN200: 0.1 | BO200: 2.426 | BQ200: 1975-06-15 | BR200: 5 | BS200: 2.193 | BU200: 2006-06-15 | BV200: 1.18 | BW200: 4.17559 | BX200: 1.5 | BY200: 3.992 | BZ200: 1.18 | CA200: 3.82055 | CC200: 2016-06-14 | CD200: 1.12 | CE200: 4.26661 | CF200: 1.46 | CG200: 4.03056 | CH200: 1.12 | CI200: 3.81014 | CK200: 2066-06-15 | CL200: 0.82 | CM200: 4.72174 | CN200: 1.29 | CO200: 4.22342 | CP200: 0.82 | CQ200: 3.75807 | CU200: 32
A201: 1967-06-17 | B201: 0 | C201: 3.45 | D201: 6 | E201: 1967 | F201: 24 | G201: 0 | H201: =IF(B201<Parameters!$A$16,B201*Parameters!$B$16,IF(AND(B201>Parameters!$A$16,B201<Parameters!$A$17),B201*Parameters!$B$17,B201*Parameters!$B$18)) -> 0 | I201: =IF(B201<Parameters!$A$20,B201*Parameters!$B$20,IF(AND(B201>Parameters!$A$20,B201<Parameters!$A$21),B201*Parameters!$B$21,B201*Parameters!$B$22)) -> 0 | L201: 0 | N201: 0 | O201: 3.316666667 | R201: =IF('Gegevens '!$G$20="Eigen waarden",VLOOKUP($F201,'Gegevens '!$A$25:$C$77,3,FALSE),VLOOKUP($F201,Lijsten!$A$19:$B$71,2,FALSE)) -> 43.95116237 | AC201: 0 | AE201: 0 | AP201: 0 | BM201: 1967-06-17 | BN201: 0 | BO201: 3.45 | BQ201: 1975-06-16 | BR201: 0.5 | BS201: 3.854 | BU201: 2006-06-16 | BV201: 0.09 | BW201: 2.62639 | BX201: 0.12 | BY201: 2.51091 | BZ201: 0.09 | CA201: 2.40307 | CC201: 2016-06-15 | CD201: 0 | CE201: 2.68364 | CF201: 0.1 | CG201: 2.53517 | CH201: 0 | CI201: 2.39652 | CK201: 2066-06-16 | CL201: 0.07 | CM201: 2.96991 | CN201: 0.1 | CO201: 2.65647 | CP201: 0.07 | CQ201: 2.36377 | CU201: 33
... 360 more rows

Sheet simvgl (hidden)
B1: In de gele cellen kunnen afmetingen geplakt worden voor simulatie | L1: Uitkomst Simulatie Ronde Volumes | O1: Efficiëntie | Q1: Opvangverhouding | S1: Opvangverliezen | V1: Waar blijft de opgevangen neerslag? | Y1: Wat gebeurt er met nuttige neerslag? | AA1: Bruto neerslag - Verlies/gebruikspercentages | AF1: Terugkeerperiode watertekort | AK1: Volumeberekeningen
B2: Serre | C2: Bedrijfsgebouwen | D2: Bassin | E2: Teeltoppervlakte | F2: Lengte | G2: Breedte | H2: Totale diepte | I2: Diepte Overloop | J2: Hoogte dode zone | L2: Nuttig volume per ha teeltopp. | M2: Bruto volume Water per ha teeltopp. | N2: Netto Oppervlakte per ha teeltopp. | O2: Hemelwater-percentage | P2: Benuttings-percentage | Q2: Neerslag mm | R2: Opvang-verhouding | S2: Bruto neerslag mm | T2: Opvang-verlies mm | U2: Opgevangen neerslag mm | V2: Overloop-verlies mm | W2: Evaporatie-verlies mm | X2: Nuttige neerslag mm | Y2: Hemelwater-benutting mm | Z2: Buffer-opbouw mm | AA2: Opvang-verlies-percentage | AB2: Overloop-percentage | AC2: Evaporatie-percentage | AD2: Hemelwater-benuttings percentage | AE2: Bufferopbouw | AF2: Maximaal watertekort m³/jaar per ha teeltopp. | AG2: Terugkeer-periode #jaar | AH2: Gemiddelde Overloop m³/jaar per ha teeltopp. | AI2: Gemiddeld Watertekort m³/jaar per ha teeltopp. | AK2: Nuttig volume | AL2: Bruto volume Water | AM2: %Nuttig? | AN2: Volume Dode Zone | AO2: Volume Overloop | AP2: Totaal Volume-verlies (Dode zone+Overloop) | AQ2: Volume Waterniveau | AR2: Netto Oppervlakte | AS2: Bruto Oppervlakte | AT2: Oppervlakte Wal | AU2: %Nuttig? | AV2: Netto hoogte | AW2: Nuttige Lengte boven | AX2: Nuttige Lengte onder | AY2: Lengte onder | AZ2: Lengte Startniveau | BA2: Nuttige Breedte boven | BB2: Nuttige Breedte onder | BC2: Breedte onder | BD2: Breedte Startniveau | BE2: Bruto volume (-aarden wallen) | BF2: %Nuttig? | BG2: Totaal Volume-verlies (aarden Wallen) | BH2: Oppervlakte bij maximale berging | BI2: Oppervlakte bij waterniveau Dode Zone | BJ2: Diepte startniveau | BL2: Berekening naar ronde nuttige volumes
B3: =B5 -> 22000 | C3: =C5 -> 1250 | D3: =AR3*D12 -> 2800 | E3: ='Gegevens vergelijking'!C4 -> 21500 | F3: =F5 -> 70 | G3: =G5 -> 40 | H3: =H5 -> 6 | I3: =I5 -> 0.3 | J3: =J5 -> 1 | L3: =AK3 -> 4923.967752 | M3: =AL3 -> 6106.046512 | N3: =AR3 -> 1302.325581 | O3: =Y29 -> 0.978552025 | P3: =Z29 -> 0.8238233851 | Q3: =B29 -> 829.1 | R3: =K29 -> 1.211627907 | S3: =AB29 -> 1004.560698 | T3: =AE29 -> 85.38603387 | U3: =AC29 -> 919.1746638 | V3: =AF29 -> 51.38150538 | W3: =AG29 -> 34.62751499 | X3: =AD29 -> 827.5805945 | Y3: =AH29 -> 827.5805945 | Z3: 5.585048882 | AA3: 0.08499838195 | AB3: 0.05114823375 | AC3: 0.03447030635 | AD3: 0.8238233851 | AE3: 0.005559692804 | AF3: =C21 -> 0 | AG3: =C20 -> > 46jaar | AH3: =V29 -> 513.8150538 | AI3: =C22 -> 0 | AK3: =((AX3*BB3*AV3)+(AV3^2*((AX3+BB3)))+(AV3^3/3)*4)/$D$12 -> 4923.967752 | AL3: =SUM(AK3+AO3+AN3) -> 6106.046512 | AM3: =AK3/BE3 -> 0.8064084908 | AN3: =((AY3*BC3*J3)+(J3^2*((AY3+BC3)))+(J3^3/3)*4)/$D$12 -> 795.9689922 | AO3: =((AW3*BA3*I3)+(I3^2*(AW3+BA3))+(I3^3/3)*4)/$D$12 -> 386.1097674 | AP3: =AN3+AO3 -> 1182.07876 | AQ3: =((AY3*BC3*(H3-BJ3))+((H3-BJ3)^2*((AY3+BC3)))+((H3-BJ3)^3/3)*4)/$D$12 -> 6106.046512 | AR3: =G3*F3/$D$12 -> 1302.325581 | AS3: =SUM((F3+(2*(Parameters!$D$5)))*(G3+2*(Parameters!$D$5)))/$D$12 -> 1683.255814 | AT3: =2*(((2*Parameters!$D$5+G3)*Parameters!$D$5+(Parameters!$D$5*F3)))/$D$12 -> 380.9302326 | AU3: =SUM(AR3/AS3) -> 0.7736943907 | AV3: =H3-J3-I3 -> 4.7 | AW3: =F3-2*I3 -> 69.4 | AX3: =AW3-2*AV3 -> 60 | AY3: =F3-2*H3 -> 58 | AZ3: =F3-2*BJ3 -> 70 | BA3: =G3-(2*I3) -> 39.4 | BB3: =BA3-2*AV3 -> 30 | BC3: =G3-2*H3 -> 28 | BD3: =G3-2*BJ3 -> 40 | BE3: =((AY3*BC3*H3)+(H3^2*((AY3+BC3)))+(H3^3/3)*4)/$D$12 -> 6106.046512 | BF3: =AK3/BE3 -> 0.8064084908 | BG3: =(BE3-AK3) -> 1182.07876 | BH3: =AW3*BA3/$D$12 -> 1271.795349 | BI3: =SUM(AX3*BB3)/$D$12 -> 837.2093023 | BJ3: 0 | BL3: Lengte | BN3: Breedte | BP3: Totale diepte | BR3: Diepte Overloop | BT3: Hoogte dode zone | BV3: Diepte Waterniveau | BX3: Netto volume | BZ3: Bruto volume Water | CB3: %Nuttig? | CC3: Volume Dode Zone | CE3: Volume Overloop | CG3: Totaal Volume-verlies (Dode zone+Overloop) | CI3: Volume Waterniveau | CK3: Netto Oppervlakte | CM3: Bruto Oppervlakte | CO3: Oppervlakte Wal | CQ3: %Nuttig? | CR3: Netto hoogte | CT3: Nuttige Lengte boven | CV3: Nuttige Lengte onder | CX3: Lengte onder | CZ3: Lengte Startniveau | DB3: Nuttige Breedte boven | DD3: Nuttige Breedte onder | DF3: Breedte onder | DH3: Breedte Startniveau | DJ3: Bruto volume (-aarden wallen) | DL3: %Nuttig? | DM3: Totaal Volume-verlies (aarden Wallen) | DO3: Oppervlakte bij maximale berging | DQ3: Oppervlakte bij waterniveau Dode Zone
B4: Afmetingen bedrijfsgebouwen en teelt | F4: Afmetingen voor ronde nuttige volumes per ha | AK4: Totale volumes en oppervlakken (niet per ha teeltopp.)
A5: Invulblad: AFBLIJVEN! | B5: ='Gegevens vergelijking'!C3 -> 22000 | C5: ='Gegevens vergelijking'!C5 -> 1250 | D5: =AR5 -> 2800 | E5: ='Gegevens vergelijking'!C4 -> 21500 | F5: ='Gegevens vergelijking'!C9 -> 70 | G5: ='Gegevens vergelijking'!C10 -> 40 | H5: ='Gegevens vergelijking'!C11 -> 6 | I5: ='Gegevens vergelijking'!C12 -> 0.3 | J5: ='Gegevens vergelijking'!C13 -> 1 | L5: 4923.967752 | M5: 6106.046512 | N5: 1302.325581 | O5: 1 | P5: 0.6041593276 | Q5: 829.1 | R5: 1.211627907 | S5: 1004.560698 | T5: 85.38603387 | U5: 919.1746638 | V5: 267.8181784 | W5: 38.85732369 | X5: 606.9147157 | Y5: 606.9147157 | Z5: 5.584446089 | AA5: 0.08499838195 | AB5: 0.2666022859 | AC5: 0.03868091175 | AD5: 0.6041593276 | AE5: 0.005559092747 | AF5: 0 | AG5: > 46jaar | AH5: 2678.181784 | AI5: 0 | AK5: =((AX5*BB5*AV5)+(AV5^2*((AX5+BB5)))+(AV5^3/3)*4) -> 10586.53067 | AL5: =SUM(AK5+AO5+AN5) -> 13128 | AM5: =AK5/BE5 -> 0.8064084908 | AN5: =((AY5*BC5*J5)+(J5^2*((AY5+BC5)))+(J5^3/3)*4) -> 1711.333333 | AO5: =((AW5*BA5*I5)+(I5^2*(AW5+BA5))+(I5^3/3)*4) -> 830.136 | AP5: =AN5+AO5 -> 2541.469333 | AQ5: =((AY5*BC5*(H5-BJ5))+((H5-BJ5)^2*((AY5+BC5)))+((H5-BJ5)^3/3)*4) -> 13128 | AR5: =G5*F5 -> 2800 | AS5: =SUM((F5+(2*(Parameters!$D$5)))*(G5+2*(Parameters!$D$5))) -> 3619 | AT5: =2*(((2*Parameters!$D$5+G5)*Parameters!$D$5+(Parameters!$D$5*F5)))/$D$12 -> 380.9302326 | AU5: =SUM(AR5/AS5) -> 0.7736943907 | AV5: =H5-J5-I5 -> 4.7 | AW5: =F5-2*I5 -> 69.4 | AX5: =AW5-2*AV5 -> 60 | AY5: =F5-2*H5 -> 58 | AZ5: =F5-2*BJ5 -> 70 | BA5: =G5-(2*I5) -> 39.4 | BB5: =BA5-2*AV5 -> 30 | BC5: =G5-2*H5 -> 28 | BD5: =G5-2*BJ5 -> 40 | BE5: =((AY5*BC5*H5)+(H5^2*((AY5+BC5)))+(H5^3/3)*4) -> 13128 | BF5: =AK5/BE5 -> 0.8064084908 | BG5: =(BE5-AK5) -> 2541.469333 | BH5: =AW5*BA5 -> 2734.36 | BI5: =SUM(AX5*BB5) -> 1800 | BJ5: 0 | BL5: Lb | BN5: Bb | BP5: H | BR5: Ho | BT5: Hs | BV5: Hd | BX5: Vn | BZ5: Vb | CC5: Vd | CE5: Vo | CG5: Vv | CI5: Vs | CK5: An | CM5: Ab | CO5: Av | CQ5: A% | CR5: Hn | CT5: Lnb | CV5: Lno | CX5: Lo | CZ5: Ls | DB5: Bnb | DD5: Bno | DF5: Bo | DH5: Bs | DO5: Am | DQ5: Ad
B6: Bedrijfstypes | F6: =BL6 -> 20.17879294 | G6: =F6 -> 20.17879294 | H6: ='Gegevens '!$C$13 -> 0 | I6: ='Gegevens '!$C$14 -> 0.75 | J6: ='Gegevens '!$C$15 -> 0.5 | L6: 500.0402415 | M6: 594.5251232 | N6: 189.3877602 | O6: 0.7657469047 | P6: 0.5094263683 | Q6: 829.1 | R6: 1.100334125 | S6: 912.2870229 | T6: 85.38603387 | U6: 826.900989 | V6: 358.3941658 | W6: 3.286503555 | X6: 464.743065 | Y6: 464.743065 | Z6: 0.4772547561 | AA6: 0.09359558092 | AB6: 0.3928524212 | AC6: 0.00360248855 | AD6: 0.5094263683 | AE6: 0.0005231410117 | AF6: 2937.296849 | AG6: 1 | AH6: 3583.941658 | AI6: 1421.716507 | AK6: =L6*$E$3/10000 -> 1075.086519 | AL6: =SUM(AK6+AO6+AN6) -> 1572.183546 | AM6: =AK6/BE6 ->  | AN6: =((AY6*BC6*J6)+(J6^2*((AY6+BC6)))+(J6^3/3)*4) -> 213.8479053 | AO6: =((AW6*BA6*I6)+(I6^2*(AW6+BA6))+(I6^3/3)*4) -> 283.2491212 | AP6: =AN6+AO6 -> 497.0970266 | AQ6: =((AY6*BC6*(H6-BJ6))+((H6-BJ6)^2*((AY6+BC6)))+((H6-BJ6)^3/3)*4) -> 0 | AR6: =G6*F6 -> 407.1836844 | AS6: =SUM((F6+(2*(Parameters!$D$5)))*(G6+2*(Parameters!$D$5))) -> 738.6867855 | AT6: =2*(((2*Parameters!$D$5+G6)*Parameters!$D$5+(Parameters!$D$5*F6))) -> 331.5031011 | AU6: =SUM(AR6/AS6) -> 0.5512264364 | AV6: =H6-J6-I6 -> -1.25 | AW6: =F6-2*I6 -> 18.67879294 | AX6: =AW6-2*AV6 -> 21.17879294 | AY6: =F6-2*H6 -> 20.17879294 | AZ6: 20.17879294 | BA6: =G6-(2*I6) -> 18.67879294 | BB6: =BA6-2*AV6 -> 21.17879294 | BC6: =G6-2*H6 -> 20.17879294 | BD6: 20.17879294 | BE6: =((AY6*BC6*H6)+(H6^2*((AY6+BC6)))+(H6^3/3)*4) -> 0 | BF6: =AK6/BE6 ->  | BG6: -1075.086519 | BH6: 348.8973056 | BI6: 448.5412703 | BJ6: =E6 -> 0 | BK6: 500 | BL6: =CT6+2*BR6 -> 20.17879294 | BM6: m | BN6: =DD6+2*BR6+2*CR6 -> 20.17879294 | BO6: m | BP6: =$H$5 -> 6 | BQ6: m | BR6: =$I$5 -> 0.3 | BS6: m | BT6: =$J$5 -> 1 | BU6: m | BV6: =$D$13*$H$5 -> 3.84 | BW6: m | BX6: =BK6*$E$3/10000 -> 1075 | BY6: m³ | BZ6: =SUM(BX6+CE6+CC6) -> 1278.142496 | CA6: m³ | CB6: =BX6/BZ6 -> 0.8410642817 | CC6: =(CX6*DF6*BT6)+(BT6^2*((CX6+DF6)))+(BT6^3/3)*4 -> 84.58357311 | CD6: m³ | CE6: =(CT6*DB6*BR6)+(BR6^2*(CT6+DB6))+(BR6^3/3)*4 -> 118.5589226 | CF6: m³ | CG6: =CC6+CE6 -> 203.1424957 | CH6: m³ | CI6: =(CX6*DF6*(BP6-BT6))+((BP6-BT6)^2*((CX6+DF6)))+((BP6-BT6)^3/3)*4 -> 910.069583 | CJ6: m³ | CK6: =BN6*BL6 -> 407.1836844 | CL6: m² | CM6: =SUM((BL6+(2*(Parameters!$D$5)))*(BN6+2*(Parameters!$D$5))) -> 738.6867855 | CN6: m² | CO6: =2*(((2*Parameters!$D$5+BN6)*Parameters!$D$5+(Parameters!$D$5*BL6))) -> 331.5031011 | CP6: m² | CQ6: =SUM(CK6/CM6) -> 0.5512264364 | CR6: =BP6-BT6-BR6 -> 4.7 | CS6: m | CT6: =CV6+2*CR6 -> 19.57879294 | CU6: m | CV6: =-CR6+((-1.33*(CR6^4)+4*CR6*BX6)^(1/2))/(2*CR6) -> 10.17879294 | CW6: m | CX6: =CV6-2*BT6 -> 8.178792937 | CY6: m | CZ6: =BL6-2*BV6 -> 12.49879294 | DA6: m | DB6: =DD6+2*CR6 -> 19.57879294 | DC6: m | DD6: =CV6 -> 10.17879294 | DE6: m | DF6: =DD6-2*BT6 -> 8.178792937 | DG6: m | DH6: =BN6-2*BV6 -> 12.49879294 | DI6: m | DJ6: =(CX6*DF6*BP6)+(BP6^2*((CX6+DF6)))+(BP6^3/3)*4 -> 1278.229015 | DK6: m³ | DL6: =BX6/DJ6 -> 0.8410073528 | DM6: =DJ6-BX6 -> 203.2290149 | DN6: m³ | DO6: =CT6*DB6 -> 383.3291329 | DP6: m² | DQ6: =SUM(CV6*DD6) -> 103.6078256 | DR6: m²
A7: Bedrijf/Situatie 1 | B7: 31000 | C7: 1000 | D7: =D5 -> 2800 | E7: 30000 | F7: =BL7 -> 26.51560472 | G7: 26.51560472 | H7: ='Gegevens '!$C$13 -> 0 | I7: ='Gegevens '!$C$14 -> 0.75 | J7: ='Gegevens '!$C$15 -> 0.5 | L7: 1000.040241 | M7: 1208.065219 | N7: 327.0126947 | O7: 0.8564016134 | P7: 0.5626980025 | Q7: 829.1 | R7: 1.114096618 | S7: 923.6975062 | T7: 85.38603387 | U7: 838.3114724 | V7: 310.6757289 | W7: 6.845945527 | X7: 519.7627417 | Y7: 519.7627417 | Z7: 1.027056246 | AA7: 0.09243938984 | AB7: 0.3363392527 | AC7: 0.007411458276 | AD7: 0.5626980025 | AE7: 0.00111189674 | AF7: 2401.369439 | AG7: 1.045454545 | AH7: 3106.757289 | AI7: 911.1342736 | AK7: =L7*$E$3/10000 -> 2150.086519 | AL7: 3013.09005 | AN7: =((AY7*BC7*J7)+(J7^2*((AY7+BC7)))+(J7^3/3)*4) -> 364.9631158 | AO7: =((AW7*BA7*I7)+(I7^2*(AW7+BA7))+(I7^3/3)*4) -> 498.0404148 | AP7: =AN7+AO7 -> 863.0035306 | AQ7: =((AY7*BC7*(H7-BJ7))+((H7-BJ7)^2*((AY7+BC7)))+((H7-BJ7)^3/3)*4) -> 0 | AR7: =G7*F7 -> 703.0772935 | AS7: =SUM((F7+(2*(Parameters!$D$5)))*(G7+2*(Parameters!$D$5))) -> 1123.29576 | AT7: =2*(((2*Parameters!$D$5+G7)*Parameters!$D$5+(Parameters!$D$5*F7))) -> 420.218466 | AU7: 0.6259057666 | AV7: -1.25 | AW7: 25.01560472 | AX7: 27.51560472 | AY7: 26.51560472 | AZ7: 26.51560472 | BA7: 25.01560472 | BB7: 27.51560472 | BC7: 26.51560472 | BD7: 26.51560472 | BE7: =((AY7*BC7*H7)+(H7^2*((AY7+BC7)))+(H7^3/3)*4) -> 0 | BG7: -2150.086519 | BH7: 625.7804794 | BI7: 757.1085029 | BJ7: 0 | BK7: 1000 | BL7: =CT7+2*BR7 -> 26.51560472 | BM7: m | BN7: =DD7+2*BR7+2*CR7 -> 26.51560472 | BO7: m | BP7: =$H$5 -> 6 | BQ7: m | BR7: =$I$5 -> 0.3 | BS7: m | BT7: =$J$5 -> 1 | BU7: m | BV7: =$D$13*$H$5 -> 3.84 | BW7: m | BX7: =BK7*$E$3/10000 -> 2150 | BY7: m³ | BZ7: =SUM(BX7+CE7+CC7) -> 2597.253702 | CA7: m³ | CB7: =BX7/BZ7 -> 0.8277974532 | CC7: =(CX7*DF7*BT7)+(BT7^2*((CX7+DF7)))+(BT7^3/3)*4 -> 241.0673231 | CD7: m³ | CE7: =(CT7*DB7*BR7)+(BR7^2*(CT7+DB7))+(BR7^3/3)*4 -> 206.1863792 | CF7: m³ | CG7: =CC7+CE7 -> 447.2537023 | CH7: m³ | CI7: =(CX7*DF7*(BP7-BT7))+((BP7-BT7)^2*((CX7+DF7)))+((BP7-BT7)^3/3)*4 -> 1945.960804 | CJ7: m³ | CK7: =BN7*BL7 -> 703.0772935 | CL7: m131 | CM7: =SUM((BL7+(2*(Parameters!$D$5)))*(BN7+2*(Parameters!$D$5))) -> 1123.29576 | CN7: m131 | CO7: =2*(((2*Parameters!$D$5+BN7)*Parameters!$D$5+(Parameters!$D$5*BL7))) -> 420.218466 | CP7: m131 | CQ7: =SUM(CK7/CM7) -> 0.6259057666 | CR7: =BP7-BT7-BR7 -> 4.7 | CS7: m | CT7: =CV7+2*CR7 -> 25.91560472 | CU7: m | CV7: =-CR7+((-1.33*(CR7^4)+4*CR7*BX7)^(1/2))/(2*CR7) -> 16.51560472 | CW7: m | CX7: =CV7-2*BT7 -> 14.51560472 | CY7: m | CZ7: =BL7-2*BV7 -> 18.83560472 | DA7: m | DB7: =DD7+2*CR7 -> 25.91560472 | DC7: m | DD7: =CV7 -> 16.51560472 | DE7: m | DF7: =DD7-2*BT7 -> 14.51560472 | DG7: m | DH7: =BN7-2*BV7 -> 18.83560472 | DI7: m | DJ7: =(CX7*DF7*BP7)+(BP7^2*((CX7+DF7)))+(BP7^3/3)*4 -> 2597.340221 | DK7: m132 | DL7: =BX7/DJ7 -> 0.8277698787 | DM7: =DJ7-BX7 -> 447.3402214 | DN7: m132 | DO7: =CT7*DB7 -> 671.6185679 | DP7: m131 | DQ7: =SUM(CV7*DD7) -> 272.7651992 | DR7: m131
A8: Bedrijf/Situatie 2 | B8: 31000 | C8: 1500 | D8: =D5 -> 2800 | E8: 30000 | F8: 31.35427581 | G8: 31.35427581 | H8: ='Gegevens '!$C$13 -> 0 | I8: ='Gegevens '!$C$14 -> 0.75 | J8: ='Gegevens '!$C$15 -> 0.5 | L8: 1500.040241 | M8: 1827.458516 | N8: 457.2514471 | O8: 0.9267566633 | P8: 0.6018886082 | Q8: 829.1 | R8: 1.127120494 | S8: 934.4956012 | T8: 85.38603387 | U8: 849.1095673 | V8: 274.2588963 | W8: 10.79414949 | X8: 562.4622568 | Y8: 562.4622568 | Z8: 1.5942647 | AA8: 0.09137125286 | AB8: 0.2934833465 | AC8: 0.01155077614 | AD8: 0.6018886082 | AE8: 0.00170601627 | AF8: 1901.666987 | AG8: 1.483870968 | AH8: 2742.588963 | AI8: 659.6171314 | AK8: 3225.086519 | AL8: 4435.082528 | AN8: 507.3891102 | AO8: 702.6068982 | AP8: 1209.996008 | AQ8: 0 | AR8: 983.0906113 | AS8: =SUM((F8+(2*(Parameters!$D$5)))*(G8+2*(Parameters!$D$5))) -> 1471.050473 | AT8: =2*(((2*Parameters!$D$5+G8)*Parameters!$D$5+(Parameters!$D$5*F8))) -> 487.9598613 | AU8: 0.6682915574 | AV8: -1.25 | AW8: 29.85427581 | AX8: 32.35427581 | AY8: 31.35427581 | AZ8: 31.35427581 | BA8: 29.85427581 | BB8: 32.35427581 | BC8: 31.35427581 | BD8: 31.35427581 | BE8: 0 | BG8: -3225.086519 | BH8: 891.2777839 | BI8: 1046.799163 | BJ8: 0 | BK8: 1500 | BL8: 31.35427581 | BM8: m | BN8: 31.35427581 | BO8: m | BP8: 6 | BQ8: m | BR8: 0.3 | BS8: m | BT8: 1 | BU8: m | BV8: 3.84 | BW8: m | BX8: 3225 | BY8: m³ | BZ8: 3928.949291 | CA8: m³ | CB8: 0.8208301409 | CC8: 414.6298769 | CD8: m³ | CE8: 289.3194137 | CF8: m³ | CG8: 703.9492907 | CH8: m³ | CI8: 3007.320417 | CJ8: m³ | CK8: 983.0906113 | CL8: m132 | CM8: =SUM((BL8+(2*(Parameters!$D$5)))*(BN8+2*(Parameters!$D$5))) -> 1471.050473 | CN8: m132 | CO8: =2*(((2*Parameters!$D$5+BN8)*Parameters!$D$5+(Parameters!$D$5*BL8))) -> 487.9598613 | CP8: m132 | CQ8: 0.6682915574 | CR8: 4.7 | CS8: m | CT8: 30.75427581 | CU8: m | CV8: 21.35427581 | CW8: m | CX8: 19.35427581 | CY8: m | CZ8: 23.67427581 | DA8: m | DB8: 30.75427581 | DC8: m | DD8: 21.35427581 | DE8: m | DF8: 19.35427581 | DG8: m | DH8: 23.67427581 | DI8: m | DJ8: 3929.03581 | DK8: m133 | DL8: 0.8208120659 | DM8: 704.0358098 | DN8: m133 | DO8: 945.8254803 | DP8: m132 | DQ8: 456.0050952 | DR8: m132
A9: Bedrijf/Situatie 3 | B9: 31000 | C9: 2000 | D9: =D5 -> 2800 | E9: 30000 | F9: 35.42554883 | G9: 35.42554883 | H9: ='Gegevens '!$C$13 -> 0 | I9: ='Gegevens '!$C$14 -> 0.75 | J9: ='Gegevens '!$C$15 -> 0.5 | L9: 2000.040241 | M9: 2449.85002 | N9: 583.7067486 | O9: 0.972273211 | P9: 0.6244438115 | Q9: 829.1 | R9: 1.139766024 | S9: 944.9800103 | T9: 85.38603387 | U9: 859.5939764 | V9: 252.4033313 | W9: 14.93405238 | X9: 590.0869194 | Y9: 590.0869194 | Z9: 2.169673275 | AA9: 0.09035750275 | AB9: 0.2670991223 | AC9: 0.01580356433 | AD9: 0.6244438115 | AE9: 0.002295999123 | AF9: 1405.397882 | AG9: 2.3 | AH9: 2524.033313 | AI9: 387.0393142 | AK9: 4300.086519 | AL9: 5847.386605 | AN9: 645.3641959 | AO9: 901.9358897 | AP9: 1547.300086 | AQ9: 0 | AR9: 1254.96951 | AS9: =SUM((F9+(2*(Parameters!$D$5)))*(G9+2*(Parameters!$D$5))) -> 1799.927193 | AT9: =2*(((2*Parameters!$D$5+G9)*Parameters!$D$5+(Parameters!$D$5*F9))) -> 544.9576836 | AU9: 0.697233485 | AV9: -1.25 | AW9: 33.92554883 | AX9: 36.42554883 | AY9: 35.42554883 | AZ9: 35.42554883 | BA9: 33.92554883 | BB9: 36.42554883 | BC9: 35.42554883 | BD9: 35.42554883 | BE9: 0 | BG9: -4300.086519 | BH9: 1150.942863 | BI9: 1326.820607 | BJ9: 0 | BK9: 2000 | BL9: 35.42554883 | BM9: m | BN9: 35.42554883 | BO9: m | BP9: 6 | BQ9: m | BR9: 0.3 | BS9: m | BT9: 1 | BU9: m | BV9: 3.84 | BW9: m | BX9: 4300 | BY9: m³ | BZ9: 5267.091023 | CA9: m³ | CB9: 0.8163899164 | CC9: 596.9407687 | CD9: m³ | CE9: 370.1502541 | CF9: m³ | CG9: 967.0910228 | CH9: m³ | CI9: 4081.725797 | CJ9: m³ | CK9: 1254.96951 | CL9: m133 | CM9: =SUM((BL9+(2*(Parameters!$D$5)))*(BN9+2*(Parameters!$D$5))) -> 1799.927193 | CN9: m133 | CO9: =2*(((2*Parameters!$D$5+BN9)*Parameters!$D$5+(Parameters!$D$5*BL9))) -> 544.9576836 | CP9: m133 | CQ9: 0.697233485 | CR9: 4.7 | CS9: m | CT9: 34.82554883 | CU9: m | CV9: 25.42554883 | CW9: m | CX9: 23.42554883 | CY9: m | CZ9: 27.74554883 | DA9: m | DB9: 34.82554883 | DC9: m | DD9: 25.42554883 | DE9: m | DF9: 23.42554883 | DG9: m | DH9: 27.74554883 | DI9: m | DJ9: 5267.177542 | DK9: m134 | DL9: 0.8163765063 | DM9: 967.177542 | DN9: m134 | DO9: 1212.818851 | DP9: m133 | DQ9: 646.4585331 | DR9: m133
F10: 39.00863534 | G10: 39.00863534 | H10: ='Gegevens '!$C$13 -> 0 | I10: ='Gegevens '!$C$14 -> 0.75 | J10: ='Gegevens '!$C$15 -> 0.5 | L10: 2500.040241 | M10: 3074.148856 | N10: 707.7551771 | O10: 0.9917047883 | P10: 0.6300663317 | Q10: 829.1 | R10: 1.152170867 | S10: 955.2648655 | T10: 85.38603387 | U10: 869.8788316 | V10: 246.135311 | W10: 19.11306225 | X10: 601.8802296 | Y10: 601.8802296 | Z10: 2.750228758 | AA10: 0.08938466907 | AB10: 0.2576618484 | AC10: 0.02000812857 | AD10: 0.6300663317 | AE10: 0.002879022204 | AF10: 911.287118 | AG10: 9.2 | AH10: 2461.35311 | AI10: 463.1727173 | AK10: 5375.086519 | AL10: 7253.527327 | AN10: 780.5077998 | AO10: 1097.933008 | AP10: 1878.440808 | AQ10: 0 | AR10: 1521.673631 | AS10: =SUM((F10+(2*(Parameters!$D$5)))*(G10+2*(Parameters!$D$5))) -> 2116.794526 | AT10: =2*(((2*Parameters!$D$5+G10)*Parameters!$D$5+(Parameters!$D$5*F10))) -> 595.1208947 | AU10: 0.7188575048 | AV10: -1.25 | AW10: 37.50863534 | AX10: 40.00863534 | AY10: 39.00863534 | AZ10: 39.00863534 | BA10: 37.50863534 | BB10: 40.00863534 | BC10: 39.00863534 | BD10: 39.00863534 | BE10: 0 | BG10: -5375.086519 | BH10: 1406.897725 | BI10: 1600.690902 | BJ10: =E10 -> 0 | BK10: 2500 | BL10: 39.00863534 | BM10: m | BN10: 39.00863534 | BO10: m | BP10: 6 | BQ10: m | BR10: 0.3 | BS10: m | BT10: 1 | BU10: m | BV10: 3.84 | BW10: m | BX10: 5375 | BY10: m³ | BZ10: 6609.333522 | CA10: m³ | CB10: 0.8132438743 | CC10: 784.8169868 | CD10: m³ | CE10: 449.5165349 | CF10: m³ | CG10: 1234.333522 | CH10: m³ | CI10: 5164.430347 | CJ10: m³ | CK10: 1521.673631 | CL10: m134 | CM10: =SUM((BL10+(2*(Parameters!$D$5)))*(BN10+2*(Parameters!$D$5))) -> 2116.794526 | CN10: m134 | CO10: =2*(((2*Parameters!$D$5+BN10)*Parameters!$D$5+(Parameters!$D$5*BL10))) -> 595.1208947 | CP10: m134 | CQ10: 0.7188575048 | CR10: 4.7 | CS10: m | CT10: 38.40863534 | CU10: m | CV10: 29.00863534 | CW10: m | CX10: 27.00863534 | CY10: m | CZ10: 31.32863534 | DA10: m | DB10: 38.40863534 | DC10: m | DD10: 29.00863534 | DE10: m | DF10: 27.00863534 | DG10: m | DH10: 31.32863534 | DI10: m | DJ10: 6609.420041 | DK10: m135 | DL10: 0.8132332288 | DM10: 1234.420041 | DN10: m135 | DO10: 1475.223268 | DP10: m134 | DQ10: 841.5009241 | DR10: m134
A11: Parameters voor de simulatie (afblijven) | F11: 42.24584551 | G11: 42.24584551 | H11: ='Gegevens '!$C$13 -> 0 | I11: ='Gegevens '!$C$14 -> 0.75 | J11: ='Gegevens '!$C$15 -> 0.5 | L11: 3000.040241 | M11: 3699.799024 | N11: 830.0983549 | O11: 0.9980549536 | P11: 0.6274383743 | Q11: 829.1 | R11: 1.164405184 | S11: 965.4083383 | T11: 85.38603387 | U11: 880.0223044 | V11: 247.7015527 | W11: 23.25117382 | X11: 605.7342384 | Y11: 605.7342384 | Z11: 3.335339569 | AA11: 0.08844551107 | AB11: 0.2565769767 | AC11: 0.02408428941 | AD11: 0.6274383743 | AE11: 0.00345484852 | AF11: 419.3229288 | AG11: 15.33333333 | AH11: 2477.015527 | AI11: 181.0065179 | AK11: 6450.086519 | AL11: 8655.301361 | AN11: 913.6453209 | AO11: 1291.569521 | AP11: 2205.214842 | AQ11: 0 | AR11: 1784.711463 | AS11: =SUM((F11+(2*(Parameters!$D$5)))*(G11+2*(Parameters!$D$5))) -> 2425.1533 | AT11: =2*(((2*Parameters!$D$5+G11)*Parameters!$D$5+(Parameters!$D$5*F11))) -> 640.4418372 | AU11: 0.7359169678 | AV11: -1.25 | AW11: 40.74584551 | AX11: 43.24584551 | AY11: 42.24584551 | AZ11: 42.24584551 | BA11: 40.74584551 | BB11: 43.24584551 | BC11: 42.24584551 | BD11: 42.24584551 | BE11: 0 | BG11: -6450.086519 | BH11: 1660.223926 | BI11: 1870.203154 | BJ11: 0 | BK11: 3000 | BL11: 42.24584551 | BM11: m | BN11: 42.24584551 | BO11: m | BP11: 6 | BQ11: m | BR11: 0.3 | BS11: m | BT11: 1 | BU11: m | BV11: 3.84 | BW11: m | BX11: 6450 | BY11: m³ | BZ11: 7954.481382 | CA11: m³ | CB11: 0.8108636743 | CC11: 976.636195 | CD11: m³ | CE11: 527.8451867 | CF11: m³ | CG11: 1504.481382 | CH11: m³ | CI11: 6253.014796 | CJ11: m³ | CK11: 1784.711463 | CL11: m135 | CM11: =SUM((BL11+(2*(Parameters!$D$5)))*(BN11+2*(Parameters!$D$5))) -> 2425.1533 | CN11: m135 | CO11: =2*(((2*Parameters!$D$5+BN11)*Parameters!$D$5+(Parameters!$D$5*BL11))) -> 640.4418372 | CP11: m135 | CQ11: 0.7359169678 | CR11: 4.7 | CS11: m | CT11: 41.64584551 | CU11: m | CV11: 32.24584551 | CW11: m | CX11: 30.24584551 | CY11: m | CZ11: 34.56584551 | DA11: m | DB11: 41.64584551 | DC11: m | DD11: 32.24584551 | DE11: m | DF11: 30.24584551 | DG11: m | DH11: 34.56584551 | DI11: m | DJ11: 7954.567901 | DK11: m136 | DL11: 0.8108548548 | DM11: 1504.567901 | DN11: m136 | DO11: 1734.376448 | DP11: m135 | DQ11: 1039.794553 | DR11: m135
